Workbook

Sheet Temporaire (hidden)
A1: 1 | B1: Alèse pte blanc 100x170 CatA | C1: 330 | D1: pte al
A2: 4 | B2: Alèse gde blc 155x200 CatA | C2: 524 | D2: grde al
A3: 58 | B3: Nappe Gabriel blc 15x20 | C3: 900 | D3: nap 15
A4: 59 | B4: Nappe Gabriel blc 12x15 | C4: 544 | D4: nap 12
A5: 131 | B5: Nappe SU jaune 20x20 | C5: 1116 | D5: nap 20
A6: 188 | B6: Chemise ML Bowling rouge PC | C6: 303
A7: 301 | B7: Nappe Fleuri blc 18x30 | C7: 1389 | D7: nap 18
A8: 365 | B8: Napperon Fleuri 7x9 blc | C8: 397 | D8: npr 10
A9: 366 | B9: Napperon Fleuri 10x10 blc | C9: 288 | D9: npr 10
A10: 367 | B10: Napperon Fleuri 10x13 blc | C10: 367 | D10: npr 10
A11: 421 | B11: Serv Eponge Clas. | C11: 225 | D11: serv éponge
A12: 424 | B12: Serv Eponge bleu | C12: 172 | D12: serv éponge
A13: 428 | B13: Serv Eponge rose | C13: 162 | D13: serv éponge
A14: 446 | B14: Essuie-verres Elis 75x46 | C14: 94 | D14: torchon
A15: 449 | B15: Liteau Elis | C15: 58 | D15: torchon
A16: 457 | B16: Rouleau Barre Clas. écru | C16: 353 | D16: hous trav
A17: 463 | B17: Hous trav Gd blc 4x18 CatA | C17: 226 | D17: hous trav
A18: 517 | B18: Taie Am Clas blc 50x77 CatA | C18: 135 | D18: taie
A19: 663 | B19: Nappe Gabriel blc 18x35 | C19: 1685 | D19: nap .30
A20: 681 | B20: Napperon Gab 10x16 blc | C20: 480 | D20: npr 10
A21: 704 | B21: Nappe BS blanc 18x18 | C21: 818 | D21: nap 18
A22: 712 | B22: Desus lit Rayé bleu 18x25 CatA | C22: 1110 | D22: des lit
A23: 735 | B23: Nappe Fleuri blc 24x24 | C23: 1520 | D23: nap 24
A24: 790 | B24: Tapis bain Luxe blc | C24: 366 | D24: tapis bain
A25: 830 | B25: Nappe Fleuri blc 12x12 | C25: 380 | D25: nap 12
A26: 831 | B26: Nappe Fleuri blc 12x15 | C26: 470 | D26: nap 12
A27: 833 | B27: Nappe Fleuri blc 12x20 | C27: 610 | D27: nap 12
A28: 835 | B28: Nappe Fleuri blc 15x15 | C28: 590 | D28: nap 15
A29: 836 | B29: Nappe Fleuri blc 15x20 | C29: 770 | D29: nap 15
A30: 837 | B30: Nappe Fleuri blc 15x25 | C30: 1078 | D30: nap 15
A31: 838 | B31: Nappe Fleuri blc 15x30 | C31: 1289 | D31: nap 15
A32: 842 | B32: Nappe Fleuri blc 20x20 | C32: 1020 | D32: nap 20
A33: 843 | B33: Nappe Fleuri blc 20x25 | C33: 1389 | D33: nap 22
A34: 844 | B34: Nap Fleuri blc 20x30 | C34: 1661 | D34: nap 20
A35: 849 | B35: Nappe Fleuri blc 20x60 | C35: 3296 | D35: nap .60+
A36: 938 | B36: Nappe Gabriel blc 22x22 | C36: 1444 | D36: nap 22
A37: 946 | B37: Casaque Tradition vert PC 50/50 | C37: 500 | D37: peignoir/cas
A38: 1015 | B38: Nappe Gabriel blc 24x24 | C38: 1578 | D38: nap 24
A39: 1056 | B39: Serv Tab. Fleuri blc gde | C39: 128 | D39: serv tab pte
A40: 1069 | B40: Serv Coiffeur blanc | C40: 65 | D40: serv éponge
A41: 1090 | B41: Tablier Boucher simple | C41: 284 | D41: tablier blanc
A42: 1091 | B42: Tablier Boucher bret blc | C42: 367 | D42: tablier blanc
A43: 1094 | B43: Tablier bleu | C43: 320 | D43: tablier bleu
A44: 1096 | B44: Tablier Chef | C44: 370 | D44: tablier blanc
A45: 1121 | B45: Tablier Valet | C45: 383 | D45: tablier blanc
A46: 1135 | B46: Taie Car Clas blc 60x60 CatA | C46: 165 | D46: taie
A47: 1141 | B47: Torchon Elis blc 74x50 | C47: 91 | D47: torchon
A48: 1228 | B48: Serv Tab Fleuri blc pte | C48: 92 | D48: serv tab pte
A49: 1264 | B49: Nappe Fleuri blc 18x18 | C49: 820 | D49: nap 18
A50: 1310 | B50: Blouse H ML Missouri Blanc PC | C50: 546
A51: 1341 | B51: Drap Clas blc l.orang 180 CatA | C51: 780 | D51: drap petit
A52: 1351 | B52: Tablier Plonge lourd | C52: 435 | D52: tablier blanc
A53: 1386 | B53: Hous. trav. Pt blc coton | C53: 161 | D53: hous trav
A54: 1387 | B54: Gant Toilette Classique | C54: 30 | D54: carré/gant
A55: 1467 | B55: Peignoir col châle blanc | C55: 1700 | D55: peignoir/cas
A56: 1522 | B56: Couette Brancard ciel 120x180 CatA | C56: 950 | D56: couette/couv
A57: 1528 | B57: Drap Enfant Rose 80x150 CatA | C57: 190 | D57: drap petit
A58: 1555 | B58: Snack country jaune | C58: 48 | D58: serv tab pte
A59: 1558 | B59: Nappe Country jaune 12x12 | C59: 274 | D59: nap 12
A60: 1559 | B60: Nappe Country jaune 12x15 | C60: 335 | D60: nap 12
A61: 1566 | B61: Nap Country rouge 12x12 | C61: 274 | D61: nap 12
A62: 1613 | B62: Drap Clas ciel 180 CatA | C62: 785 | D62: drap petit
A63: 1618 | B63: Gilet froid marine PC 65/35 | C63: 488
A64: 1659 | B64: Tablier Dauphiné blc | C64: 245 | D64: tablier blanc
A65: 1706 | B65: Bourgeron province | C65: 1234
A66: 1718 | B66: Tapis bain Classique | C66: 280 | D66: tapis bain
A67: 1772 | B67: Drap Hous jers blc 60x120 CatA | C67: 180 | D67: drap housse
A68: 1810 | B68: Nappe Fleuri abri 12x12 | C68: 380 | D68: nap 12
A69: 1813 | B69: Nappe Fleuri abri 12x15 | C69: 558 | D69: nap 12
A70: 1862 | B70: Serv Tab Fleuri abr. pte | C70: 98 | D70: serv tab pte
A71: 1864 | B71: Nappe Fleuri abri 15x15 | C71: 699 | D71: nap 15
A72: 1967 | B72: DrapHous jers blc l.rose90x200 CatA | C72: 600 | D72: drap housse
A73: 1986 | B73: Nappe Fleuri abri 12x20 | C73: 738 | D73: nap 12
A74: 1987 | B74: Nappe Fleuri abri 15x20 | C74: 923 | D74: nap 15
A75: 2051 | B75: Drap Clas blc 2l.vert 240 CatA | C75: 1065 | D75: drap petit
A76: 2350 | B76: Housse Clas B l. vert C200 blc CatA | C76: 1400 | D76: HC MOY portrait
A77: 2351 | B77: Housse Clas B l.blc C240 blc CatA | C77: 1600 | D77: HC GD portrait
A78: 2647 | B78: Taie Am Clas blc 46x71VPDF CatA | C78: 173 | D78: taie
A79: 2690 | B79: Kit confort 2 | C79: 0
A80: 2847 | B80: Carré visage blanc | C80: 47 | D80: carré/gant
A81: 2941 | B81: Drap Clas blc l. noir 280 CatA | C81: 1210 | D81: drap grand
A82: 2990 | B82: Chemise Opéré bleu cordons | C82: 250 | D82: chmal
A83: 3114 | B83: Serv.ind. orange PF Garage | C83: 35 | D83: serv œil
A84: 3187 | B84: Nappe BS blc 24x24 | C84: 1521 | D84: nap 24
A85: 3206 | B85: Nappe BS blc 15x25 | C85: 1078 | D85: nap .30
A86: 3229 | B86: Serv.ind. bleue GF Imprimerie | C86: 55 | D86: serv œil
A87: 3242 | B87: Nappe BS blc 21x21 | C87: 1250 | D87: nap 22
A88: 3244 | B88: Drap bain Clas. 7x15 | C88: 450 | D88: drap bain
A89: 3274 | B89: Serv.ind. jaune GF Mécanique | C89: 60 | D89: serv œil
A90: 3279 | B90: Serv Alim grege | C90: 55 | D90: serv_alim
A91: 3436 | B91: Taie Car Clas blc 60x60VP CatA | C91: 202 | D91: taie
A92: 3465 | B92: Serv. Alim. grège Elis | C92: 50 | D92: serv_alim
A93: 3593 | B93: Serv Ep. Luxe | C93: 303 | D93: serv éponge luxe
A94: 3661 | B94: Nappe Fleuri églant 12x12 | C94: 457 | D94: nap 12
A95: 3739 | B95: Pant.H Atlanta vert bout. PC 65/35 | C95: 590
A96: 3772 | B96: Champ vert 10x10 P/C 50/50 | C96: 185 | D96: chp petit
A97: 3782 | B97: Serviette Oeil 60x73 | C97: 145 | D97: serv œil
A98: 3866 | B98: Napperon Fleuri 10x16 blc | C98: 462 | D98: npr 10
A99: 3881 | B99: Alèse abs. blanc | C99: 598 | D99: alése abs
A100: 4111 | B100: Nappe Gabriel blc 15x15 | C100: 681 | D100: nap 15
A101: 4112 | B101: Nappe Gabriel jaune 15x15 | C101: 727 | D101: nap 15
A102: 4113 | B102: Nappe Gabriel blc 15x25 | C102: 1118 | D102: nap 15
A103: 4114 | B103: Nappe Gabriel blc 20x20 | C103: 1159 | D103: nap 20
A104: 4115 | B104: Nappe Gabriel jaune 15x25 | C104: 1195 | D104: nap .30
A105: 4117 | B105: Nappe Gabriel jaune 12x12 | C105: 475 | D105: nap 12
A106: 4125 | B106: Nappe Gabriel blc 20x30 | C106: 1722 | D106: nap 20
A107: 4127 | B107: Nappe Gabriel blc 20x50 | C107: 2855 | D107: nap .50
A108: 4167 | B108: Nappe Gabriel jaune 18x18 | C108: 941 | D108: nap 18
A109: 4330 | B109: Serv Tab Gabriel blc 60x65 | C109: 110 | D109: serv tab gde
A110: 4331 | B110: Napperon Gab blanc 10x10 blc | C110: 280 | D110: npr 10
A111: 4332 | B111: Nappe Gabriel blc 12x12 | C111: 400 | D111: nap 12
A112: 4333 | B112: Nappe Gabriel blc 18x18 | C112: 860 | D112: nap 18
A113: 4359 | B113: Chemise Opéré blc cordons | C113: 406 | D113: chmal
A114: 4384 | B114: Serv Tab Gabriel jau. gd | C114: 130 | D114: serv tab gde
A115: 4385 | B115: Nappe Gabriel jaune 15x20 | C115: 961 | D115: nap 15
A116: 4387 | B116: Dessus Lit Rayé blc 18x25 Cat A | C116: 1110 | D116: des lit
A117: 4409 | B117: Nappe Fleuri blc 18x25 | C117: 1162 | D117: nap 18
A118: 4652 | B118: Couette Navajo 180x230 CatA | C118: 1800 | D118: couette/couv
A119: 4722 | B119: SacTextileElisJaunePaillePolyester | C119: 275 | D119: sac
A120: 4854 | B120: Peignoir Samouraï Int blc | C120: 1260 | D120: peignoir/cas
A121: 4945 | B121: Serv Tab Bistrot blanc | C121: 55 | D121: serv tab pte
A122: 5001 | B122: Essuie-verres coton 53x66 | C122: 90 | D122: torchon
A123: 5056 | B123: Nappe Platine ivoir 12x12 | C123: 370 | D123: nap 12
A124: 5103 | B124: Nappe BS champ 15x15 | C124: 707 | D124: nap 15
A125: 5337 | B125: Hous trav Pt blc 40x135 CatA | C125: 150 | D125: hous trav
A126: 5653 | B126: Dessus Lit Rayé blc 18x25 CatA | C126: 1100 | D126: des lit
A127: 5710 | B127: Desus Lit Rayé blc 30x25 CatA | C127: 1500 | D127: des lit
A128: 6107 | B128: Serv Tab SU vert | C128: 117 | D128: serv tab pte
A129: 6117 | B129: Serv Tab SU chmp | C129: 90 | D129: serv tab pte
A130: 6122 | B130: Nappe SU champ 12x12 | C130: 380 | D130: nap 12
A131: 6124 | B131: Nappe SU champ 15x15 | C131: 764 | D131: nap 15
A132: 6127 | B132: Nappe SU champ 15x20 | C132: 1006 | D132: nap 15
A133: 6128 | B133: Nappe SU champ 18x18 | C133: 820 | D133: nap 18
A134: 6178 | B134: Serv Tab SU jaune | C134: 101 | D134: serv tab pte
A135: 6182 | B135: Nappe SU jaune 12x12 | C135: 429 | D135: nap 12
A136: 6184 | B136: Nappe SU jaune 15x15 | C136: 664 | D136: nap 15
A137: 6185 | B137: Nappe SU jaune 15x20 | C137: 875 | D137: nap 15
A138: 6186 | B138: Nappe SU jaune 18x18 | C138: 939 | D138: nap 18
A139: 6238 | B139: Nap Satin uni champ 12x15 | C139: 610 | D139: nap 15
A140: 6265 | B140: Drap ambu blc 130x240 CatA | C140: 520 | D140: grde al
A141: 6267 | B141: Alèse chariot blc CatA | C141: 410 | D141: grde al
A142: 6268 | B142: Bavoir adulte absorb | C142: 175 | D142: bavoir
A143: 6271 | B143: Alèse absorb 87x87 CatA | C143: 565 | D143: alése abs
A144: 6313 | B144: Chp tr 30cm 10x10 vert Cret | C144: 189 | D144: chp petit
A145: 6632 | B145: Tablier Valet sans poche | C145: 296 | D145: tablier blanc
A146: 6735 | B146: Nappe BS blc 12x12 | C146: 429 | D146: nap 12
A147: 6736 | B147: Nappe BS blc 12x15 | C147: 524 | D147: nap 12
A148: 6739 | B148: Nappe BS blc 15x15 | C148: 656 | D148: nap 15
A149: 6742 | B149: Nappe BS blc 15x20 | C149: 867 | D149: nap 15
A150: 6820 | B150: Serv Tab BS blc 55x55 | C150: 90 | D150: serv tab pte
A151: 6851 | B151: Napperon Gab 10x10 jaune | C151: 280 | D151: npr 10
A152: 6852 | B152: Nappe Fleuri blc 22x22 | C152: 1392 | D152: nap 22
A153: 6853 | B153: Npr Gabriel jaune 10x16 | C153: 513 | D153: nap 15
A154: 6854 | B154: Napperon BS blanc 10x10 | C154: 260 | D154: npr 10
A155: 6895 | B155: Housse Clas B l.bleu C160 blc CatA | C155: 1113 | D155: HC PT portrait
A156: 7094 | B156: Serv Ep. Sofitel | C156: 347 | D156: serv éponge luxe
A157: 7095 | B157: Drap bain Sofitel | C157: 825 | D157: drap bain luxe
A158: 7171 | B158: Housse Clas B l.jaune C260 blc CatA | C158: 2215 | D158: HC GD portrait
A159: 7175 | B159: Serv Ep. Mercure | C159: 203 | D159: serv éponge
A160: 7176 | B160: Drap bain Mercure | C160: 473 | D160: drap bain luxe
A161: 7177 | B161: T.bain All Sea/Merc. 60x70 blc | C161: 231 | D161: tapis bain
A162: 7490 | B162: Nappe SU rouge 12x12 | C162: 492 | D162: nap 12
A163: 7727 | B163: Couv.Fleu NF 200 x 250 | C163: 500 | D163: couette/couv
A164: 8137 | B164: Serv Tab SU rouge | C164: 116 | D164: serv tab pte
A165: 8459 | B165: Nappe SU champ 20x20 | C165: 1283 | D165: nap 20
A166: 8705 | B166: Serv Tab BS champ pt 63x50 | C166: 91 | D166: serv tab gde
A167: 8757 | B167: Taie Am Luxe blc PC VP | C167: 210 | D167: taie luxe
A168: 8785 | B168: Serv Eponge Confort | C168: 127 | D168: serv éponge
A169: 8786 | B169: Drap bain Confort | C169: 360 | D169: drap bain
A170: 8787 | B170: Tapis bain Confort | C170: 182 | D170: tapis bain
A171: 9441 | B171: Sac textile elis gris polyester | C171: 285 | D171: sac
A172: 9568 | B172: Serv Eponge noir | C172: 183 | D172: serv éponge
A173: 9998 | B173: Sac pour serv.K | C173: 0 | D173: sac
A174: 10105 | B174: Nappe BS champ 21x21 | C174: 1346 | D174: nap 22
A175: 10106 | B175: Nappe BS champ 24x24 | C175: 1657 | D175: nap 24
A176: 10109 | B176: Nap BS champ 18x75 | C176: 3678 | D176: nap .60+
A177: 10315 | B177: Carré visage Super Luxe ivoire | C177: 64 | D177: carré/gant
A178: 10693 | B178: Tablier boucher Intermarché 2000 | C178: 357
A179: 10919 | B179: Serv Eponge Super Luxe | C179: 305 | D179: serv éponge luxe
A180: 10920 | B180: Drap bain Super Luxe Pt | C180: 834 | D180: drap bain luxe
A181: 11013 | B181: ChTab BS car/cam 45x100 | C181: 115 | D181: ch tab
A182: 12595 | B182: Housse King SPA C260 blc | C182: 1755 | D182: HC GD portrait
A183: 12806 | B183: Housse Prés. SPA C280 blc | C183: 1829 | D183: HC GD portrait
A184: 14363 | B184: ChTab BS écru 50x110 | C184: 126 | D184: ch tab
A185: 14423 | B185: ChTab Métis beige 50x130 | C185: 150 | D185: ch tab
A186: 14425 | B186: Nappe Métis beige 17x17 | C186: 665 | D186: nap 18
A187: 14426 | B187: Nappe Métis beige 21x21 | C187: 1014 | D187: nap 22
A188: 14486 | B188: Serv Tab Métis beige 60x60 | C188: 83 | D188: serv tab pte
A189: 14766 | B189: Nappe Métis beige 13x13 | C189: 389 | D189: nap 12
A190: 18851 | B190: Drap blc 235x290 MyBed | C190: 935 | D190: drap grand
A191: 18852 | B191: Drap blc 305x290 MyBed | C191: 1247 | D191: drap grand
A192: 18857 | B192: Housse B I.orange C180 blc | C192: 1350 | D192: HC GD portrait
A193: 18859 | B193: Housse B I.bl.roy C260 blc | C193: 1890 | D193: HC GD portrait
A194: 18865 | B194: Taie Am blc 50x88 f.mauve MyBed | C194: 115 | D194: taie
A195: 19908 | B195: Set plateau sarrazin 38x58 COJE | C195: 400 | D195: Set
A196: 21317 | B196: Serv Tab SU champ 65x65 | C196: 115 | D196: serv tab gde
A197: 21318 | B197: Tapis bain Sofitel blc 49x70 | C197: 340 | D197: serv éponge luxe
A198: 25221 | B198: ChTab BS ébène 45x110 | C198: 130 | D198: ch tab
A199: 25374 | B199: Drap bain ORFEA blc | C199: 380 | D199: serv éponge
A200: 25375 | B200: Tapis bain ORFEA blc | C200: 190 | D200: serv éponge
... 113 more rows

Sheet Organnigramme (hidden)
M6: Equipements de lavage
P13: oui
L17: Attente | M17: non
P24: oui
M26: Equipements de Séchage
P31: oui
L36: Attente | M36: non
M45: Equipements de Finition
M53: Linge sale
M65: sortie d'usine

Sheet Analyse (hidden)
B2: Exemple du principe de fontionnement de la simulation
A5: Veuillez lire tous les commentaires | D5: Hypothése : on suppose que les passes qu'on va traité dans la simulation si dessous sont que des éponges
C11: 2.8 | F11: =I11-C11 -> 25.2 | I11: 28 | L11: =O11-F11 -> -3.8 | O11: 21.4
A14: Tunnel Kannegiesser | F14: Séchoir 3&4 | L14: Plieur Eponges
L18: Calandre petit plats
B19: Avant de faire sortir la A il faut faire avancer le B etC
F20: Séchoir 2
D21: 6 | L21: Calandre grand plats
E22: Avant de faire sortir le B etC il faut faire avancer le D,E et F
D25: 1 | I25: 0
B32: famille | C32: poids | D32: calandre | E32: Lavage
B33: drap bain | C33: 107386.0778 | D33: Plat5 | E33: Kannegiesser
B34: drap bain luxe | C34: 6356.083254 | D34: Plat5 | E34: Kannegiesser
B35: drap bain spa | C35: 427.3676 | D35: Plat5 | E35: Kannegiesser
B36: drap grand | C36: 91105.1044 | D36: Plat3 | E36: Kannegiesser
B37: drap housse | C37: 86290.00065 | D37: Plat6 | E37: Kannegiesser
B38: drap luxe | C38: 40.245975 | D38: Plat3 | E38: Kannegiesser
B39: drap petit | C39: 929329.8799 | D39: Plat3 | E39: Kannegiesser
B40: grde al | C40: 1828.348082 | D40: Plat4 | E40: Kannegiesser
B41: hous trav | C41: 11187.86271 | D41: Plat4 | E41: Kannegiesser
B42: housse couette | C42: 93976.17552 | D42: Plat3 | E42: Kannegiesser
B43: petite housse | C43: 30645.09325 | D43: Plat3 | E43: Kannegiesser
B44: serv éponge | C44: 195072.8428 | D44: Plat5 | E44: Kannegiesser
B45: serv éponge luxe | C45: 927.2931562 | D45: Plat5 | E45: Kannegiesser
B46: serv tab gde | C46: 38.624432 | D46: Plat2 | E46: Kannegiesser
B47: serv tab gde prestige | C47: 1.25832 | D47: Plat2 | E47: Kannegiesser
B48: serv tab pte | C48: 50857.15243 | D48: Plat2 | E48: Kannegiesser
B49: tablier blanc | C49: 24003.28539 | D49: Plat2 | E49: Kannegiesser
B50: tablier bleu | C50: 337.4151375 | D50: Plat2 | E50: Kannegiesser
B51: tablier bret | C51: 582.8894015 | D51: Plat2 | E51: Kannegiesser
B52: taie am | C52: 13359.39469 | D52: Plat2 | E52: Kannegiesser
B53: Taie Carrée | C53: 103155.9389 | D53: Plat2 | E53: Kannegiesser
B54: taie luxe | C54: 1848.383698 | D54: Plat2 | E54: Kannegiesser
B55: tapis bain | C55: 22406.11378 | D55: Plat5 | E55: Kannegiesser
B56: tapis bain luxe | C56: 563.7474033 | D56: Plat5 | E56: Kannegiesser
B57: torchon | C57: 21708.74374 | D57: Plat2 | E57: Kannegiesser
B60: calcul cadencement Kannegisser
B63: famille | C63: poids | D63: calandre | E63: Lavage
B64: grde al | C64: 1828.348082 | D64: Plat4 | E64: Kannegiesser
B65: hous trav | C65: 11187.86271 | D65: Plat4 | E65: Kannegiesser
C66: 13016.21079
B73: équipement | C73: calandre | D73: poids | E73: cadencement en pourcentage réel | F73: cadencement en nombre de passe | G73: cadencement en pourcentage nominal
B74: Kannegiesser | C74: Plat2 | D74: 215893.0861 | E74: 0.1203796331 | F74: 1 | G74: 0.1052631579
C75: Plat3 | D75: 1145096.499 | E75: 0.6384933344 | F75: 6 | G75: 0.6315789474
C76: Plat4 | D76: 13016.21079 | E76: 0.007257697352 | F76: 0 | G76: 0
C77: Plat5 | D77: 333139.5258 | E77: 0.1857549707 | F77: 2 | G77: 0.2105263158
C78: Plat6 | D78: 86290.00065 | E78: 0.04811436441 | F78: 0.5 | G78: 0.05263157895
D79: 1793435.322 | E79: 1 | F79: 9.5 | G79: 1
B80: Laveuse | C80: Plat2 | D80: 110.6478975 | E80: 0.0003330652645 | F80: 0 | G80: 0
C81: Plat4 | D81: 69244.48074 | E81: 0.2084353324 | F81: 0.5 | G81: 0.2
C82: Plat5 | D82: 59.46007917 | E82: 0.000178982949 | F82: 0 | G82: 0
C83: Plat6 | D83: 262796.2699 | E83: 0.7910526194 | F83: 2 | G83: 0.8
D84: 332210.8586 | E84: 1 | F84: 2.5 | G84: 1
B85: Milnor | C85: Plat4 | D85: 23396.86681 | E85: 0.01890764273 | F85: 0 | G85: 0
C86: Plat5 | D86: 14032.2056 | E86: 0.01133980599 | F86: 0 | G86: 0
C87: Plat6 | D87: 1200000 | E87: 0.9697525513 | F87: 1 | G87: 1
D88: 1237429.072 | E88: 1 | F88: 1 | G88: 1

Sheet Qtité art (hidden)
A2: =Narlivt!F2 -> Semaines prises en compte dans le Narlivt | C2: =Narlivt!H2 -> S30 - S32
A5: Tonnage plat hebdo livré moyen | C5: =(SUM(G9:G900)/1000) -> 1059.217426 | D5: (yc variation de charge)
I6: Attention: ne pas modifier la ligne 7, cellules A à H, qui sert au calcul du tableau ci-dessous
A7: =IF(Paramètres!A5="","",Paramètres!A5) -> TABLE ARTICLE DU CENTRE | B7: =IF(Paramètres!B5="","",Paramètres!B5) ->  | C7: =IF(Paramètres!C5="","",Paramètres!C5) ->  | D7: =IF(E7=0,0,H7*(1+I7)+J7) -> 0 | E7: =IF(Paramètres!A5="","",Paramètres!D5) -> 0 | F7: =IF(Paramètres!E5="","",Paramètres!E5) ->  | G7: =IF(B7="",0,D7*C7/1000) -> 0 | H7: =SUM(IF((Narlivt!$E$9:$E$6968='Qtité art'!A7),(Narlivt!$H$9:$H$6968)/Narlivt!$H$5)) -> 0
A8: code article | B8: nom_article | C8: Poids unitaire | D8: Qtité hebdo livrée (yc variation charge) | E8: Famille | F8: Activité | G8: Poids hebdo livré (yc variation charge) (kg) | H8: Qtité hebdo livrée (Narlivt) | I8: Variation hebdo de charge (%) | J8: Variation hebdo de charge (pièces) | K8: Commentaires | L8: code lavage | M8: TcycleL | N8: Séchoir | O8: TcycleS | P8: Calandre | Q8: TcycleC
A9: 1056 | B9: Serv Tab Fleuri GDE 60x70 blc | C9: 128 | D9: 101 | E9: serv tab gde | F9: RCALPP_inf_8 | G9: 12.928 | H9: 101 | L9: =VLOOKUP(E9,PP!$A$12:$CD$27,51,FALSE) -> 5 | M9: =IF(L9=5,Lavage!$I$25) -> 01:06:21.565 | P9: Plat2 | Q9: =IF(L9=5,IF(E9=PP!$A$16,100/(PP!$AR$16*PP!$T$16*PP!$V$16))) -> 10:14:39.500
A10: 3660 | B10: Serv Tab Fleuri égl. gd | C10: 136 | D10: 31.33333333 | E10: serv tab gde | F10: RCALPP_inf_8 | G10: 4.261333333 | H10: 31.33333333 | L10: =VLOOKUP(E10,PP!$A$12:$CD$27,51,FALSE) -> 5 | M10: =IF(L10=5,Lavage!$I$25) -> 01:06:21.565 | P10: Plat2 | Q10: =IF(L10=5,IF(E10=PP!$A$16,100/(PP!$AR$16*PP!$T$16*PP!$V$16))) -> 10:14:39.500
A11: =IF(Paramètres!A9="","",Paramètres!A9) -> 25 | B11: =IF(Paramètres!B9="","",Paramètres!B9) -> Champ Cre bleu 10x10 coton | C11: =IF(Paramètres!C9="","",Paramètres!C9) -> 182 | D11: =IF(E11=0,0,H11*(1+I11)+J11) -> 5 | E11: =IF(Paramètres!A9="","",Paramètres!D9) -> chp petit | F11: =IF(Paramètres!E9="","",Paramètres!E9) -> HCALPP_Alèse | G11: =IF(B11="",0,D11*C11/1000) -> 0.91 | H11: =SUM(IF((Narlivt!$E$9:$E$6968='Qtité art'!A11),(Narlivt!$H$9:$H$6968)/Narlivt!$H$5)) -> 5 | L11: =VLOOKUP('Qtité art'!E11,Mixte!$A$12:$CD$32,51,FALSE) -> 2 | M11: =IF(L11=2,Lavage!$I$14) -> 00:03:00 | N11: =VLOOKUP(E11,Mixte!$A$12:$CD$32,73,FALSE) -> 0 | P11: Plat4 | Q11: =IF(L11=2,IF(E11=Mixte!$A$21,50/(Mixte!$AR$21*Mixte!$T$21*Mixte!$V$21))) -> 13:24:38.342
A12: =IF(Paramètres!A10="","",Paramètres!A10) -> 26 | B12: =IF(Paramètres!B10="","",Paramètres!B10) -> Champ db bleu 10x12 P/C 50/50 | C12: =IF(Paramètres!C10="","",Paramètres!C10) -> 430 | D12: 20 | E12: =IF(Paramètres!A10="","",Paramètres!D10) -> chp petit | F12: =IF(Paramètres!E10="","",Paramètres!E10) -> HCALPP_Alèse | G12: 8.6 | H12: =SUM(IF((Narlivt!$E$9:$E$6968='Qtité art'!A12),(Narlivt!$H$9:$H$6968)/Narlivt!$H$5)) -> 20 | L12: =VLOOKUP('Qtité art'!E12,Mixte!$A$12:$CD$32,51,FALSE) -> 2 | M12: =IF(L12=2,Lavage!$I$14) -> 00:03:00 | N12: =VLOOKUP(E12,Mixte!$A$12:$CD$32,73,FALSE) -> 0 | P12: Plat4 | Q12: =IF(L12=2,IF(E12=Mixte!$A$21,50/(Mixte!$AR$21*Mixte!$T$21*Mixte!$V$21))) -> 13:24:38.342
A13: =IF(Paramètres!A11="","",Paramètres!A11) -> 353 | B13: =IF(Paramètres!B11="","",Paramètres!B11) -> Taie Car Luxe PC VP blc | C13: =IF(Paramètres!C11="","",Paramètres!C11) -> 210 | D13: 272 | E13: =IF(Paramètres!A11="","",Paramètres!D11) -> taie luxe | F13: =IF(Paramètres!E11="","",Paramètres!E11) -> HCALPP_Taie | G13: 57.12 | H13: =SUM(IF((Narlivt!$E$9:$E$6968='Qtité art'!A13),(Narlivt!$H$9:$H$6968)/Narlivt!$H$5)) -> 272 | L13: =VLOOKUP(E13,PP!$A$12:$CD$27,51,FALSE) -> 1 | M13: =IF(L13=1,Lavage!$I$13) -> 00:01:35 | N13: =VLOOKUP(E13,PP!$A$12:$CD$27,73,FALSE) -> 1 | O13: =IF(N13=1,Séchage!$D$12) -> 00:04:47.238 | P13: Plat2 | Q13: =IF(L13=1,IF(E13=PP!$A$13,(50/PP!$AR$13*PP!$T$13*PP!$V$13))) -> 325641.0072
A14: =IF(Paramètres!A12="","",Paramètres!A12) -> 355 | B14: =IF(Paramètres!B12="","",Paramètres!B12) -> Taie Am Lux l.beige 75x50VP blc | C14: =IF(Paramètres!C12="","",Paramètres!C12) -> 193 | D14: 252.6666667 | E14: =IF(Paramètres!A12="","",Paramètres!D12) -> taie luxe | F14: =IF(Paramètres!E12="","",Paramètres!E12) -> HCALPP_Taie | G14: 48.76466667 | H14: =SUM(IF((Narlivt!$E$9:$E$6968='Qtité art'!A14),(Narlivt!$H$9:$H$6968)/Narlivt!$H$5)) -> 252.6666667 | L14: =VLOOKUP(E14,PP!$A$12:$CD$27,51,FALSE) -> 1 | M14: =IF(L14=1,Lavage!$I$13) -> 00:01:35 | N14: =VLOOKUP(E14,PP!$A$12:$CD$27,73,FALSE) -> 1 | O14: =IF(N14=1,Séchage!$D$12) -> 00:04:47.238 | P14: Plat2 | Q14: =IF(L14=1,IF(E14=PP!$A$13,(50/PP!$AR$13*PP!$T$13*PP!$V$13))) -> 325641.0072
A15: =IF(Paramètres!A13="","",Paramètres!A13) -> 366 | B15: =IF(Paramètres!B13="","",Paramètres!B13) -> Napperon Fleuri 10x10 blc | C15: =IF(Paramètres!C13="","",Paramètres!C13) -> 288 | D15: 102.6666667 | E15: =IF(Paramètres!A13="","",Paramètres!D13) -> npr 10 | F15: =IF(Paramètres!E13="","",Paramètres!E13) -> RCALPP_sup_8 | G15: 29.568 | H15: =SUM(IF((Narlivt!$E$9:$E$6968='Qtité art'!A15),(Narlivt!$H$9:$H$6968)/Narlivt!$H$5)) -> 102.6666667 | L15: =VLOOKUP('Qtité art'!E15,Mixte!$A$12:$CD$32,51,FALSE) -> 5 | M15: =IF(L15=5,Lavage!$I$25) -> 01:06:21.565 | N15: =VLOOKUP(E15,Mixte!$A$12:$CD$32,73,FALSE) -> 0 | P15: Plat4 | Q15: =IF(L15=5,IF(E15=Mixte!$A$19,100/(Mixte!$AR$19*Mixte!$T$19*Mixte!$V$19))) -> 14:59:18.505
A16: =IF(Paramètres!A14="","",Paramètres!A14) -> 367 | B16: =IF(Paramètres!B14="","",Paramètres!B14) -> Napperon Fleuri 10x13 blc | C16: =IF(Paramètres!C14="","",Paramètres!C14) -> 367 | D16: 2.333333333 | E16: =IF(Paramètres!A14="","",Paramètres!D14) -> npr 10 | F16: =IF(Paramètres!E14="","",Paramètres!E14) -> RCALPP_sup_8 | G16: 0.8563333333 | H16: =SUM(IF((Narlivt!$E$9:$E$6968='Qtité art'!A16),(Narlivt!$H$9:$H$6968)/Narlivt!$H$5)) -> 2.333333333 | L16: =VLOOKUP('Qtité art'!E16,Mixte!$A$12:$CD$32,51,FALSE) -> 5 | M16: =IF(L16=5,Lavage!$I$25) -> 01:06:21.565 | N16: =VLOOKUP(E16,Mixte!$A$12:$CD$32,73,FALSE) -> 0 | P16: Plat4 | Q16: =IF(L16=5,IF(E16=Mixte!$A$19,100/(Mixte!$AR$19*Mixte!$T$19*Mixte!$V$19))) -> 14:59:18.505
A17: =IF(Paramètres!A15="","",Paramètres!A15) -> 421 | B17: =IF(Paramètres!B15="","",Paramètres!B15) -> Serv Eponge COCOON blc | C17: =IF(Paramètres!C15="","",Paramètres!C15) -> 225 | D17: 25239.33333 | E17: =IF(Paramètres!A15="","",Paramètres!D15) -> serv éponge | F17: =IF(Paramètres!E15="","",Paramètres!E15) -> HSECPA_Eponge | G17: 5678.85 | H17: =SUM(IF((Narlivt!$E$9:$E$6968='Qtité art'!A17),(Narlivt!$H$9:$H$6968)/Narlivt!$H$5)) -> 24838.33333 | J17: 401 | L17: =VLOOKUP(E17,PE!$A$12:$CD$27,51,FALSE) -> 1 | M17: =IF(L17=1,Lavage!$I$13) -> 00:01:35 | N17: =VLOOKUP(E17,PE!$A$12:$CD$27,73,FALSE) -> 5 | O17: =IF(N17=5,Séchage!$D$36) -> 00:27:00 | P17: Plat5 | Q17: =IF(L17=1,IF(E17=PE!$A$14,(50/PE!$AR$14*PE!$T$14*PE!$V$14))) -> 275553.6379
A18: =IF(Paramètres!A16="","",Paramètres!A16) -> 424 | B18: =IF(Paramètres!B16="","",Paramètres!B16) -> Serv Eponge bleu clair | C18: =IF(Paramètres!C16="","",Paramètres!C16) -> 172 | D18: 109 | E18: =IF(Paramètres!A16="","",Paramètres!D16) -> serv éponge | F18: =IF(Paramètres!E16="","",Paramètres!E16) -> HSECPA_Eponge | G18: 18.748 | H18: =SUM(IF((Narlivt!$E$9:$E$6968='Qtité art'!A18),(Narlivt!$H$9:$H$6968)/Narlivt!$H$5)) -> 109 | L18: =VLOOKUP(E18,PE!$A$12:$CD$27,51,FALSE) -> 1 | M18: =IF(L18=1,Lavage!$I$13) -> 00:01:35 | N18: =VLOOKUP(E18,PE!$A$12:$CD$27,73,FALSE) -> 5 | O18: =IF(N18=5,Séchage!$D$36) -> 00:27:00 | P18: Plat5 | Q18: =IF(L18=1,IF(E18=PE!$A$14,(50/PE!$AR$14*PE!$T$14*PE!$V$14))) -> 275553.6379
A19: =IF(Paramètres!A17="","",Paramètres!A17) -> 428 | B19: =IF(Paramètres!B17="","",Paramètres!B17) -> Serv Eponge rose | C19: =IF(Paramètres!C17="","",Paramètres!C17) -> 162 | D19: 1994.666667 | E19: =IF(Paramètres!A17="","",Paramètres!D17) -> serv éponge | F19: =IF(Paramètres!E17="","",Paramètres!E17) -> HSECPA_Eponge | G19: 323.136 | H19: =SUM(IF((Narlivt!$E$9:$E$6968='Qtité art'!A19),(Narlivt!$H$9:$H$6968)/Narlivt!$H$5)) -> 1929.666667 | J19: 65 | L19: =VLOOKUP(E19,PE!$A$12:$CD$27,51,FALSE) -> 1 | M19: =IF(L19=1,Lavage!$I$13) -> 00:01:35 | N19: =VLOOKUP(E19,PE!$A$12:$CD$27,73,FALSE) -> 5 | O19: =IF(N19=5,Séchage!$D$36) -> 00:27:00 | P19: Plat5 | Q19: =IF(L19=1,IF(E19=PE!$A$14,(50/PE!$AR$14*PE!$T$14*PE!$V$14))) -> 275553.6379
A20: =IF(Paramètres!A18="","",Paramètres!A18) -> 429 | B20: =IF(Paramètres!B18="","",Paramètres!B18) -> Serviette absorbante | C20: =IF(Paramètres!C18="","",Paramètres!C18) -> 45 | D20: 46.66666667 | E20: =IF(Paramètres!A18="","",Paramètres!D18) -> serv éponge | F20: =IF(Paramètres!E18="","",Paramètres!E18) -> HSECPA_Eponge | G20: 2.1 | H20: =SUM(IF((Narlivt!$E$9:$E$6968='Qtité art'!A20),(Narlivt!$H$9:$H$6968)/Narlivt!$H$5)) -> 46.66666667 | L20: =VLOOKUP(E20,PE!$A$12:$CD$27,51,FALSE) -> 1 | M20: =IF(L20=1,Lavage!$I$13) -> 00:01:35 | N20: =VLOOKUP(E20,PE!$A$12:$CD$27,73,FALSE) -> 5 | O20: =IF(N20=5,Séchage!$D$36) -> 00:27:00 | P20: Plat5 | Q20: =IF(L20=1,IF(E20=PE!$A$14,(50/PE!$AR$14*PE!$T$14*PE!$V$14))) -> 275553.6379
A21: =IF(Paramètres!A19="","",Paramètres!A19) -> 434 | B21: =IF(Paramètres!B19="","",Paramètres!B19) -> Drap Hous jers blc 14x19 CP NF | C21: =IF(Paramètres!C19="","",Paramètres!C19) -> 450 | D21: 9.333333333 | E21: =IF(Paramètres!A19="","",Paramètres!D19) -> drap housse | F21: =IF(Paramètres!E19="","",Paramètres!E19) -> HSECPM_Santé | G21: 4.2 | H21: =SUM(IF((Narlivt!$E$9:$E$6968='Qtité art'!A21),(Narlivt!$H$9:$H$6968)/Narlivt!$H$5)) -> 9.333333333 | L21: =VLOOKUP(E21,'Pliage main'!$A$12:$CD$27,51,FALSE) -> 1 | M21: =IF(L21=1,Lavage!$I$13) -> 00:01:35 | N21: =VLOOKUP(E21,'Pliage main'!$A$12:$CD$27,73,FALSE) -> 2 | O21: =IF(N21=2,Séchage!$D$18) -> 00:22:38.495 | P21: Plat6 | Q21: =IF(L21=1,IF(E21='Pliage main'!$A$17,(50/'Pliage main'!$AR$17*'Pliage main'!$T$17*'Pliage main'!$V$17))) -> 43869.5083
A22: =IF(Paramètres!A20="","",Paramètres!A20) -> 446 | B22: =IF(Paramètres!B20="","",Paramètres!B20) -> Essuie-verres métis 46x75 | C22: =IF(Paramètres!C20="","",Paramètres!C20) -> 94 | D22: 1973 | E22: =IF(Paramètres!A20="","",Paramètres!D20) -> torchon | F22: =IF(Paramètres!E20="","",Paramètres!E20) -> RCALPP_inf_8 | G22: 185.462 | H22: =SUM(IF((Narlivt!$E$9:$E$6968='Qtité art'!A22),(Narlivt!$H$9:$H$6968)/Narlivt!$H$5)) -> 1973 | L22: =VLOOKUP(E22,PP!$A$12:$CD$27,51,FALSE) -> 1 | M22: =IF(L22=1,Lavage!$I$13) -> 00:01:35 | N22: =VLOOKUP(E22,PP!$A$12:$CD$27,73,FALSE) -> 1 | O22: =IF(N22=1,Séchage!$D$12) -> 00:04:47.238 | P22: Plat2 | Q22: =IF(L22=1,IF(E22=PP!$A$20,(50/PP!$AR$20*PP!$T$20*PP!$V$20))) -> 1179513.317
A23: =IF(Paramètres!A21="","",Paramètres!A21) -> 449 | B23: =IF(Paramètres!B21="","",Paramètres!B21) -> Liteau Elis | C23: =IF(Paramètres!C21="","",Paramètres!C21) -> 58 | D23: 224.6666667 | E23: =IF(Paramètres!A21="","",Paramètres!D21) -> torchon | F23: =IF(Paramètres!E21="","",Paramètres!E21) -> RCALPP_inf_8 | G23: 13.03066667 | H23: =SUM(IF((Narlivt!$E$9:$E$6968='Qtité art'!A23),(Narlivt!$H$9:$H$6968)/Narlivt!$H$5)) -> 224.6666667 | L23: =VLOOKUP(E23,PP!$A$12:$CD$27,51,FALSE) -> 1 | M23: =IF(L23=1,Lavage!$I$13) -> 00:01:35 | N23: =VLOOKUP(E23,PP!$A$12:$CD$27,73,FALSE) -> 1 | O23: =IF(N23=1,Séchage!$D$12) -> 00:04:47.238 | P23: Plat2 | Q23: =IF(L23=1,IF(E23=PP!$A$20,(50/PP!$AR$20*PP!$T$20*PP!$V$20))) -> 1179513.317
A24: =IF(Paramètres!A22="","",Paramètres!A22) -> 463 | B24: =IF(Paramètres!B22="","",Paramètres!B22) -> Hous trav Gd blc 4x18 NF | C24: =IF(Paramètres!C22="","",Paramètres!C22) -> 226 | D24: 305 | E24: =IF(Paramètres!A22="","",Paramètres!D22) -> hous trav | F24: =IF(Paramètres!E22="","",Paramètres!E22) -> HCALPP_Taie | G24: 68.93 | H24: =SUM(IF((Narlivt!$E$9:$E$6968='Qtité art'!A24),(Narlivt!$H$9:$H$6968)/Narlivt!$H$5)) -> 305 | L24: =VLOOKUP('Qtité art'!E24,Mixte!$A$12:$CD$32,51,FALSE) -> 1 | M24: =IF(L24=1,Lavage!$I$13) -> 00:01:35 | N24: =VLOOKUP(E24,Mixte!$A$12:$CD$32,73,FALSE) -> 0 | P24: Plat4 | Q24: =IF(L24=1,IF(E24=Mixte!$A$25,(50/Mixte!$AR$25*Mixte!$T$25*Mixte!$V$25))) -> 198591.3906
A25: =IF(Paramètres!A23="","",Paramètres!A23) -> 473 | B25: =IF(Paramètres!B23="","",Paramètres!B23) -> Lange blc CP 60 40 NF | C25: =IF(Paramètres!C23="","",Paramètres!C23) -> 250 | D25: 46.66666667 | E25: =IF(Paramètres!A23="","",Paramètres!D23) -> carré/gant | F25: =IF(Paramètres!E23="","",Paramètres!E23) -> HSECPM_Gant | G25: 11.66666667 | H25: =SUM(IF((Narlivt!$E$9:$E$6968='Qtité art'!A25),(Narlivt!$H$9:$H$6968)/Narlivt!$H$5)) -> 46.66666667 | L25: =VLOOKUP(E25,'Pliage main'!$A$12:$CD$27,51,FALSE) -> 4 | M25: =IF(L25=4,Lavage!$I$16) -> 01:12:03.140 | N25: =VLOOKUP(E25,'Pliage main'!$A$12:$CD$27,73,FALSE) -> 2 | O25: =IF(N25=2,Séchage!$D$18) -> 00:22:38.495 | P25: Plat6 | Q25: =IF(L25=4,IF(E25='Pliage main'!$A$15,100/('Pliage main'!$AR$15*'Pliage main'!$T$15*'Pliage main'!$V$15))) -> 1.635249822
A26: =IF(Paramètres!A24="","",Paramètres!A24) -> 517 | B26: =IF(Paramètres!B24="","",Paramètres!B24) -> Taie Am Clas blc 50x77 NF | C26: =IF(Paramètres!C24="","",Paramètres!C24) -> 136 | D26: 12437.33333 | E26: =IF(Paramètres!A24="","",Paramètres!D24) -> taie am | F26: =IF(Paramètres!E24="","",Paramètres!E24) -> HCALPP_Taie | G26: 1691.477333 | H26: =SUM(IF((Narlivt!$E$9:$E$6968='Qtité art'!A26),(Narlivt!$H$9:$H$6968)/Narlivt!$H$5)) -> 12437.33333 | L26: =VLOOKUP(E26,PP!$A$12:$CD$27,51,FALSE) -> 1 | M26: =IF(L26=1,Lavage!$I$13) -> 00:01:35 | N26: =VLOOKUP(E26,PP!$A$12:$CD$27,73,FALSE) -> 1 | O26: =IF(N26=1,Séchage!$D$12) -> 00:04:47.238 | P26: Plat2 | Q26: =IF(L26=1,IF(E26=PP!$A$12,(50/PP!$AR$12*PP!$T$12*PP!$V$12))) -> 497516.8326
A27: =IF(Paramètres!A25="","",Paramètres!A25) -> 704 | B27: =IF(Paramètres!B25="","",Paramètres!B25) -> Nappe BS blanc 18x18 | C27: =IF(Paramètres!C25="","",Paramètres!C25) -> 818 | D27: 47 | E27: =IF(Paramètres!A25="","",Paramètres!D25) -> nap 15 + 18 | F27: =IF(Paramètres!E25="","",Paramètres!E25) -> RCALGP_Grde_Nappe | G27: 38.446 | H27: =SUM(IF((Narlivt!$E$9:$E$6968='Qtité art'!A27),(Narlivt!$H$9:$H$6968)/Narlivt!$H$5)) -> 47 | L27: =VLOOKUP('Qtité art'!E27,Mixte!$A$12:$CD$32,51,FALSE) -> 5 | M27: =IF(L27=5,Lavage!$I$25) -> 01:06:21.565 | N27: =VLOOKUP(E27,Mixte!$A$12:$CD$32,73,FALSE) -> 0 | P27: Plat4 | Q27: =IF(L27=5,IF(E27=Mixte!$A$14,100/(Mixte!$AR$14*Mixte!$T$14*Mixte!$V$14))) -> 07:58:20.750
A28: =IF(Paramètres!A26="","",Paramètres!A26) -> 712 | B28: =IF(Paramètres!B26="","",Paramètres!B26) -> Dessus lit Rayé bleu 18x25 NF | C28: =IF(Paramètres!C26="","",Paramètres!C26) -> 1110 | D28: 30 | E28: =IF(Paramètres!A26="","",Paramètres!D26) -> des lit | F28: =IF(Paramètres!E26="","",Paramètres!E26) -> HCALGP_HC | G28: 33.3 | H28: =SUM(IF((Narlivt!$E$9:$E$6968='Qtité art'!A28),(Narlivt!$H$9:$H$6968)/Narlivt!$H$5)) -> 30 | L28: =VLOOKUP('Qtité art'!E28,Mixte!$A$12:$CD$32,51,FALSE) -> 4 | M28: =IF(L28=4,Lavage!$I$16) -> 01:12:03.140 | N28: =VLOOKUP(E28,Mixte!$A$12:$CD$32,73,FALSE) -> 0 | P28: Plat4 | Q28: =IF(L28=4,IF(E28=Mixte!$A$28,100/(Mixte!$AR$28*Mixte!$T$28*Mixte!$V$28))) -> 06:46:41.557
A29: =IF(Paramètres!A27="","",Paramètres!A27) -> 735 | B29: =IF(Paramètres!B27="","",Paramètres!B27) -> Nappe Fleuri blc 24x24 | C29: =IF(Paramètres!C27="","",Paramètres!C27) -> 1520 | D29: 88 | E29: =IF(Paramètres!A27="","",Paramètres!D27) -> nap 24 | F29: =IF(Paramètres!E27="","",Paramètres!E27) -> RCALGP_Grde_Nappe | G29: 133.76 | H29: =SUM(IF((Narlivt!$E$9:$E$6968='Qtité art'!A29),(Narlivt!$H$9:$H$6968)/Narlivt!$H$5)) -> 88 | L29: =VLOOKUP('Qtité art'!E29,Mixte!$A$12:$CD$32,51,FALSE) -> 5 | M29: =IF(L29=5,Lavage!$I$25) -> 01:06:21.565 | N29: =VLOOKUP(E29,Mixte!$A$12:$CD$32,73,FALSE) -> 0 | P29: Plat4 | Q29: =IF(L29=5,IF(E29=Mixte!$A$16,100/(Mixte!$AR$16*Mixte!$T$16*Mixte!$V$16))) -> 05:17:38.178
A30: =IF(Paramètres!A28="","",Paramètres!A28) -> 830 | B30: =IF(Paramètres!B28="","",Paramètres!B28) -> Nappe Fleuri blc 12x12 | C30: =IF(Paramètres!C28="","",Paramètres!C28) -> 380 | D30: 379 | E30: =IF(Paramètres!A28="","",Paramètres!D28) -> nap 12 | F30: =IF(Paramètres!E28="","",Paramètres!E28) -> RCALGP_Pte_Nappe | G30: 144.02 | H30: =SUM(IF((Narlivt!$E$9:$E$6968='Qtité art'!A30),(Narlivt!$H$9:$H$6968)/Narlivt!$H$5)) -> 379 | L30: =VLOOKUP('Qtité art'!E30,Mixte!$A$12:$CD$32,51,FALSE) -> 5 | M30: =IF(L30=5,Lavage!$I$25) -> 01:06:21.565 | N30: =VLOOKUP(E30,Mixte!$A$12:$CD$32,73,FALSE) -> 0 | P30: Plat4 | Q30: =IF(L30=5,IF(E30=Mixte!$A$13,100/(Mixte!$AR$13*Mixte!$T$13*Mixte!$V$13))) -> 10:54:44.552
A31: =IF(Paramètres!A29="","",Paramètres!A29) -> 831 | B31: =IF(Paramètres!B29="","",Paramètres!B29) -> Nappe Fleuri blc 12x15 | C31: =IF(Paramètres!C29="","",Paramètres!C29) -> 470 | D31: 58 | E31: =IF(Paramètres!A29="","",Paramètres!D29) -> nap 15 + 18 | F31: =IF(Paramètres!E29="","",Paramètres!E29) -> RCALGP_Grde_Nappe | G31: 27.26 | H31: =SUM(IF((Narlivt!$E$9:$E$6968='Qtité art'!A31),(Narlivt!$H$9:$H$6968)/Narlivt!$H$5)) -> 58 | L31: =VLOOKUP('Qtité art'!E31,Mixte!$A$12:$CD$32,51,FALSE) -> 5 | M31: =IF(L31=5,Lavage!$I$25) -> 01:06:21.565 | N31: =VLOOKUP(E31,Mixte!$A$12:$CD$32,73,FALSE) -> 0 | P31: Plat4 | Q31: =IF(L31=5,IF(E31=Mixte!$A$14,100/(Mixte!$AR$14*Mixte!$T$14*Mixte!$V$14))) -> 07:58:20.750
A32: =IF(Paramètres!A30="","",Paramètres!A30) -> 833 | B32: =IF(Paramètres!B30="","",Paramètres!B30) -> Nappe Fleuri blc 12x20 | C32: =IF(Paramètres!C30="","",Paramètres!C30) -> 610 | D32: 6 | E32: =IF(Paramètres!A30="","",Paramètres!D30) -> nap 20 | F32: =IF(Paramètres!E30="","",Paramètres!E30) -> RCALGP_Grde_Nappe | G32: 3.66 | H32: =SUM(IF((Narlivt!$E$9:$E$6968='Qtité art'!A32),(Narlivt!$H$9:$H$6968)/Narlivt!$H$5)) -> 6 | L32: =VLOOKUP('Qtité art'!E32,Mixte!$A$12:$CD$32,51,FALSE) -> 5 | M32: =IF(L32=5,Lavage!$I$25) -> 01:06:21.565 | N32: =VLOOKUP(E32,Mixte!$A$12:$CD$32,73,FALSE) -> 0 | P32: Plat4 | Q32: =IF(L32=5,IF(E32=Mixte!$A$15,100/(Mixte!$AR$15*Mixte!$T$15*Mixte!$V$15))) -> 07:27:41.084
A33: =IF(Paramètres!A31="","",Paramètres!A31) -> 835 | B33: =IF(Paramètres!B31="","",Paramètres!B31) -> Nappe Fleuri blc 15x15 | C33: =IF(Paramètres!C31="","",Paramètres!C31) -> 590 | D33: 566 | E33: =IF(Paramètres!A31="","",Paramètres!D31) -> nap 15 + 18 | F33: =IF(Paramètres!E31="","",Paramètres!E31) -> RCALGP_Grde_Nappe | G33: 333.94 | H33: =SUM(IF((Narlivt!$E$9:$E$6968='Qtité art'!A33),(Narlivt!$H$9:$H$6968)/Narlivt!$H$5)) -> 566 | L33: =VLOOKUP('Qtité art'!E33,Mixte!$A$12:$CD$32,51,FALSE) -> 5 | M33: =IF(L33=5,Lavage!$I$25) -> 01:06:21.565 | N33: =VLOOKUP(E33,Mixte!$A$12:$CD$32,73,FALSE) -> 0 | P33: Plat4 | Q33: =IF(L33=5,IF(E33=Mixte!$A$14,100/(Mixte!$AR$14*Mixte!$T$14*Mixte!$V$14))) -> 07:58:20.750
A34: =IF(Paramètres!A32="","",Paramètres!A32) -> 836 | B34: =IF(Paramètres!B32="","",Paramètres!B32) -> Nappe Fleuri blc 15x20 | C34: =IF(Paramètres!C32="","",Paramètres!C32) -> 771 | D34: 183.3333333 | E34: =IF(Paramètres!A32="","",Paramètres!D32) -> nap 20 | F34: =IF(Paramètres!E32="","",Paramètres!E32) -> RCALGP_Grde_Nappe | G34: 141.35 | H34: =SUM(IF((Narlivt!$E$9:$E$6968='Qtité art'!A34),(Narlivt!$H$9:$H$6968)/Narlivt!$H$5)) -> 183.3333333 | L34: =VLOOKUP('Qtité art'!E34,Mixte!$A$12:$CD$32,51,FALSE) -> 5 | M34: =IF(L34=5,Lavage!$I$25) -> 01:06:21.565 | N34: =VLOOKUP(E34,Mixte!$A$12:$CD$32,73,FALSE) -> 0 | P34: Plat4 | Q34: =IF(L34=5,IF(E34=Mixte!$A$15,100/(Mixte!$AR$15*Mixte!$T$15*Mixte!$V$15))) -> 07:27:41.084
A35: =IF(Paramètres!A33="","",Paramètres!A33) -> 837 | B35: =IF(Paramètres!B33="","",Paramètres!B33) -> Nappe Fleuri blc 15x25 | C35: =IF(Paramètres!C33="","",Paramètres!C33) -> 1078 | D35: 3.666666667 | E35: =IF(Paramètres!A33="","",Paramètres!D33) -> nap 24 | F35: =IF(Paramètres!E33="","",Paramètres!E33) -> RCALGP_Grde_Nappe | G35: 3.952666667 | H35: =SUM(IF((Narlivt!$E$9:$E$6968='Qtité art'!A35),(Narlivt!$H$9:$H$6968)/Narlivt!$H$5)) -> 3.666666667 | L35: =VLOOKUP('Qtité art'!E35,Mixte!$A$12:$CD$32,51,FALSE) -> 5 | M35: =IF(L35=5,Lavage!$I$25) -> 01:06:21.565 | N35: =VLOOKUP(E35,Mixte!$A$12:$CD$32,73,FALSE) -> 0 | P35: Plat4 | Q35: =IF(L35=5,IF(E35=Mixte!$A$16,100/(Mixte!$AR$16*Mixte!$T$16*Mixte!$V$16))) -> 05:17:38.178
A36: =IF(Paramètres!A34="","",Paramètres!A34) -> 838 | B36: =IF(Paramètres!B34="","",Paramètres!B34) -> Nappe Fleuri blc 15x30 | C36: =IF(Paramètres!C34="","",Paramètres!C34) -> 1289 | D36: 30.33333333 | E36: =IF(Paramètres!A34="","",Paramètres!D34) -> nap .30 | F36: =IF(Paramètres!E34="","",Paramètres!E34) -> RCALGP_Très_Grde_Nappe | G36: 39.09966667 | H36: =SUM(IF((Narlivt!$E$9:$E$6968='Qtité art'!A36),(Narlivt!$H$9:$H$6968)/Narlivt!$H$5)) -> 30.33333333 | L36: =VLOOKUP('Qtité art'!E36,Mixte!$A$12:$CD$32,51,FALSE) -> 5 | M36: =IF(L36=5,Lavage!$I$25) -> 01:06:21.565 | N36: =VLOOKUP(E36,Mixte!$A$12:$CD$32,73,FALSE) -> 0 | P36: Plat4 | Q36: =IF(L36=5,IF(E36=Mixte!$A$17,100/(Mixte!$AR$17*Mixte!$T$17*Mixte!$V$17))) -> 09:03:27.848
A37: =IF(Paramètres!A35="","",Paramètres!A35) -> 842 | B37: =IF(Paramètres!B35="","",Paramètres!B35) -> Nappe Fleuri blc 20x20 | C37: =IF(Paramètres!C35="","",Paramètres!C35) -> 1021 | D37: 192 | E37: =IF(Paramètres!A35="","",Paramètres!D35) -> nap 20 | F37: =IF(Paramètres!E35="","",Paramètres!E35) -> RCALGP_Grde_Nappe | G37: 196.032 | H37: =SUM(IF((Narlivt!$E$9:$E$6968='Qtité art'!A37),(Narlivt!$H$9:$H$6968)/Narlivt!$H$5)) -> 192 | L37: =VLOOKUP('Qtité art'!E37,Mixte!$A$12:$CD$32,51,FALSE) -> 5 | M37: =IF(L37=5,Lavage!$I$25) -> 01:06:21.565 | N37: =VLOOKUP(E37,Mixte!$A$12:$CD$32,73,FALSE) -> 0 | P37: Plat4 | Q37: =IF(L37=5,IF(E37=Mixte!$A$15,100/(Mixte!$AR$15*Mixte!$T$15*Mixte!$V$15))) -> 07:27:41.084
A38: =IF(Paramètres!A36="","",Paramètres!A36) -> 854 | B38: =IF(Paramètres!B36="","",Paramètres!B36) -> Serv Ess bande bleue | C38: =IF(Paramètres!C36="","",Paramètres!C36) -> 75 | D38: 1.666666667 | E38: =IF(Paramètres!A36="","",Paramètres!D36) -> torchon | F38: =IF(Paramètres!E36="","",Paramètres!E36) -> RCALPP_inf_8 | G38: 0.125 | H38: =SUM(IF((Narlivt!$E$9:$E$6968='Qtité art'!A38),(Narlivt!$H$9:$H$6968)/Narlivt!$H$5)) -> 1.666666667 | L38: =VLOOKUP(E38,PP!$A$12:$CD$27,51,FALSE) -> 1 | M38: =IF(L38=1,Lavage!$I$13) -> 00:01:35 | N38: =VLOOKUP(E38,PP!$A$12:$CD$27,73,FALSE) -> 1 | O38: =IF(N38=1,Séchage!$D$12) -> 00:04:47.238 | P38: Plat2 | Q38: =IF(L38=1,IF(E38=PP!$A$20,(50/PP!$AR$20*PP!$T$20*PP!$V$20))) -> 1179513.317
A39: =IF(Paramètres!A37="","",Paramètres!A37) -> 856 | B39: =IF(Paramètres!B37="","",Paramètres!B37) -> Sac soluble | C39: =IF(Paramètres!C37="","",Paramètres!C37) -> 0 | D39: 185.6666667 | E39: =IF(Paramètres!A37="","",Paramètres!D37) -> Poubelle | F39: =IF(Paramètres!E37="","",Paramètres!E37) -> HSECPM_Santé | G39: 0 | H39: =SUM(IF((Narlivt!$E$9:$E$6968='Qtité art'!A39),(Narlivt!$H$9:$H$6968)/Narlivt!$H$5)) -> 185.6666667
A40: =IF(Paramètres!A38="","",Paramètres!A38) -> 945 | B40: =IF(Paramètres!B38="","",Paramètres!B38) -> Casaque Tradition bleu PC 50/50 | C40: =IF(Paramètres!C38="","",Paramètres!C38) -> 500 | D40: 7.666666667 | E40: =IF(Paramètres!A38="","",Paramètres!D38) -> peignoir/cas | F40: =IF(Paramètres!E38="","",Paramètres!E38) -> HSECPM_Peignoir | G40: 3.833333333 | H40: =SUM(IF((Narlivt!$E$9:$E$6968='Qtité art'!A40),(Narlivt!$H$9:$H$6968)/Narlivt!$H$5)) -> 7.666666667 | L40: =VLOOKUP(E40,'Pliage main'!$A$12:$CD$27,51,FALSE) -> 4 | M40: =IF(L40=4,Lavage!$I$16) -> 01:12:03.140 | N40: =VLOOKUP(E40,'Pliage main'!$A$12:$CD$27,73,FALSE) -> 2 | O40: =IF(N40=2,Séchage!$D$18) -> 00:22:38.495 | P40: Plat6 | Q40: =IF(L40=4,IF(E40='Pliage main'!$A$18,100/('Pliage main'!$AR$18*'Pliage main'!$T$18*'Pliage main'!$V$18))) -> 08:06:24.398
A41: =IF(Paramètres!A39="","",Paramètres!A39) -> 1056 | B41: =IF(Paramètres!B39="","",Paramètres!B39) -> Serv Tab Fleuri GDE 60x70 blc | C41: =IF(Paramètres!C39="","",Paramètres!C39) -> 128 | D41: 101 | E41: =IF(Paramètres!A39="","",Paramètres!D39) -> serv tab gde | F41: =IF(Paramètres!E39="","",Paramètres!E39) -> RCALPP_inf_8 | G41: 12.928 | H41: =SUM(IF((Narlivt!$E$9:$E$6968='Qtité art'!A41),(Narlivt!$H$9:$H$6968)/Narlivt!$H$5)) -> 101 | L41: =VLOOKUP(E41,PP!$A$12:$CD$27,51,FALSE) -> 5 | M41: =IF(L41=5,Lavage!$I$25) -> 01:06:21.565 | N41: =VLOOKUP(E41,PP!$A$12:$CD$27,73,FALSE) -> 0 | P41: Plat2 | Q41: =IF(L41=5,IF(E106=PP!$A$16,100/(PP!$AR$16*PP!$T$16*PP!$V$16))) -> FALSE
A42: =IF(Paramètres!A40="","",Paramètres!A40) -> 1090 | B42: =IF(Paramètres!B40="","",Paramètres!B40) -> Tablier Boucher simple | C42: =IF(Paramètres!C40="","",Paramètres!C40) -> 284 | D42: 248.3333333 | E42: =IF(Paramètres!A40="","",Paramètres!D40) -> tablier blanc | F42: =IF(Paramètres!E40="","",Paramètres!E40) -> RCALPP_inf_8 | G42: 70.52666667 | H42: =SUM(IF((Narlivt!$E$9:$E$6968='Qtité art'!A42),(Narlivt!$H$9:$H$6968)/Narlivt!$H$5)) -> 248.3333333 | L42: =VLOOKUP(E42,PP!$A$12:$CD$27,51,FALSE) -> 1 | M42: =IF(L42=1,Lavage!$I$13) -> 00:01:35 | N42: =VLOOKUP(E42,PP!$A$12:$CD$27,73,FALSE) -> 2 | O42: =IF(N42=2,Séchage!$D$18) -> 00:22:38.495 | P42: Plat2 | Q42: =IF(L42=1,IF(E42=PP!$A$22,(50/PP!$AR$22*PP!$T$22*PP!$V$22))) -> 127931.7344
A43: =IF(Paramètres!A41="","",Paramètres!A41) -> 1091 | B43: =IF(Paramètres!B41="","",Paramètres!B41) -> Tablier Boucher bret blc | C43: =IF(Paramètres!C41="","",Paramètres!C41) -> 367 | D43: 1413.666667 | E43: =IF(Paramètres!A41="","",Paramètres!D41) -> tablier bret | F43: =IF(Paramètres!E41="","",Paramètres!E41) -> RCALPP_inf_8 | G43: 518.8156667 | H43: =SUM(IF((Narlivt!$E$9:$E$6968='Qtité art'!A43),(Narlivt!$H$9:$H$6968)/Narlivt!$H$5)) -> 1413.666667 | L43: =VLOOKUP(E43,PP!$A$12:$CD$27,51,FALSE) -> 1 | M43: =IF(L43=1,Lavage!$I$13) -> 00:01:35 | N43: =VLOOKUP(E43,PP!$A$12:$CD$27,73,FALSE) -> 2 | O43: =IF(N43=2,Séchage!$D$18) -> 00:22:38.495 | P43: Plat2 | Q43: =IF(L43=1,IF(E43=PP!$A$23,(50/PP!$AR$23*PP!$T$23*PP!$V$23))) -> 84151.14351
A44: =IF(Paramètres!A42="","",Paramètres!A42) -> 1094 | B44: =IF(Paramètres!B42="","",Paramètres!B42) -> Tablier bleu | C44: =IF(Paramètres!C42="","",Paramètres!C42) -> 321 | D44: 257.3333333 | E44: =IF(Paramètres!A42="","",Paramètres!D42) -> tablier bleu | F44: =IF(Paramètres!E42="","",Paramètres!E42) -> RCALPP_inf_8 | G44: 82.604 | H44: =SUM(IF((Narlivt!$E$9:$E$6968='Qtité art'!A44),(Narlivt!$H$9:$H$6968)/Narlivt!$H$5)) -> 257.3333333 | L44: =VLOOKUP(E44,PP!$A$12:$CD$27,51,FALSE) -> 1 | M44: =IF(L44=1,Lavage!$I$13) -> 00:01:35 | N44: =VLOOKUP(E44,PP!$A$12:$CD$27,73,FALSE) -> 2 | O44: =IF(N44=2,Séchage!$D$18) -> 00:22:38.495 | P44: Plat2 | Q44: =IF(L44=1,IF(E44=PP!$A$21,(50/PP!$AR$21*PP!$T$21*PP!$V$21))) -> 146303.2713
A45: =IF(Paramètres!A43="","",Paramètres!A43) -> 1096 | B45: =IF(Paramètres!B43="","",Paramètres!B43) -> Tablier Chef | C45: =IF(Paramètres!C43="","",Paramètres!C43) -> 371 | D45: 1339 | E45: =IF(Paramètres!A43="","",Paramètres!D43) -> tablier blanc | F45: =IF(Paramètres!E43="","",Paramètres!E43) -> RCALPP_inf_8 | G45: 496.769 | H45: =SUM(IF((Narlivt!$E$9:$E$6968='Qtité art'!A45),(Narlivt!$H$9:$H$6968)/Narlivt!$H$5)) -> 1339 | L45: =VLOOKUP(E45,PP!$A$12:$CD$27,51,FALSE) -> 1 | M45: =IF(L45=1,Lavage!$I$13) -> 00:01:35 | N45: =VLOOKUP(E45,PP!$A$12:$CD$27,73,FALSE) -> 2 | O45: =IF(N45=2,Séchage!$D$18) -> 00:22:38.495 | P45: Plat2 | Q45: =IF(L45=1,IF(E45=PP!$A$22,(50/PP!$AR$22*PP!$T$22*PP!$V$22))) -> 127931.7344
A46: =IF(Paramètres!A44="","",Paramètres!A44) -> 1121 | B46: =IF(Paramètres!B44="","",Paramètres!B44) -> Tablier Valet | C46: =IF(Paramètres!C44="","",Paramètres!C44) -> 383 | D46: 2504.666667 | E46: =IF(Paramètres!A44="","",Paramètres!D44) -> tablier blanc | F46: =IF(Paramètres!E44="","",Paramètres!E44) -> RCALPP_inf_8 | G46: 959.2873333 | H46: =SUM(IF((Narlivt!$E$9:$E$6968='Qtité art'!A46),(Narlivt!$H$9:$H$6968)/Narlivt!$H$5)) -> 2504.666667 | L46: =VLOOKUP(E46,PP!$A$12:$CD$27,51,FALSE) -> 1 | M46: =IF(L46=1,Lavage!$I$13) -> 00:01:35 | N46: =VLOOKUP(E46,PP!$A$12:$CD$27,73,FALSE) -> 2 | O46: =IF(N46=2,Séchage!$D$18) -> 00:22:38.495 | P46: Plat2 | Q46: =IF(L46=1,IF(E46=PP!$A$22,(50/PP!$AR$22*PP!$T$22*PP!$V$22))) -> 127931.7344
A47: =IF(Paramètres!A45="","",Paramètres!A45) -> 1135 | B47: =IF(Paramètres!B45="","",Paramètres!B45) -> Taie Car Clas blc 60x60 NF | C47: =IF(Paramètres!C45="","",Paramètres!C45) -> 165 | D47: 5179.333333 | E47: =IF(Paramètres!A45="","",Paramètres!D45) -> Taie Carrée | F47: =IF(Paramètres!E45="","",Paramètres!E45) -> HCALPP_Taie | G47: 854.59 | H47: =SUM(IF((Narlivt!$E$9:$E$6968='Qtité art'!A47),(Narlivt!$H$9:$H$6968)/Narlivt!$H$5)) -> 5179.333333 | L47: =VLOOKUP(E47,PP!$A$12:$CD$27,51,FALSE) -> 1 | M47: =IF(L47=1,Lavage!$I$13) -> 00:01:35 | N47: =VLOOKUP(E47,PP!$A$12:$CD$27,73,FALSE) -> 1 | O47: =IF(N47=1,Séchage!$D$12) -> 00:04:47.238 | P47: Plat2 | Q47: =IF(L47=1,IF(E47=PP!$A$14,(50/PP!$AR$14*PP!$T$14*PP!$V$14))) -> 357762.4481
A48: =IF(Paramètres!A46="","",Paramètres!A46) -> 1141 | B48: =IF(Paramètres!B46="","",Paramètres!B46) -> Torchon Elis blc 50x66 | C48: =IF(Paramètres!C46="","",Paramètres!C46) -> 90 | D48: 13207 | E48: =IF(Paramètres!A46="","",Paramètres!D46) -> torchon | F48: =IF(Paramètres!E46="","",Paramètres!E46) -> RCALPP_inf_8 | G48: 1188.63 | H48: =SUM(IF((Narlivt!$E$9:$E$6968='Qtité art'!A48),(Narlivt!$H$9:$H$6968)/Narlivt!$H$5)) -> 13207 | L48: =VLOOKUP(E48,PP!$A$12:$CD$27,51,FALSE) -> 1 | M48: =IF(L48=1,Lavage!$I$13) -> 00:01:35 | N48: =VLOOKUP(E48,PP!$A$12:$CD$27,73,FALSE) -> 1 | O48: =IF(N48=1,Séchage!$D$12) -> 00:04:47.238 | P48: Plat2 | Q48: =IF(L48=1,IF(E48=PP!$A$20,(50/PP!$AR$20*PP!$T$20*PP!$V$20))) -> 1179513.317
A49: =IF(Paramètres!A47="","",Paramètres!A47) -> 1214 | B49: =IF(Paramètres!B47="","",Paramètres!B47) -> Dessus Lit Rayé jaune 18x25 NF | C49: =IF(Paramètres!C47="","",Paramètres!C47) -> 1110 | D49: 16.33333333 | E49: =IF(Paramètres!A47="","",Paramètres!D47) -> des lit | F49: =IF(Paramètres!E47="","",Paramètres!E47) -> HCALGP_HC | G49: 18.13 | H49: =SUM(IF((Narlivt!$E$9:$E$6968='Qtité art'!A49),(Narlivt!$H$9:$H$6968)/Narlivt!$H$5)) -> 16.33333333 | L49: =VLOOKUP('Qtité art'!E49,Mixte!$A$12:$CD$32,51,FALSE) -> 4 | M49: =IF(L49=4,Lavage!$I$16) -> 01:12:03.140 | N49: =VLOOKUP(E49,Mixte!$A$12:$CD$32,73,FALSE) -> 0 | P49: Plat4 | Q49: =IF(L49=4,IF(E49=Mixte!$A$28,100/(Mixte!$AR$28*Mixte!$T$28*Mixte!$V$28))) -> 06:46:41.557
A50: =IF(Paramètres!A48="","",Paramètres!A48) -> 1228 | B50: =IF(Paramètres!B48="","",Paramètres!B48) -> Serv Tab Fleuri PTE 55x55 blc | C50: =IF(Paramètres!C48="","",Paramètres!C48) -> 91 | D50: 6252.666667 | E50: =IF(Paramètres!A48="","",Paramètres!D48) -> serv tab pte | F50: =IF(Paramètres!E48="","",Paramètres!E48) -> RCALPP_inf_8 | G50: 568.9926667 | H50: =SUM(IF((Narlivt!$E$9:$E$6968='Qtité art'!A50),(Narlivt!$H$9:$H$6968)/Narlivt!$H$5)) -> 6252.666667 | L50: =VLOOKUP(E50,PP!$A$12:$CD$27,51,FALSE) -> 5 | M50: =IF(L50=5,Lavage!$I$25) -> 01:06:21.565 | N50: =VLOOKUP(E50,PP!$A$12:$CD$27,73,FALSE) -> 0 | P50: Plat2 | Q50: =IF(L50=5,IF(E50=PP!$A$17,100/(PP!$AR$17*PP!$T$17*PP!$V$17))) -> 18:22:14.361
A51: =IF(Paramètres!A49="","",Paramètres!A49) -> 1249 | B51: =IF(Paramètres!B49="","",Paramètres!B49) -> Couche blc coton NF | C51: =IF(Paramètres!C49="","",Paramètres!C49) -> 47 | D51: 155 | E51: =IF(Paramètres!A49="","",Paramètres!D49) -> couche | F51: =IF(Paramètres!E49="","",Paramètres!E49) -> HSECPM_Santé | G51: 7.285 | H51: =SUM(IF((Narlivt!$E$9:$E$6968='Qtité art'!A51),(Narlivt!$H$9:$H$6968)/Narlivt!$H$5)) -> 155 | L51: =VLOOKUP(E51,PP!$A$12:$CD$27,51,FALSE) -> 4 | M51: =IF(L51=4,Lavage!$I$16) -> 01:12:03.140 | N51: =VLOOKUP(E51,PP!$A$12:$CD$27,73,FALSE) -> 0 | P51: Plat2 | Q51: =IF(L51=4,IF(E51=PP!$A$19,100/(PP!$AR$19*PP!$T$19*PP!$V$19))) -> 1.537793575
A52: =IF(Paramètres!A50="","",Paramètres!A50) -> 1264 | B52: =IF(Paramètres!B50="","",Paramètres!B50) -> Nappe Fleuri blc 18x18 | C52: =IF(Paramètres!C50="","",Paramètres!C50) -> 820 | D52: 20.33333333 | E52: =IF(Paramètres!A50="","",Paramètres!D50) -> nap 15 + 18 | F52: =IF(Paramètres!E50="","",Paramètres!E50) -> RCALGP_Grde_Nappe | G52: 16.67333333 | H52: =SUM(IF((Narlivt!$E$9:$E$6968='Qtité art'!A52),(Narlivt!$H$9:$H$6968)/Narlivt!$H$5)) -> 20.33333333 | L52: =VLOOKUP('Qtité art'!E52,Mixte!$A$12:$CD$32,51,FALSE) -> 5 | M52: =IF(L52=5,Lavage!$I$25) -> 01:06:21.565 | N52: =VLOOKUP(E52,Mixte!$A$12:$CD$32,73,FALSE) -> 0 | P52: Plat4 | Q52: =IF(L52=5,IF(E52=Mixte!$A$14,100/(Mixte!$AR$14*Mixte!$T$14*Mixte!$V$14))) -> 07:58:20.750
A53: =IF(Paramètres!A51="","",Paramètres!A51) -> 1341 | B53: =IF(Paramètres!B51="","",Paramètres!B51) -> Drap Clas blc l.orang 180 NF | C53: =IF(Paramètres!C51="","",Paramètres!C51) -> 780 | D53: 35737.66667 | E53: =IF(Paramètres!A51="","",Paramètres!D51) -> drap petit | F53: =IF(Paramètres!E51="","",Paramètres!E51) -> HCALGP_Drap | G53: 27875.38 | H53: =SUM(IF((Narlivt!$E$9:$E$6968='Qtité art'!A53),(Narlivt!$H$9:$H$6968)/Narlivt!$H$5)) -> 35737.66667 | L53: =VLOOKUP('Qtité art'!E53,Mixte!$A$12:$CD$32,51,FALSE) -> 1 | M53: =IF(L53=1,Lavage!$I$13) -> 00:01:35 | N53: =VLOOKUP(E53,Mixte!$A$12:$CD$32,73,FALSE) -> 0 | P53: Plat3 | Q53: =IF(L53=1,IF(E53=GP!$A$12,(50/GP!$AR$12*GP!$T$12*GP!$V$12))) -> 52018.02061
A54: =IF(Paramètres!A52="","",Paramètres!A52) -> 1351 | B54: =IF(Paramètres!B52="","",Paramètres!B52) -> Tablier Plonge lourd | C54: =IF(Paramètres!C52="","",Paramètres!C52) -> 435 | D54: 1254 | E54: =IF(Paramètres!A52="","",Paramètres!D52) -> tablier blanc | F54: =IF(Paramètres!E52="","",Paramètres!E52) -> RCALPP_inf_8 | G54: 545.49 | H54: =SUM(IF((Narlivt!$E$9:$E$6968='Qtité art'!A54),(Narlivt!$H$9:$H$6968)/Narlivt!$H$5)) -> 1254 | L54: =VLOOKUP(E54,PP!$A$12:$CD$27,51,FALSE) -> 1 | M54: =IF(L54=1,Lavage!$I$13) -> 00:01:35 | N54: =VLOOKUP(E54,PP!$A$12:$CD$27,73,FALSE) -> 2 | O54: =IF(N54=2,Séchage!$D$18) -> 00:22:38.495 | P54: Plat2 | Q54: =IF(L54=1,IF(E54=PP!$A$22,(50/PP!$AR$22*PP!$T$22*PP!$V$22))) -> 127931.7344
A55: =IF(Paramètres!A53="","",Paramètres!A53) -> 1387 | B55: =IF(Paramètres!B53="","",Paramètres!B53) -> Gant Toilette COCOON | C55: =IF(Paramètres!C53="","",Paramètres!C53) -> 30 | D55: 25611.33333 | E55: =IF(Paramètres!A53="","",Paramètres!D53) -> carré/gant | F55: =IF(Paramètres!E53="","",Paramètres!E53) -> HSECPM_Gant | G55: 768.34 | H55: =SUM(IF((Narlivt!$E$9:$E$6968='Qtité art'!A55),(Narlivt!$H$9:$H$6968)/Narlivt!$H$5)) -> 25611.33333 | L55: =VLOOKUP(E55,'Pliage main'!$A$12:$CD$27,51,FALSE) -> 4 | M55: =IF(L55=4,Lavage!$I$16) -> 01:12:03.140 | N55: =VLOOKUP(E55,'Pliage main'!$A$12:$CD$27,73,FALSE) -> 2 | O55: =IF(N55=2,Séchage!$D$18) -> 00:22:38.495 | P55: Plat6 | Q55: =IF(L55=4,IF(E55='Pliage main'!$A$15,100/('Pliage main'!$AR$15*'Pliage main'!$T$15*'Pliage main'!$V$15))) -> 1.635249822
A56: =IF(Paramètres!A54="","",Paramètres!A54) -> 1467 | B56: =IF(Paramètres!B54="","",Paramètres!B54) -> Peignoir Chale Luxe blc | C56: =IF(Paramètres!C54="","",Paramètres!C54) -> 1701 | D56: 210.3333333 | E56: =IF(Paramètres!A54="","",Paramètres!D54) -> peignoir/cas | F56: =IF(Paramètres!E54="","",Paramètres!E54) -> HSECPM_Peignoir | G56: 357.777 | H56: =SUM(IF((Narlivt!$E$9:$E$6968='Qtité art'!A56),(Narlivt!$H$9:$H$6968)/Narlivt!$H$5)) -> 210.3333333 | L56: =VLOOKUP(E56,'Pliage main'!$A$12:$CD$27,51,FALSE) -> 4 | M56: =IF(L56=4,Lavage!$I$16) -> 01:12:03.140 | N56: =VLOOKUP(E56,'Pliage main'!$A$12:$CD$27,73,FALSE) -> 2 | O56: =IF(N56=2,Séchage!$D$18) -> 00:22:38.495 | P56: Plat6 | Q56: =IF(L56=4,IF(E56='Pliage main'!$A$18,100/('Pliage main'!$AR$18*'Pliage main'!$T$18*'Pliage main'!$V$18))) -> 08:06:24.398
A57: =IF(Paramètres!A55="","",Paramètres!A55) -> 1497 | B57: =IF(Paramètres!B55="","",Paramètres!B55) -> Drap Clas jonq 180 NF | C57: =IF(Paramètres!C55="","",Paramètres!C55) -> 785 | D57: 516 | E57: =IF(Paramètres!A55="","",Paramètres!D55) -> drap petit | F57: =IF(Paramètres!E55="","",Paramètres!E55) -> HCALGP_Drap | G57: 405.06 | H57: =SUM(IF((Narlivt!$E$9:$E$6968='Qtité art'!A57),(Narlivt!$H$9:$H$6968)/Narlivt!$H$5)) -> 516 | L57: =VLOOKUP('Qtité art'!E57,Mixte!$A$12:$CD$32,51,FALSE) -> 1 | M57: =IF(L57=1,Lavage!$I$13) -> 00:01:35 | N57: =VLOOKUP(E57,Mixte!$A$12:$CD$32,73,FALSE) -> 0 | P57: Plat3 | Q57: =IF(L57=1,IF(E57=GP!$A$12,(50/GP!$AR$12*GP!$T$12*GP!$V$12))) -> 52018.02061
A58: =IF(Paramètres!A56="","",Paramètres!A56) -> 1498 | B58: =IF(Paramètres!B56="","",Paramètres!B56) -> Taie Car Clas jonq 60X60 Vp NF | C58: =IF(Paramètres!C56="","",Paramètres!C56) -> 177 | D58: 120 | E58: =IF(Paramètres!A56="","",Paramètres!D56) -> Taie Carrée | F58: =IF(Paramètres!E56="","",Paramètres!E56) -> HCALPP_Taie | G58: 21.24 | H58: =SUM(IF((Narlivt!$E$9:$E$6968='Qtité art'!A58),(Narlivt!$H$9:$H$6968)/Narlivt!$H$5)) -> 120 | L58: =VLOOKUP(E58,PP!$A$12:$CD$27,51,FALSE) -> 1 | M58: =IF(L58=1,Lavage!$I$13) -> 00:01:35 | N58: =VLOOKUP(E58,PP!$A$12:$CD$27,73,FALSE) -> 1 | O58: =IF(N58=1,Séchage!$D$12) -> 00:04:47.238 | P58: Plat2 | Q58: =IF(L58=1,IF(E58=PP!$A$14,(50/PP!$AR$14*PP!$T$14*PP!$V$14))) -> 357762.4481
A59: =IF(Paramètres!A57="","",Paramètres!A57) -> 1522 | B59: =IF(Paramètres!B57="","",Paramètres!B57) -> Couette Brancard ciel 120x180 NF | C59: =IF(Paramètres!C57="","",Paramètres!C57) -> 950 | D59: 364.3333333 | E59: =IF(Paramètres!A57="","",Paramètres!D57) -> couette/couv | F59: =IF(Paramètres!E57="","",Paramètres!E57) -> HSECPM_Couv | G59: 346.1166667 | H59: =SUM(IF((Narlivt!$E$9:$E$6968='Qtité art'!A59),(Narlivt!$H$9:$H$6968)/Narlivt!$H$5)) -> 364.3333333 | L59: =VLOOKUP(E59,'Pliage main'!$A$12:$CD$27,51,FALSE) -> 4 | M59: =IF(L59=4,Lavage!$I$16) -> 01:12:03.140 | N59: =VLOOKUP(E59,'Pliage main'!$A$12:$CD$27,73,FALSE) -> 3 | O59: =IF(N59=3,Séchage!$D$24) -> 00:18:49.947 | P59: Plat6 | Q59: =IF(L59=4,IF(E59='Pliage main'!$A$14,100/('Pliage main'!$AR$14*'Pliage main'!$T$14*'Pliage main'!$V$14))) -> 06:35:29.301
A60: =IF(Paramètres!A58="","",Paramètres!A58) -> 1528 | B60: =IF(Paramètres!B58="","",Paramètres!B58) -> Drap Enfant Rose 80x150 NF | C60: =IF(Paramètres!C58="","",Paramètres!C58) -> 190 | D60: 40 | E60: =IF(Paramètres!A58="","",Paramètres!D58) -> drap petit | F60: =IF(Paramètres!E58="","",Paramètres!E58) -> HCALGP_Drap | G60: 7.6 | H60: =SUM(IF((Narlivt!$E$9:$E$6968='Qtité art'!A60),(Narlivt!$H$9:$H$6968)/Narlivt!$H$5)) -> 40 | L60: =VLOOKUP('Qtité art'!E60,Mixte!$A$12:$CD$32,51,FALSE) -> 1 | M60: =IF(L60=1,Lavage!$I$13) -> 00:01:35 | N60: =VLOOKUP(E60,Mixte!$A$12:$CD$32,73,FALSE) -> 0 | P60: Plat3 | Q60: =IF(L60=1,IF(E60=GP!$A$12,(50/GP!$AR$12*GP!$T$12*GP!$V$12))) -> 52018.02061
A61: =IF(Paramètres!A59="","",Paramètres!A59) -> 1613 | B61: =IF(Paramètres!B59="","",Paramètres!B59) -> Drap Clas ciel 180 NF | C61: =IF(Paramètres!C59="","",Paramètres!C59) -> 785 | D61: 1851.333333 | E61: =IF(Paramètres!A59="","",Paramètres!D59) -> drap petit | F61: =IF(Paramètres!E59="","",Paramètres!E59) -> HCALGP_Drap | G61: 1453.296667 | H61: =SUM(IF((Narlivt!$E$9:$E$6968='Qtité art'!A61),(Narlivt!$H$9:$H$6968)/Narlivt!$H$5)) -> 1851.333333 | L61: =VLOOKUP('Qtité art'!E61,Mixte!$A$12:$CD$32,51,FALSE) -> 1 | M61: =IF(L61=1,Lavage!$I$13) -> 00:01:35 | N61: =VLOOKUP(E61,Mixte!$A$12:$CD$32,73,FALSE) -> 0 | P61: Plat3 | Q61: =IF(L61=1,IF(E61=GP!$A$12,(50/GP!$AR$12*GP!$T$12*GP!$V$12))) -> 52018.02061
A62: =IF(Paramètres!A60="","",Paramètres!A60) -> 1718 | B62: =IF(Paramètres!B60="","",Paramètres!B60) -> Tapis bain COCOON blc | C62: =IF(Paramètres!C60="","",Paramètres!C60) -> 282 | D62: 3004 | E62: =IF(Paramètres!A60="","",Paramètres!D60) -> tapis bain | F62: =IF(Paramètres!E60="","",Paramètres!E60) -> HSECPA_Eponge | G62: 847.128 | H62: =SUM(IF((Narlivt!$E$9:$E$6968='Qtité art'!A62),(Narlivt!$H$9:$H$6968)/Narlivt!$H$5)) -> 2960 | J62: 44 | K62: ST | L62: =VLOOKUP(E62,PE!$A$12:$CD$27,51,FALSE) -> 1 | M62: =IF(L62=1,Lavage!$I$13) -> 00:01:35 | N62: =VLOOKUP(E62,PE!$A$12:$CD$27,73,FALSE) -> 5 | O62: =IF(N62=5,Séchage!$D$36) -> 00:27:00 | P62: Plat5 | Q62: =IF(L62=1,IF(E62=PE!$A$16,(50/PE!$AR$16*PE!$T$16*PE!$V$16))) -> 246699.7115
A63: =IF(Paramètres!A61="","",Paramètres!A61) -> 1813 | B63: =IF(Paramètres!B61="","",Paramètres!B61) -> Nappe Fleuri abri 12x15 | C63: =IF(Paramètres!C61="","",Paramètres!C61) -> 558 | D63: 4.333333333 | E63: =IF(Paramètres!A61="","",Paramètres!D61) -> nap 15 + 18 | F63: =IF(Paramètres!E61="","",Paramètres!E61) -> RCALGP_Grde_Nappe | G63: 2.418 | H63: =SUM(IF((Narlivt!$E$9:$E$6968='Qtité art'!A63),(Narlivt!$H$9:$H$6968)/Narlivt!$H$5)) -> 4.333333333 | L63: =VLOOKUP('Qtité art'!E63,Mixte!$A$12:$CD$32,51,FALSE) -> 5 | M63: =IF(L63=5,Lavage!$I$25) -> 01:06:21.565 | N63: =VLOOKUP(E63,Mixte!$A$12:$CD$32,73,FALSE) -> 0 | P63: Plat4 | Q63: =IF(L63=5,IF(E63=Mixte!$A$14,100/(Mixte!$AR$14*Mixte!$T$14*Mixte!$V$14))) -> 07:58:20.750
A64: =IF(Paramètres!A62="","",Paramètres!A62) -> 1864 | B64: =IF(Paramètres!B62="","",Paramètres!B62) -> Nappe Fleuri abri 15x15 | C64: =IF(Paramètres!C62="","",Paramètres!C62) -> 700 | D64: 15 | E64: =IF(Paramètres!A62="","",Paramètres!D62) -> nap 15 + 18 | F64: =IF(Paramètres!E62="","",Paramètres!E62) -> RCALGP_Grde_Nappe | G64: 10.5 | H64: =SUM(IF((Narlivt!$E$9:$E$6968='Qtité art'!A64),(Narlivt!$H$9:$H$6968)/Narlivt!$H$5)) -> 15 | L64: =VLOOKUP('Qtité art'!E64,Mixte!$A$12:$CD$32,51,FALSE) -> 5 | M64: =IF(L64=5,Lavage!$I$25) -> 01:06:21.565 | N64: =VLOOKUP(E64,Mixte!$A$12:$CD$32,73,FALSE) -> 0 | P64: Plat4 | Q64: =IF(L64=5,IF(E64=Mixte!$A$14,100/(Mixte!$AR$14*Mixte!$T$14*Mixte!$V$14))) -> 07:58:20.750
A65: =IF(Paramètres!A63="","",Paramètres!A63) -> 1967 | B65: =IF(Paramètres!B63="","",Paramètres!B63) -> DrapHous jers blc l.rose90x200 NF | C65: =IF(Paramètres!C63="","",Paramètres!C63) -> 600 | D65: 10246 | E65: =IF(Paramètres!A63="","",Paramètres!D63) -> drap housse | F65: =IF(Paramètres!E63="","",Paramètres!E63) -> HSECPM_Santé | G65: 6147.6 | H65: =SUM(IF((Narlivt!$E$9:$E$6968='Qtité art'!A65),(Narlivt!$H$9:$H$6968)/Narlivt!$H$5)) -> 10246 | L65: =VLOOKUP(E65,'Pliage main'!$A$12:$CD$27,51,FALSE) -> 1 | M65: =IF(L65=1,Lavage!$I$13) -> 00:01:35 | N65: =VLOOKUP(E65,'Pliage main'!$A$12:$CD$27,73,FALSE) -> 2 | O65: =IF(N65=2,Séchage!$D$18) -> 00:22:38.495 | P65: Plat6 | Q65: =IF(L65=1,IF(E65='Pliage main'!$A$17,(50/'Pliage main'!$AR$17*'Pliage main'!$T$17*'Pliage main'!$V$17))) -> 43869.5083
A66: =IF(Paramètres!A64="","",Paramètres!A64) -> 1987 | B66: =IF(Paramètres!B64="","",Paramètres!B64) -> Nappe Fleuri abri 15x20 | C66: =IF(Paramètres!C64="","",Paramètres!C64) -> 922 | D66: 0.3333333333 | E66: =IF(Paramètres!A64="","",Paramètres!D64) -> nap 20 | F66: =IF(Paramètres!E64="","",Paramètres!E64) -> RCALGP_Grde_Nappe | G66: 0.3073333333 | H66: =SUM(IF((Narlivt!$E$9:$E$6968='Qtité art'!A66),(Narlivt!$H$9:$H$6968)/Narlivt!$H$5)) -> 0.3333333333 | L66: =VLOOKUP('Qtité art'!E66,Mixte!$A$12:$CD$32,51,FALSE) -> 5 | M66: =IF(L66=5,Lavage!$I$25) -> 01:06:21.565 | N66: =VLOOKUP(E66,Mixte!$A$12:$CD$32,73,FALSE) -> 0 | P66: Plat4 | Q66: =IF(L66=5,IF(E66=Mixte!$A$15,100/(Mixte!$AR$15*Mixte!$T$15*Mixte!$V$15))) -> 07:27:41.084
A67: =IF(Paramètres!A65="","",Paramètres!A65) -> 2051 | B67: =IF(Paramètres!B65="","",Paramètres!B65) -> Drap Clas blc 2l.vert 240 NF | C67: =IF(Paramètres!C65="","",Paramètres!C65) -> 1066 | D67: 9320.666667 | E67: =IF(Paramètres!A65="","",Paramètres!D65) -> drap grand | F67: =IF(Paramètres!E65="","",Paramètres!E65) -> HCALGP_Drap | G67: 9935.830667 | H67: =SUM(IF((Narlivt!$E$9:$E$6968='Qtité art'!A67),(Narlivt!$H$9:$H$6968)/Narlivt!$H$5)) -> 9320.666667 | L67: =VLOOKUP('Qtité art'!E67,Mixte!$A$12:$CD$32,51,FALSE) -> 1 | M67: =IF(L67=1,Lavage!$I$13) -> 00:01:35 | N67: =VLOOKUP(E67,Mixte!$A$12:$CD$32,73,FALSE) -> 0 | P67: Plat3 | Q67: =IF(L67=1,IF(E67=GP!$A$13,(50/GP!$AR$13*GP!$T$13*GP!$V$13))) -> 33459.97372
A68: =IF(Paramètres!A66="","",Paramètres!A66) -> 2061 | B68: =IF(Paramètres!B66="","",Paramètres!B66) -> Sac elis jaune compel | C68: =IF(Paramètres!C66="","",Paramètres!C66) -> 194 | D68: 2.666666667 | E68: =IF(Paramètres!A66="","",Paramètres!D66) -> Poubelle | F68: =IF(Paramètres!E66="","",Paramètres!E66) -> HSECPM_Santé | G68: 0.5173333333 | H68: =SUM(IF((Narlivt!$E$9:$E$6968='Qtité art'!A68),(Narlivt!$H$9:$H$6968)/Narlivt!$H$5)) -> 2.666666667 | N68: 2 | O68: =IF(N68=2,Séchage!$D$18) -> 00:22:38.495 | Q68: 12.96848461
A69: =IF(Paramètres!A67="","",Paramètres!A67) -> 2097 | B69: =IF(Paramètres!B67="","",Paramètres!B67) -> Housse Trav Jonq NF | C69: =IF(Paramètres!C67="","",Paramètres!C67) -> 153 | D69: 3 | E69: =IF(Paramètres!A67="","",Paramètres!D67) -> hous trav | F69: =IF(Paramètres!E67="","",Paramètres!E67) -> HCALPP_Taie | G69: 0.459 | H69: =SUM(IF((Narlivt!$E$9:$E$6968='Qtité art'!A69),(Narlivt!$H$9:$H$6968)/Narlivt!$H$5)) -> 3 | L69: =VLOOKUP('Qtité art'!E69,Mixte!$A$12:$CD$32,51,FALSE) -> 1 | M69: =IF(L69=1,Lavage!$I$13) -> 00:01:35 | N69: =VLOOKUP(E69,Mixte!$A$12:$CD$32,73,FALSE) -> 0 | P69: Plat4 | Q69: =IF(L69=1,IF(E69=Mixte!$A$25,(50/Mixte!$AR$25*Mixte!$T$25*Mixte!$V$25))) -> 198591.3906
A70: =IF(Paramètres!A68="","",Paramètres!A68) -> 2280 | B70: =IF(Paramètres!B68="","",Paramètres!B68) -> Taie Car Clas ciel 60x60 VP NF | C70: =IF(Paramètres!C68="","",Paramètres!C68) -> 177 | D70: 628.6666667 | E70: =IF(Paramètres!A68="","",Paramètres!D68) -> Taie Carrée | F70: =IF(Paramètres!E68="","",Paramètres!E68) -> HCALPP_Taie | G70: 111.274 | H70: =SUM(IF((Narlivt!$E$9:$E$6968='Qtité art'!A70),(Narlivt!$H$9:$H$6968)/Narlivt!$H$5)) -> 378.6666667 | J70: 250 | K70: ST | L70: =VLOOKUP(E70,PP!$A$12:$CD$27,51,FALSE) -> 1 | M70: =IF(L70=1,Lavage!$I$13) -> 00:01:35 | N70: =VLOOKUP(E70,PP!$A$12:$CD$27,73,FALSE) -> 1 | O70: =IF(N70=1,Séchage!$D$12) -> 00:04:47.238 | P70: Plat2 | Q70: =IF(L70=1,IF(E70=PP!$A$14,(50/PP!$AR$14*PP!$T$14*PP!$V$14))) -> 357762.4481
A71: =IF(Paramètres!A69="","",Paramètres!A69) -> 2299 | B71: =IF(Paramètres!B69="","",Paramètres!B69) -> Chemise Malade bleu pressions | C71: =IF(Paramètres!C69="","",Paramètres!C69) -> 380 | D71: 3291.666667 | E71: =IF(Paramètres!A69="","",Paramètres!D69) -> chmal | F71: =IF(Paramètres!E69="","",Paramètres!E69) -> HSECPM_Chem_mal | G71: 1250.833333 | H71: =SUM(IF((Narlivt!$E$9:$E$6968='Qtité art'!A71),(Narlivt!$H$9:$H$6968)/Narlivt!$H$5)) -> 3291.666667 | L71: =VLOOKUP(E71,'Pliage main'!$A$12:$CD$27,51,FALSE) -> 2 | M71: =IF(L71=2,Lavage!$I$14) -> 00:03:00 | N71: =VLOOKUP(E71,PE!$A$12:$CD$27,73,FALSE) -> 2 | O71: =IF(N71=2,Séchage!$D$18) -> 00:22:38.495 | P71: Plat5 | Q71: =IF(L71=2,IF(E71=PE!$A$20,50/(PE!$AR$20*PE!$T$20*PE!$V$20))) -> 14:25:24.301
A72: =IF(Paramètres!A70="","",Paramètres!A70) -> 2348 | B72: =IF(Paramètres!B70="","",Paramètres!B70) -> Drap 1/2 Housse blc 9x25 NF | C72: =IF(Paramètres!C70="","",Paramètres!C70) -> 540 | D72: 502.3333333 | E72: =IF(Paramètres!A70="","",Paramètres!D70) -> drap 1/2 | F72: =IF(Paramètres!E70="","",Paramètres!E70) -> HCALGP_Drap | G72: 271.26 | H72: =SUM(IF((Narlivt!$E$9:$E$6968='Qtité art'!A72),(Narlivt!$H$9:$H$6968)/Narlivt!$H$5)) -> 502.3333333 | L72: =VLOOKUP('Qtité art'!E72,Mixte!$A$12:$CD$32,51,FALSE) -> 2 | M72: =IF(L72=2,Lavage!$I$14) -> 00:03:00 | N72: =VLOOKUP(E72,Mixte!$A$12:$CD$32,73,FALSE) -> 0 | P72: Plat4 | Q72: =IF(L72=2,IF(E72=Mixte!$A$22,50/(Mixte!$AR$22*Mixte!$T$22*Mixte!$V$22))) -> 05:28:48.286
A73: =IF(Paramètres!A71="","",Paramètres!A71) -> 2642 | B73: =IF(Paramètres!B71="","",Paramètres!B71) -> Nappe Fleuri abri 20x20 | C73: =IF(Paramètres!C71="","",Paramètres!C71) -> 1191 | D73: =IF(E73=0,0,H73*(1+I73)+J73) -> 0.6666666667 | E73: =IF(Paramètres!A71="","",Paramètres!D71) -> nap 20 | F73: =IF(Paramètres!E71="","",Paramètres!E71) -> RCALGP_Grde_Nappe | G73: =IF(B73="",0,D73*C73/1000) -> 0.794 | H73: =SUM(IF((Narlivt!$E$9:$E$6968='Qtité art'!A73),(Narlivt!$H$9:$H$6968)/Narlivt!$H$5)) -> 0.6666666667 | L73: =VLOOKUP('Qtité art'!E73,Mixte!$A$12:$CD$32,51,FALSE) -> 5 | M73: =IF(L73=5,Lavage!$I$25) -> 01:06:21.565 | N73: =VLOOKUP(E73,Mixte!$A$12:$CD$32,73,FALSE) -> 0 | P73: Plat4 | Q73: =IF(L73=5,IF(E73=Mixte!$A$15,100/(Mixte!$AR$15*Mixte!$T$15*Mixte!$V$15))) -> 07:27:41.084
A74: =IF(Paramètres!A72="","",Paramètres!A72) -> 2647 | B74: =IF(Paramètres!B72="","",Paramètres!B72) -> Taie Am Clas blc 46x71VPDF NF | C74: =IF(Paramètres!C72="","",Paramètres!C72) -> 173 | D74: 154 | E74: =IF(Paramètres!A72="","",Paramètres!D72) -> taie am | F74: =IF(Paramètres!E72="","",Paramètres!E72) -> HCALPP_Taie | G74: 26.642 | H74: =SUM(IF((Narlivt!$E$9:$E$6968='Qtité art'!A74),(Narlivt!$H$9:$H$6968)/Narlivt!$H$5)) -> 154 | L74: =VLOOKUP(E74,PP!$A$12:$CD$27,51,FALSE) -> 1 | M74: =IF(L74=1,Lavage!$I$13) -> 00:01:35 | N74: =VLOOKUP(E74,PP!$A$12:$CD$27,73,FALSE) -> 1 | O74: =IF(N74=1,Séchage!$D$12) -> 00:04:47.238 | P74: Plat2 | Q74: =IF(L74=1,IF(E74=PP!$A$12,(50/PP!$AR$12*PP!$T$12*PP!$V$12))) -> 497516.8326
A75: =IF(Paramètres!A73="","",Paramètres!A73) -> 2847 | B75: =IF(Paramètres!B73="","",Paramètres!B73) -> Carre visage blc | C75: =IF(Paramètres!C73="","",Paramètres!C73) -> 47 | D75: 1013.333333 | E75: =IF(Paramètres!A73="","",Paramètres!D73) -> carré/gant | F75: =IF(Paramètres!E73="","",Paramètres!E73) -> HSECPM_Gant | G75: 47.62666667 | H75: =SUM(IF((Narlivt!$E$9:$E$6968='Qtité art'!A75),(Narlivt!$H$9:$H$6968)/Narlivt!$H$5)) -> 1013.333333 | L75: =VLOOKUP(E75,'Pliage main'!$A$12:$CD$27,51,FALSE) -> 4 | M75: =IF(L75=4,Lavage!$I$16) -> 01:12:03.140 | N75: =VLOOKUP(E75,'Pliage main'!$A$12:$CD$27,73,FALSE) -> 2 | O75: =IF(N75=2,Séchage!$D$18) -> 00:22:38.495 | P75: Plat6 | Q75: =IF(L75=4,IF(E75='Pliage main'!$A$15,100/('Pliage main'!$AR$15*'Pliage main'!$T$15*'Pliage main'!$V$15))) -> 1.635249822
A76: =IF(Paramètres!A74="","",Paramètres!A74) -> 2941 | B76: =IF(Paramètres!B74="","",Paramètres!B74) -> Drap Clas blc l. noir 280 NF | C76: =IF(Paramètres!C74="","",Paramètres!C74) -> 1210 | D76: 4074.333333 | E76: =IF(Paramètres!A74="","",Paramètres!D74) -> drap grand | F76: =IF(Paramètres!E74="","",Paramètres!E74) -> HCALGP_Drap | G76: 4929.943333 | H76: =SUM(IF((Narlivt!$E$9:$E$6968='Qtité art'!A76),(Narlivt!$H$9:$H$6968)/Narlivt!$H$5)) -> 4071.333333 | J76: 3 | K76: ST | L76: =VLOOKUP('Qtité art'!E76,Mixte!$A$12:$CD$32,51,FALSE) -> 1 | M76: =IF(L76=1,Lavage!$I$13) -> 00:01:35 | N76: =VLOOKUP(E76,Mixte!$A$12:$CD$32,73,FALSE) -> 0 | P76: Plat3 | Q76: =IF(L76=1,IF(E76=GP!$A$13,(50/GP!$AR$13*GP!$T$13*GP!$V$13))) -> 33459.97372
A77: =IF(Paramètres!A75="","",Paramètres!A75) -> 2990 | B77: =IF(Paramètres!B75="","",Paramètres!B75) -> Chemise Opéré bleu cordons | C77: =IF(Paramètres!C75="","",Paramètres!C75) -> 250 | D77: 780.3333333 | E77: =IF(Paramètres!A75="","",Paramètres!D75) -> chmal | F77: =IF(Paramètres!E75="","",Paramètres!E75) -> HSECPM_Chem_mal | G77: 195.0833333 | H77: =SUM(IF((Narlivt!$E$9:$E$6968='Qtité art'!A77),(Narlivt!$H$9:$H$6968)/Narlivt!$H$5)) -> 780.3333333 | L77: =VLOOKUP(E77,'Pliage main'!$A$12:$CD$27,51,FALSE) -> 2 | M77: =IF(L77=2,Lavage!$I$14) -> 00:03:00 | N77: =VLOOKUP(E77,PE!$A$12:$CD$27,73,FALSE) -> 2 | O77: =IF(N77=2,Séchage!$D$18) -> 00:22:38.495 | P77: Plat5 | Q77: =IF(L77=2,IF(E77=PE!$A$20,50/(PE!$AR$20*PE!$T$20*PE!$V$20))) -> 14:25:24.301
A78: =IF(Paramètres!A76="","",Paramètres!A76) -> 3114 | B78: =IF(Paramètres!B76="","",Paramètres!B76) -> Serv.ind. orange PF Garage | C78: =IF(Paramètres!C76="","",Paramètres!C76) -> 35 | D78: 969.6666667 | E78: =IF(Paramètres!A76="","",Paramètres!D76) -> serv éponge | F78: =IF(Paramètres!E76="","",Paramètres!E76) -> HSECPA_Eponge | G78: 33.93833333 | H78: =SUM(IF((Narlivt!$E$9:$E$6968='Qtité art'!A78),(Narlivt!$H$9:$H$6968)/Narlivt!$H$5)) -> 969.6666667 | L78: =VLOOKUP(E78,PE!$A$12:$CD$27,51,FALSE) -> 1 | M78: =IF(L78=1,Lavage!$I$13) -> 00:01:35 | N78: =VLOOKUP(E78,PE!$A$12:$CD$27,73,FALSE) -> 5 | O78: =IF(N78=5,Séchage!$D$36) -> 00:27:00 | P78: Plat5 | Q78: =IF(L78=1,IF(E78=PE!$A$14,(50/PE!$AR$14*PE!$T$14*PE!$V$14))) -> 275553.6379
A79: =IF(Paramètres!A77="","",Paramètres!A77) -> 3187 | B79: =IF(Paramètres!B77="","",Paramètres!B77) -> Nappe BS blc 24x24 | C79: =IF(Paramètres!C77="","",Paramètres!C77) -> 1521 | D79: 7.333333333 | E79: =IF(Paramètres!A77="","",Paramètres!D77) -> nap 24 | F79: =IF(Paramètres!E77="","",Paramètres!E77) -> RCALGP_Grde_Nappe | G79: 11.154 | H79: =SUM(IF((Narlivt!$E$9:$E$6968='Qtité art'!A79),(Narlivt!$H$9:$H$6968)/Narlivt!$H$5)) -> 7.333333333 | L79: =VLOOKUP('Qtité art'!E79,Mixte!$A$12:$CD$32,51,FALSE) -> 5 | M79: =IF(L79=5,Lavage!$I$25) -> 01:06:21.565 | N79: =VLOOKUP(E79,Mixte!$A$12:$CD$32,73,FALSE) -> 0 | P79: Plat4 | Q79: =IF(L79=5,IF(E79=Mixte!$A$16,100/(Mixte!$AR$16*Mixte!$T$16*Mixte!$V$16))) -> 05:17:38.178
A80: =IF(Paramètres!A78="","",Paramètres!A78) -> 3229 | B80: =IF(Paramètres!B78="","",Paramètres!B78) -> Serv.ind. bleue GF Imprimerie | C80: =IF(Paramètres!C78="","",Paramètres!C78) -> 55 | D80: 57.66666667 | E80: =IF(Paramètres!A78="","",Paramètres!D78) -> serv éponge | F80: =IF(Paramètres!E78="","",Paramètres!E78) -> HSECPA_Eponge | G80: 3.171666667 | H80: =SUM(IF((Narlivt!$E$9:$E$6968='Qtité art'!A80),(Narlivt!$H$9:$H$6968)/Narlivt!$H$5)) -> 57.66666667 | L80: =VLOOKUP(E80,PE!$A$12:$CD$27,51,FALSE) -> 1 | M80: =IF(L80=1,Lavage!$I$13) -> 00:01:35 | N80: =VLOOKUP(E80,PE!$A$12:$CD$27,73,FALSE) -> 5 | O80: =IF(N80=5,Séchage!$D$36) -> 00:27:00 | P80: Plat5 | Q80: =IF(L80=1,IF(E80=PE!$A$14,(50/PE!$AR$14*PE!$T$14*PE!$V$14))) -> 275553.6379
A81: =IF(Paramètres!A79="","",Paramètres!A79) -> 3244 | B81: =IF(Paramètres!B79="","",Paramètres!B79) -> Drap bain COCOON blc | C81: =IF(Paramètres!C79="","",Paramètres!C79) -> 450 | D81: 8788.333333 | E81: =IF(Paramètres!A79="","",Paramètres!D79) -> drap bain | F81: =IF(Paramètres!E79="","",Paramètres!E79) -> HSECPA_DB | G81: 3954.75 | H81: =SUM(IF((Narlivt!$E$9:$E$6968='Qtité art'!A81),(Narlivt!$H$9:$H$6968)/Narlivt!$H$5)) -> 8713.333333 | J81: 75 | K81: ST | L81: =VLOOKUP(E81,PE!$A$12:$CD$27,51,FALSE) -> 1 | M81: =IF(L81=1,Lavage!$I$13) -> 00:01:35 | N81: =VLOOKUP(E81,PE!$A$12:$CD$27,73,FALSE) -> 5 | O81: =IF(N81=5,Séchage!$D$36) -> 00:27:00 | P81: Plat5 | Q81: =IF(L81=1,IF(E81=PE!$A$12,(50/PE!$AR$12*PE!$T$12*PE!$V$12))) -> 111264.4679
A82: =IF(Paramètres!A80="","",Paramètres!A80) -> 3274 | B82: =IF(Paramètres!B80="","",Paramètres!B80) -> Serv.ind. jaune GF Mécanique | C82: =IF(Paramètres!C80="","",Paramètres!C80) -> 60 | D82: 1005 | E82: =IF(Paramètres!A80="","",Paramètres!D80) -> serv éponge | F82: =IF(Paramètres!E80="","",Paramètres!E80) -> HSECPA_Eponge | G82: 60.3 | H82: =SUM(IF((Narlivt!$E$9:$E$6968='Qtité art'!A82),(Narlivt!$H$9:$H$6968)/Narlivt!$H$5)) -> 1005 | L82: =VLOOKUP(E82,PE!$A$12:$CD$27,51,FALSE) -> 1 | M82: =IF(L82=1,Lavage!$I$13) -> 00:01:35 | N82: =VLOOKUP(E82,PE!$A$12:$CD$27,73,FALSE) -> 5 | O82: =IF(N82=5,Séchage!$D$36) -> 00:27:00 | P82: Plat5 | Q82: =IF(L82=1,IF(E82=PE!$A$14,(50/PE!$AR$14*PE!$T$14*PE!$V$14))) -> 275553.6379
A83: =IF(Paramètres!A81="","",Paramètres!A81) -> 3297 | B83: =IF(Paramètres!B81="","",Paramètres!B81) -> Taie Car Imperm NF | C83: =IF(Paramètres!C81="","",Paramètres!C81) -> 395 | D83: 14 | E83: =IF(Paramètres!A81="","",Paramètres!D81) -> Taie Carrée | F83: =IF(Paramètres!E81="","",Paramètres!E81) -> HCALPP_Taie | G83: 5.53 | H83: =SUM(IF((Narlivt!$E$9:$E$6968='Qtité art'!A83),(Narlivt!$H$9:$H$6968)/Narlivt!$H$5)) -> 14 | L83: =VLOOKUP(E83,PP!$A$12:$CD$27,51,FALSE) -> 1 | M83: =IF(L83=1,Lavage!$I$13) -> 00:01:35 | N83: =VLOOKUP(E83,PP!$A$12:$CD$27,73,FALSE) -> 1 | O83: =IF(N83=1,Séchage!$D$12) -> 00:04:47.238 | P83: Plat2 | Q83: =IF(L83=1,IF(E83=PP!$A$14,(50/PP!$AR$14*PP!$T$14*PP!$V$14))) -> 357762.4481
A84: =IF(Paramètres!A82="","",Paramètres!A82) -> 3426 | B84: =IF(Paramètres!B82="","",Paramètres!B82) -> Couette ambu blc cassé CatA | C84: =IF(Paramètres!C82="","",Paramètres!C82) -> 1380 | D84: 243.3333333 | E84: =IF(Paramètres!A82="","",Paramètres!D82) -> couette/couv | F84: =IF(Paramètres!E82="","",Paramètres!E82) -> HSECPM_Couv | G84: 335.8 | H84: =SUM(IF((Narlivt!$E$9:$E$6968='Qtité art'!A84),(Narlivt!$H$9:$H$6968)/Narlivt!$H$5)) -> 243.3333333 | L84: =VLOOKUP(E84,'Pliage main'!$A$12:$CD$27,51,FALSE) -> 4 | M84: =IF(L84=4,Lavage!$I$16) -> 01:12:03.140 | N84: =VLOOKUP(E84,'Pliage main'!$A$12:$CD$27,73,FALSE) -> 3 | O84: =IF(N84=3,Séchage!$D$24) -> 00:18:49.947 | P84: Plat6 | Q84: =IF(L84=4,IF(E84='Pliage main'!$A$14,100/('Pliage main'!$AR$14*'Pliage main'!$T$14*'Pliage main'!$V$14))) -> 06:35:29.301
A85: =IF(Paramètres!A83="","",Paramètres!A83) -> 3436 | B85: =IF(Paramètres!B83="","",Paramètres!B83) -> Taie Car Clas blc 60x60VP NF | C85: =IF(Paramètres!C83="","",Paramètres!C83) -> 202 | D85: 11996 | E85: =IF(Paramètres!A83="","",Paramètres!D83) -> Taie Carrée | F85: =IF(Paramètres!E83="","",Paramètres!E83) -> HCALPP_Taie | G85: 2423.192 | H85: =SUM(IF((Narlivt!$E$9:$E$6968='Qtité art'!A85),(Narlivt!$H$9:$H$6968)/Narlivt!$H$5)) -> 11996 | L85: =VLOOKUP(E85,PP!$A$12:$CD$27,51,FALSE) -> 1 | M85: =IF(L85=1,Lavage!$I$13) -> 00:01:35 | N85: =VLOOKUP(E85,PP!$A$12:$CD$27,73,FALSE) -> 1 | O85: =IF(N85=1,Séchage!$D$12) -> 00:04:47.238 | P85: Plat2 | Q85: =IF(L85=1,IF(E85=PP!$A$14,(50/PP!$AR$14*PP!$T$14*PP!$V$14))) -> 357762.4481
A86: =IF(Paramètres!A84="","",Paramètres!A84) -> 3465 | B86: =IF(Paramètres!B84="","",Paramètres!B84) -> Serv. Alim. grege Elis | C86: =IF(Paramètres!C84="","",Paramètres!C84) -> 50 | D86: 758.3333333 | E86: =IF(Paramètres!A84="","",Paramètres!D84) -> serv tab pte | F86: =IF(Paramètres!E84="","",Paramètres!E84) -> RCALPP_inf_8 | G86: 37.91666667 | H86: =SUM(IF((Narlivt!$E$9:$E$6968='Qtité art'!A86),(Narlivt!$H$9:$H$6968)/Narlivt!$H$5)) -> 758.3333333 | L86: =VLOOKUP(E86,PP!$A$12:$CD$27,51,FALSE) -> 5 | M86: =IF(L86=5,Lavage!$I$25) -> 01:06:21.565 | N86: =VLOOKUP(E86,PP!$A$12:$CD$27,73,FALSE) -> 0 | P86: Plat2 | Q86: =IF(L86=5,IF(E86=PP!$A$17,100/(PP!$AR$17*PP!$T$17*PP!$V$17))) -> 18:22:14.361
A87: =IF(Paramètres!A85="","",Paramètres!A85) -> 3513 | B87: =IF(Paramètres!B85="","",Paramètres!B85) -> Tun bloc Dominique blc | C87: =IF(Paramètres!C85="","",Paramètres!C85) -> 289 | D87: 76 | E87: =IF(Paramètres!A85="","",Paramètres!D85) -> VT Séché TF | F87: =IF(Paramètres!E85="","",Paramètres!E85) -> VT_ | G87: 21.964 | H87: =SUM(IF((Narlivt!$E$9:$E$6968='Qtité art'!A87),(Narlivt!$H$9:$H$6968)/Narlivt!$H$5)) -> 76 | L87: =VLOOKUP('Qtité art'!E87,'Pliage main'!$A$12:$CD$27,51,FALSE) -> 2 | M87: =IF(L87=2,Lavage!$I$14) -> 00:03:00 | N87: =VLOOKUP(E87,'Pliage main'!$A$12:$CD$27,73,FALSE) -> 0 | P87: Plat6
A88: =IF(Paramètres!A86="","",Paramètres!A86) -> 3518 | B88: =IF(Paramètres!B86="","",Paramètres!B86) -> Tun. bloc Dominique T0 blanc PC | C88: =IF(Paramètres!C86="","",Paramètres!C86) -> 300 | D88: 6.333333333 | E88: =IF(Paramètres!A86="","",Paramètres!D86) -> VT Séché TF | F88: =IF(Paramètres!E86="","",Paramètres!E86) -> VT_ | G88: 1.9 | H88: =SUM(IF((Narlivt!$E$9:$E$6968='Qtité art'!A88),(Narlivt!$H$9:$H$6968)/Narlivt!$H$5)) -> 6.333333333 | L88: =VLOOKUP('Qtité art'!E88,'Pliage main'!$A$12:$CD$27,51,FALSE) -> 2 | M88: =IF(L88=2,Lavage!$I$14) -> 00:03:00 | N88: =VLOOKUP(E88,'Pliage main'!$A$12:$CD$27,73,FALSE) -> 0 | P88: Plat6
A89: =IF(Paramètres!A87="","",Paramètres!A87) -> 3524 | B89: =IF(Paramètres!B87="","",Paramètres!B87) -> Tun. bloc Dominique T1 blanc PC | C89: =IF(Paramètres!C87="","",Paramètres!C87) -> 300 | D89: 40.33333333 | E89: =IF(Paramètres!A87="","",Paramètres!D87) -> VT Séché TF | F89: =IF(Paramètres!E87="","",Paramètres!E87) -> VT_ | G89: 12.1 | H89: =SUM(IF((Narlivt!$E$9:$E$6968='Qtité art'!A89),(Narlivt!$H$9:$H$6968)/Narlivt!$H$5)) -> 40.33333333 | L89: =VLOOKUP('Qtité art'!E89,'Pliage main'!$A$12:$CD$27,51,FALSE) -> 2 | M89: =IF(L89=2,Lavage!$I$14) -> 00:03:00 | N89: =VLOOKUP(E89,'Pliage main'!$A$12:$CD$27,73,FALSE) -> 0 | P89: Plat6
A90: =IF(Paramètres!A88="","",Paramètres!A88) -> 3526 | B90: =IF(Paramètres!B88="","",Paramètres!B88) -> Tun. bloc Dominique T2 blanc PC | C90: =IF(Paramètres!C88="","",Paramètres!C88) -> 300 | D90: 31.33333333 | E90: =IF(Paramètres!A88="","",Paramètres!D88) -> VT Séché TF | F90: =IF(Paramètres!E88="","",Paramètres!E88) -> VT_ | G90: 9.4 | H90: =SUM(IF((Narlivt!$E$9:$E$6968='Qtité art'!A90),(Narlivt!$H$9:$H$6968)/Narlivt!$H$5)) -> 31.33333333 | L90: =VLOOKUP('Qtité art'!E90,'Pliage main'!$A$12:$CD$27,51,FALSE) -> 2 | M90: =IF(L90=2,Lavage!$I$14) -> 00:03:00 | N90: =VLOOKUP(E90,'Pliage main'!$A$12:$CD$27,73,FALSE) -> 0 | P90: Plat6
A91: =IF(Paramètres!A89="","",Paramètres!A89) -> 3527 | B91: =IF(Paramètres!B89="","",Paramètres!B89) -> Tun. bloc Dominique T3 blanc PC | C91: =IF(Paramètres!C89="","",Paramètres!C89) -> 300 | D91: 21.66666667 | E91: =IF(Paramètres!A89="","",Paramètres!D89) -> VT Séché TF | F91: =IF(Paramètres!E89="","",Paramètres!E89) -> VT_ | G91: 6.5 | H91: =SUM(IF((Narlivt!$E$9:$E$6968='Qtité art'!A91),(Narlivt!$H$9:$H$6968)/Narlivt!$H$5)) -> 21.66666667 | L91: =VLOOKUP('Qtité art'!E91,'Pliage main'!$A$12:$CD$27,51,FALSE) -> 2 | M91: =IF(L91=2,Lavage!$I$14) -> 00:03:00 | N91: =VLOOKUP(E91,'Pliage main'!$A$12:$CD$27,73,FALSE) -> 0 | P91: Plat6
A92: =IF(Paramètres!A90="","",Paramètres!A90) -> 3528 | B92: =IF(Paramètres!B90="","",Paramètres!B90) -> Tun. bloc Dominique T4 blanc PC | C92: =IF(Paramètres!C90="","",Paramètres!C90) -> 300 | D92: 14 | E92: =IF(Paramètres!A90="","",Paramètres!D90) -> VT Séché TF | F92: =IF(Paramètres!E90="","",Paramètres!E90) -> VT_ | G92: 4.2 | H92: =SUM(IF((Narlivt!$E$9:$E$6968='Qtité art'!A92),(Narlivt!$H$9:$H$6968)/Narlivt!$H$5)) -> 14 | L92: =VLOOKUP('Qtité art'!E92,'Pliage main'!$A$12:$CD$27,51,FALSE) -> 2 | M92: =IF(L92=2,Lavage!$I$14) -> 00:03:00 | N92: =VLOOKUP(E92,'Pliage main'!$A$12:$CD$27,73,FALSE) -> 0 | P92: Plat6
A93: =IF(Paramètres!A91="","",Paramètres!A91) -> 3593 | B93: =IF(Paramètres!B91="","",Paramètres!B91) -> Serv Ep. Luxe | C93: =IF(Paramètres!C91="","",Paramètres!C91) -> 303 | D93: 5 | E93: =IF(Paramètres!A91="","",Paramètres!D91) -> serv éponge luxe | F93: =IF(Paramètres!E91="","",Paramètres!E91) -> HSECPA_Eponge | G93: 1.515 | H93: =SUM(IF((Narlivt!$E$9:$E$6968='Qtité art'!A93),(Narlivt!$H$9:$H$6968)/Narlivt!$H$5)) -> 5 | L93: =VLOOKUP(E93,PE!$A$12:$CD$27,51,FALSE) -> 1 | M93: =IF(L93=1,Lavage!$I$13) -> 00:01:35 | N93: =VLOOKUP(E93,PE!$A$12:$CD$27,73,FALSE) -> 5 | O93: =IF(N93=5,Séchage!$D$36) -> 00:27:00 | P93: Plat5 | Q93: =IF(L93=1,IF(E93=PE!$A$15,(50/PE!$AR$15*PE!$T$12*PE!$V$15))) -> 143753.7091
A94: =IF(Paramètres!A92="","",Paramètres!A92) -> 3660 | B94: =IF(Paramètres!B92="","",Paramètres!B92) -> Serv Tab Fleuri égl. gd | C94: =IF(Paramètres!C92="","",Paramètres!C92) -> 136 | D94: 31.33333333 | E94: =IF(Paramètres!A92="","",Paramètres!D92) -> serv tab gde | F94: =IF(Paramètres!E92="","",Paramètres!E92) -> RCALPP_inf_8 | G94: 4.261333333 | H94: =SUM(IF((Narlivt!$E$9:$E$6968='Qtité art'!A94),(Narlivt!$H$9:$H$6968)/Narlivt!$H$5)) -> 31.33333333 | L94: =VLOOKUP(E94,PP!$A$12:$CD$27,51,FALSE) -> 5 | M94: =IF(L94=5,Lavage!$I$25) -> 01:06:21.565 | N94: =VLOOKUP(E94,PP!$A$12:$CD$27,73,FALSE) -> 0 | P94: Plat2 | Q94: =IF(L94=5,IF(E94=PP!$A$16,100/(PP!$AR$16*PP!$T$16*PP!$V$16))) -> 10:14:39.500
A95: =IF(Paramètres!A93="","",Paramètres!A93) -> 3745 | B95: =IF(Paramètres!B93="","",Paramètres!B93) -> Sac textile elis vert polyester | C95: =IF(Paramètres!C93="","",Paramètres!C93) -> 250 | D95: 198.6666667 | E95: =IF(Paramètres!A93="","",Paramètres!D93) -> sac | F95: =IF(Paramètres!E93="","",Paramètres!E93) -> HSECPM_Gant | G95: 49.66666667 | H95: =SUM(IF((Narlivt!$E$9:$E$6968='Qtité art'!A95),(Narlivt!$H$9:$H$6968)/Narlivt!$H$5)) -> 198.6666667 | L95: =VLOOKUP('Qtité art'!E95,'Pliage main'!$A$12:$CD$27,51,FALSE) -> 5 | M95: =IF(L95=5,Lavage!$I$25) -> 01:06:21.565 | N95: =VLOOKUP(E95,'Pliage main'!$A$12:$CD$27,73,FALSE) -> 0 | P95: Plat6 | Q95: =IF(L95=5,IF(E95='Pliage main'!$A$21,100/('Pliage main'!$AR$21*'Pliage main'!$T$21*'Pliage main'!$V$21))) -> 05:04:34.623
A96: =IF(Paramètres!A94="","",Paramètres!A94) -> 3757 | B96: =IF(Paramètres!B94="","",Paramètres!B94) -> Champ bleu 11x17 P/C 50/50 | C96: =IF(Paramètres!C94="","",Paramètres!C94) -> 305 | D96: 37.33333333 | E96: =IF(Paramètres!A94="","",Paramètres!D94) -> chp grd | F96: =IF(Paramètres!E94="","",Paramètres!E94) -> HCALGP_Alèse | G96: 11.38666667 | H96: =SUM(IF((Narlivt!$E$9:$E$6968='Qtité art'!A96),(Narlivt!$H$9:$H$6968)/Narlivt!$H$5)) -> 37.33333333 | L96: =VLOOKUP('Qtité art'!E96,Mixte!$A$12:$CD$32,51,FALSE) -> 2 | M96: =IF(L96=2,Lavage!$I$14) -> 00:03:00 | N96: =VLOOKUP(E96,Mixte!$A$12:$CD$32,73,FALSE) -> 0 | P96: Plat4 | Q96: =IF(L88=2,IF(E96=Mixte!$A$20,50/(Mixte!$AR$20*Mixte!$T$20*Mixte!$V$20))) -> 08:03:10.126
A97: =IF(Paramètres!A95="","",Paramètres!A95) -> 3765 | B97: =IF(Paramètres!B95="","",Paramètres!B95) -> Champ bleu 10x10 P/C 50/50 | C97: =IF(Paramètres!C95="","",Paramètres!C95) -> 184 | D97: 160 | E97: =IF(Paramètres!A95="","",Paramètres!D95) -> chp petit | F97: =IF(Paramètres!E95="","",Paramètres!E95) -> HCALPP_Alèse | G97: 29.44 | H97: =SUM(IF((Narlivt!$E$9:$E$6968='Qtité art'!A97),(Narlivt!$H$9:$H$6968)/Narlivt!$H$5)) -> 160 | L97: =VLOOKUP('Qtité art'!E97,Mixte!$A$12:$CD$32,51,FALSE) -> 2 | M97: =IF(L97=2,Lavage!$I$14) -> 00:03:00 | N97: =VLOOKUP(E97,Mixte!$A$12:$CD$32,73,FALSE) -> 0 | P97: Plat4 | Q97: =IF(L97=2,IF(E97=Mixte!$A$21,50/(Mixte!$AR$21*Mixte!$T$21*Mixte!$V$21))) -> 13:24:38.342
A98: =IF(Paramètres!A96="","",Paramètres!A96) -> 3773 | B98: =IF(Paramètres!B96="","",Paramètres!B96) -> Champ tr bleu 10x10 P/C 50/50 | C98: =IF(Paramètres!C96="","",Paramètres!C96) -> 186 | D98: 11 | E98: =IF(Paramètres!A96="","",Paramètres!D96) -> chp petit | F98: =IF(Paramètres!E96="","",Paramètres!E96) -> HCALPP_Alèse | G98: 2.046 | H98: =SUM(IF((Narlivt!$E$9:$E$6968='Qtité art'!A98),(Narlivt!$H$9:$H$6968)/Narlivt!$H$5)) -> 11 | L98: =VLOOKUP('Qtité art'!E98,Mixte!$A$12:$CD$32,51,FALSE) -> 2 | M98: =IF(L98=2,Lavage!$I$14) -> 00:03:00 | N98: =VLOOKUP(E98,Mixte!$A$12:$CD$32,73,FALSE) -> 0 | P98: Plat4 | Q98: =IF(L98=2,IF(E98=Mixte!$A$21,50/(Mixte!$AR$21*Mixte!$T$21*Mixte!$V$21))) -> 13:24:38.342
A99: =IF(Paramètres!A97="","",Paramètres!A97) -> 3782 | B99: =IF(Paramètres!B97="","",Paramètres!B97) -> Serviette Oeil 60x73 | C99: =IF(Paramètres!C97="","",Paramètres!C97) -> 145 | D99: 287 | E99: =IF(Paramètres!A97="","",Paramètres!D97) -> serv œil | F99: =IF(Paramètres!E97="","",Paramètres!E97) -> RCALPP_inf_8 | G99: 41.615 | H99: =SUM(IF((Narlivt!$E$9:$E$6968='Qtité art'!A99),(Narlivt!$H$9:$H$6968)/Narlivt!$H$5)) -> 287 | L99: =VLOOKUP(E99,PP!$A$12:$CD$27,51,FALSE) -> 1 | M99: =IF(L99=1,Lavage!$I$13) -> 00:01:35 | N99: =VLOOKUP(E99,PP!$A$12:$CD$27,73,FALSE) -> 0 | P99: Plat2 | Q99: =IF(L99=1,IF(E99=PP!A15,(50/PP!AR15*PP!T15*PP!V15))) -> 621929.1823
A100: =IF(Paramètres!A98="","",Paramètres!A98) -> 3784 | B100: =IF(Paramètres!B98="","",Paramètres!B98) -> Champ tr vert 10x10 P/C 50/50 | C100: =IF(Paramètres!C98="","",Paramètres!C98) -> 186 | D100: 1 | E100: =IF(Paramètres!A98="","",Paramètres!D98) -> drap petit | F100: =IF(Paramètres!E98="","",Paramètres!E98) -> HCALGP_Drap | G100: 0.186 | H100: =SUM(IF((Narlivt!$E$9:$E$6968='Qtité art'!A100),(Narlivt!$H$9:$H$6968)/Narlivt!$H$5)) -> 1 | L100: =VLOOKUP('Qtité art'!E100,Mixte!$A$12:$CD$32,51,FALSE) -> 1 | M100: =IF(L100=1,Lavage!$I$13) -> 00:01:35 | N100: =VLOOKUP(E100,Mixte!$A$12:$CD$32,73,FALSE) -> 0 | P100: Plat3 | Q100: =IF(L100=1,IF(E100=GP!$A$12,(50/GP!$AR$12*GP!$T$12*GP!$V$12))) -> 52018.02061
A101: =IF(Paramètres!A99="","",Paramètres!A99) -> 3825 | B101: =IF(Paramètres!B99="","",Paramètres!B99) -> Combi Atlanta gris PC | C101: =IF(Paramètres!C99="","",Paramètres!C99) -> 896 | D101: 4.333333333 | E101: =IF(Paramètres!A99="","",Paramètres!D99) -> VT Séché TF | F101: =IF(Paramètres!E99="","",Paramètres!E99) -> VT_ | G101: 3.882666667 | H101: =SUM(IF((Narlivt!$E$9:$E$6968='Qtité art'!A101),(Narlivt!$H$9:$H$6968)/Narlivt!$H$5)) -> 4.333333333 | L101: =VLOOKUP('Qtité art'!E101,'Pliage main'!$A$12:$CD$27,51,FALSE) -> 2 | M101: =IF(L101=2,Lavage!$I$14) -> 00:03:00 | N101: =VLOOKUP(E101,'Pliage main'!$A$12:$CD$27,73,FALSE) -> 0 | P101: Plat6
A102: =IF(Paramètres!A100="","",Paramètres!A100) -> 3826 | B102: =IF(Paramètres!B100="","",Paramètres!B100) -> Combi Atlanta vert bout. PC | C102: =IF(Paramètres!C100="","",Paramètres!C100) -> 897 | D102: 9.333333333 | E102: =IF(Paramètres!A100="","",Paramètres!D100) -> VT Séché TF | F102: =IF(Paramètres!E100="","",Paramètres!E100) -> VT_ | G102: 8.372 | H102: =SUM(IF((Narlivt!$E$9:$E$6968='Qtité art'!A102),(Narlivt!$H$9:$H$6968)/Narlivt!$H$5)) -> 9.333333333 | L102: =VLOOKUP('Qtité art'!E102,'Pliage main'!$A$12:$CD$27,51,FALSE) -> 2 | M102: =IF(L102=2,Lavage!$I$14) -> 00:03:00 | N102: =VLOOKUP(E102,'Pliage main'!$A$12:$CD$27,73,FALSE) -> 0 | P102: Plat6
A103: =IF(Paramètres!A101="","",Paramètres!A101) -> 3883 | B103: =IF(Paramètres!B101="","",Paramètres!B101) -> Sac plastique incontinent | C103: =IF(Paramètres!C101="","",Paramètres!C101) -> 0 | D103: 41.33333333 | E103: =IF(Paramètres!A101="","",Paramètres!D101) -> Poubelle | F103: =IF(Paramètres!E101="","",Paramètres!E101) -> HSECPM_Santé | G103: 0 | H103: =SUM(IF((Narlivt!$E$9:$E$6968='Qtité art'!A103),(Narlivt!$H$9:$H$6968)/Narlivt!$H$5)) -> 41.33333333 | N103: 2 | O103: =IF(N103=2,Séchage!$D$18) -> 00:22:38.495 | Q103: 12.96848461
A104: =IF(Paramètres!A102="","",Paramètres!A102) -> 3932 | B104: =IF(Paramètres!B102="","",Paramètres!B102) -> Chp tr bleu 20x22 P/C 50/50 | C104: =IF(Paramètres!C102="","",Paramètres!C102) -> 847 | D104: 4.333333333 | E104: =IF(Paramètres!A102="","",Paramètres!D102) -> chp grd | F104: =IF(Paramètres!E102="","",Paramètres!E102) -> HCALGP_Alèse | G104: 3.670333333 | H104: =SUM(IF((Narlivt!$E$9:$E$6968='Qtité art'!A104),(Narlivt!$H$9:$H$6968)/Narlivt!$H$5)) -> 4.333333333 | L104: =VLOOKUP('Qtité art'!E104,Mixte!$A$12:$CD$32,51,FALSE) -> 2 | M104: =IF(L104=2,Lavage!$I$14) -> 00:03:00 | N104: =VLOOKUP(E104,Mixte!$A$12:$CD$32,73,FALSE) -> 0 | P104: Plat4 | Q104: =IF(L96=2,IF(E104=Mixte!$A$20,50/(Mixte!$AR$20*Mixte!$T$20*Mixte!$V$20))) -> 08:03:10.126
A105: =IF(Paramètres!A103="","",Paramètres!A103) -> 3941 | B105: =IF(Paramètres!B103="","",Paramètres!B103) -> Veste Agro blanc 245 g PC 67/33 | C105: =IF(Paramètres!C103="","",Paramètres!C103) -> 540 | D105: 99.66666667 | E105: =IF(Paramètres!A103="","",Paramètres!D103) -> VT Séché TF | F105: =IF(Paramètres!E103="","",Paramètres!E103) -> VT_ | G105: 53.82 | H105: =SUM(IF((Narlivt!$E$9:$E$6968='Qtité art'!A105),(Narlivt!$H$9:$H$6968)/Narlivt!$H$5)) -> 99.66666667 | L105: =VLOOKUP('Qtité art'!E105,'Pliage main'!$A$12:$CD$27,51,FALSE) -> 2 | M105: =IF(L105=2,Lavage!$I$14) -> 00:03:00 | N105: =VLOOKUP(E105,'Pliage main'!$A$12:$CD$27,73,FALSE) -> 0 | P105: Plat6
A106: =IF(Paramètres!A104="","",Paramètres!A104) -> 4066 | B106: =IF(Paramètres!B104="","",Paramètres!B104) -> Serv Tab Plat brdx | C106: =IF(Paramètres!C104="","",Paramètres!C104) -> 48 | D106: 23.33333333 | E106: =IF(Paramètres!A104="","",Paramètres!D104) -> serv tab gde prestige | F106: =IF(Paramètres!E104="","",Paramètres!E104) -> RCALPP_inf_8 | G106: 1.12 | H106: =SUM(IF((Narlivt!$E$9:$E$6968='Qtité art'!A106),(Narlivt!$H$9:$H$6968)/Narlivt!$H$5)) -> 23.33333333 | L106: =VLOOKUP(E106,PP!$A$12:$CD$27,51,FALSE) -> 5 | M106: =IF(L106=5,Lavage!$I$25) -> 01:06:21.565 | N106: =VLOOKUP(E106,PP!$A$12:$CD$27,73,FALSE) -> 0 | P106: Plat2 | Q106: =IF(L106=5,IF(E106=PP!$A$18,100/(PP!$AR$18*PP!$T$18*PP!$V$18))) -> 1.453833581
A107: =IF(Paramètres!A105="","",Paramètres!A105) -> 4117 | B107: =IF(Paramètres!B105="","",Paramètres!B105) -> Nappe Gabriel jaune 12x12 | C107: =IF(Paramètres!C105="","",Paramètres!C105) -> 475 | D107: 3.333333333 | E107: =IF(Paramètres!A105="","",Paramètres!D105) -> nap 12 | F107: =IF(Paramètres!E105="","",Paramètres!E105) -> RCALGP_Pte_Nappe | G107: 1.583333333 | H107: =SUM(IF((Narlivt!$E$9:$E$6968='Qtité art'!A107),(Narlivt!$H$9:$H$6968)/Narlivt!$H$5)) -> 3.333333333 | L107: =VLOOKUP('Qtité art'!E107,Mixte!$A$12:$CD$32,51,FALSE) -> 5 | M107: =IF(L107=5,Lavage!$I$25) -> 01:06:21.565 | N107: =VLOOKUP(E107,Mixte!$A$12:$CD$32,73,FALSE) -> 0 | P107: Plat4 | Q107: =IF(L107=5,IF(E107=Mixte!$A$13,100/(Mixte!$AR$13*Mixte!$T$13*Mixte!$V$13))) -> 10:54:44.552
A108: =IF(Paramètres!A106="","",Paramètres!A106) -> 4211 | B108: =IF(Paramètres!B106="","",Paramètres!B106) -> Drap blc 70x90 NF | C108: =IF(Paramètres!C106="","",Paramètres!C106) -> 140 | D108: 23.33333333 | E108: =IF(Paramètres!A106="","",Paramètres!D106) -> drap petit | F108: =IF(Paramètres!E106="","",Paramètres!E106) -> HCALGP_Drap | G108: 3.266666667 | H108: =SUM(IF((Narlivt!$E$9:$E$6968='Qtité art'!A108),(Narlivt!$H$9:$H$6968)/Narlivt!$H$5)) -> 23.33333333 | L108: =VLOOKUP('Qtité art'!E108,Mixte!$A$12:$CD$32,51,FALSE) -> 1 | M108: =IF(L108=1,Lavage!$I$13) -> 00:01:35 | N108: =VLOOKUP(E108,Mixte!$A$12:$CD$32,73,FALSE) -> 0 | P108: Plat3 | Q108: =IF(L108=1,IF(E108=GP!$A$12,(50/GP!$AR$12*GP!$T$12*GP!$V$12))) -> 52018.02061
A109: =IF(Paramètres!A107="","",Paramètres!A107) -> 4291 | B109: =IF(Paramètres!B107="","",Paramètres!B107) -> Alèse blc 12x17 coton Piq.Rouge NF | C109: =IF(Paramètres!C107="","",Paramètres!C107) -> 530 | D109: 45.66666667 | E109: =IF(Paramètres!A107="","",Paramètres!D107) -> grde al | F109: =IF(Paramètres!E107="","",Paramètres!E107) -> HCALGP_Alèse | G109: 24.20333333 | H109: =SUM(IF((Narlivt!$E$9:$E$6968='Qtité art'!A109),(Narlivt!$H$9:$H$6968)/Narlivt!$H$5)) -> 45.66666667 | L109: =VLOOKUP('Qtité art'!E109,Mixte!$A$12:$CD$32,51,FALSE) -> 1 | M109: =IF(L109=1,Lavage!$I$13) -> 00:01:35 | N109: =VLOOKUP(E109,Mixte!$A$12:$CD$32,73,FALSE) -> 0 | P109: Plat4 | Q109: =IF(L109=1,IF(E109=Mixte!$A$24,(50/Mixte!$AR$24*Mixte!$T$24*Mixte!$V$24))) -> 44170.68477
A110: =IF(Paramètres!A108="","",Paramètres!A108) -> 4359 | B110: =IF(Paramètres!B108="","",Paramètres!B108) -> Chemise Opere blc cordons | C110: =IF(Paramètres!C108="","",Paramètres!C108) -> 406 | D110: 260.3333333 | E110: =IF(Paramètres!A108="","",Paramètres!D108) -> chmal | F110: =IF(Paramètres!E108="","",Paramètres!E108) -> HSECPM_Chem_mal | G110: 105.6953333 | H110: =SUM(IF((Narlivt!$E$9:$E$6968='Qtité art'!A110),(Narlivt!$H$9:$H$6968)/Narlivt!$H$5)) -> 260.3333333 | L110: =VLOOKUP(E110,'Pliage main'!$A$12:$CD$27,51,FALSE) -> 2 | M110: =IF(L110=2,Lavage!$I$14) -> 00:03:00 | N110: =VLOOKUP(E110,PE!$A$12:$CD$27,73,FALSE) -> 2 | O110: =IF(N110=2,Séchage!$D$18) -> 00:22:38.495 | P110: Plat5 | Q110: =IF(L110=2,IF(E110=PE!$A$20,50/(PE!$AR$20*PE!$T$20*PE!$V$20))) -> 14:25:24.301
A111: =IF(Paramètres!A109="","",Paramètres!A109) -> 4652 | B111: =IF(Paramètres!B109="","",Paramètres!B109) -> Couette Navajo 180x230 NF | C111: =IF(Paramètres!C109="","",Paramètres!C109) -> 1800 | D111: 8 | E111: =IF(Paramètres!A109="","",Paramètres!D109) -> couette/couv | F111: =IF(Paramètres!E109="","",Paramètres!E109) -> HSECPM_Couv | G111: 14.4 | H111: =SUM(IF((Narlivt!$E$9:$E$6968='Qtité art'!A111),(Narlivt!$H$9:$H$6968)/Narlivt!$H$5)) -> 8 | L111: =VLOOKUP(E111,'Pliage main'!$A$12:$CD$27,51,FALSE) -> 4 | M111: =IF(L111=4,Lavage!$I$16) -> 01:12:03.140 | N111: =VLOOKUP(E111,'Pliage main'!$A$12:$CD$27,73,FALSE) -> 3 | O111: =IF(N111=3,Séchage!$D$24) -> 00:18:49.947 | P111: Plat6 | Q111: =IF(L111=4,IF(E111='Pliage main'!$A$14,100/('Pliage main'!$AR$14*'Pliage main'!$T$14*'Pliage main'!$V$14))) -> 06:35:29.301
A112: =IF(Paramètres!A110="","",Paramètres!A110) -> 4670 | B112: =IF(Paramètres!B110="","",Paramètres!B110) -> Drap Hous jers blc 40x80 NF | C112: =IF(Paramètres!C110="","",Paramètres!C110) -> 75 | D112: 32.33333333 | E112: =IF(Paramètres!A110="","",Paramètres!D110) -> drap housse | F112: =IF(Paramètres!E110="","",Paramètres!E110) -> HSECPM_Santé | G112: 2.425 | H112: =SUM(IF((Narlivt!$E$9:$E$6968='Qtité art'!A112),(Narlivt!$H$9:$H$6968)/Narlivt!$H$5)) -> 32.33333333 | L112: =VLOOKUP(E112,'Pliage main'!$A$12:$CD$27,51,FALSE) -> 1 | M112: =IF(L112=1,Lavage!$I$13) -> 00:01:35 | N112: =VLOOKUP(E112,'Pliage main'!$A$12:$CD$27,73,FALSE) -> 2 | O112: =IF(N112=2,Séchage!$D$18) -> 00:22:38.495 | P112: Plat6 | Q112: =IF(L112=1,IF(E112='Pliage main'!$A$17,(50/'Pliage main'!$AR$17*'Pliage main'!$T$17*'Pliage main'!$V$17))) -> 43869.5083
A113: =IF(Paramètres!A111="","",Paramètres!A111) -> 4722 | B113: =IF(Paramètres!B111="","",Paramètres!B111) -> Sac Textile Elis Beige Polyester | C113: =IF(Paramètres!C111="","",Paramètres!C111) -> 250 | D113: 252 | E113: =IF(Paramètres!A111="","",Paramètres!D111) -> sac | F113: =IF(Paramètres!E111="","",Paramètres!E111) -> HSECPM_Gant | G113: 63 | H113: =SUM(IF((Narlivt!$E$9:$E$6968='Qtité art'!A113),(Narlivt!$H$9:$H$6968)/Narlivt!$H$5)) -> 252 | L113: =VLOOKUP('Qtité art'!E113,'Pliage main'!$A$12:$CD$27,51,FALSE) -> 5 | M113: =IF(L113=5,Lavage!$I$25) -> 01:06:21.565 | N113: =VLOOKUP(E113,'Pliage main'!$A$12:$CD$27,73,FALSE) -> 0 | P113: Plat6 | Q113: =IF(L113=5,IF(E113='Pliage main'!$A$21,100/('Pliage main'!$AR$21*'Pliage main'!$T$21*'Pliage main'!$V$21))) -> 05:04:34.623
A114: =IF(Paramètres!A112="","",Paramètres!A112) -> 4854 | B114: =IF(Paramètres!B112="","",Paramètres!B112) -> Peignoir Sam COCOON blc | C114: =IF(Paramètres!C112="","",Paramètres!C112) -> 1260 | D114: 63 | E114: =IF(Paramètres!A112="","",Paramètres!D112) -> peignoir/cas | F114: =IF(Paramètres!E112="","",Paramètres!E112) -> HSECPM_Peignoir | G114: 79.38 | H114: =SUM(IF((Narlivt!$E$9:$E$6968='Qtité art'!A114),(Narlivt!$H$9:$H$6968)/Narlivt!$H$5)) -> 63 | L114: =VLOOKUP(E114,'Pliage main'!$A$12:$CD$27,51,FALSE) -> 4 | M114: =IF(L114=4,Lavage!$I$16) -> 01:12:03.140 | N114: =VLOOKUP(E114,'Pliage main'!$A$12:$CD$27,73,FALSE) -> 2 | O114: =IF(N114=2,Séchage!$D$18) -> 00:22:38.495 | P114: Plat6 | Q114: =IF(L114=4,IF(E114='Pliage main'!$A$18,100/('Pliage main'!$AR$18*'Pliage main'!$T$18*'Pliage main'!$V$18))) -> 08:06:24.398
A115: =IF(Paramètres!A113="","",Paramètres!A113) -> 4945 | B115: =IF(Paramètres!B113="","",Paramètres!B113) -> Serv Tab Bistrot blanc | C115: =IF(Paramètres!C113="","",Paramètres!C113) -> 55 | D115: 1623.333333 | E115: =IF(Paramètres!A113="","",Paramètres!D113) -> serv tab pte | F115: =IF(Paramètres!E113="","",Paramètres!E113) -> RCALPP_inf_8 | G115: 89.28333333 | H115: =SUM(IF((Narlivt!$E$9:$E$6968='Qtité art'!A115),(Narlivt!$H$9:$H$6968)/Narlivt!$H$5)) -> 1623.333333 | L115: =VLOOKUP(E115,PP!$A$12:$CD$27,51,FALSE) -> 5 | M115: =IF(L115=5,Lavage!$I$25) -> 01:06:21.565 | N115: =VLOOKUP(E115,PP!$A$12:$CD$27,73,FALSE) -> 0 | P115: Plat2 | Q115: =IF(L115=5,IF(E115=PP!$A$17,100/(PP!$AR$17*PP!$T$17*PP!$V$17))) -> 18:22:14.361
A116: =IF(Paramètres!A114="","",Paramètres!A114) -> 5001 | B116: =IF(Paramètres!B114="","",Paramètres!B114) -> Essuie-verres coton 53x66 | C116: =IF(Paramètres!C114="","",Paramètres!C114) -> 90 | D116: 358.6666667 | E116: =IF(Paramètres!A114="","",Paramètres!D114) -> torchon | F116: =IF(Paramètres!E114="","",Paramètres!E114) -> RCALPP_inf_8 | G116: 32.28 | H116: =SUM(IF((Narlivt!$E$9:$E$6968='Qtité art'!A116),(Narlivt!$H$9:$H$6968)/Narlivt!$H$5)) -> 358.6666667 | L116: =VLOOKUP(E116,PP!$A$12:$CD$27,51,FALSE) -> 1 | M116: =IF(L116=1,Lavage!$I$13) -> 00:01:35 | N116: =VLOOKUP(E116,PP!$A$12:$CD$27,73,FALSE) -> 1 | O116: =IF(N116=1,Séchage!$D$12) -> 00:04:47.238 | P116: Plat2 | Q116: =IF(L116=1,IF(E116=PP!$A$20,(50/PP!$AR$20*PP!$T$20*PP!$V$20))) -> 1179513.317
A117: =IF(Paramètres!A115="","",Paramètres!A115) -> 5013 | B117: =IF(Paramètres!B115="","",Paramètres!B115) -> Tablier de salle blc | C117: =IF(Paramètres!C115="","",Paramètres!C115) -> 197 | D117: 36.66666667 | E117: =IF(Paramètres!A115="","",Paramètres!D115) -> tablier blanc | F117: =IF(Paramètres!E115="","",Paramètres!E115) -> RCALPP_inf_8 | G117: 7.223333333 | H117: =SUM(IF((Narlivt!$E$9:$E$6968='Qtité art'!A117),(Narlivt!$H$9:$H$6968)/Narlivt!$H$5)) -> 36.66666667 | L117: =VLOOKUP(E117,PP!$A$12:$CD$27,51,FALSE) -> 1 | M117: =IF(L117=1,Lavage!$I$13) -> 00:01:35 | N117: =VLOOKUP(E117,PP!$A$12:$CD$27,73,FALSE) -> 2 | O117: =IF(N117=2,Séchage!$D$18) -> 00:22:38.495 | P117: Plat2 | Q117: =IF(L117=1,IF(E117=PP!$A$22,(50/PP!$AR$22*PP!$T$22*PP!$V$22))) -> 127931.7344
A118: =IF(Paramètres!A116="","",Paramètres!A116) -> 5093 | B118: =IF(Paramètres!B116="","",Paramètres!B116) -> Nappe Platine brdx 12x12 | C118: =IF(Paramètres!C116="","",Paramètres!C116) -> 370 | D118: 22.66666667 | E118: =IF(Paramètres!A116="","",Paramètres!D116) -> nap 12 | F118: =IF(Paramètres!E116="","",Paramètres!E116) -> RCALGP_Pte_Nappe | G118: 8.386666667 | H118: =SUM(IF((Narlivt!$E$9:$E$6968='Qtité art'!A118),(Narlivt!$H$9:$H$6968)/Narlivt!$H$5)) -> 22.66666667 | L118: =VLOOKUP('Qtité art'!E118,Mixte!$A$12:$CD$32,51,FALSE) -> 5 | M118: =IF(L118=5,Lavage!$I$25) -> 01:06:21.565 | N118: =VLOOKUP(E118,Mixte!$A$12:$CD$32,73,FALSE) -> 0 | P118: Plat4 | Q118: =IF(L118=5,IF(E118=Mixte!$A$13,100/(Mixte!$AR$13*Mixte!$T$13*Mixte!$V$13))) -> 10:54:44.552
A119: =IF(Paramètres!A117="","",Paramètres!A117) -> 5106 | B119: =IF(Paramètres!B117="","",Paramètres!B117) -> Nappe Platine brdx 12x15 | C119: =IF(Paramètres!C117="","",Paramètres!C117) -> 445 | D119: 6.666666667 | E119: =IF(Paramètres!A117="","",Paramètres!D117) -> nap 12 | F119: =IF(Paramètres!E117="","",Paramètres!E117) -> RCALGP_Pte_Nappe | G119: 2.966666667 | H119: =SUM(IF((Narlivt!$E$9:$E$6968='Qtité art'!A119),(Narlivt!$H$9:$H$6968)/Narlivt!$H$5)) -> 6.666666667 | L119: =VLOOKUP('Qtité art'!E119,Mixte!$A$12:$CD$32,51,FALSE) -> 5 | M119: =IF(L119=5,Lavage!$I$25) -> 01:06:21.565 | N119: =VLOOKUP(E119,Mixte!$A$12:$CD$32,73,FALSE) -> 0 | P119: Plat4 | Q119: =IF(L119=5,IF(E119=Mixte!$A$13,100/(Mixte!$AR$13*Mixte!$T$13*Mixte!$V$13))) -> 10:54:44.552
A120: =IF(Paramètres!A118="","",Paramètres!A118) -> 5337 | B120: =IF(Paramètres!B118="","",Paramètres!B118) -> Hous trav Pt blc 40x135 NF | C120: =IF(Paramètres!C118="","",Paramètres!C118) -> 150 | D120: 4031.666667 | E120: =IF(Paramètres!A118="","",Paramètres!D118) -> hous trav | F120: =IF(Paramètres!E118="","",Paramètres!E118) -> HCALPP_Taie | G120: 604.75 | H120: =SUM(IF((Narlivt!$E$9:$E$6968='Qtité art'!A120),(Narlivt!$H$9:$H$6968)/Narlivt!$H$5)) -> 4031.666667 | L120: =VLOOKUP('Qtité art'!E120,Mixte!$A$12:$CD$32,51,FALSE) -> 1 | M120: =IF(L120=1,Lavage!$I$13) -> 00:01:35 | N120: =VLOOKUP(E120,Mixte!$A$12:$CD$32,73,FALSE) -> 0 | P120: Plat4 | Q120: =IF(L120=1,IF(E120=Mixte!$A$25,(50/Mixte!$AR$25*Mixte!$T$25*Mixte!$V$25))) -> 198591.3906
A121: =IF(Paramètres!A119="","",Paramètres!A119) -> 5570 | B121: =IF(Paramètres!B119="","",Paramètres!B119) -> Couverture bleu 180x220 NF-2 | C121: =IF(Paramètres!C119="","",Paramètres!C119) -> 1590 | D121: 58.33333333 | E121: =IF(Paramètres!A119="","",Paramètres!D119) -> couette/couv | F121: =IF(Paramètres!E119="","",Paramètres!E119) -> HSECPM_Couv | G121: 92.75 | H121: =SUM(IF((Narlivt!$E$9:$E$6968='Qtité art'!A121),(Narlivt!$H$9:$H$6968)/Narlivt!$H$5)) -> 58.33333333 | L121: =VLOOKUP(E121,'Pliage main'!$A$12:$CD$27,51,FALSE) -> 4 | M121: =IF(L121=4,Lavage!$I$16) -> 01:12:03.140 | N121: =VLOOKUP(E121,'Pliage main'!$A$12:$CD$27,73,FALSE) -> 3 | O121: =IF(N121=3,Séchage!$D$24) -> 00:18:49.947 | P121: Plat6 | Q121: =IF(L121=4,IF(E121='Pliage main'!$A$14,100/('Pliage main'!$AR$14*'Pliage main'!$T$14*'Pliage main'!$V$14))) -> 06:35:29.301
A122: =IF(Paramètres!A120="","",Paramètres!A120) -> 5641 | B122: =IF(Paramètres!B120="","",Paramètres!B120) -> Couette fantaisie 55x80 NF | C122: =IF(Paramètres!C120="","",Paramètres!C120) -> 215 | D122: 1.666666667 | E122: =IF(Paramètres!A120="","",Paramètres!D120) -> couette/couv | F122: =IF(Paramètres!E120="","",Paramètres!E120) -> HSECPM_Couv | G122: 0.3583333333 | H122: =SUM(IF((Narlivt!$E$9:$E$6968='Qtité art'!A122),(Narlivt!$H$9:$H$6968)/Narlivt!$H$5)) -> 1.666666667 | L122: =VLOOKUP(E122,'Pliage main'!$A$12:$CD$27,51,FALSE) -> 4 | M122: =IF(L122=4,Lavage!$I$16) -> 01:12:03.140 | N122: =VLOOKUP(E122,'Pliage main'!$A$12:$CD$27,73,FALSE) -> 3 | O122: =IF(N122=3,Séchage!$D$24) -> 00:18:49.947 | P122: Plat6 | Q122: =IF(L122=4,IF(E122='Pliage main'!$A$14,100/('Pliage main'!$AR$14*'Pliage main'!$T$14*'Pliage main'!$V$14))) -> 06:35:29.301
A123: =IF(Paramètres!A121="","",Paramètres!A121) -> 5729 | B123: =IF(Paramètres!B121="","",Paramètres!B121) -> Alèse absorb rabats 87x87 NF | C123: =IF(Paramètres!C121="","",Paramètres!C121) -> 645 | D123: 636 | E123: =IF(Paramètres!A121="","",Paramètres!D121) -> alése abs | F123: =IF(Paramètres!E121="","",Paramètres!E121) -> HSECPA_Eponge | G123: 410.22 | H123: =SUM(IF((Narlivt!$E$9:$E$6968='Qtité art'!A123),(Narlivt!$H$9:$H$6968)/Narlivt!$H$5)) -> 636 | L123: =VLOOKUP(E123,'Pliage main'!$A$12:$CD$27,51,FALSE) -> 2 | M123: =IF(L123=2,Lavage!$I$14) -> 00:03:00 | N123: =VLOOKUP(E123,PE!$A$12:$CD$27,73,FALSE) -> 2 | O123: =IF(N123=2,Séchage!$D$18) -> 00:22:38.495 | P123: Plat5 | Q123: =IF(L123=2,IF(E123=PE!$A$21,50/(PE!$AR$21*PE!$T$21*PE!$V$21))) -> 02:24:37.087
A124: =IF(Paramètres!A122="","",Paramètres!A122) -> 5734 | B124: =IF(Paramètres!B122="","",Paramètres!B122) -> Protège Matelas Imperm NF | C124: =IF(Paramètres!C122="","",Paramètres!C122) -> 830 | D124: 17 | E124: =IF(Paramètres!A122="","",Paramètres!D122) -> Protège matelas | F124: =IF(Paramètres!E122="","",Paramètres!E122) -> HSECPM_Santé | G124: 14.11 | H124: =SUM(IF((Narlivt!$E$9:$E$6968='Qtité art'!A124),(Narlivt!$H$9:$H$6968)/Narlivt!$H$5)) -> 17 | L124: =VLOOKUP(E124,'Pliage main'!$A$12:$CD$27,51,FALSE) -> 4 | M124: =IF(L124=4,Lavage!$I$16) -> 01:12:03.140 | N124: =VLOOKUP(E124,'Pliage main'!$A$12:$CD$27,73,FALSE) -> 2 | O124: =IF(N124=2,Séchage!$D$18) -> 00:22:38.495 | P124: Plat6 | Q124: =IF(L124=4,IF(E124='Pliage main'!$A$19,100/('Pliage main'!$AR$19*'Pliage main'!$T$19*'Pliage main'!$V$19))) -> 07:02:15.628
A125: =IF(Paramètres!A123="","",Paramètres!A123) -> 5922 | B125: =IF(Paramètres!B123="","",Paramètres!B123) -> Drap ciel 100x165 NF | C125: =IF(Paramètres!C123="","",Paramètres!C123) -> 310 | D125: 53.33333333 | E125: =IF(Paramètres!A123="","",Paramètres!D123) -> drap petit | F125: =IF(Paramètres!E123="","",Paramètres!E123) -> HCALGP_Drap | G125: 16.53333333 | H125: =SUM(IF((Narlivt!$E$9:$E$6968='Qtité art'!A125),(Narlivt!$H$9:$H$6968)/Narlivt!$H$5)) -> 53.33333333 | L125: =VLOOKUP('Qtité art'!E125,Mixte!$A$12:$CD$32,51,FALSE) -> 1 | M125: =IF(L125=1,Lavage!$I$13) -> 00:01:35 | N125: =VLOOKUP(E125,Mixte!$A$12:$CD$32,73,FALSE) -> 0 | P125: Plat3 | Q125: =IF(L125=1,IF(E125=GP!$A$12,(50/GP!$AR$12*GP!$T$12*GP!$V$12))) -> 52018.02061
A126: =IF(Paramètres!A124="","",Paramètres!A124) -> 5948 | B126: =IF(Paramètres!B124="","",Paramètres!B124) -> Veste mat. Agrofreeze blc ss P PC | C126: =IF(Paramètres!C124="","",Paramètres!C124) -> 800 | D126: 13.66666667 | E126: =IF(Paramètres!A124="","",Paramètres!D124) -> VT Séché TF | F126: =IF(Paramètres!E124="","",Paramètres!E124) -> VT_ | G126: 10.93333333 | H126: =SUM(IF((Narlivt!$E$9:$E$6968='Qtité art'!A126),(Narlivt!$H$9:$H$6968)/Narlivt!$H$5)) -> 13.66666667 | L126: =VLOOKUP('Qtité art'!E126,'Pliage main'!$A$12:$CD$27,51,FALSE) -> 2 | M126: =IF(L126=2,Lavage!$I$14) -> 00:03:00 | N126: =VLOOKUP(E126,'Pliage main'!$A$12:$CD$27,73,FALSE) -> 0 | P126: Plat6
A127: =IF(Paramètres!A125="","",Paramètres!A125) -> 6117 | B127: =IF(Paramètres!B125="","",Paramètres!B125) -> Serv Tab SU chmp | C127: =IF(Paramètres!C125="","",Paramètres!C125) -> 90 | D127: 875 | E127: =IF(Paramètres!A125="","",Paramètres!D125) -> serv tab pte | F127: =IF(Paramètres!E125="","",Paramètres!E125) -> RCALPP_inf_8 | G127: 78.75 | H127: =SUM(IF((Narlivt!$E$9:$E$6968='Qtité art'!A127),(Narlivt!$H$9:$H$6968)/Narlivt!$H$5)) -> 875 | L127: =VLOOKUP(E127,PP!$A$12:$CD$27,51,FALSE) -> 5 | M127: =IF(L127=5,Lavage!$I$25) -> 01:06:21.565 | N127: =VLOOKUP(E127,PP!$A$12:$CD$27,73,FALSE) -> 0 | P127: Plat2 | Q127: =IF(L127=5,IF(E127=PP!$A$17,100/(PP!$AR$17*PP!$T$17*PP!$V$17))) -> 18:22:14.361
A128: =IF(Paramètres!A126="","",Paramètres!A126) -> 6122 | B128: =IF(Paramètres!B126="","",Paramètres!B126) -> Nappe SU champ 12x12 | C128: =IF(Paramètres!C126="","",Paramètres!C126) -> 380 | D128: 126 | E128: =IF(Paramètres!A126="","",Paramètres!D126) -> nap 12 | F128: =IF(Paramètres!E126="","",Paramètres!E126) -> RCALGP_Pte_Nappe | G128: 47.88 | H128: =SUM(IF((Narlivt!$E$9:$E$6968='Qtité art'!A128),(Narlivt!$H$9:$H$6968)/Narlivt!$H$5)) -> 126 | L128: =VLOOKUP('Qtité art'!E128,Mixte!$A$12:$CD$32,51,FALSE) -> 5 | M128: =IF(L128=5,Lavage!$I$25) -> 01:06:21.565 | N128: =VLOOKUP(E128,Mixte!$A$12:$CD$32,73,FALSE) -> 0 | P128: Plat4 | Q128: =IF(L128=5,IF(E128=Mixte!$A$13,100/(Mixte!$AR$13*Mixte!$T$13*Mixte!$V$13))) -> 10:54:44.552
A129: =IF(Paramètres!A127="","",Paramètres!A127) -> 6124 | B129: =IF(Paramètres!B127="","",Paramètres!B127) -> Nappe SU champ 15x15 | C129: =IF(Paramètres!C127="","",Paramètres!C127) -> 764 | D129: 19 | E129: =IF(Paramètres!A127="","",Paramètres!D127) -> nap 15 + 18 | F129: =IF(Paramètres!E127="","",Paramètres!E127) -> RCALGP_Grde_Nappe | G129: 14.516 | H129: =SUM(IF((Narlivt!$E$9:$E$6968='Qtité art'!A129),(Narlivt!$H$9:$H$6968)/Narlivt!$H$5)) -> 19 | L129: =VLOOKUP('Qtité art'!E129,Mixte!$A$12:$CD$32,51,FALSE) -> 5 | M129: =IF(L129=5,Lavage!$I$25) -> 01:06:21.565 | N129: =VLOOKUP(E129,Mixte!$A$12:$CD$32,73,FALSE) -> 0 | P129: Plat4 | Q129: =IF(L129=5,IF(E129=Mixte!$A$14,100/(Mixte!$AR$14*Mixte!$T$14*Mixte!$V$14))) -> 07:58:20.750
A130: =IF(Paramètres!A128="","",Paramètres!A128) -> 6127 | B130: =IF(Paramètres!B128="","",Paramètres!B128) -> Nappe SU champ 15x20 | C130: =IF(Paramètres!C128="","",Paramètres!C128) -> 1006 | D130: 11.33333333 | E130: =IF(Paramètres!A128="","",Paramètres!D128) -> nap 20 | F130: =IF(Paramètres!E128="","",Paramètres!E128) -> RCALGP_Grde_Nappe | G130: 11.40133333 | H130: =SUM(IF((Narlivt!$E$9:$E$6968='Qtité art'!A130),(Narlivt!$H$9:$H$6968)/Narlivt!$H$5)) -> 11.33333333 | L130: =VLOOKUP('Qtité art'!E130,Mixte!$A$12:$CD$32,51,FALSE) -> 5 | M130: =IF(L130=5,Lavage!$I$25) -> 01:06:21.565 | N130: =VLOOKUP(E130,Mixte!$A$12:$CD$32,73,FALSE) -> 0 | P130: Plat4 | Q130: =IF(L130=5,IF(E130=Mixte!$A$15,100/(Mixte!$AR$15*Mixte!$T$15*Mixte!$V$15))) -> 07:27:41.084
A131: =IF(Paramètres!A129="","",Paramètres!A129) -> 6128 | B131: =IF(Paramètres!B129="","",Paramètres!B129) -> Nappe SU champ 18x18 | C131: =IF(Paramètres!C129="","",Paramètres!C129) -> 820 | D131: 0.3333333333 | E131: =IF(Paramètres!A129="","",Paramètres!D129) -> Nap 15 + 18 | F131: =IF(Paramètres!E129="","",Paramètres!E129) -> RCALGP_Grde_Nappe | G131: 0.2733333333 | H131: =SUM(IF((Narlivt!$E$9:$E$6968='Qtité art'!A131),(Narlivt!$H$9:$H$6968)/Narlivt!$H$5)) -> 0.3333333333 | L131: =VLOOKUP('Qtité art'!E131,Mixte!$A$12:$CD$32,51,FALSE) -> 5 | M131: =IF(L131=5,Lavage!$I$25) -> 01:06:21.565 | N131: =VLOOKUP(E131,Mixte!$A$12:$CD$32,73,FALSE) -> 0 | P131: Plat4 | Q131: =IF(L131=5,IF(E131=Mixte!$A$14,100/(Mixte!$AR$14*Mixte!$T$14*Mixte!$V$14))) -> 07:58:20.750
A132: =IF(Paramètres!A130="","",Paramètres!A130) -> 6178 | B132: =IF(Paramètres!B130="","",Paramètres!B130) -> Serv Tab SU jaune | C132: =IF(Paramètres!C130="","",Paramètres!C130) -> 101 | D132: 355 | E132: =IF(Paramètres!A130="","",Paramètres!D130) -> serv tab pte | F132: =IF(Paramètres!E130="","",Paramètres!E130) -> RCALPP_inf_8 | G132: 35.855 | H132: =SUM(IF((Narlivt!$E$9:$E$6968='Qtité art'!A132),(Narlivt!$H$9:$H$6968)/Narlivt!$H$5)) -> 355 | L132: =VLOOKUP(E132,PP!$A$12:$CD$27,51,FALSE) -> 5 | M132: =IF(L132=5,Lavage!$I$25) -> 01:06:21.565 | N132: =VLOOKUP(E132,PP!$A$12:$CD$27,73,FALSE) -> 0 | P132: Plat2 | Q132: =IF(L132=5,IF(E132=PP!$A$17,100/(PP!$AR$17*PP!$T$17*PP!$V$17))) -> 18:22:14.361
A133: =IF(Paramètres!A131="","",Paramètres!A131) -> 6179 | B133: =IF(Paramètres!B131="","",Paramètres!B131) -> Napperon SU jaune 9x9 | C133: =IF(Paramètres!C131="","",Paramètres!C131) -> 261 | D133: 3.333333333 | E133: =IF(Paramètres!A131="","",Paramètres!D131) -> npr | F133: =IF(Paramètres!E131="","",Paramètres!E131) -> RCALPP_sup_8 | G133: 0.87 | H133: =SUM(IF((Narlivt!$E$9:$E$6968='Qtité art'!A133),(Narlivt!$H$9:$H$6968)/Narlivt!$H$5)) -> 3.333333333 | L133: =VLOOKUP('Qtité art'!E133,Mixte!$A$12:$CD$32,51,FALSE) -> 5 | M133: =IF(L133=5,Lavage!$I$25) -> 01:06:21.565 | N133: =VLOOKUP(E133,Mixte!$A$12:$CD$32,73,FALSE) -> 0 | P133: Plat4 | Q133: =IF(L133=5,IF(E133=Mixte!$A$18,100/(Mixte!$AR$18*Mixte!$T$18*Mixte!$V$18))) -> 22:24:25.755
A134: =IF(Paramètres!A132="","",Paramètres!A132) -> 6182 | B134: =IF(Paramètres!B132="","",Paramètres!B132) -> Nappe SU jaune 12x12 | C134: =IF(Paramètres!C132="","",Paramètres!C132) -> 429 | D134: 6 | E134: =IF(Paramètres!A132="","",Paramètres!D132) -> nap 12 | F134: =IF(Paramètres!E132="","",Paramètres!E132) -> RCALGP_Pte_Nappe | G134: 2.574 | H134: =SUM(IF((Narlivt!$E$9:$E$6968='Qtité art'!A134),(Narlivt!$H$9:$H$6968)/Narlivt!$H$5)) -> 6 | L134: =VLOOKUP('Qtité art'!E134,Mixte!$A$12:$CD$32,51,FALSE) -> 5 | M134: =IF(L134=5,Lavage!$I$25) -> 01:06:21.565 | N134: =VLOOKUP(E134,Mixte!$A$12:$CD$32,73,FALSE) -> 0 | P134: Plat4 | Q134: =IF(L134=5,IF(E134=Mixte!$A$13,100/(Mixte!$AR$13*Mixte!$T$13*Mixte!$V$13))) -> 10:54:44.552
A135: =IF(Paramètres!A133="","",Paramètres!A133) -> 6184 | B135: =IF(Paramètres!B133="","",Paramètres!B133) -> Nappe SU jaune 15x15 | C135: =IF(Paramètres!C133="","",Paramètres!C133) -> 664 | D135: 8.333333333 | E135: =IF(Paramètres!A133="","",Paramètres!D133) -> nap 15 + 18 | F135: =IF(Paramètres!E133="","",Paramètres!E133) -> RCALGP_Grde_Nappe | G135: 5.533333333 | H135: =SUM(IF((Narlivt!$E$9:$E$6968='Qtité art'!A135),(Narlivt!$H$9:$H$6968)/Narlivt!$H$5)) -> 8.333333333 | L135: =VLOOKUP('Qtité art'!E135,Mixte!$A$12:$CD$32,51,FALSE) -> 5 | M135: =IF(L135=5,Lavage!$I$25) -> 01:06:21.565 | N135: =VLOOKUP(E135,Mixte!$A$12:$CD$32,73,FALSE) -> 0 | P135: Plat4 | Q135: =IF(L135=5,IF(E135=Mixte!$A$14,100/(Mixte!$AR$14*Mixte!$T$14*Mixte!$V$14))) -> 07:58:20.750
A136: =IF(Paramètres!A134="","",Paramètres!A134) -> 6185 | B136: =IF(Paramètres!B134="","",Paramètres!B134) -> Nappe SU jaune 15x20 | C136: =IF(Paramètres!C134="","",Paramètres!C134) -> 876 | D136: 1 | E136: =IF(Paramètres!A134="","",Paramètres!D134) -> nap 20 | F136: =IF(Paramètres!E134="","",Paramètres!E134) -> RCALGP_Grde_Nappe | G136: 0.876 | H136: =SUM(IF((Narlivt!$E$9:$E$6968='Qtité art'!A136),(Narlivt!$H$9:$H$6968)/Narlivt!$H$5)) -> 1 | L136: =VLOOKUP('Qtité art'!E136,Mixte!$A$12:$CD$32,51,FALSE) -> 5 | M136: =IF(L136=5,Lavage!$I$25) -> 01:06:21.565 | N136: =VLOOKUP(E136,Mixte!$A$12:$CD$32,73,FALSE) -> 0 | P136: Plat4 | Q136: =IF(L136=5,IF(E136=Mixte!$A$15,100/(Mixte!$AR$15*Mixte!$T$15*Mixte!$V$15))) -> 07:27:41.084
A137: =IF(Paramètres!A135="","",Paramètres!A135) -> 6238 | B137: =IF(Paramètres!B135="","",Paramètres!B135) -> Nappe SU champ 12x15 | C137: =IF(Paramètres!C135="","",Paramètres!C135) -> 610 | D137: =IF(E137=0,0,H137*(1+I137)+J137) -> 26.33333333 | E137: =IF(Paramètres!A135="","",Paramètres!D135) -> nap 15 + 18 | F137: =IF(Paramètres!E135="","",Paramètres!E135) -> RCALGP_Grde_Nappe | G137: =IF(B137="",0,D137*C137/1000) -> 16.06333333 | H137: =SUM(IF((Narlivt!$E$9:$E$6968='Qtité art'!A137),(Narlivt!$H$9:$H$6968)/Narlivt!$H$5)) -> 26.33333333 | L137: =VLOOKUP('Qtité art'!E137,Mixte!$A$12:$CD$32,51,FALSE) -> 5 | M137: =IF(L137=5,Lavage!$I$25) -> 01:06:21.565 | N137: =VLOOKUP(E137,Mixte!$A$12:$CD$32,73,FALSE) -> 0 | P137: Plat4 | Q137: =IF(L137=5,IF(E137=Mixte!$A$14,100/(Mixte!$AR$14*Mixte!$T$14*Mixte!$V$14))) -> 07:58:20.750
A138: =IF(Paramètres!A136="","",Paramètres!A136) -> 6243 | B138: =IF(Paramètres!B136="","",Paramètres!B136) -> Nappe SU jaune 12x15 | C138: =IF(Paramètres!C136="","",Paramètres!C136) -> 531 | D138: 3 | E138: =IF(Paramètres!A136="","",Paramètres!D136) -> nap 15 + 18 | F138: =IF(Paramètres!E136="","",Paramètres!E136) -> RCALGP_Grde_Nappe | G138: 1.593 | H138: =SUM(IF((Narlivt!$E$9:$E$6968='Qtité art'!A138),(Narlivt!$H$9:$H$6968)/Narlivt!$H$5)) -> 3 | L138: =VLOOKUP('Qtité art'!E138,Mixte!$A$12:$CD$32,51,FALSE) -> 5 | M138: =IF(L138=5,Lavage!$I$25) -> 01:06:21.565 | N138: =VLOOKUP(E138,Mixte!$A$12:$CD$32,73,FALSE) -> 0 | P138: Plat4 | Q138: =IF(L138=5,IF(E138=Mixte!$A$14,100/(Mixte!$AR$14*Mixte!$T$14*Mixte!$V$14))) -> 07:58:20.750
A139: =IF(Paramètres!A137="","",Paramètres!A137) -> 6265 | B139: =IF(Paramètres!B137="","",Paramètres!B137) -> Drap ambu blc XL 155x240 NF | C139: =IF(Paramètres!C137="","",Paramètres!C137) -> 554 | D139: 1439 | E139: =IF(Paramètres!A137="","",Paramètres!D137) -> Drap ambulatoire | F139: =IF(Paramètres!E137="","",Paramètres!E137) -> HCALGP_Drap | G139: 797.206 | H139: =SUM(IF((Narlivt!$E$9:$E$6968='Qtité art'!A139),(Narlivt!$H$9:$H$6968)/Narlivt!$H$5)) -> 1439 | L139: =VLOOKUP('Qtité art'!E139,Mixte!$A$12:$CD$32,51,FALSE) -> 2 | M139: =IF(L139=2,Lavage!$I$14) -> 00:03:00 | N139: =VLOOKUP(E139,Mixte!$A$12:$CD$32,73,FALSE) -> 0 | P139: Plat4 | Q139: =IF(L139=2,IF(E139=Mixte!$A$23,50/(Mixte!$AR$23*Mixte!$T$20*Mixte!$V$23))) -> 05:38:42.097
A140: =IF(Paramètres!A138="","",Paramètres!A138) -> 6267 | B140: =IF(Paramètres!B138="","",Paramètres!B138) -> Alese chariot blc NF | C140: =IF(Paramètres!C138="","",Paramètres!C138) -> 410 | D140: 1984.333333 | E140: =IF(Paramètres!A138="","",Paramètres!D138) -> pte al | F140: =IF(Paramètres!E138="","",Paramètres!E138) -> HCALPP_Alèse | G140: 813.5766667 | H140: =SUM(IF((Narlivt!$E$9:$E$6968='Qtité art'!A140),(Narlivt!$H$9:$H$6968)/Narlivt!$H$5)) -> 1984.333333 | L140: =VLOOKUP('Qtité art'!E140,Mixte!$A$12:$CD$32,51,FALSE) -> 2 | M140: =IF(L140=2,Lavage!$I$14) -> 00:03:00 | N140: =VLOOKUP(E140,Mixte!$A$12:$CD$32,73,FALSE) -> 0 | P140: Plat4 | Q140: =IF(L140=2,IF(E140=Mixte!$A$26,50/(Mixte!$AR$26*Mixte!$T$26*Mixte!$V$26))) -> 05:07:50.372
A141: =IF(Paramètres!A139="","",Paramètres!A139) -> 6268 | B141: =IF(Paramètres!B139="","",Paramètres!B139) -> Bavoir adulte absorb | C141: =IF(Paramètres!C139="","",Paramètres!C139) -> 175 | D141: 2763.333333 | E141: =IF(Paramètres!A139="","",Paramètres!D139) -> Bavoir | F141: =IF(Paramètres!E139="","",Paramètres!E139) -> HSECPM_Santé | G141: 483.5833333 | H141: =SUM(IF((Narlivt!$E$9:$E$6968='Qtité art'!A141),(Narlivt!$H$9:$H$6968)/Narlivt!$H$5)) -> 2763.333333 | L141: =VLOOKUP(E141,PE!$A$12:$CD$27,51,FALSE) -> 2 | M141: =IF(L141=2,Lavage!$I$14) -> 00:03:00 | N141: =VLOOKUP(E141,PE!$A$12:$CD$27,73,FALSE) -> 2 | O141: =IF(N141=2,Séchage!$D$18) -> 00:22:38.495 | P141: Plat5 | Q141: =IF(L141=2,IF(E141=PE!$A$22,50/(PE!$AR$22*PE!$T$22*PE!$V$22))) -> 08:34:36.886
A142: =IF(Paramètres!A140="","",Paramètres!A140) -> 6271 | B142: =IF(Paramètres!B140="","",Paramètres!B140) -> Alese absorb NF | C142: =IF(Paramètres!C140="","",Paramètres!C140) -> 565 | D142: 1324.333333 | E142: =IF(Paramètres!A140="","",Paramètres!D140) -> alése abs | F142: =IF(Paramètres!E140="","",Paramètres!E140) -> HSECPA_Eponge | G142: 748.2483333 | H142: =SUM(IF((Narlivt!$E$9:$E$6968='Qtité art'!A142),(Narlivt!$H$9:$H$6968)/Narlivt!$H$5)) -> 1324.333333 | L142: =VLOOKUP(E142,'Pliage main'!$A$12:$CD$27,51,FALSE) -> 2 | M142: =IF(L142=2,Lavage!$I$14) -> 00:03:00 | N142: =VLOOKUP(E142,PE!$A$12:$CD$27,73,FALSE) -> 2 | O142: =IF(N142=2,Séchage!$D$18) -> 00:22:38.495 | P142: Plat5 | Q142: =IF(L142=2,IF(E142=PE!$A$21,50/(PE!$AR$21*PE!$T$21*PE!$V$21))) -> 02:24:37.087
A143: =IF(Paramètres!A141="","",Paramètres!A141) -> 6418 | B143: =IF(Paramètres!B141="","",Paramètres!B141) -> Pant.H Agro blc PC 67/33 | C143: =IF(Paramètres!C141="","",Paramètres!C141) -> 512 | D143: 6.666666667 | E143: =IF(Paramètres!A141="","",Paramètres!D141) -> VT Séché TF | F143: =IF(Paramètres!E141="","",Paramètres!E141) -> VT_ | G143: 3.413333333 | H143: =SUM(IF((Narlivt!$E$9:$E$6968='Qtité art'!A143),(Narlivt!$H$9:$H$6968)/Narlivt!$H$5)) -> 6.666666667 | L143: =VLOOKUP('Qtité art'!E143,'Pliage main'!$A$12:$CD$27,51,FALSE) -> 2 | M143: =IF(L143=2,Lavage!$I$14) -> 00:03:00 | N143: =VLOOKUP(E143,'Pliage main'!$A$12:$CD$27,73,FALSE) -> 0 | P143: Plat6
A144: =IF(Paramètres!A142="","",Paramètres!A142) -> 6531 | B144: =IF(Paramètres!B142="","",Paramètres!B142) -> Taie Car Clas aqua 60x60 VPDF NF | C144: =IF(Paramètres!C142="","",Paramètres!C142) -> 177 | D144: 51.33333333 | E144: =IF(Paramètres!A142="","",Paramètres!D142) -> taie carrée | F144: =IF(Paramètres!E142="","",Paramètres!E142) -> HCALPP_Taie | G144: 9.086 | H144: =SUM(IF((Narlivt!$E$9:$E$6968='Qtité art'!A144),(Narlivt!$H$9:$H$6968)/Narlivt!$H$5)) -> 51.33333333 | L144: =VLOOKUP(E144,PP!$A$12:$CD$27,51,FALSE) -> 1 | M144: =IF(L144=1,Lavage!$I$13) -> 00:01:35 | N144: =VLOOKUP(E144,PP!$A$12:$CD$27,73,FALSE) -> 1 | O144: =IF(N144=1,Séchage!$D$12) -> 00:04:47.238 | P144: Plat2 | Q144: =IF(L144=1,IF(E144=PP!$A$14,(50/PP!$AR$14*PP!$T$14*PP!$V$14))) -> 357762.4481
A145: =IF(Paramètres!A143="","",Paramètres!A143) -> 6735 | B145: =IF(Paramètres!B143="","",Paramètres!B143) -> Nappe BS blc 12x12 | C145: =IF(Paramètres!C143="","",Paramètres!C143) -> 405 | D145: 143.6666667 | E145: =IF(Paramètres!A143="","",Paramètres!D143) -> nap 12 | F145: =IF(Paramètres!E143="","",Paramètres!E143) -> RCALGP_Pte_Nappe | G145: 58.185 | H145: =SUM(IF((Narlivt!$E$9:$E$6968='Qtité art'!A145),(Narlivt!$H$9:$H$6968)/Narlivt!$H$5)) -> 143.6666667 | L145: =VLOOKUP('Qtité art'!E145,Mixte!$A$12:$CD$32,51,FALSE) -> 5 | M145: =IF(L145=5,Lavage!$I$25) -> 01:06:21.565 | N145: =VLOOKUP(E145,Mixte!$A$12:$CD$32,73,FALSE) -> 0 | P145: Plat4 | Q145: =IF(L145=5,IF(E145=Mixte!$A$13,100/(Mixte!$AR$13*Mixte!$T$13*Mixte!$V$13))) -> 10:54:44.552
A146: =IF(Paramètres!A144="","",Paramètres!A144) -> 6736 | B146: =IF(Paramètres!B144="","",Paramètres!B144) -> Nappe BS blc 12x15 | C146: =IF(Paramètres!C144="","",Paramètres!C144) -> 524 | D146: 38 | E146: =IF(Paramètres!A144="","",Paramètres!D144) -> nap 15 + 18 | F146: =IF(Paramètres!E144="","",Paramètres!E144) -> RCALGP_Grde_Nappe | G146: 19.912 | H146: =SUM(IF((Narlivt!$E$9:$E$6968='Qtité art'!A146),(Narlivt!$H$9:$H$6968)/Narlivt!$H$5)) -> 38 | L146: =VLOOKUP('Qtité art'!E146,Mixte!$A$12:$CD$32,51,FALSE) -> 5 | M146: =IF(L146=5,Lavage!$I$25) -> 01:06:21.565 | N146: =VLOOKUP(E146,Mixte!$A$12:$CD$32,73,FALSE) -> 0 | P146: Plat4 | Q146: =IF(L146=5,IF(E146=Mixte!$A$14,100/(Mixte!$AR$14*Mixte!$T$14*Mixte!$V$14))) -> 07:58:20.750
A147: =IF(Paramètres!A145="","",Paramètres!A145) -> 6739 | B147: =IF(Paramètres!B145="","",Paramètres!B145) -> Nappe BS blc 15x15 | C147: =IF(Paramètres!C145="","",Paramètres!C145) -> 656 | D147: 242.6666667 | E147: =IF(Paramètres!A145="","",Paramètres!D145) -> nap 15 + 18 | F147: =IF(Paramètres!E145="","",Paramètres!E145) -> RCALGP_Grde_Nappe | G147: 159.1893333 | H147: =SUM(IF((Narlivt!$E$9:$E$6968='Qtité art'!A147),(Narlivt!$H$9:$H$6968)/Narlivt!$H$5)) -> 242.6666667 | L147: =VLOOKUP('Qtité art'!E147,Mixte!$A$12:$CD$32,51,FALSE) -> 5 | M147: =IF(L147=5,Lavage!$I$25) -> 01:06:21.565 | N147: =VLOOKUP(E147,Mixte!$A$12:$CD$32,73,FALSE) -> 0 | P147: Plat4 | Q147: =IF(L147=5,IF(E147=Mixte!$A$14,100/(Mixte!$AR$14*Mixte!$T$14*Mixte!$V$14))) -> 07:58:20.750
A148: =IF(Paramètres!A146="","",Paramètres!A146) -> 6742 | B148: =IF(Paramètres!B146="","",Paramètres!B146) -> Nappe BS blc 15x20 | C148: =IF(Paramètres!C146="","",Paramètres!C146) -> 867 | D148: 144.6666667 | E148: =IF(Paramètres!A146="","",Paramètres!D146) -> nap 15 + 18 | F148: =IF(Paramètres!E146="","",Paramètres!E146) -> RCALGP_Grde_Nappe | G148: 125.426 | H148: =SUM(IF((Narlivt!$E$9:$E$6968='Qtité art'!A148),(Narlivt!$H$9:$H$6968)/Narlivt!$H$5)) -> 144.6666667 | L148: =VLOOKUP('Qtité art'!E148,Mixte!$A$12:$CD$32,51,FALSE) -> 5 | M148: =IF(L148=5,Lavage!$I$25) -> 01:06:21.565 | N148: =VLOOKUP(E148,Mixte!$A$12:$CD$32,73,FALSE) -> 0 | P148: Plat4 | Q148: =IF(L148=5,IF(E148=Mixte!$A$14,100/(Mixte!$AR$14*Mixte!$T$14*Mixte!$V$14))) -> 07:58:20.750
A149: =IF(Paramètres!A147="","",Paramètres!A147) -> 6749 | B149: =IF(Paramètres!B147="","",Paramètres!B147) -> Napperon BS 8x8 blc | C149: =IF(Paramètres!C147="","",Paramètres!C147) -> 170 | D149: 307 | E149: =IF(Paramètres!A147="","",Paramètres!D147) -> npr | F149: =IF(Paramètres!E147="","",Paramètres!E147) -> RCALPP_sup_8 | G149: 52.19 | H149: =SUM(IF((Narlivt!$E$9:$E$6968='Qtité art'!A149),(Narlivt!$H$9:$H$6968)/Narlivt!$H$5)) -> 307 | L149: =VLOOKUP('Qtité art'!E149,Mixte!$A$12:$CD$32,51,FALSE) -> 5 | M149: =IF(L149=5,Lavage!$I$25) -> 01:06:21.565 | N149: =VLOOKUP(E149,Mixte!$A$12:$CD$32,73,FALSE) -> 0 | P149: Plat4 | Q149: =IF(L149=5,IF(E149=Mixte!$A$18,100/(Mixte!$AR$18*Mixte!$T$18*Mixte!$V$18))) -> 22:24:25.755
A150: =IF(Paramètres!A148="","",Paramètres!A148) -> 6770 | B150: =IF(Paramètres!B148="","",Paramètres!B148) -> Desus Lit Milizac 18x26 CatA | C150: =IF(Paramètres!C148="","",Paramètres!C148) -> 1053 | D150: 44.66666667 | E150: =IF(Paramètres!A148="","",Paramètres!D148) -> des lit | F150: =IF(Paramètres!E148="","",Paramètres!E148) -> HCALGP_HC | G150: 47.034 | H150: =SUM(IF((Narlivt!$E$9:$E$6968='Qtité art'!A150),(Narlivt!$H$9:$H$6968)/Narlivt!$H$5)) -> 44.66666667 | L150: =VLOOKUP('Qtité art'!E150,Mixte!$A$12:$CD$32,51,FALSE) -> 4 | M150: =IF(L150=4,Lavage!$I$16) -> 01:12:03.140 | N150: =VLOOKUP(E150,Mixte!$A$12:$CD$32,73,FALSE) -> 0 | P150: Plat4 | Q150: =IF(L150=4,IF(E150=Mixte!$A$28,100/(Mixte!$AR$28*Mixte!$T$28*Mixte!$V$28))) -> 06:46:41.557
A151: =IF(Paramètres!A149="","",Paramètres!A149) -> 6820 | B151: =IF(Paramètres!B149="","",Paramètres!B149) -> Serv Tab.BS blanc 58x58 | C151: =IF(Paramètres!C149="","",Paramètres!C149) -> 70 | D151: 5023.333333 | E151: =IF(Paramètres!A149="","",Paramètres!D149) -> serv tab pte | F151: =IF(Paramètres!E149="","",Paramètres!E149) -> RCALPP_inf_8 | G151: 351.6333333 | H151: =SUM(IF((Narlivt!$E$9:$E$6968='Qtité art'!A151),(Narlivt!$H$9:$H$6968)/Narlivt!$H$5)) -> 5023.333333 | L151: =VLOOKUP(E151,PP!$A$12:$CD$27,51,FALSE) -> 5 | M151: =IF(L151=5,Lavage!$I$25) -> 01:06:21.565 | N151: =VLOOKUP(E151,PP!$A$12:$CD$27,73,FALSE) -> 0 | P151: Plat2 | Q151: =IF(L151=5,IF(E151=PP!$A$17,100/(PP!$AR$17*PP!$T$17*PP!$V$17))) -> 18:22:14.361
A152: =IF(Paramètres!A150="","",Paramètres!A150) -> 6854 | B152: =IF(Paramètres!B150="","",Paramètres!B150) -> Napperon BS blanc 10x10 | C152: =IF(Paramètres!C150="","",Paramètres!C150) -> 260 | D152: 66.66666667 | E152: =IF(Paramètres!A150="","",Paramètres!D150) -> npr 10 | F152: =IF(Paramètres!E150="","",Paramètres!E150) -> RCALPP_sup_8 | G152: 17.33333333 | H152: =SUM(IF((Narlivt!$E$9:$E$6968='Qtité art'!A152),(Narlivt!$H$9:$H$6968)/Narlivt!$H$5)) -> 66.66666667 | L152: =VLOOKUP('Qtité art'!E152,Mixte!$A$12:$CD$32,51,FALSE) -> 5 | M152: =IF(L152=5,Lavage!$I$25) -> 01:06:21.565 | N152: =VLOOKUP(E152,Mixte!$A$12:$CD$32,73,FALSE) -> 0 | P152: Plat4 | Q152: =IF(L152=5,IF(E152=Mixte!$A$19,100/(Mixte!$AR$19*Mixte!$T$19*Mixte!$V$19))) -> 14:59:18.505
A153: =IF(Paramètres!A151="","",Paramètres!A151) -> 7375 | B153: =IF(Paramètres!B151="","",Paramètres!B151) -> Drap Clas blc l.jaune 205 NF | C153: =IF(Paramètres!C151="","",Paramètres!C151) -> 940 | D153: 256.3333333 | E153: =IF(Paramètres!A151="","",Paramètres!D151) -> drap petit | F153: =IF(Paramètres!E151="","",Paramètres!E151) -> HCALGP_Drap | G153: 240.9533333 | H153: =SUM(IF((Narlivt!$E$9:$E$6968='Qtité art'!A153),(Narlivt!$H$9:$H$6968)/Narlivt!$H$5)) -> 256.3333333 | L153: =VLOOKUP('Qtité art'!E153,Mixte!$A$12:$CD$32,51,FALSE) -> 1 | M153: =IF(L153=1,Lavage!$I$13) -> 00:01:35 | N153: =VLOOKUP(E153,Mixte!$A$12:$CD$32,73,FALSE) -> 0 | P153: Plat3 | Q153: =IF(L153=1,IF(E153=GP!$A$12,(50/GP!$AR$12*GP!$T$12*GP!$V$12))) -> 52018.02061
A154: =IF(Paramètres!A152="","",Paramètres!A152) -> 7431 | B154: =IF(Paramètres!B152="","",Paramètres!B152) -> Blouse H ML Agro blc PC 67/33 | C154: =IF(Paramètres!C152="","",Paramètres!C152) -> 648 | D154: 4.666666667 | E154: =IF(Paramètres!A152="","",Paramètres!D152) -> VT Séché TF | F154: =IF(Paramètres!E152="","",Paramètres!E152) -> VT_ | G154: 3.024 | H154: =SUM(IF((Narlivt!$E$9:$E$6968='Qtité art'!A154),(Narlivt!$H$9:$H$6968)/Narlivt!$H$5)) -> 4.666666667 | L154: =VLOOKUP('Qtité art'!E154,'Pliage main'!$A$12:$CD$27,51,FALSE) -> 2 | M154: =IF(L154=2,Lavage!$I$14) -> 00:03:00 | N154: =VLOOKUP(E154,'Pliage main'!$A$12:$CD$27,73,FALSE) -> 0 | P154: Plat6
A155: =IF(Paramètres!A153="","",Paramètres!A153) -> 8087 | B155: =IF(Paramètres!B153="","",Paramètres!B153) -> Serv Coiffeur SM blanc | C155: =IF(Paramètres!C153="","",Paramètres!C153) -> 185 | D155: 272.6666667 | E155: =IF(Paramètres!A153="","",Paramètres!D153) -> serv épges coiffeur | F155: =IF(Paramètres!E153="","",Paramètres!E153) -> HSECPA_Eponge | G155: 50.44333333 | H155: =SUM(IF((Narlivt!$E$9:$E$6968='Qtité art'!A155),(Narlivt!$H$9:$H$6968)/Narlivt!$H$5)) -> 272.6666667 | L155: =VLOOKUP(E155,PE!$A$12:$CD$27,51,FALSE) -> 4 | M155: =IF(L155=4,Lavage!$I$16) -> 01:12:03.140 | N155: =VLOOKUP(E155,PE!$A$12:$CD$27,73,FALSE) -> 3 | O155: =IF(N155=3,Séchage!$D$24) -> 00:18:49.947 | P155: Plat5 | Q155: =IF(L155=4,IF(E155=PE!$A$18,100/(PE!$AR$18*PE!$T$18*PE!$V$18))) -> 12:15:36.329
A156: =IF(Paramètres!A154="","",Paramètres!A154) -> 8146 | B156: =IF(Paramètres!B154="","",Paramètres!B154) -> Drap 1/2 Hous 14x25 NF | C156: =IF(Paramètres!C154="","",Paramètres!C154) -> 775 | D156: 366.6666667 | E156: =IF(Paramètres!A154="","",Paramètres!D154) -> drap 1/2 | F156: =IF(Paramètres!E154="","",Paramètres!E154) -> HCALGP_Drap | G156: 284.1666667 | H156: =SUM(IF((Narlivt!$E$9:$E$6968='Qtité art'!A156),(Narlivt!$H$9:$H$6968)/Narlivt!$H$5)) -> 366.6666667 | L156: =VLOOKUP('Qtité art'!E156,Mixte!$A$12:$CD$32,51,FALSE) -> 2 | M156: =IF(L156=2,Lavage!$I$14) -> 00:03:00 | N156: =VLOOKUP(E156,Mixte!$A$12:$CD$32,73,FALSE) -> 0 | P156: Plat4 | Q156: =IF(L156=2,IF(E156=Mixte!$A$22,50/(Mixte!$AR$22*Mixte!$T$22*Mixte!$V$22))) -> 05:28:48.286
A157: =IF(Paramètres!A155="","",Paramètres!A155) -> 8222 | B157: =IF(Paramètres!B155="","",Paramètres!B155) -> Tee shirt Joss blc PC 50/50 | C157: =IF(Paramètres!C155="","",Paramètres!C155) -> 203 | D157: 4.666666667 | E157: =IF(Paramètres!A155="","",Paramètres!D155) -> VT Séché TF | F157: =IF(Paramètres!E155="","",Paramètres!E155) -> VT_ | G157: 0.9473333333 | H157: =SUM(IF((Narlivt!$E$9:$E$6968='Qtité art'!A157),(Narlivt!$H$9:$H$6968)/Narlivt!$H$5)) -> 4.666666667 | L157: =VLOOKUP('Qtité art'!E157,'Pliage main'!$A$12:$CD$27,51,FALSE) -> 2 | M157: =IF(L157=2,Lavage!$I$14) -> 00:03:00 | N157: =VLOOKUP(E157,'Pliage main'!$A$12:$CD$27,73,FALSE) -> 0 | P157: Plat6
A158: =IF(Paramètres!A156="","",Paramètres!A156) -> 8233 | B158: =IF(Paramètres!B156="","",Paramètres!B156) -> Drap Clas ciel 240 NF | C158: =IF(Paramètres!C156="","",Paramètres!C156) -> 1070 | D158: 86.66666667 | E158: =IF(Paramètres!A156="","",Paramètres!D156) -> drap grand | F158: =IF(Paramètres!E156="","",Paramètres!E156) -> HCALGP_Drap | G158: 92.73333333 | H158: =SUM(IF((Narlivt!$E$9:$E$6968='Qtité art'!A158),(Narlivt!$H$9:$H$6968)/Narlivt!$H$5)) -> 86.66666667 | L158: =VLOOKUP('Qtité art'!E158,Mixte!$A$12:$CD$32,51,FALSE) -> 1 | M158: =IF(L158=1,Lavage!$I$13) -> 00:01:35 | N158: =VLOOKUP(E158,Mixte!$A$12:$CD$32,73,FALSE) -> 0 | P158: Plat3 | Q158: =IF(L158=1,IF(E158=GP!$A$13,(50/GP!$AR$13*GP!$T$13*GP!$V$13))) -> 33459.97372
A159: =IF(Paramètres!A157="","",Paramètres!A157) -> 8750 | B159: =IF(Paramètres!B157="","",Paramètres!B157) -> Pant. mixte Brest blanc PC | C159: =IF(Paramètres!C157="","",Paramètres!C157) -> 321 | D159: 197.6666667 | E159: =IF(Paramètres!A157="","",Paramètres!D157) -> VT Séché TF | F159: =IF(Paramètres!E157="","",Paramètres!E157) -> VT_ | G159: 63.451 | H159: =SUM(IF((Narlivt!$E$9:$E$6968='Qtité art'!A159),(Narlivt!$H$9:$H$6968)/Narlivt!$H$5)) -> 197.6666667 | L159: =VLOOKUP('Qtité art'!E159,'Pliage main'!$A$12:$CD$27,51,FALSE) -> 2 | M159: =IF(L159=2,Lavage!$I$14) -> 00:03:00 | N159: =VLOOKUP(E159,'Pliage main'!$A$12:$CD$27,73,FALSE) -> 0 | P159: Plat6
A160: =IF(Paramètres!A158="","",Paramètres!A158) -> 8785 | B160: =IF(Paramètres!B158="","",Paramètres!B158) -> Serv Eponge Confort blc | C160: =IF(Paramètres!C158="","",Paramètres!C158) -> 127 | D160: 6414 | E160: =IF(Paramètres!A158="","",Paramètres!D158) -> serv éponge | F160: =IF(Paramètres!E158="","",Paramètres!E158) -> HSECPA_Eponge | G160: 814.578 | H160: =SUM(IF((Narlivt!$E$9:$E$6968='Qtité art'!A160),(Narlivt!$H$9:$H$6968)/Narlivt!$H$5)) -> 6414 | L160: =VLOOKUP(E160,PE!$A$12:$CD$27,51,FALSE) -> 1 | M160: =IF(L160=1,Lavage!$I$13) -> 00:01:35 | N160: =VLOOKUP(E160,PE!$A$12:$CD$27,73,FALSE) -> 5 | O160: =IF(N160=5,Séchage!$D$36) -> 00:27:00 | P160: Plat5 | Q160: =IF(L160=1,IF(E160=PE!$A$14,(50/PE!$AR$14*PE!$T$14*PE!$V$14))) -> 275553.6379
A161: =IF(Paramètres!A159="","",Paramètres!A159) -> 8786 | B161: =IF(Paramètres!B159="","",Paramètres!B159) -> Drap bain Confort blc | C161: =IF(Paramètres!C159="","",Paramètres!C159) -> 360 | D161: 6604.666667 | E161: =IF(Paramètres!A159="","",Paramètres!D159) -> drap bain | F161: =IF(Paramètres!E159="","",Paramètres!E159) -> HSECPA_DB | G161: 2377.68 | H161: =SUM(IF((Narlivt!$E$9:$E$6968='Qtité art'!A161),(Narlivt!$H$9:$H$6968)/Narlivt!$H$5)) -> 6604.666667 | L161: =VLOOKUP(E161,PE!$A$12:$CD$27,51,FALSE) -> 1 | M161: =IF(L161=1,Lavage!$I$13) -> 00:01:35 | N161: =VLOOKUP(E161,PE!$A$12:$CD$27,73,FALSE) -> 5 | O161: =IF(N161=5,Séchage!$D$36) -> 00:27:00 | P161: Plat5 | Q161: =IF(L161=1,IF(E161=PE!$A$12,(50/PE!$AR$12*PE!$T$12*PE!$V$12))) -> 111264.4679
A162: =IF(Paramètres!A160="","",Paramètres!A160) -> 8787 | B162: =IF(Paramètres!B160="","",Paramètres!B160) -> Tapis bain Confort blc | C162: =IF(Paramètres!C160="","",Paramètres!C160) -> 182 | D162: 7015.333333 | E162: =IF(Paramètres!A160="","",Paramètres!D160) -> tapis bain | F162: =IF(Paramètres!E160="","",Paramètres!E160) -> HSECPA_Eponge | G162: 1276.790667 | H162: =SUM(IF((Narlivt!$E$9:$E$6968='Qtité art'!A162),(Narlivt!$H$9:$H$6968)/Narlivt!$H$5)) -> 7015.333333 | L162: =VLOOKUP(E162,PE!$A$12:$CD$27,51,FALSE) -> 1 | M162: =IF(L162=1,Lavage!$I$13) -> 00:01:35 | N162: =VLOOKUP(E162,PE!$A$12:$CD$27,73,FALSE) -> 5 | O162: =IF(N162=5,Séchage!$D$36) -> 00:27:00 | P162: Plat5 | Q162: =IF(L162=1,IF(E162=PE!$A$16,(50/PE!$AR$16*PE!$T$16*PE!$V$16))) -> 246699.7115
A163: =IF(Paramètres!A161="","",Paramètres!A161) -> 9212 | B163: =IF(Paramètres!B161="","",Paramètres!B161) -> Couette Tulipe 180x230 NF | C163: =IF(Paramètres!C161="","",Paramètres!C161) -> 1800 | D163: 253.6666667 | E163: =IF(Paramètres!A161="","",Paramètres!D161) -> couette/couv | F163: =IF(Paramètres!E161="","",Paramètres!E161) -> HSECPM_Couv | G163: 456.6 | H163: =SUM(IF((Narlivt!$E$9:$E$6968='Qtité art'!A163),(Narlivt!$H$9:$H$6968)/Narlivt!$H$5)) -> 249.6666667 | J163: 4 | K163: ST | L163: =VLOOKUP(E163,'Pliage main'!$A$12:$CD$27,51,FALSE) -> 4 | M163: =IF(L163=4,Lavage!$I$16) -> 01:12:03.140 | N163: =VLOOKUP(E163,'Pliage main'!$A$12:$CD$27,73,FALSE) -> 3 | O163: =IF(N163=3,Séchage!$D$24) -> 00:18:49.947 | P163: Plat6 | Q163: =IF(L163=4,IF(E163='Pliage main'!$A$14,100/('Pliage main'!$AR$14*'Pliage main'!$T$14*'Pliage main'!$V$14))) -> 06:35:29.301
A164: =IF(Paramètres!A162="","",Paramètres!A162) -> 9441 | B164: =IF(Paramètres!B162="","",Paramètres!B162) -> Sac textile elis gris polyester | C164: 250 | D164: 6100.666667 | E164: =IF(Paramètres!A162="","",Paramètres!D162) -> sac | F164: =IF(Paramètres!E162="","",Paramètres!E162) -> HSECPM_Gant | G164: 1525.166667 | H164: =SUM(IF((Narlivt!$E$9:$E$6968='Qtité art'!A164),(Narlivt!$H$9:$H$6968)/Narlivt!$H$5)) -> 5904.666667 | J164: 196 | K164: ST | L164: =VLOOKUP('Qtité art'!E164,'Pliage main'!$A$12:$CD$27,51,FALSE) -> 5 | M164: =IF(L164=5,Lavage!$I$25) -> 01:06:21.565 | N164: =VLOOKUP(E164,'Pliage main'!$A$12:$CD$27,73,FALSE) -> 0 | P164: Plat6 | Q164: =IF(L164=5,IF(E164='Pliage main'!$A$21,100/('Pliage main'!$AR$21*'Pliage main'!$T$21*'Pliage main'!$V$21))) -> 05:04:34.623
A165: =IF(Paramètres!A163="","",Paramètres!A163) -> 9442 | B165: =IF(Paramètres!B163="","",Paramètres!B163) -> Sac textile elis orange polyester | C165: =IF(Paramètres!C163="","",Paramètres!C163) -> 250 | D165: 6407.666667 | E165: =IF(Paramètres!A163="","",Paramètres!D163) -> sac | F165: =IF(Paramètres!E163="","",Paramètres!E163) -> HSECPM_Gant | G165: 1601.916667 | H165: =SUM(IF((Narlivt!$E$9:$E$6968='Qtité art'!A165),(Narlivt!$H$9:$H$6968)/Narlivt!$H$5)) -> 6407.666667 | L165: =VLOOKUP('Qtité art'!E165,'Pliage main'!$A$12:$CD$27,51,FALSE) -> 5 | M165: =IF(L165=5,Lavage!$I$25) -> 01:06:21.565 | N165: =VLOOKUP(E165,'Pliage main'!$A$12:$CD$27,73,FALSE) -> 0 | P165: Plat6 | Q165: =IF(L165=5,IF(E165='Pliage main'!$A$21,100/('Pliage main'!$AR$21*'Pliage main'!$T$21*'Pliage main'!$V$21))) -> 05:04:34.623
A166: =IF(Paramètres!A164="","",Paramètres!A164) -> 9568 | B166: =IF(Paramètres!B164="","",Paramètres!B164) -> Serv Eponge noir | C166: =IF(Paramètres!C164="","",Paramètres!C164) -> 183 | D166: 339.6666667 | E166: =IF(Paramètres!A164="","",Paramètres!D164) -> serv éponge | F166: =IF(Paramètres!E164="","",Paramètres!E164) -> HSECPA_Eponge | G166: 62.159 | H166: =SUM(IF((Narlivt!$E$9:$E$6968='Qtité art'!A166),(Narlivt!$H$9:$H$6968)/Narlivt!$H$5)) -> 339.6666667 | L166: =VLOOKUP(E166,PE!$A$12:$CD$27,51,FALSE) -> 1 | M166: =IF(L166=1,Lavage!$I$13) -> 00:01:35 | N166: =VLOOKUP(E166,PE!$A$12:$CD$27,73,FALSE) -> 5 | O166: =IF(N166=5,Séchage!$D$36) -> 00:27:00 | P166: Plat5 | Q166: =IF(L166=1,IF(E166=PE!$A$14,(50/PE!$AR$14*PE!$T$14*PE!$V$14))) -> 275553.6379
A167: =IF(Paramètres!A165="","",Paramètres!A165) -> 9824 | B167: =IF(Paramètres!B165="","",Paramètres!B165) -> Gant Toilette Clas rose | C167: =IF(Paramètres!C165="","",Paramètres!C165) -> 25 | D167: 3802.333333 | E167: =IF(Paramètres!A165="","",Paramètres!D165) -> carré/gant | F167: =IF(Paramètres!E165="","",Paramètres!E165) -> HSECPM_Gant | G167: 95.05833333 | H167: =SUM(IF((Narlivt!$E$9:$E$6968='Qtité art'!A167),(Narlivt!$H$9:$H$6968)/Narlivt!$H$5)) -> 3802.333333 | L167: =VLOOKUP(E167,'Pliage main'!$A$12:$CD$27,51,FALSE) -> 4 | M167: =IF(L167=4,Lavage!$I$16) -> 01:12:03.140 | N167: =VLOOKUP(E167,'Pliage main'!$A$12:$CD$27,73,FALSE) -> 2 | O167: =IF(N167=2,Séchage!$D$18) -> 00:22:38.495 | P167: Plat6 | Q167: =IF(L167=4,IF(E167='Pliage main'!$A$15,100/('Pliage main'!$AR$15*'Pliage main'!$T$15*'Pliage main'!$V$15))) -> 1.635249822
A168: =IF(Paramètres!A166="","",Paramètres!A166) -> 9998 | B168: =IF(Paramètres!B166="","",Paramètres!B166) -> Sac pour serv.K | C168: =IF(Paramètres!C166="","",Paramètres!C166) -> 0 | D168: 19.33333333 | E168: =IF(Paramètres!A166="","",Paramètres!D166) -> sac | F168: =IF(Paramètres!E166="","",Paramètres!E166) -> HSECPM_Gant | G168: 0 | H168: =SUM(IF((Narlivt!$E$9:$E$6968='Qtité art'!A168),(Narlivt!$H$9:$H$6968)/Narlivt!$H$5)) -> 19.33333333 | L168: =VLOOKUP('Qtité art'!E168,'Pliage main'!$A$12:$CD$27,51,FALSE) -> 5 | M168: =IF(L168=5,Lavage!$I$25) -> 01:06:21.565 | N168: =VLOOKUP(E168,'Pliage main'!$A$12:$CD$27,73,FALSE) -> 0 | P168: Plat6 | Q168: =IF(L168=5,IF(E168='Pliage main'!$A$21,100/('Pliage main'!$AR$21*'Pliage main'!$T$21*'Pliage main'!$V$21))) -> 05:04:34.623
A169: =IF(Paramètres!A167="","",Paramètres!A167) -> 10021 | B169: =IF(Paramètres!B167="","",Paramètres!B167) -> Couverture polaire bleu 75x80 NF-2 | C169: =IF(Paramètres!C167="","",Paramètres!C167) -> 194 | D169: 10 | E169: =IF(Paramètres!A167="","",Paramètres!D167) -> couette/couv | F169: =IF(Paramètres!E167="","",Paramètres!E167) -> HSECPM_Couv | G169: 1.94 | H169: =SUM(IF((Narlivt!$E$9:$E$6968='Qtité art'!A169),(Narlivt!$H$9:$H$6968)/Narlivt!$H$5)) -> 10 | L169: =VLOOKUP(E169,'Pliage main'!$A$12:$CD$27,51,FALSE) -> 4 | M169: =IF(L169=4,Lavage!$I$16) -> 01:12:03.140 | N169: =VLOOKUP(E169,'Pliage main'!$A$12:$CD$27,73,FALSE) -> 3 | O169: =IF(N169=3,Séchage!$D$24) -> 00:18:49.947 | P169: Plat6 | Q169: =IF(L169=4,IF(E169='Pliage main'!$A$14,100/('Pliage main'!$AR$14*'Pliage main'!$T$14*'Pliage main'!$V$14))) -> 06:35:29.301
A170: =IF(Paramètres!A168="","",Paramètres!A168) -> 10028 | B170: =IF(Paramètres!B168="","",Paramètres!B168) -> Couverture polaire jaune 75x80 NF-2 | C170: =IF(Paramètres!C168="","",Paramètres!C168) -> 194 | D170: 34.33333333 | E170: =IF(Paramètres!A168="","",Paramètres!D168) -> couette/couv | F170: =IF(Paramètres!E168="","",Paramètres!E168) -> HSECPM_Couv | G170: 6.660666667 | H170: =SUM(IF((Narlivt!$E$9:$E$6968='Qtité art'!A170),(Narlivt!$H$9:$H$6968)/Narlivt!$H$5)) -> 34.33333333 | L170: =VLOOKUP(E170,'Pliage main'!$A$12:$CD$27,51,FALSE) -> 4 | M170: =IF(L170=4,Lavage!$I$16) -> 01:12:03.140 | N170: =VLOOKUP(E170,'Pliage main'!$A$12:$CD$27,73,FALSE) -> 3 | O170: =IF(N170=3,Séchage!$D$24) -> 00:18:49.947 | P170: Plat6 | Q170: =IF(L170=4,IF(E170='Pliage main'!$A$14,100/('Pliage main'!$AR$14*'Pliage main'!$T$14*'Pliage main'!$V$14))) -> 06:35:29.301
A171: =IF(Paramètres!A169="","",Paramètres!A169) -> 10043 | B171: =IF(Paramètres!B169="","",Paramètres!B169) -> Tablier bav.blc brodé Avenance 99CP | C171: =IF(Paramètres!C169="","",Paramètres!C169) -> 315 | D171: 0.3333333333 | E171: =IF(Paramètres!A169="","",Paramètres!D169) -> VT Séché TF | F171: =IF(Paramètres!E169="","",Paramètres!E169) -> VT_ | G171: 0.105 | H171: =SUM(IF((Narlivt!$E$9:$E$6968='Qtité art'!A171),(Narlivt!$H$9:$H$6968)/Narlivt!$H$5)) -> 0.3333333333 | L171: =VLOOKUP('Qtité art'!E171,'Pliage main'!$A$12:$CD$27,51,FALSE) -> 2 | M171: =IF(L171=2,Lavage!$I$14) -> 00:03:00 | N171: =VLOOKUP(E171,'Pliage main'!$A$12:$CD$27,73,FALSE) -> 0 | P171: Plat6
A172: =IF(Paramètres!A170="","",Paramètres!A170) -> 10294 | B172: =IF(Paramètres!B170="","",Paramètres!B170) -> Nappe ODP ecru 15x15 BS | C172: =IF(Paramètres!C170="","",Paramètres!C170) -> 682 | D172: 3.666666667 | E172: =IF(Paramètres!A170="","",Paramètres!D170) -> nap 15 + 18 | F172: =IF(Paramètres!E170="","",Paramètres!E170) -> RCALGP_Grde_Nappe | G172: 2.500666667 | H172: =SUM(IF((Narlivt!$E$9:$E$6968='Qtité art'!A172),(Narlivt!$H$9:$H$6968)/Narlivt!$H$5)) -> 3.666666667 | L172: =VLOOKUP('Qtité art'!E172,Mixte!$A$12:$CD$32,51,FALSE) -> 5 | M172: =IF(L172=5,Lavage!$I$25) -> 01:06:21.565 | N172: =VLOOKUP(E172,Mixte!$A$12:$CD$32,73,FALSE) -> 0 | P172: Plat4 | Q172: =IF(L172=5,IF(E172=Mixte!$A$14,100/(Mixte!$AR$14*Mixte!$T$14*Mixte!$V$14))) -> 07:58:20.750
A173: =IF(Paramètres!A171="","",Paramètres!A171) -> 10693 | B173: =IF(Paramètres!B171="","",Paramètres!B171) -> Tablier boucher Intermarché 2000 | C173: =IF(Paramètres!C171="","",Paramètres!C171) -> 357 | D173: 19 | E173: =IF(Paramètres!A171="","",Paramètres!D171) -> tablier blanc | F173: =IF(Paramètres!E171="","",Paramètres!E171) -> RCALPP_inf_8 | G173: 6.783 | H173: =SUM(IF((Narlivt!$E$9:$E$6968='Qtité art'!A173),(Narlivt!$H$9:$H$6968)/Narlivt!$H$5)) -> 19 | L173: =VLOOKUP(E173,PP!$A$12:$CD$27,51,FALSE) -> 1 | M173: =IF(L173=1,Lavage!$I$13) -> 00:01:35 | N173: =VLOOKUP(E173,PP!$A$12:$CD$27,73,FALSE) -> 2 | O173: =IF(N173=2,Séchage!$D$18) -> 00:22:38.495 | P173: Plat2 | Q173: =IF(L173=1,IF(E173=PP!$A$22,(50/PP!$AR$22*PP!$T$22*PP!$V$22))) -> 127931.7344
A174: =IF(Paramètres!A172="","",Paramètres!A172) -> 10919 | B174: =IF(Paramètres!B172="","",Paramètres!B172) -> Serv Eponge Luxe blc | C174: =IF(Paramètres!C172="","",Paramètres!C172) -> 305 | D174: 204.6666667 | E174: =IF(Paramètres!A172="","",Paramètres!D172) -> serv éponge luxe | F174: =IF(Paramètres!E172="","",Paramètres!E172) -> HSECPA_Eponge | G174: 62.42333333 | H174: =SUM(IF((Narlivt!$E$9:$E$6968='Qtité art'!A174),(Narlivt!$H$9:$H$6968)/Narlivt!$H$5)) -> 204.6666667 | L174: =VLOOKUP(E174,PE!$A$12:$CD$27,51,FALSE) -> 1 | M174: =IF(L174=1,Lavage!$I$13) -> 00:01:35 | N174: =VLOOKUP(E174,PE!$A$12:$CD$27,73,FALSE) -> 5 | O174: =IF(N174=5,Séchage!$D$36) -> 00:27:00 | P174: Plat5 | Q174: =IF(L174=1,IF(E174=PE!$A$15,(50/PE!$AR$15*PE!$T$12*PE!$V$15))) -> 143753.7091
A175: =IF(Paramètres!A173="","",Paramètres!A173) -> 10920 | B175: =IF(Paramètres!B173="","",Paramètres!B173) -> Drap bain Luxe blc | C175: =IF(Paramètres!C173="","",Paramètres!C173) -> 834 | D175: 509 | E175: =IF(Paramètres!A173="","",Paramètres!D173) -> drap bain luxe | F175: =IF(Paramètres!E173="","",Paramètres!E173) -> HSECPA_DB | G175: 424.506 | H175: =SUM(IF((Narlivt!$E$9:$E$6968='Qtité art'!A175),(Narlivt!$H$9:$H$6968)/Narlivt!$H$5)) -> 509 | L175: =VLOOKUP(E175,PE!$A$12:$CD$27,51,FALSE) -> 1 | M175: =IF(L175=1,Lavage!$I$13) -> 00:01:35 | N175: =VLOOKUP(E175,PE!$A$12:$CD$27,73,FALSE) -> 5 | O175: =IF(N175=5,Séchage!$D$36) -> 00:27:00 | P175: Plat5 | Q175: =IF(L175=1,IF(E175=PE!$A$13,(50/PE!$AR$13*PE!$T$13*PE!$V$13))) -> 49434.67035
A176: =IF(Paramètres!A174="","",Paramètres!A174) -> 11012 | B176: =IF(Paramètres!B174="","",Paramètres!B174) -> Serv Tab BS car/cam 50x50 | C176: =IF(Paramètres!C174="","",Paramètres!C174) -> 57 | D176: 15344.66667 | E176: =IF(Paramètres!A174="","",Paramètres!D174) -> serv tab pte | F176: =IF(Paramètres!E174="","",Paramètres!E174) -> RCALPP_inf_8 | G176: 874.646 | H176: =SUM(IF((Narlivt!$E$9:$E$6968='Qtité art'!A176),(Narlivt!$H$9:$H$6968)/Narlivt!$H$5)) -> 15344.66667 | L176: =VLOOKUP(E176,PP!$A$12:$CD$27,51,FALSE) -> 5 | M176: =IF(L176=5,Lavage!$I$25) -> 01:06:21.565 | N176: =VLOOKUP(E176,PP!$A$12:$CD$27,73,FALSE) -> 0 | P176: Plat2 | Q176: =IF(L176=5,IF(E176=PP!$A$17,100/(PP!$AR$17*PP!$T$17*PP!$V$17))) -> 18:22:14.361
A177: =IF(Paramètres!A175="","",Paramètres!A175) -> 11013 | B177: =IF(Paramètres!B175="","",Paramètres!B175) -> ChTab BS car/cam 45x100 | C177: =IF(Paramètres!C175="","",Paramètres!C175) -> 115 | D177: 199.6666667 | E177: =IF(Paramètres!A175="","",Paramètres!D175) -> ch tab | F177: =IF(Paramètres!E175="","",Paramètres!E175) -> RCALPP_sup_8 | G177: 22.96166667 | H177: =SUM(IF((Narlivt!$E$9:$E$6968='Qtité art'!A177),(Narlivt!$H$9:$H$6968)/Narlivt!$H$5)) -> 199.6666667 | L177: =VLOOKUP('Qtité art'!E177,Mixte!$A$12:$CD$32,51,FALSE) -> 5 | M177: =IF(L177=5,Lavage!$I$25) -> 01:06:21.565 | N177: =VLOOKUP(E177,Mixte!$A$12:$CD$32,73,FALSE) -> 0 | P177: Plat4 | Q177: =IF(L177=5,IF(E177=Mixte!$A$12,100/(Mixte!$AR$12*Mixte!$T$12*Mixte!$V$12))) -> 1.673357384
A178: =IF(Paramètres!A176="","",Paramètres!A176) -> 11143 | B178: =IF(Paramètres!B176="","",Paramètres!B176) -> Drap Clas blc 2l. noir 310 NF | C178: =IF(Paramètres!C176="","",Paramètres!C176) -> 1309 | D178: 118.3333333 | E178: =IF(Paramètres!A176="","",Paramètres!D176) -> Drap grand | F178: =IF(Paramètres!E176="","",Paramètres!E176) -> HCALGP_Drap | G178: 154.8983333 | H178: =SUM(IF((Narlivt!$E$9:$E$6968='Qtité art'!A178),(Narlivt!$H$9:$H$6968)/Narlivt!$H$5)) -> 118.3333333 | L178: =VLOOKUP('Qtité art'!E178,Mixte!$A$12:$CD$32,51,FALSE) -> 1 | M178: =IF(L178=1,Lavage!$I$13) -> 00:01:35 | N178: =VLOOKUP(E178,Mixte!$A$12:$CD$32,73,FALSE) -> 0 | P178: Plat3 | Q178: =IF(L178=1,IF(E178=GP!$A$13,(50/GP!$AR$13*GP!$T$13*GP!$V$13))) -> 33459.97372
A179: =IF(Paramètres!A177="","",Paramètres!A177) -> 11452 | B179: =IF(Paramètres!B177="","",Paramètres!B177) -> Napperon Platine 9x9 brx | C179: =IF(Paramètres!C177="","",Paramètres!C177) -> 220 | D179: 17.33333333 | E179: =IF(Paramètres!A177="","",Paramètres!D177) -> npr | F179: =IF(Paramètres!E177="","",Paramètres!E177) -> RCALPP_sup_8 | G179: 3.813333333 | H179: =SUM(IF((Narlivt!$E$9:$E$6968='Qtité art'!A179),(Narlivt!$H$9:$H$6968)/Narlivt!$H$5)) -> 17.33333333 | L179: =VLOOKUP('Qtité art'!E179,Mixte!$A$12:$CD$32,51,FALSE) -> 5 | M179: =IF(L179=5,Lavage!$I$25) -> 01:06:21.565 | N179: =VLOOKUP(E179,Mixte!$A$12:$CD$32,73,FALSE) -> 0 | P179: Plat4 | Q179: =IF(L179=5,IF(E179=Mixte!$A$18,100/(Mixte!$AR$18*Mixte!$T$18*Mixte!$V$18))) -> 22:24:25.755
A180: =IF(Paramètres!A178="","",Paramètres!A178) -> 11841 | B180: =IF(Paramètres!B178="","",Paramètres!B178) -> Drap bain Super Luxe Gd | C180: =IF(Paramètres!C178="","",Paramètres!C178) -> 988 | D180: 117.3333333 | E180: =IF(Paramètres!A178="","",Paramètres!D178) -> drap bain luxe | F180: =IF(Paramètres!E178="","",Paramètres!E178) -> HSECPA_DB | G180: 115.9253333 | H180: =SUM(IF((Narlivt!$E$9:$E$6968='Qtité art'!A180),(Narlivt!$H$9:$H$6968)/Narlivt!$H$5)) -> 117.3333333 | L180: =VLOOKUP(E180,PE!$A$12:$CD$27,51,FALSE) -> 1 | M180: =IF(L180=1,Lavage!$I$13) -> 00:01:35 | N180: =VLOOKUP(E180,PE!$A$12:$CD$27,73,FALSE) -> 5 | O180: =IF(N180=5,Séchage!$D$36) -> 00:27:00 | P180: Plat5 | Q180: =IF(L180=1,IF(E180=PE!$A$13,(50/PE!$AR$13*PE!$T$13*PE!$V$13))) -> 49434.67035
A181: =IF(Paramètres!A179="","",Paramètres!A179) -> 11842 | B181: =IF(Paramètres!B179="","",Paramètres!B179) -> Tapis bain Luxe blc | C181: =IF(Paramètres!C179="","",Paramètres!C179) -> 296 | D181: 106.3333333 | E181: =IF(Paramètres!A179="","",Paramètres!D179) -> tapis bain luxe | F181: =IF(Paramètres!E179="","",Paramètres!E179) -> HSECPA_Eponge | G181: 31.47466667 | H181: =SUM(IF((Narlivt!$E$9:$E$6968='Qtité art'!A181),(Narlivt!$H$9:$H$6968)/Narlivt!$H$5)) -> 106.3333333 | L181: =VLOOKUP(E181,PE!$A$12:$CD$27,51,FALSE) -> 1 | M181: =IF(L181=1,Lavage!$I$13) -> 00:01:35 | N181: =VLOOKUP(E181,PE!$A$12:$CD$27,73,FALSE) -> 5 | O181: =IF(N181=5,Séchage!$D$36) -> 00:27:00 | P181: Plat5 | Q181: =IF(L181=1,IF(E181=PE!$A$17,(50/PE!$AR$17*PE!$T$17*PE!$V$17))) -> 153096.6917
A182: =IF(Paramètres!A180="","",Paramètres!A180) -> 12182 | B182: =IF(Paramètres!B180="","",Paramètres!B180) -> Couette Océan 180x230 NF | C182: =IF(Paramètres!C180="","",Paramètres!C180) -> 725 | D182: 216.6666667 | E182: =IF(Paramètres!A180="","",Paramètres!D180) -> couette/couv | F182: =IF(Paramètres!E180="","",Paramètres!E180) -> HSECPM_Couv | G182: 157.0833333 | H182: =SUM(IF((Narlivt!$E$9:$E$6968='Qtité art'!A182),(Narlivt!$H$9:$H$6968)/Narlivt!$H$5)) -> 216.6666667 | L182: =VLOOKUP(E182,'Pliage main'!$A$12:$CD$27,51,FALSE) -> 4 | M182: =IF(L182=4,Lavage!$I$16) -> 01:12:03.140 | N182: =VLOOKUP(E182,'Pliage main'!$A$12:$CD$27,73,FALSE) -> 3 | O182: =IF(N182=3,Séchage!$D$24) -> 00:18:49.947 | P182: Plat6 | Q182: =IF(L182=4,IF(E182='Pliage main'!$A$14,100/('Pliage main'!$AR$14*'Pliage main'!$T$14*'Pliage main'!$V$14))) -> 06:35:29.301
A183: =IF(Paramètres!A181="","",Paramètres!A181) -> 12558 | B183: =IF(Paramètres!B181="","",Paramètres!B181) -> Pant. mixte Brest blc T00 | C183: =IF(Paramètres!C181="","",Paramètres!C181) -> 0 | D183: 11.33333333 | E183: =IF(Paramètres!A181="","",Paramètres!D181) -> VT Séché TF | F183: =IF(Paramètres!E181="","",Paramètres!E181) -> VT_ | G183: 0 | H183: =SUM(IF((Narlivt!$E$9:$E$6968='Qtité art'!A183),(Narlivt!$H$9:$H$6968)/Narlivt!$H$5)) -> 11.33333333 | L183: =VLOOKUP('Qtité art'!E183,'Pliage main'!$A$12:$CD$27,51,FALSE) -> 2 | M183: =IF(L183=2,Lavage!$I$14) -> 00:03:00 | N183: =VLOOKUP(E183,'Pliage main'!$A$12:$CD$27,73,FALSE) -> 0 | P183: Plat6
A184: =IF(Paramètres!A182="","",Paramètres!A182) -> 12559 | B184: =IF(Paramètres!B182="","",Paramètres!B182) -> Pant. mixte Brest blc T01 | C184: =IF(Paramètres!C182="","",Paramètres!C182) -> 0 | D184: 46 | E184: =IF(Paramètres!A182="","",Paramètres!D182) -> VT Séché TF | F184: =IF(Paramètres!E182="","",Paramètres!E182) -> VT_ | G184: 0 | H184: =SUM(IF((Narlivt!$E$9:$E$6968='Qtité art'!A184),(Narlivt!$H$9:$H$6968)/Narlivt!$H$5)) -> 46 | L184: =VLOOKUP('Qtité art'!E184,'Pliage main'!$A$12:$CD$27,51,FALSE) -> 2 | M184: =IF(L184=2,Lavage!$I$14) -> 00:03:00 | N184: =VLOOKUP(E184,'Pliage main'!$A$12:$CD$27,73,FALSE) -> 0 | P184: Plat6
A185: =IF(Paramètres!A183="","",Paramètres!A183) -> 12560 | B185: =IF(Paramètres!B183="","",Paramètres!B183) -> Pant. mixte Brest blc T02 | C185: =IF(Paramètres!C183="","",Paramètres!C183) -> 0 | D185: 38.33333333 | E185: =IF(Paramètres!A183="","",Paramètres!D183) -> VT Séché TF | F185: =IF(Paramètres!E183="","",Paramètres!E183) -> VT_ | G185: 0 | H185: =SUM(IF((Narlivt!$E$9:$E$6968='Qtité art'!A185),(Narlivt!$H$9:$H$6968)/Narlivt!$H$5)) -> 38.33333333 | L185: =VLOOKUP('Qtité art'!E185,'Pliage main'!$A$12:$CD$27,51,FALSE) -> 2 | M185: =IF(L185=2,Lavage!$I$14) -> 00:03:00 | N185: =VLOOKUP(E185,'Pliage main'!$A$12:$CD$27,73,FALSE) -> 0 | P185: Plat6
A186: =IF(Paramètres!A184="","",Paramètres!A184) -> 12561 | B186: =IF(Paramètres!B184="","",Paramètres!B184) -> Pant. mixte Brest blc T03 | C186: =IF(Paramètres!C184="","",Paramètres!C184) -> 0 | D186: 18 | E186: =IF(Paramètres!A184="","",Paramètres!D184) -> VT Séché TF | F186: =IF(Paramètres!E184="","",Paramètres!E184) -> VT_ | G186: 0 | H186: =SUM(IF((Narlivt!$E$9:$E$6968='Qtité art'!A186),(Narlivt!$H$9:$H$6968)/Narlivt!$H$5)) -> 18 | L186: =VLOOKUP('Qtité art'!E186,'Pliage main'!$A$12:$CD$27,51,FALSE) -> 2 | M186: =IF(L186=2,Lavage!$I$14) -> 00:03:00 | N186: =VLOOKUP(E186,'Pliage main'!$A$12:$CD$27,73,FALSE) -> 0 | P186: Plat6
A187: =IF(Paramètres!A185="","",Paramètres!A185) -> 12562 | B187: =IF(Paramètres!B185="","",Paramètres!B185) -> Pant. mixte Brest blc T04 | C187: =IF(Paramètres!C185="","",Paramètres!C185) -> 0 | D187: 7.666666667 | E187: =IF(Paramètres!A185="","",Paramètres!D185) -> VT Séché TF | F187: =IF(Paramètres!E185="","",Paramètres!E185) -> VT_ | G187: 0 | H187: =SUM(IF((Narlivt!$E$9:$E$6968='Qtité art'!A187),(Narlivt!$H$9:$H$6968)/Narlivt!$H$5)) -> 7.666666667 | L187: =VLOOKUP('Qtité art'!E187,'Pliage main'!$A$12:$CD$27,51,FALSE) -> 2 | M187: =IF(L187=2,Lavage!$I$14) -> 00:03:00 | N187: =VLOOKUP(E187,'Pliage main'!$A$12:$CD$27,73,FALSE) -> 0 | P187: Plat6
A188: =IF(Paramètres!A186="","",Paramètres!A186) -> 12563 | B188: =IF(Paramètres!B186="","",Paramètres!B186) -> Pant. mixte Brest blc T05 | C188: =IF(Paramètres!C186="","",Paramètres!C186) -> 0 | D188: 3.333333333 | E188: =IF(Paramètres!A186="","",Paramètres!D186) -> VT Séché TF | F188: =IF(Paramètres!E186="","",Paramètres!E186) -> VT_ | G188: 0 | H188: =SUM(IF((Narlivt!$E$9:$E$6968='Qtité art'!A188),(Narlivt!$H$9:$H$6968)/Narlivt!$H$5)) -> 3.333333333 | L188: =VLOOKUP('Qtité art'!E188,'Pliage main'!$A$12:$CD$27,51,FALSE) -> 2 | M188: =IF(L188=2,Lavage!$I$14) -> 00:03:00 | N188: =VLOOKUP(E188,'Pliage main'!$A$12:$CD$27,73,FALSE) -> 0 | P188: Plat6
A189: =IF(Paramètres!A187="","",Paramètres!A187) -> 13445 | B189: =IF(Paramètres!B187="","",Paramètres!B187) -> Couette ambu bleu blc 150x200 NF | C189: =IF(Paramètres!C187="","",Paramètres!C187) -> 1380 | D189: 45.66666667 | E189: =IF(Paramètres!A187="","",Paramètres!D187) -> couette/couv | F189: =IF(Paramètres!E187="","",Paramètres!E187) -> HSECPM_Couv | G189: 63.02 | H189: =SUM(IF((Narlivt!$E$9:$E$6968='Qtité art'!A189),(Narlivt!$H$9:$H$6968)/Narlivt!$H$5)) -> 45.66666667 | L189: =VLOOKUP(E189,'Pliage main'!$A$12:$CD$27,51,FALSE) -> 4 | M189: =IF(L189=4,Lavage!$I$16) -> 01:12:03.140 | N189: =VLOOKUP(E189,'Pliage main'!$A$12:$CD$27,73,FALSE) -> 3 | O189: =IF(N189=3,Séchage!$D$24) -> 00:18:49.947 | P189: Plat6 | Q189: =IF(L189=4,IF(E189='Pliage main'!$A$14,100/('Pliage main'!$AR$14*'Pliage main'!$T$14*'Pliage main'!$V$14))) -> 06:35:29.301
A190: =IF(Paramètres!A188="","",Paramètres!A188) -> 13798 | B190: =IF(Paramètres!B188="","",Paramètres!B188) -> Couette Losanges 175x230 NF-2 | C190: =IF(Paramètres!C188="","",Paramètres!C188) -> 2500 | D190: 31.66666667 | E190: =IF(Paramètres!A188="","",Paramètres!D188) -> couette/couv | F190: =IF(Paramètres!E188="","",Paramètres!E188) -> HSECPM_Couv | G190: 79.16666667 | H190: =SUM(IF((Narlivt!$E$9:$E$6968='Qtité art'!A190),(Narlivt!$H$9:$H$6968)/Narlivt!$H$5)) -> 31.66666667 | L190: =VLOOKUP(E190,'Pliage main'!$A$12:$CD$27,51,FALSE) -> 4 | M190: =IF(L190=4,Lavage!$I$16) -> 01:12:03.140 | N190: =VLOOKUP(E190,'Pliage main'!$A$12:$CD$27,73,FALSE) -> 3 | O190: =IF(N190=3,Séchage!$D$24) -> 00:18:49.947 | P190: Plat6 | Q190: =IF(L190=4,IF(E190='Pliage main'!$A$14,100/('Pliage main'!$AR$14*'Pliage main'!$T$14*'Pliage main'!$V$14))) -> 06:35:29.301
A191: =IF(Paramètres!A189="","",Paramètres!A189) -> 14119 | B191: =IF(Paramètres!B189="","",Paramètres!B189) -> Chemise Malade XXL ciel pressions | C191: =IF(Paramètres!C189="","",Paramètres!C189) -> 350 | D191: 3.333333333 | E191: =IF(Paramètres!A189="","",Paramètres!D189) -> chmal | F191: =IF(Paramètres!E189="","",Paramètres!E189) -> HSECPM_Chem_mal | G191: 1.166666667 | H191: =SUM(IF((Narlivt!$E$9:$E$6968='Qtité art'!A191),(Narlivt!$H$9:$H$6968)/Narlivt!$H$5)) -> 3.333333333 | L191: =VLOOKUP(E191,'Pliage main'!$A$12:$CD$27,51,FALSE) -> 2 | M191: =IF(L191=2,Lavage!$I$14) -> 00:03:00 | N191: =VLOOKUP(E191,PE!$A$12:$CD$27,73,FALSE) -> 2 | O191: =IF(N191=2,Séchage!$D$18) -> 00:22:38.495 | P191: Plat5 | Q191: =IF(L191=2,IF(E191=PE!$A$20,50/(PE!$AR$20*PE!$T$20*PE!$V$20))) -> 14:25:24.301
A192: =IF(Paramètres!A190="","",Paramètres!A190) -> 14221 | B192: =IF(Paramètres!B190="","",Paramètres!B190) -> ChTab ODP ecru 40x100 BS | C192: =IF(Paramètres!C190="","",Paramètres!C190) -> 92 | D192: 66.33333333 | E192: =IF(Paramètres!A190="","",Paramètres!D190) -> ch tab | F192: =IF(Paramètres!E190="","",Paramètres!E190) -> RCALPP_sup_8 | G192: 6.102666667 | H192: =SUM(IF((Narlivt!$E$9:$E$6968='Qtité art'!A192),(Narlivt!$H$9:$H$6968)/Narlivt!$H$5)) -> 66.33333333 | L192: =VLOOKUP('Qtité art'!E192,Mixte!$A$12:$CD$32,51,FALSE) -> 5 | M192: =IF(L192=5,Lavage!$I$25) -> 01:06:21.565 | N192: =VLOOKUP(E192,Mixte!$A$12:$CD$32,73,FALSE) -> 0 | P192: Plat4 | Q192: =IF(L192=5,IF(E192=Mixte!$A$12,100/(Mixte!$AR$12*Mixte!$T$12*Mixte!$V$12))) -> 1.673357384
A193: =IF(Paramètres!A191="","",Paramètres!A191) -> 14361 | B193: =IF(Paramètres!B191="","",Paramètres!B191) -> Ch Tab SU blc 50x110 | C193: =IF(Paramètres!C191="","",Paramètres!C191) -> 126 | D193: 50.66666667 | E193: =IF(Paramètres!A191="","",Paramètres!D191) -> ch tab | F193: =IF(Paramètres!E191="","",Paramètres!E191) -> RCALPP_sup_8 | G193: 6.384 | H193: =SUM(IF((Narlivt!$E$9:$E$6968='Qtité art'!A193),(Narlivt!$H$9:$H$6968)/Narlivt!$H$5)) -> 50.66666667 | L193: =VLOOKUP('Qtité art'!E193,Mixte!$A$12:$CD$32,51,FALSE) -> 5 | M193: =IF(L193=5,Lavage!$I$25) -> 01:06:21.565 | N193: =VLOOKUP(E193,Mixte!$A$12:$CD$32,73,FALSE) -> 0 | P193: Plat4 | Q193: =IF(L193=5,IF(E193=Mixte!$A$12,100/(Mixte!$AR$12*Mixte!$T$12*Mixte!$V$12))) -> 1.673357384
A194: =IF(Paramètres!A192="","",Paramètres!A192) -> 17386 | B194: =IF(Paramètres!B192="","",Paramètres!B192) -> Couette Losanges 200/230 CatB | C194: =IF(Paramètres!C192="","",Paramètres!C192) -> 2000 | D194: 18.33333333 | E194: =IF(Paramètres!A192="","",Paramètres!D192) -> couette/couv | F194: =IF(Paramètres!E192="","",Paramètres!E192) -> HSECPM_Couv | G194: 36.66666667 | H194: =SUM(IF((Narlivt!$E$9:$E$6968='Qtité art'!A194),(Narlivt!$H$9:$H$6968)/Narlivt!$H$5)) -> 18.33333333 | L194: =VLOOKUP(E194,'Pliage main'!$A$12:$CD$27,51,FALSE) -> 4 | M194: =IF(L194=4,Lavage!$I$16) -> 01:12:03.140 | N194: =VLOOKUP(E194,'Pliage main'!$A$12:$CD$27,73,FALSE) -> 3 | O194: =IF(N194=3,Séchage!$D$24) -> 00:18:49.947 | P194: Plat6 | Q194: =IF(L194=4,IF(E194='Pliage main'!$A$14,100/('Pliage main'!$AR$14*'Pliage main'!$T$14*'Pliage main'!$V$14))) -> 06:35:29.301
A195: =IF(Paramètres!A193="","",Paramètres!A193) -> 18415 | B195: =IF(Paramètres!B193="","",Paramètres!B193) -> Couette blc cassé 175x230 NF | C195: =IF(Paramètres!C193="","",Paramètres!C193) -> 1800 | D195: 146.6666667 | E195: =IF(Paramètres!A193="","",Paramètres!D193) -> couette/couv | F195: =IF(Paramètres!E193="","",Paramètres!E193) -> HSECPM_Couv | G195: 264 | H195: =SUM(IF((Narlivt!$E$9:$E$6968='Qtité art'!A195),(Narlivt!$H$9:$H$6968)/Narlivt!$H$5)) -> 146.6666667 | L195: =VLOOKUP(E195,'Pliage main'!$A$12:$CD$27,51,FALSE) -> 4 | M195: =IF(L195=4,Lavage!$I$16) -> 01:12:03.140 | N195: =VLOOKUP(E195,'Pliage main'!$A$12:$CD$27,73,FALSE) -> 3 | O195: =IF(N195=3,Séchage!$D$24) -> 00:18:49.947 | P195: Plat6 | Q195: =IF(L195=4,IF(E195='Pliage main'!$A$14,100/('Pliage main'!$AR$14*'Pliage main'!$T$14*'Pliage main'!$V$14))) -> 06:35:29.301
A196: =IF(Paramètres!A194="","",Paramètres!A194) -> 23763 | B196: =IF(Paramètres!B194="","",Paramètres!B194) -> Tablier bav. SIENA poche noir PC | C196: =IF(Paramètres!C194="","",Paramètres!C194) -> 260 | D196: 3 | E196: =IF(Paramètres!A194="","",Paramètres!D194) -> tablier bleu | F196: =IF(Paramètres!E194="","",Paramètres!E194) -> RCALPP_inf_8 | G196: 0.78 | H196: =SUM(IF((Narlivt!$E$9:$E$6968='Qtité art'!A196),(Narlivt!$H$9:$H$6968)/Narlivt!$H$5)) -> 3 | L196: =VLOOKUP(E196,PP!$A$12:$CD$27,51,FALSE) -> 1 | M196: =IF(L196=1,Lavage!$I$13) -> 00:01:35 | N196: =VLOOKUP(E196,PP!$A$12:$CD$27,73,FALSE) -> 2 | O196: =IF(N196=2,Séchage!$D$18) -> 00:22:38.495 | P196: Plat2 | Q196: =IF(L196=1,IF(E196=PP!$A$21,(50/PP!$AR$21*PP!$T$21*PP!$V$21))) -> 146303.2713
A197: =IF(Paramètres!A195="","",Paramètres!A195) -> 24031 | B197: =IF(Paramètres!B195="","",Paramètres!B195) -> Couette Nouméa Beig Oran180x220NF | C197: =IF(Paramètres!C195="","",Paramètres!C195) -> 2100 | D197: 0.3333333333 | E197: =IF(Paramètres!A195="","",Paramètres!D195) -> couette/couv | F197: =IF(Paramètres!E195="","",Paramètres!E195) -> HSECPM_Couv | G197: 0.7 | H197: =SUM(IF((Narlivt!$E$9:$E$6968='Qtité art'!A197),(Narlivt!$H$9:$H$6968)/Narlivt!$H$5)) -> 0.3333333333 | L197: =VLOOKUP(E197,'Pliage main'!$A$12:$CD$27,51,FALSE) -> 4 | M197: =IF(L197=4,Lavage!$I$16) -> 01:12:03.140 | N197: =VLOOKUP(E197,'Pliage main'!$A$12:$CD$27,73,FALSE) -> 3 | O197: =IF(N197=3,Séchage!$D$24) -> 00:18:49.947 | P197: Plat6 | Q197: =IF(L197=4,IF(E197='Pliage main'!$A$14,100/('Pliage main'!$AR$14*'Pliage main'!$T$14*'Pliage main'!$V$14))) -> 06:35:29.301
A198: =IF(Paramètres!A196="","",Paramètres!A196) -> 25221 | B198: =IF(Paramètres!B196="","",Paramètres!B196) -> ChTab BS ébène 45x110 | C198: =IF(Paramètres!C196="","",Paramètres!C196) -> 130 | D198: 9.666666667 | E198: =IF(Paramètres!A196="","",Paramètres!D196) -> ch tab | F198: =IF(Paramètres!E196="","",Paramètres!E196) -> RCALPP_sup_8 | G198: 1.256666667 | H198: =SUM(IF((Narlivt!$E$9:$E$6968='Qtité art'!A198),(Narlivt!$H$9:$H$6968)/Narlivt!$H$5)) -> 9.666666667 | L198: =VLOOKUP('Qtité art'!E198,Mixte!$A$12:$CD$32,51,FALSE) -> 5 | M198: =IF(L198=5,Lavage!$I$25) -> 01:06:21.565 | N198: =VLOOKUP(E198,Mixte!$A$12:$CD$32,73,FALSE) -> 0 | P198: Plat4 | Q198: =IF(L198=5,IF(E198=Mixte!$A$12,100/(Mixte!$AR$12*Mixte!$T$12*Mixte!$V$12))) -> 1.673357384
A199: =IF(Paramètres!A197="","",Paramètres!A197) -> 25374 | B199: =IF(Paramètres!B197="","",Paramètres!B197) -> Drap bain ORFEA blc | C199: =IF(Paramètres!C197="","",Paramètres!C197) -> 380 | D199: 95.66666667 | E199: =IF(Paramètres!A197="","",Paramètres!D197) -> drap bain | F199: =IF(Paramètres!E197="","",Paramètres!E197) -> HSECPA_DB | G199: 36.35333333 | H199: =SUM(IF((Narlivt!$E$9:$E$6968='Qtité art'!A199),(Narlivt!$H$9:$H$6968)/Narlivt!$H$5)) -> 95.66666667 | L199: =VLOOKUP(E199,PE!$A$12:$CD$27,51,FALSE) -> 1 | M199: =IF(L199=1,Lavage!$I$13) -> 00:01:35 | N199: =VLOOKUP(E199,PE!$A$12:$CD$27,73,FALSE) -> 5 | O199: =IF(N199=5,Séchage!$D$36) -> 00:27:00 | P199: Plat5 | Q199: =IF(L199=1,IF(E199=PE!$A$12,(50/PE!$AR$12*PE!$T$12*PE!$V$12))) -> 111264.4679
A200: =IF(Paramètres!A198="","",Paramètres!A198) -> 25375 | B200: =IF(Paramètres!B198="","",Paramètres!B198) -> Tapis bain ORFEA blc | C200: =IF(Paramètres!C198="","",Paramètres!C198) -> 190 | D200: 94 | E200: =IF(Paramètres!A198="","",Paramètres!D198) -> tapis bain | F200: =IF(Paramètres!E198="","",Paramètres!E198) -> HSECPA_Eponge | G200: 17.86 | H200: =SUM(IF((Narlivt!$E$9:$E$6968='Qtité art'!A200),(Narlivt!$H$9:$H$6968)/Narlivt!$H$5)) -> 94 | L200: =VLOOKUP(E200,PE!$A$12:$CD$27,51,FALSE) -> 1 | M200: =IF(L200=1,Lavage!$I$13) -> 00:01:35 | N200: =VLOOKUP(E200,PE!$A$12:$CD$27,73,FALSE) -> 5 | O200: =IF(N200=5,Séchage!$D$36) -> 00:27:00 | P200: Plat5 | Q200: =IF(L200=1,IF(E200=PE!$A$16,(50/PE!$AR$16*PE!$T$16*PE!$V$16))) -> 246699.7115
A201: =IF(Paramètres!A199="","",Paramètres!A199) -> 26148 | B201: =IF(Paramètres!B199="","",Paramètres!B199) -> Serv Tab BS Ebène 48x48 | C201: =IF(Paramètres!C199="","",Paramètres!C199) -> 80 | D201: =IF(E201=0,0,H201*(1+I201)+J201) -> 83.33333333 | E201: =IF(Paramètres!A199="","",Paramètres!D199) -> serv tab pte | F201: =IF(Paramètres!E199="","",Paramètres!E199) -> RCALPP_inf_8 | G201: =IF(B201="",0,D201*C201/1000) -> 6.666666667 | H201: =SUM(IF((Narlivt!$E$9:$E$6968='Qtité art'!A201),(Narlivt!$H$9:$H$6968)/Narlivt!$H$5)) -> 83.33333333 | L201: =VLOOKUP(E201,PP!$A$12:$CD$27,51,FALSE) -> 5 | M201: =IF(L201=5,Lavage!$I$25) -> 01:06:21.565 | N201: =VLOOKUP(E201,PP!$A$12:$CD$27,73,FALSE) -> 0 | P201: Plat2 | Q201: =IF(L201=5,IF(E201=PP!$A$17,100/(PP!$AR$17*PP!$T$17*PP!$V$17))) -> 18:22:14.361
A202: =IF(Paramètres!A200="","",Paramètres!A200) -> 26544 | B202: =IF(Paramètres!B200="","",Paramètres!B200) -> Sac textileElis lavande imperméable | C202: =IF(Paramètres!C200="","",Paramètres!C200) -> 250 | D202: 90 | E202: =IF(Paramètres!A200="","",Paramètres!D200) -> sac | F202: =IF(Paramètres!E200="","",Paramètres!E200) -> HSECPM_Gant | G202: 22.5 | H202: =SUM(IF((Narlivt!$E$9:$E$6968='Qtité art'!A202),(Narlivt!$H$9:$H$6968)/Narlivt!$H$5)) -> 90 | L202: =VLOOKUP('Qtité art'!E202,'Pliage main'!$A$12:$CD$27,51,FALSE) -> 5 | M202: =IF(L202=5,Lavage!$I$25) -> 01:06:21.565 | N202: =VLOOKUP(E202,'Pliage main'!$A$12:$CD$27,73,FALSE) -> 0 | P202: Plat6 | Q202: =IF(L202=5,IF(E202='Pliage main'!$A$21,100/('Pliage main'!$AR$21*'Pliage main'!$T$21*'Pliage main'!$V$21))) -> 05:04:34.623
A203: =IF(Paramètres!A201="","",Paramètres!A201) -> 27107 | B203: =IF(Paramètres!B201="","",Paramètres!B201) -> Kit ORFEA Pt | C203: =IF(Paramètres!C201="","",Paramètres!C201) -> 0 | D203: 93 | E203: =IF(Paramètres!A201="","",Paramètres!D201) -> Poubelle | F203: =IF(Paramètres!E201="","",Paramètres!E201) -> HSECPM_Santé | G203: 0 | H203: =SUM(IF((Narlivt!$E$9:$E$6968='Qtité art'!A203),(Narlivt!$H$9:$H$6968)/Narlivt!$H$5)) -> 93 | N203: 2 | O203: =IF(N203=2,Séchage!$D$18) -> 00:22:38.495 | Q203: 12.96848461
... 697 more rows

Sheet Qtité art (2) (hidden)
A2: =Narlivt!F2 -> Semaines prises en compte dans le Narlivt | C2: =Narlivt!H2 -> S30 - S32
A5: Tonnage plat hebdo livré moyen | C5: =(SUM(G9:G900)/1000) -> 1060.540622 | D5: (yc variation de charge)
I6: Attention: ne pas modifier la ligne 7, cellules A à H, qui sert au calcul du tableau ci-dessous
A7: =IF(Paramètres!A5="","",Paramètres!A5) -> TABLE ARTICLE DU CENTRE | B7: =IF(Paramètres!B5="","",Paramètres!B5) ->  | C7: =IF(Paramètres!C5="","",Paramètres!C5) ->  | D7: =IF(E7=0,0,H7*(1+I7)+J7) -> 0 | E7: =IF(Paramètres!A5="","",Paramètres!D5) -> 0 | F7: =IF(Paramètres!E5="","",Paramètres!E5) ->  | G7: =IF(B7="",0,D7*C7/1000) -> 0 | H7: =SUM(IF((Narlivt!$E$9:$E$6968='Qtité art (2)'!A7),(Narlivt!$H$9:$H$6968)/Narlivt!$H$5)) -> 0
A8: code article | B8: nom_article | C8: Poids unitaire | D8: Qtité hebdo livrée (yc variation charge) | E8: Famille | F8: Activité | G8: Poids hebdo livré (yc variation charge) (kg) | H8: Qtité hebdo livrée (Narlivt) | I8: Variation hebdo de charge (%) | J8: Variation hebdo de charge (pièces) | K8: Commentaires | L8: lavage | M8: Unité de lavage (Kg) | N8: TcycleL | O8: Séchoir | P8: TcycleS | Q8: Calandre | R8: TcycleC
A9: 1 | B9: Alese pte blanc 100x170 NF | C9: 330 | D9: 3574.333333 | E9: pte al | F9: HCALPP_Alèse | G9: 1179.53 | H9: 3574.333333 | L9: Milnor | M9: 43 | N9: 00:03:00 | Q9: Plat4 | R9: 122.756589
A10: 4 | B10: Alese gde blc 155x200 CatA | C10: 524 | D10: 295.3333333 | E10: grde al | F10: HCALGP_Alèse | G10: 154.7546667 | H10: 295.3333333 | L10: Kannegiesser | M10: 53 | N10: 00:01:40 | Q10: Plat4 | R10: 122.756589
A11: 25 | B11: Champ Cre bleu 10x10 coton | C11: 182 | D11: 5 | E11: chp petit | F11: HCALPP_Alèse | G11: 0.91 | H11: 5 | L11: Milnor | M11: 43 | N11: 00:03:00 | Q11: Plat4 | R11: 122.756589
A12: 26 | B12: Champ db bleu 10x12 P/C 50/50 | C12: 430 | D12: 20 | E12: chp petit | F12: HCALPP_Alèse | G12: 8.6 | H12: 20 | L12: Milnor | M12: 43 | N12: 00:03:00 | Q12: Plat4 | R12: 122.756589
A13: 353 | B13: Taie Car Luxe PC VP blc | C13: 210 | D13: 272 | E13: taie luxe | F13: HCALPP_Taie | G13: 57.12 | H13: 272 | L13: Kannegiesser | M13: 53 | N13: 00:01:40 | O13: 2 | P13: 00:05:00 | Q13: Plat2 | R13: 316.442024
A14: 355 | B14: Taie Am Lux l.beige 75x50VP blc | C14: 193 | D14: 252.6666667 | E14: taie luxe | F14: HCALPP_Taie | G14: 48.76466667 | H14: 252.6666667 | L14: Kannegiesser | M14: 53 | N14: 00:01:40 | O14: 2 | P14: 00:05:00 | Q14: Plat2 | R14: 316.442024
A15: 366 | B15: Napperon Fleuri 10x10 blc | C15: 288 | D15: 102.6666667 | E15: npr 10 | F15: RCALPP_sup_8 | G15: 29.568 | H15: 102.6666667 | L15: Laveuses | M15: 335 | N15: 01:04:00 | Q15: Plat4 | R15: 122.756589
A16: 367 | B16: Napperon Fleuri 10x13 blc | C16: 367 | D16: 2.333333333 | E16: npr 10 | F16: RCALPP_sup_8 | G16: 0.8563333333 | H16: 2.333333333 | L16: Laveuses | M16: 335 | N16: 01:04:00 | Q16: Plat4 | R16: 122.756589
A17: 421 | B17: Serv Eponge COCOON blc | C17: 225 | D17: 25239.33333 | E17: serv éponge | F17: HSECPA_Eponge | G17: 5678.85 | H17: 24838.33333 | J17: 401 | L17: Kannegiesser | M17: 53 | N17: 00:01:40 | O17: 5 | P17: 00:27:00 | Q17: Plat5 | R17: 128.3260024
A18: 424 | B18: Serv Eponge bleu clair | C18: 172 | D18: 109 | E18: serv éponge | F18: HSECPA_Eponge | G18: 18.748 | H18: 109 | L18: Kannegiesser | M18: 53 | N18: 00:01:40 | O18: 5 | P18: 00:27:00 | Q18: Plat5 | R18: 128.3260024
A19: 428 | B19: Serv Eponge rose | C19: 162 | D19: 1994.666667 | E19: serv éponge | F19: HSECPA_Eponge | G19: 323.136 | H19: 1929.666667 | J19: 65 | L19: Kannegiesser | M19: 53 | N19: 00:01:40 | O19: 5 | P19: 00:27:00 | Q19: Plat5 | R19: 128.3260024
A20: 429 | B20: Serviette absorbante | C20: 45 | D20: 46.66666667 | E20: serv éponge | F20: HSECPA_Eponge | G20: 2.1 | H20: 46.66666667 | L20: Kannegiesser | M20: 53 | N20: 00:01:40 | O20: 5 | P20: 00:27:00 | Q20: Plat5 | R20: 128.3260024
A21: 434 | B21: Drap Hous jers blc 14x19 CP NF | C21: 450 | D21: 9.333333333 | E21: drap housse | F21: HSECPM_Santé | G21: 4.2 | H21: 9.333333333 | L21: Kannegiesser | M21: 53 | N21: 00:01:40 | O21: 2 | P21: 00:23:00 | Q21: Plat6 | R21: 59.42566326
A22: 446 | B22: Essuie-verres métis 46x75 | C22: 94 | D22: 1973 | E22: torchon | F22: RCALPP_inf_8 | G22: 185.462 | H22: 1973 | L22: Kannegiesser | M22: 53 | N22: 00:01:40 | O22: 2 | P22: 00:03:00 | Q22: Plat2 | R22: 316.442024
A23: 449 | B23: Liteau Elis | C23: 58 | D23: 224.6666667 | E23: torchon | F23: RCALPP_inf_8 | G23: 13.03066667 | H23: 224.6666667 | L23: Kannegiesser | M23: 53 | N23: 00:01:40 | O23: 2 | P23: 00:03:00 | Q23: Plat2 | R23: 316.442024
A24: 463 | B24: Hous trav Gd blc 4x18 NF | C24: 226 | D24: 305 | E24: hous trav | F24: HCALPP_Taie | G24: 68.93 | H24: 305 | L24: Kannegiesser | M24: 53 | N24: 00:01:40 | Q24: Plat4 | R24: 122.756589
A25: 473 | B25: Lange blc CP 60 40 NF | C25: 250 | D25: 46.66666667 | E25: carré/gant | F25: HSECPM_Gant | G25: 11.66666667 | H25: 46.66666667 | L25: Laveuses | M25: 1053 | N25: 01:30:00 | O25: 2 | P25: 00:28:00 | Q25: Plat6 | R25: 59.42566326
A26: 517 | B26: Taie Am Clas blc 50x77 NF | C26: 136 | D26: 12437.33333 | E26: taie am | F26: HCALPP_Taie | G26: 1691.477333 | H26: 12437.33333 | L26: Kannegiesser | M26: 53 | N26: 00:01:40 | O26: 2 | P26: 00:05:00 | Q26: Plat2 | R26: 316.442024
A27: 704 | B27: Nappe BS blanc 18x18 | C27: 818 | D27: 47 | E27: nap 15 + 18 | F27: RCALGP_Grde_Nappe | G27: 38.446 | H27: 47 | L27: Laveuses | M27: 335 | N27: 01:04:00 | Q27: Plat4 | R27: 122.756589
A28: 712 | B28: Dessus lit Rayé bleu 18x25 NF | C28: 1110 | D28: 30 | E28: des lit | F28: HCALGP_HC | G28: 33.3 | H28: 30 | L28: Laveuses | M28: 386 | N28: 00:50:00 | Q28: Plat4 | R28: 122.756589
A29: 735 | B29: Nappe Fleuri blc 24x24 | C29: 1520 | D29: 88 | E29: nap 24 | F29: RCALGP_Grde_Nappe | G29: 133.76 | H29: 88 | L29: Laveuses | M29: 335 | N29: 01:04:00 | Q29: Plat4 | R29: 122.756589
A30: 830 | B30: Nappe Fleuri blc 12x12 | C30: 380 | D30: 379 | E30: nap 12 | F30: RCALGP_Pte_Nappe | G30: 144.02 | H30: 379 | L30: Laveuses | M30: 335 | N30: 01:04:00 | Q30: Plat4 | R30: 122.756589
A31: 831 | B31: Nappe Fleuri blc 12x15 | C31: 470 | D31: 58 | E31: nap 15 + 18 | F31: RCALGP_Grde_Nappe | G31: 27.26 | H31: 58 | L31: Laveuses | M31: 335 | N31: 01:04:00 | Q31: Plat4 | R31: 122.756589
A32: 833 | B32: Nappe Fleuri blc 12x20 | C32: 610 | D32: 6 | E32: nap 20 | F32: RCALGP_Grde_Nappe | G32: 3.66 | H32: 6 | L32: Laveuses | M32: 335 | N32: 01:04:00 | Q32: Plat4 | R32: 122.756589
A33: 835 | B33: Nappe Fleuri blc 15x15 | C33: 590 | D33: 566 | E33: nap 15 + 18 | F33: RCALGP_Grde_Nappe | G33: 333.94 | H33: 566 | L33: Laveuses | M33: 335 | N33: 01:04:00 | Q33: Plat4 | R33: 122.756589
A34: 836 | B34: Nappe Fleuri blc 15x20 | C34: 771 | D34: 183.3333333 | E34: nap 20 | F34: RCALGP_Grde_Nappe | G34: 141.35 | H34: 183.3333333 | L34: Laveuses | M34: 335 | N34: 01:04:00 | Q34: Plat4 | R34: 122.756589
A35: 837 | B35: Nappe Fleuri blc 15x25 | C35: 1078 | D35: 3.666666667 | E35: nap 24 | F35: RCALGP_Grde_Nappe | G35: 3.952666667 | H35: 3.666666667 | L35: Laveuses | M35: 335 | N35: 01:04:00 | Q35: Plat4 | R35: 122.756589
A36: 838 | B36: Nappe Fleuri blc 15x30 | C36: 1289 | D36: 30.33333333 | E36: nap .30 | F36: RCALGP_Très_Grde_Nappe | G36: 39.09966667 | H36: 30.33333333 | L36: Laveuses | M36: 335 | N36: 01:04:00 | Q36: Plat4 | R36: 122.756589
A37: 842 | B37: Nappe Fleuri blc 20x20 | C37: 1021 | D37: 192 | E37: nap 20 | F37: RCALGP_Grde_Nappe | G37: 196.032 | H37: 192 | L37: Laveuses | M37: 335 | N37: 01:04:00 | Q37: Plat4 | R37: 122.756589
A38: 854 | B38: Serv Ess bande bleue | C38: 75 | D38: 1.666666667 | E38: torchon | F38: RCALPP_inf_8 | G38: 0.125 | H38: 1.666666667 | L38: Kannegiesser | M38: 53 | N38: 00:01:40 | O38: 2 | P38: 00:03:00 | Q38: Plat2 | R38: 316.442024
A39: 856 | B39: Sac soluble | C39: 0 | D39: 185.6666667 | E39: Poubelle | F39: HSECPM_Santé | G39: 0 | H39: 185.6666667 | L39: Laveuses | M39: 0 | O39: 2 | P39: 00:28:00 | R39: 12.96848461
A40: 945 | B40: Casaque Tradition bleu PC 50/50 | C40: 500 | D40: 7.666666667 | E40: peignoir/cas | F40: HSECPM_Peignoir | G40: 3.833333333 | H40: 7.666666667 | L40: Laveuses | M40: 386 | N40: 01:00:00 | O40: 2 | P40: 00:28:00 | Q40: Plat6 | R40: 59.42566326
A41: 1056 | B41: Serv Tab Fleuri GDE 60x70 blc | C41: 128 | D41: 101 | E41: serv tab gde | F41: RCALPP_inf_8 | G41: 12.928 | H41: 101 | L41: Laveuses | M41: 335 | N41: 01:04:00 | Q41: Plat2 | R41: 316.442024
A42: 1090 | B42: Tablier Boucher simple | C42: 284 | D42: 248.3333333 | E42: tablier blanc | F42: RCALPP_inf_8 | G42: 70.52666667 | H42: 248.3333333 | L42: Kannegiesser | M42: 53 | N42: 00:01:40 | O42: 2 | P42: 00:12:00 | Q42: Plat2 | R42: 316.442024
A43: 1091 | B43: Tablier Boucher bret blc | C43: 367 | D43: 1413.666667 | E43: tablier bret | F43: RCALPP_inf_8 | G43: 518.8156667 | H43: 1413.666667 | L43: Kannegiesser | M43: 53 | N43: 00:01:40 | O43: 2 | P43: 00:13:00 | Q43: Plat2 | R43: 316.442024
A44: 1094 | B44: Tablier bleu | C44: 321 | D44: 257.3333333 | E44: tablier bleu | F44: RCALPP_inf_8 | G44: 82.604 | H44: 257.3333333 | L44: Kannegiesser | M44: 53 | N44: 00:01:40 | O44: 2 | P44: 00:12:00 | Q44: Plat2 | R44: 316.442024
A45: 1096 | B45: Tablier Chef | C45: 371 | D45: 1339 | E45: tablier blanc | F45: RCALPP_inf_8 | G45: 496.769 | H45: 1339 | L45: Kannegiesser | M45: 53 | N45: 00:01:40 | O45: 2 | P45: 00:12:00 | Q45: Plat2 | R45: 316.442024
A46: 1121 | B46: Tablier Valet | C46: 383 | D46: 2504.666667 | E46: tablier blanc | F46: RCALPP_inf_8 | G46: 959.2873333 | H46: 2504.666667 | L46: Kannegiesser | M46: 53 | N46: 00:01:40 | O46: 2 | P46: 00:12:00 | Q46: Plat2 | R46: 316.442024
A47: 1135 | B47: Taie Car Clas blc 60x60 NF | C47: 165 | D47: 5179.333333 | E47: Taie Carrée | F47: HCALPP_Taie | G47: 854.59 | H47: 5179.333333 | L47: Kannegiesser | M47: 53 | N47: 00:01:40 | O47: 2 | P47: 00:05:00 | Q47: Plat2 | R47: 316.442024
A48: 1141 | B48: Torchon Elis blc 50x66 | C48: 90 | D48: 13207 | E48: torchon | F48: RCALPP_inf_8 | G48: 1188.63 | H48: 13207 | L48: Kannegiesser | M48: 53 | N48: 00:01:40 | O48: 2 | P48: 00:03:00 | Q48: Plat2 | R48: 316.442024
A49: 1214 | B49: Dessus Lit Rayé jaune 18x25 NF | C49: 1110 | D49: 16.33333333 | E49: des lit | F49: HCALGP_HC | G49: 18.13 | H49: 16.33333333 | L49: Laveuses | M49: 386 | N49: 00:50:00 | Q49: Plat4 | R49: 122.756589
A50: 1228 | B50: Serv Tab Fleuri PTE 55x55 blc | C50: 91 | D50: 6252.666667 | E50: serv tab pte | F50: RCALPP_inf_8 | G50: 568.9926667 | H50: 6252.666667 | L50: Laveuses | M50: 335 | N50: 01:04:00 | Q50: Plat2 | R50: 316.442024
A51: 1249 | B51: Couche blc coton NF | C51: 47 | D51: 155 | E51: couche | F51: HSECPM_Santé | G51: 7.285 | H51: 155 | L51: Laveuses | M51: 386 | N51: 00:50:00 | Q51: Plat2 | R51: 316.442024
A52: 1264 | B52: Nappe Fleuri blc 18x18 | C52: 820 | D52: 20.33333333 | E52: nap 15 + 18 | F52: RCALGP_Grde_Nappe | G52: 16.67333333 | H52: 20.33333333 | L52: Laveuses | M52: 335 | N52: 01:04:00 | Q52: Plat4 | R52: 122.756589
A53: 1341 | B53: Drap Clas blc l.orang 180 NF | C53: 780 | D53: 35737.66667 | E53: drap petit | F53: HCALGP_Drap | G53: 27875.38 | H53: 35737.66667 | L53: Kannegiesser | M53: 53 | N53: 00:01:40 | Q53: Plat3 | R53: 12.96848461
A54: 1351 | B54: Tablier Plonge lourd | C54: 435 | D54: 1254 | E54: tablier blanc | F54: RCALPP_inf_8 | G54: 545.49 | H54: 1254 | L54: Kannegiesser | M54: 53 | N54: 00:01:40 | O54: 2 | P54: 00:12:00 | Q54: Plat2 | R54: 316.442024
A55: 1387 | B55: Gant Toilette COCOON | C55: 30 | D55: 25611.33333 | E55: carré/gant | F55: HSECPM_Gant | G55: 768.34 | H55: 25611.33333 | L55: Laveuses | M55: 1053 | N55: 01:30:00 | O55: 2 | P55: 00:28:00 | Q55: Plat6 | R55: 59.42566326
A56: 1467 | B56: Peignoir Chale Luxe blc | C56: 1701 | D56: 210.3333333 | E56: peignoir/cas | F56: HSECPM_Peignoir | G56: 357.777 | H56: 210.3333333 | L56: Laveuses | M56: 386 | N56: 01:00:00 | O56: 2 | P56: 00:28:00 | Q56: Plat6 | R56: 59.42566326
A57: 1497 | B57: Drap Clas jonq 180 NF | C57: 785 | D57: 516 | E57: drap petit | F57: HCALGP_Drap | G57: 405.06 | H57: 516 | L57: Kannegiesser | M57: 53 | N57: 00:01:40 | Q57: Plat3 | R57: 12.96848461
A58: 1498 | B58: Taie Car Clas jonq 60X60 Vp NF | C58: 177 | D58: 120 | E58: Taie Carrée | F58: HCALPP_Taie | G58: 21.24 | H58: 120 | L58: Kannegiesser | M58: 53 | N58: 00:01:40 | O58: 2 | P58: 00:05:00 | Q58: Plat2 | R58: 316.442024
A59: 1522 | B59: Couette Brancard ciel 120x180 NF | C59: 950 | D59: 364.3333333 | E59: couette/couv | F59: HSECPM_Couv | G59: 346.1166667 | H59: 364.3333333 | L59: Laveuses | M59: 386 | N59: 01:00:00 | O59: 3 | P59: 00:28:00 | Q59: Plat6 | R59: 59.42566326
A60: 1528 | B60: Drap Enfant Rose 80x150 NF | C60: 190 | D60: 40 | E60: drap petit | F60: HCALGP_Drap | G60: 7.6 | H60: 40 | L60: Kannegiesser | M60: 53 | N60: 00:01:40 | Q60: Plat3 | R60: 12.96848461
A61: 1613 | B61: Drap Clas ciel 180 NF | C61: 785 | D61: 1851.333333 | E61: drap petit | F61: HCALGP_Drap | G61: 1453.296667 | H61: 1851.333333 | L61: Kannegiesser | M61: 53 | N61: 00:01:40 | Q61: Plat3 | R61: 12.96848461
A62: 1718 | B62: Tapis bain COCOON blc | C62: 282 | D62: 3004 | E62: tapis bain | F62: HSECPA_Eponge | G62: 847.128 | H62: 2960 | J62: 44 | K62: ST | L62: Kannegiesser | M62: 53 | N62: 00:01:40 | O62: 5 | P62: 00:27:00 | Q62: Plat5 | R62: 128.3260024
A63: 1813 | B63: Nappe Fleuri abri 12x15 | C63: 558 | D63: 4.333333333 | E63: nap 15 + 18 | F63: RCALGP_Grde_Nappe | G63: 2.418 | H63: 4.333333333 | L63: Laveuses | M63: 335 | N63: 01:04:00 | Q63: Plat4 | R63: 122.756589
A64: 1864 | B64: Nappe Fleuri abri 15x15 | C64: 700 | D64: 15 | E64: nap 15 + 18 | F64: RCALGP_Grde_Nappe | G64: 10.5 | H64: 15 | L64: Laveuses | M64: 335 | N64: 01:04:00 | Q64: Plat4 | R64: 122.756589
A65: 1967 | B65: DrapHous jers blc l.rose90x200 NF | C65: 600 | D65: 10246 | E65: drap housse | F65: HSECPM_Santé | G65: 6147.6 | H65: 10246 | L65: Kannegiesser | M65: 53 | N65: 00:01:40 | O65: 2 | P65: 00:23:00 | Q65: Plat6 | R65: 59.42566326
A66: 1987 | B66: Nappe Fleuri abri 15x20 | C66: 922 | D66: 0.3333333333 | E66: nap 20 | F66: RCALGP_Grde_Nappe | G66: 0.3073333333 | H66: 0.3333333333 | L66: Laveuses | M66: 335 | N66: 01:04:00 | Q66: Plat4 | R66: 122.756589
A67: 2051 | B67: Drap Clas blc 2l.vert 240 NF | C67: 1066 | D67: 9320.666667 | E67: drap grand | F67: HCALGP_Drap | G67: 9935.830667 | H67: 9320.666667 | L67: Kannegiesser | M67: 53 | N67: 00:01:40 | Q67: Plat3 | R67: 12.96848461
A68: 2061 | B68: Sac elis jaune compel | C68: 194 | D68: 2.666666667 | E68: Poubelle | F68: HSECPM_Santé | G68: 0.5173333333 | H68: 2.666666667 | L68: 0 | M68: 0 | O68: 2 | R68: 12.96848461
A69: 2097 | B69: Housse Trav Jonq NF | C69: 153 | D69: 3 | E69: hous trav | F69: HCALPP_Taie | G69: 0.459 | H69: 3 | L69: Kannegiesser | M69: 53 | N69: 00:01:40 | Q69: Plat4 | R69: 122.756589
A70: 2280 | B70: Taie Car Clas ciel 60x60 VP NF | C70: 177 | D70: 628.6666667 | E70: Taie Carrée | F70: HCALPP_Taie | G70: 111.274 | H70: 378.6666667 | J70: 250 | K70: ST | L70: Kannegiesser | M70: 53 | N70: 00:01:40 | O70: 2 | P70: 00:05:00 | Q70: Plat2 | R70: 316.442024
A71: 2299 | B71: Chemise Malade bleu pressions | C71: 380 | D71: 3291.666667 | E71: chmal | F71: HSECPM_Chem_mal | G71: 1250.833333 | H71: 3291.666667 | L71: Milnor | M71: 43 | N71: 00:03:00 | O71: 2 | P71: 00:23:00 | Q71: Plat5 | R71: 128.3260024
A72: 2348 | B72: Drap 1/2 Housse blc 9x25 NF | C72: 540 | D72: 502.3333333 | E72: drap 1/2 | F72: HCALGP_Drap | G72: 271.26 | H72: 502.3333333 | L72: Milnor | M72: 43 | N72: 00:03:00 | Q72: Plat4 | R72: 122.756589
A73: 2642 | B73: Nappe Fleuri abri 20x20 | C73: 1191 | D73: 0.6666666667 | E73: nap 20 | F73: RCALGP_Grde_Nappe | G73: 0.794 | H73: 0.6666666667 | L73: Laveuses | M73: 335 | N73: 01:04:00 | Q73: Plat4 | R73: 122.756589
A74: 2647 | B74: Taie Am Clas blc 46x71VPDF NF | C74: 173 | D74: 154 | E74: taie am | F74: HCALPP_Taie | G74: 26.642 | H74: 154 | L74: Kannegiesser | M74: 53 | N74: 00:01:40 | O74: 2 | P74: 00:05:00 | Q74: Plat2 | R74: 316.442024
A75: 2847 | B75: Carre visage blc | C75: 47 | D75: 1013.333333 | E75: carré/gant | F75: HSECPM_Gant | G75: 47.62666667 | H75: 1013.333333 | L75: Laveuses | M75: 1053 | N75: 01:30:00 | O75: 2 | P75: 00:28:00 | Q75: Plat6 | R75: 59.42566326
A76: 2941 | B76: Drap Clas blc l. noir 280 NF | C76: 1210 | D76: 4074.333333 | E76: drap grand | F76: HCALGP_Drap | G76: 4929.943333 | H76: 4071.333333 | J76: 3 | K76: ST | L76: Kannegiesser | M76: 53 | N76: 00:01:40 | Q76: Plat3 | R76: 12.96848461
A77: 2990 | B77: Chemise Opéré bleu cordons | C77: 250 | D77: 780.3333333 | E77: chmal | F77: HSECPM_Chem_mal | G77: 195.0833333 | H77: 780.3333333 | L77: Milnor | M77: 43 | N77: 00:03:00 | O77: 2 | P77: 00:23:00 | Q77: Plat5 | R77: 128.3260024
A78: 3114 | B78: Serv.ind. orange PF Garage | C78: 35 | D78: 969.6666667 | E78: serv éponge | F78: HSECPA_Eponge | G78: 33.93833333 | H78: 969.6666667 | L78: Kannegiesser | M78: 53 | N78: 00:01:40 | O78: 5 | P78: 00:27:00 | Q78: Plat5 | R78: 128.3260024
A79: 3187 | B79: Nappe BS blc 24x24 | C79: 1521 | D79: 7.333333333 | E79: nap 24 | F79: RCALGP_Grde_Nappe | G79: 11.154 | H79: 7.333333333 | L79: Laveuses | M79: 335 | N79: 01:04:00 | Q79: Plat4 | R79: 122.756589
A80: 3229 | B80: Serv.ind. bleue GF Imprimerie | C80: 55 | D80: 57.66666667 | E80: serv éponge | F80: HSECPA_Eponge | G80: 3.171666667 | H80: 57.66666667 | L80: Kannegiesser | M80: 53 | N80: 00:01:40 | O80: 5 | P80: 00:27:00 | Q80: Plat5 | R80: 128.3260024
A81: 3244 | B81: Drap bain COCOON blc | C81: 450 | D81: 8788.333333 | E81: drap bain | F81: HSECPA_DB | G81: 3954.75 | H81: 8713.333333 | J81: 75 | K81: ST | L81: Kannegiesser | M81: 53 | N81: 00:01:40 | O81: 5 | P81: 00:27:00 | Q81: Plat5 | R81: 128.3260024
A82: 3274 | B82: Serv.ind. jaune GF Mécanique | C82: 60 | D82: 1005 | E82: serv éponge | F82: HSECPA_Eponge | G82: 60.3 | H82: 1005 | L82: Kannegiesser | M82: 53 | N82: 00:01:40 | O82: 5 | P82: 00:27:00 | Q82: Plat5 | R82: 128.3260024
A83: 3297 | B83: Taie Car Imperm NF | C83: 395 | D83: 14 | E83: Taie Carrée | F83: HCALPP_Taie | G83: 5.53 | H83: 14 | L83: Kannegiesser | M83: 53 | N83: 00:01:40 | O83: 2 | P83: 00:05:00 | Q83: Plat2 | R83: 316.442024
A84: 3426 | B84: Couette ambu blc cassé CatA | C84: 1380 | D84: 243.3333333 | E84: couette/couv | F84: HSECPM_Couv | G84: 335.8 | H84: 243.3333333 | L84: Laveuses | M84: 386 | N84: 01:00:00 | O84: 3 | P84: 00:28:00 | Q84: Plat6 | R84: 59.42566326
A85: 3436 | B85: Taie Car Clas blc 60x60VP NF | C85: 202 | D85: 11996 | E85: Taie Carrée | F85: HCALPP_Taie | G85: 2423.192 | H85: 11996 | L85: Kannegiesser | M85: 53 | N85: 00:01:40 | O85: 2 | P85: 00:05:00 | Q85: Plat2 | R85: 316.442024
A86: 3465 | B86: Serv. Alim. grege Elis | C86: 50 | D86: 758.3333333 | E86: serv tab pte | F86: RCALPP_inf_8 | G86: 37.91666667 | H86: 758.3333333 | L86: Laveuses | M86: 335 | N86: 01:04:00 | Q86: Plat2 | R86: 316.442024
A87: 3513 | B87: Tun bloc Dominique blc | C87: 289 | D87: 76 | E87: VT Séché TF | F87: VT_ | G87: 21.964 | H87: 76 | L87: Milnor | M87: 43 | Q87: Plat6 | R87: 59.42566326
A88: 3518 | B88: Tun. bloc Dominique T0 blanc PC | C88: 300 | D88: 6.333333333 | E88: VT Séché TF | F88: VT_ | G88: 1.9 | H88: 6.333333333 | L88: Milnor | M88: 43 | Q88: Plat6 | R88: 59.42566326
A89: 3524 | B89: Tun. bloc Dominique T1 blanc PC | C89: 300 | D89: 40.33333333 | E89: VT Séché TF | F89: VT_ | G89: 12.1 | H89: 40.33333333 | L89: Milnor | M89: 43 | Q89: Plat6 | R89: 59.42566326
A90: 3526 | B90: Tun. bloc Dominique T2 blanc PC | C90: 300 | D90: 31.33333333 | E90: VT Séché TF | F90: VT_ | G90: 9.4 | H90: 31.33333333 | L90: Milnor | M90: 43 | Q90: Plat6 | R90: 59.42566326
A91: 3527 | B91: Tun. bloc Dominique T3 blanc PC | C91: 300 | D91: 21.66666667 | E91: VT Séché TF | F91: VT_ | G91: 6.5 | H91: 21.66666667 | L91: Milnor | M91: 43 | Q91: Plat6 | R91: 59.42566326
A92: 3528 | B92: Tun. bloc Dominique T4 blanc PC | C92: 300 | D92: 14 | E92: VT Séché TF | F92: VT_ | G92: 4.2 | H92: 14 | L92: Milnor | M92: 43 | Q92: Plat6 | R92: 59.42566326
A93: 3593 | B93: Serv Ep. Luxe | C93: 303 | D93: 5 | E93: serv éponge luxe | F93: HSECPA_Eponge | G93: 1.515 | H93: 5 | L93: Kannegiesser | M93: 53 | N93: 00:01:40 | O93: 5 | P93: 00:27:00 | Q93: Plat5 | R93: 128.3260024
A94: 3660 | B94: Serv Tab Fleuri égl. gd | C94: 136 | D94: 31.33333333 | E94: serv tab gde | F94: RCALPP_inf_8 | G94: 4.261333333 | H94: 31.33333333 | L94: Laveuses | M94: 335 | N94: 01:04:00 | Q94: Plat2 | R94: 316.442024
A95: 3745 | B95: Sac textile elis vert polyester | C95: 250 | D95: 198.6666667 | E95: sac | F95: HSECPM_Gant | G95: 49.66666667 | H95: 198.6666667 | L95: Laveuses | M95: 335 | N95: 00:35:00 | Q95: Plat6 | R95: 59.42566326
A96: 3757 | B96: Champ bleu 11x17 P/C 50/50 | C96: 305 | D96: 37.33333333 | E96: chp grd | F96: HCALGP_Alèse | G96: 11.38666667 | H96: 37.33333333 | L96: Milnor | M96: 43 | N96: 00:03:00 | O96: 2 | Q96: Plat4 | R96: 122.756589
A97: 3765 | B97: Champ bleu 10x10 P/C 50/50 | C97: 184 | D97: 160 | E97: chp petit | F97: HCALPP_Alèse | G97: 29.44 | H97: 160 | L97: Milnor | M97: 43 | N97: 00:03:00 | Q97: Plat4 | R97: 122.756589
A98: 3773 | B98: Champ tr bleu 10x10 P/C 50/50 | C98: 186 | D98: 11 | E98: chp petit | F98: HCALPP_Alèse | G98: 2.046 | H98: 11 | L98: Milnor | M98: 43 | N98: 00:03:00 | Q98: Plat4 | R98: 122.756589
A99: 3782 | B99: Serviette Oeil 60x73 | C99: 145 | D99: 287 | E99: serv œil | F99: RCALPP_inf_8 | G99: 41.615 | H99: 287 | L99: Kannegiesser | M99: 53 | N99: 00:01:40 | Q99: Plat2 | R99: 316.442024
A100: 3784 | B100: Champ tr vert 10x10 P/C 50/50 | C100: 186 | D100: 1 | E100: drap petit | F100: HCALGP_Drap | G100: 0.186 | H100: 1 | L100: Kannegiesser | M100: 53 | N100: 00:01:40 | Q100: Plat3 | R100: 12.96848461
A101: 3825 | B101: Combi Atlanta gris PC | C101: 896 | D101: 4.333333333 | E101: VT Séché TF | F101: VT_ | G101: 3.882666667 | H101: 4.333333333 | L101: Milnor | M101: 43 | Q101: Plat6 | R101: 59.42566326
A102: 3826 | B102: Combi Atlanta vert bout. PC | C102: 897 | D102: 9.333333333 | E102: VT Séché TF | F102: VT_ | G102: 8.372 | H102: 9.333333333 | L102: Milnor | M102: 43 | Q102: Plat6 | R102: 59.42566326
A103: 3883 | B103: Sac plastique incontinent | C103: 0 | D103: 41.33333333 | E103: Poubelle | F103: HSECPM_Santé | G103: 0 | H103: 41.33333333 | L103: 0 | M103: 0 | O103: 2 | R103: 12.96848461
A104: 3932 | B104: Chp tr bleu 20x22 P/C 50/50 | C104: 847 | D104: 4.333333333 | E104: chp grd | F104: HCALGP_Alèse | G104: 3.670333333 | H104: 4.333333333 | L104: Milnor | M104: 43 | N104: 00:03:00 | O104: 2 | Q104: Plat4 | R104: 122.756589
A105: 3941 | B105: Veste Agro blanc 245 g PC 67/33 | C105: 540 | D105: 99.66666667 | E105: VT Séché TF | F105: VT_ | G105: 53.82 | H105: 99.66666667 | L105: Milnor | M105: 43 | Q105: Plat6 | R105: 59.42566326
A106: 4066 | B106: Serv Tab Plat brdx | C106: 48 | D106: 23.33333333 | E106: serv tab gde prestige | F106: RCALPP_inf_8 | G106: 1.12 | H106: 23.33333333 | L106: Laveuses | M106: 335 | N106: 01:04:00 | Q106: Plat2 | R106: 316.442024
A107: 4117 | B107: Nappe Gabriel jaune 12x12 | C107: 475 | D107: 3.333333333 | E107: nap 12 | F107: RCALGP_Pte_Nappe | G107: 1.583333333 | H107: 3.333333333 | L107: Laveuses | M107: 335 | N107: 01:04:00 | Q107: Plat4 | R107: 122.756589
A108: 4211 | B108: Drap blc 70x90 NF | C108: 140 | D108: 23.33333333 | E108: drap petit | F108: HCALGP_Drap | G108: 3.266666667 | H108: 23.33333333 | L108: Kannegiesser | M108: 53 | N108: 00:01:40 | Q108: Plat3 | R108: 12.96848461
A109: 4291 | B109: Alèse blc 12x17 coton Piq.Rouge NF | C109: 530 | D109: 45.66666667 | E109: grde al | F109: HCALGP_Alèse | G109: 24.20333333 | H109: 45.66666667 | L109: Kannegiesser | M109: 53 | N109: 00:01:40 | Q109: Plat4 | R109: 122.756589
A110: 4359 | B110: Chemise Opere blc cordons | C110: 406 | D110: 260.3333333 | E110: chmal | F110: HSECPM_Chem_mal | G110: 105.6953333 | H110: 260.3333333 | L110: Milnor | M110: 43 | N110: 00:03:00 | O110: 2 | P110: 00:23:00 | Q110: Plat5 | R110: 128.3260024
A111: 4652 | B111: Couette Navajo 180x230 NF | C111: 1800 | D111: 8 | E111: couette/couv | F111: HSECPM_Couv | G111: 14.4 | H111: 8 | L111: Laveuses | M111: 386 | N111: 01:00:00 | O111: 3 | P111: 00:28:00 | Q111: Plat6 | R111: 59.42566326
A112: 4670 | B112: Drap Hous jers blc 40x80 NF | C112: 75 | D112: 32.33333333 | E112: drap housse | F112: HSECPM_Santé | G112: 2.425 | H112: 32.33333333 | L112: Kannegiesser | M112: 53 | N112: 00:01:40 | O112: 2 | P112: 00:23:00 | Q112: Plat6 | R112: 59.42566326
A113: 4722 | B113: Sac Textile Elis Beige Polyester | C113: 250 | D113: 252 | E113: sac | F113: HSECPM_Gant | G113: 63 | H113: 252 | L113: Laveuses | M113: 335 | N113: 00:35:00 | Q113: Plat6 | R113: 59.42566326
A114: 4854 | B114: Peignoir Sam COCOON blc | C114: 1260 | D114: 63 | E114: peignoir/cas | F114: HSECPM_Peignoir | G114: 79.38 | H114: 63 | L114: Laveuses | M114: 386 | N114: 01:00:00 | O114: 2 | P114: 00:28:00 | Q114: Plat6 | R114: 59.42566326
A115: 4945 | B115: Serv Tab Bistrot blanc | C115: 55 | D115: 1623.333333 | E115: serv tab pte | F115: RCALPP_inf_8 | G115: 89.28333333 | H115: 1623.333333 | L115: Laveuses | M115: 335 | N115: 01:04:00 | Q115: Plat2 | R115: 316.442024
A116: 5001 | B116: Essuie-verres coton 53x66 | C116: 90 | D116: 358.6666667 | E116: torchon | F116: RCALPP_inf_8 | G116: 32.28 | H116: 358.6666667 | L116: Kannegiesser | M116: 53 | N116: 00:01:40 | O116: 2 | P116: 00:03:00 | Q116: Plat2 | R116: 316.442024
A117: 5013 | B117: Tablier de salle blc | C117: 197 | D117: 36.66666667 | E117: tablier blanc | F117: RCALPP_inf_8 | G117: 7.223333333 | H117: 36.66666667 | L117: Kannegiesser | M117: 53 | N117: 00:01:40 | O117: 2 | P117: 00:12:00 | Q117: Plat2 | R117: 316.442024
A118: 5093 | B118: Nappe Platine brdx 12x12 | C118: 370 | D118: 22.66666667 | E118: nap 12 | F118: RCALGP_Pte_Nappe | G118: 8.386666667 | H118: 22.66666667 | L118: Laveuses | M118: 335 | N118: 01:04:00 | Q118: Plat4 | R118: 122.756589
A119: 5106 | B119: Nappe Platine brdx 12x15 | C119: 445 | D119: 6.666666667 | E119: nap 12 | F119: RCALGP_Pte_Nappe | G119: 2.966666667 | H119: 6.666666667 | L119: Laveuses | M119: 335 | N119: 01:04:00 | Q119: Plat4 | R119: 122.756589
A120: 5337 | B120: Hous trav Pt blc 40x135 NF | C120: 150 | D120: 4031.666667 | E120: hous trav | F120: HCALPP_Taie | G120: 604.75 | H120: 4031.666667 | L120: Kannegiesser | M120: 53 | N120: 00:01:40 | Q120: Plat4 | R120: 122.756589
A121: 5570 | B121: Couverture bleu 180x220 NF-2 | C121: 1590 | D121: 58.33333333 | E121: couette/couv | F121: HSECPM_Couv | G121: 92.75 | H121: 58.33333333 | L121: Laveuses | M121: 386 | N121: 01:00:00 | O121: 3 | P121: 00:28:00 | Q121: Plat6 | R121: 59.42566326
A122: 5641 | B122: Couette fantaisie 55x80 NF | C122: 215 | D122: 1.666666667 | E122: couette/couv | F122: HSECPM_Couv | G122: 0.3583333333 | H122: 1.666666667 | L122: Laveuses | M122: 386 | N122: 01:00:00 | O122: 3 | P122: 00:28:00 | Q122: Plat6 | R122: 59.42566326
A123: 5729 | B123: Alèse absorb rabats 87x87 NF | C123: 645 | D123: 636 | E123: alése abs | F123: HSECPA_Eponge | G123: 410.22 | H123: 636 | L123: Milnor | M123: 43 | N123: 00:03:00 | O123: 2 | P123: 00:04:37 | Q123: Plat5 | R123: 128.3260024
A124: 5734 | B124: Protège Matelas Imperm NF | C124: 830 | D124: 17 | E124: Protège matelas | F124: HSECPM_Santé | G124: 14.11 | H124: 17 | L124: Laveuses | M124: 1053 | N124: 01:30:00 | O124: 2 | P124: 00:23:00 | Q124: Plat6 | R124: 59.42566326
A125: 5922 | B125: Drap ciel 100x165 NF | C125: 310 | D125: 53.33333333 | E125: drap petit | F125: HCALGP_Drap | G125: 16.53333333 | H125: 53.33333333 | L125: Kannegiesser | M125: 53 | N125: 00:01:40 | Q125: Plat3 | R125: 12.96848461
A126: 5948 | B126: Veste mat. Agrofreeze blc ss P PC | C126: 800 | D126: 13.66666667 | E126: VT Séché TF | F126: VT_ | G126: 10.93333333 | H126: 13.66666667 | L126: Milnor | M126: 43 | Q126: Plat6 | R126: 59.42566326
A127: 6117 | B127: Serv Tab SU chmp | C127: 90 | D127: 875 | E127: serv tab pte | F127: RCALPP_inf_8 | G127: 78.75 | H127: 875 | L127: Laveuses | M127: 335 | N127: 01:04:00 | Q127: Plat2 | R127: 316.442024
A128: 6122 | B128: Nappe SU champ 12x12 | C128: 380 | D128: 126 | E128: nap 12 | F128: RCALGP_Pte_Nappe | G128: 47.88 | H128: 126 | L128: Laveuses | M128: 335 | N128: 01:04:00 | Q128: Plat4 | R128: 122.756589
A129: 6124 | B129: Nappe SU champ 15x15 | C129: 764 | D129: 19 | E129: nap 15 + 18 | F129: RCALGP_Grde_Nappe | G129: 14.516 | H129: 19 | L129: Laveuses | M129: 335 | N129: 01:04:00 | Q129: Plat4 | R129: 122.756589
A130: 6127 | B130: Nappe SU champ 15x20 | C130: 1006 | D130: 11.33333333 | E130: nap 20 | F130: RCALGP_Grde_Nappe | G130: 11.40133333 | H130: 11.33333333 | L130: Laveuses | M130: 335 | N130: 01:04:00 | Q130: Plat4 | R130: 122.756589
A131: 6128 | B131: Nappe SU champ 18x18 | C131: 820 | D131: 0.3333333333 | E131: Nap 15 + 18 | F131: RCALGP_Grde_Nappe | G131: 0.2733333333 | H131: 0.3333333333 | L131: Laveuses | M131: 335 | N131: 01:04:00 | Q131: Plat4 | R131: 122.756589
A132: 6178 | B132: Serv Tab SU jaune | C132: 101 | D132: 355 | E132: serv tab pte | F132: RCALPP_inf_8 | G132: 35.855 | H132: 355 | L132: Laveuses | M132: 335 | N132: 01:04:00 | Q132: Plat2 | R132: 316.442024
A133: 6179 | B133: Napperon SU jaune 9x9 | C133: 261 | D133: 3.333333333 | E133: npr | F133: RCALPP_sup_8 | G133: 0.87 | H133: 3.333333333 | L133: Laveuses | M133: 335 | N133: 01:04:00 | Q133: Plat4 | R133: 122.756589
A134: 6182 | B134: Nappe SU jaune 12x12 | C134: 429 | D134: 6 | E134: nap 12 | F134: RCALGP_Pte_Nappe | G134: 2.574 | H134: 6 | L134: Laveuses | M134: 335 | N134: 01:04:00 | Q134: Plat4 | R134: 122.756589
A135: 6184 | B135: Nappe SU jaune 15x15 | C135: 664 | D135: 8.333333333 | E135: nap 15 + 18 | F135: RCALGP_Grde_Nappe | G135: 5.533333333 | H135: 8.333333333 | L135: Laveuses | M135: 335 | N135: 01:04:00 | Q135: Plat4 | R135: 122.756589
A136: 6185 | B136: Nappe SU jaune 15x20 | C136: 876 | D136: 1 | E136: nap 20 | F136: RCALGP_Grde_Nappe | G136: 0.876 | H136: 1 | L136: Laveuses | M136: 335 | N136: 01:04:00 | Q136: Plat4 | R136: 122.756589
A137: 6238 | B137: Nappe SU champ 12x15 | C137: 610 | D137: 26.33333333 | E137: nap 15 + 18 | F137: RCALGP_Grde_Nappe | G137: 16.06333333 | H137: 26.33333333 | L137: Laveuses | M137: 335 | N137: 01:04:00 | Q137: Plat4 | R137: 122.756589
A138: 6243 | B138: Nappe SU jaune 12x15 | C138: 531 | D138: 3 | E138: nap 15 + 18 | F138: RCALGP_Grde_Nappe | G138: 1.593 | H138: 3 | L138: Laveuses | M138: 335 | N138: 01:04:00 | Q138: Plat4 | R138: 122.756589
A139: 6265 | B139: Drap ambu blc XL 155x240 NF | C139: 554 | D139: 1439 | E139: Drap ambulatoire | F139: HCALGP_Drap | G139: 797.206 | H139: 1439 | L139: Milnor | M139: 43 | N139: 00:03:00 | Q139: Plat4 | R139: 122.756589
A140: 6267 | B140: Alese chariot blc NF | C140: 410 | D140: 1984.333333 | E140: pte al | F140: HCALPP_Alèse | G140: 813.5766667 | H140: 1984.333333 | L140: Milnor | M140: 43 | N140: 00:03:00 | Q140: Plat4 | R140: 122.756589
A141: 6268 | B141: Bavoir adulte absorb | C141: 175 | D141: 2763.333333 | E141: Bavoir | F141: HSECPM_Santé | G141: 483.5833333 | H141: 2763.333333 | L141: Milnor | M141: 43 | N141: 00:03:00 | O141: 2 | P141: 00:23:00 | Q141: Plat5 | R141: 128.3260024
A142: 6271 | B142: Alese absorb NF | C142: 565 | D142: 1324.333333 | E142: alése abs | F142: HSECPA_Eponge | G142: 748.2483333 | H142: 1324.333333 | L142: Milnor | M142: 43 | N142: 00:03:00 | O142: 2 | P142: 00:04:37 | Q142: Plat5 | R142: 128.3260024
A143: 6418 | B143: Pant.H Agro blc PC 67/33 | C143: 512 | D143: 6.666666667 | E143: VT Séché TF | F143: VT_ | G143: 3.413333333 | H143: 6.666666667 | L143: Milnor | M143: 43 | O143: 0 | Q143: Plat6 | R143: 59.42566326
A144: 6531 | B144: Taie Car Clas aqua 60x60 VPDF NF | C144: 177 | D144: 51.33333333 | E144: taie carrée | F144: HCALPP_Taie | G144: 9.086 | H144: 51.33333333 | L144: Kannegiesser | M144: 53 | N144: 00:01:40 | O144: 2 | P144: 00:05:00 | Q144: Plat2 | R144: 316.442024
A145: 6735 | B145: Nappe BS blc 12x12 | C145: 405 | D145: 143.6666667 | E145: nap 12 | F145: RCALGP_Pte_Nappe | G145: 58.185 | H145: 143.6666667 | L145: Laveuses | M145: 335 | N145: 01:04:00 | O145: 0 | Q145: Plat4 | R145: 122.756589
A146: 6736 | B146: Nappe BS blc 12x15 | C146: 524 | D146: 38 | E146: nap 15 + 18 | F146: RCALGP_Grde_Nappe | G146: 19.912 | H146: 38 | L146: Laveuses | M146: 335 | N146: 01:04:00 | O146: 0 | Q146: Plat4 | R146: 122.756589
A147: 6739 | B147: Nappe BS blc 15x15 | C147: 656 | D147: 242.6666667 | E147: nap 15 + 18 | F147: RCALGP_Grde_Nappe | G147: 159.1893333 | H147: 242.6666667 | L147: Laveuses | M147: 335 | N147: 01:04:00 | O147: 0 | Q147: Plat4 | R147: 122.756589
A148: 6742 | B148: Nappe BS blc 15x20 | C148: 867 | D148: 144.6666667 | E148: nap 15 + 18 | F148: RCALGP_Grde_Nappe | G148: 125.426 | H148: 144.6666667 | L148: Laveuses | M148: 335 | N148: 01:04:00 | O148: 0 | Q148: Plat4 | R148: 122.756589
A149: 6749 | B149: Napperon BS 8x8 blc | C149: 170 | D149: 307 | E149: npr | F149: RCALPP_sup_8 | G149: 52.19 | H149: 307 | L149: Laveuses | M149: 335 | N149: 01:04:00 | O149: 0 | Q149: Plat4 | R149: 122.756589
A150: 6770 | B150: Desus Lit Milizac 18x26 CatA | C150: 1053 | D150: 44.66666667 | E150: des lit | F150: HCALGP_HC | G150: 47.034 | H150: 44.66666667 | L150: Laveuses | M150: 386 | N150: 00:50:00 | O150: 0 | Q150: Plat4 | R150: 122.756589
A151: 6820 | B151: Serv Tab.BS blanc 58x58 | C151: 70 | D151: 5023.333333 | E151: serv tab pte | F151: RCALPP_inf_8 | G151: 351.6333333 | H151: 5023.333333 | L151: Laveuses | M151: 335 | N151: 01:04:00 | O151: 0 | Q151: Plat2 | R151: 316.442024
A152: 6854 | B152: Napperon BS blanc 10x10 | C152: 260 | D152: 66.66666667 | E152: npr 10 | F152: RCALPP_sup_8 | G152: 17.33333333 | H152: 66.66666667 | L152: Laveuses | M152: 335 | N152: 01:04:00 | O152: 0 | Q152: Plat4 | R152: 122.756589
A153: 7375 | B153: Drap Clas blc l.jaune 205 NF | C153: 940 | D153: 256.3333333 | E153: drap petit | F153: HCALGP_Drap | G153: 240.9533333 | H153: 256.3333333 | L153: Kannegiesser | M153: 53 | N153: 00:01:40 | O153: 0 | Q153: Plat3 | R153: 12.96848461
A154: 7431 | B154: Blouse H ML Agro blc PC 67/33 | C154: 648 | D154: 4.666666667 | E154: VT Séché TF | F154: VT_ | G154: 3.024 | H154: 4.666666667 | L154: Milnor | M154: 43 | O154: 0 | Q154: Plat6 | R154: 59.42566326
A155: 8087 | B155: Serv Coiffeur SM blanc | C155: 185 | D155: 272.6666667 | E155: serv épges coiffeur | F155: HSECPA_Eponge | G155: 50.44333333 | H155: 272.6666667 | L155: Laveuses | M155: 1053 | N155: 01:10:00 | O155: 3 | P155: 00:28:00 | Q155: Plat5 | R155: 128.3260024
A156: 8146 | B156: Drap 1/2 Hous 14x25 NF | C156: 775 | D156: 366.6666667 | E156: drap 1/2 | F156: HCALGP_Drap | G156: 284.1666667 | H156: 366.6666667 | L156: Milnor | M156: 43 | N156: 00:03:00 | O156: 0 | Q156: Plat4 | R156: 122.756589
A157: 8222 | B157: Tee shirt Joss blc PC 50/50 | C157: 203 | D157: 4.666666667 | E157: VT Séché TF | F157: VT_ | G157: 0.9473333333 | H157: 4.666666667 | L157: Milnor | M157: 43 | O157: 0 | Q157: Plat6 | R157: 59.42566326
A158: 8233 | B158: Drap Clas ciel 240 NF | C158: 1070 | D158: 86.66666667 | E158: drap grand | F158: HCALGP_Drap | G158: 92.73333333 | H158: 86.66666667 | L158: Kannegiesser | M158: 53 | N158: 00:01:40 | O158: 0 | Q158: Plat3 | R158: 12.96848461
A159: 8750 | B159: Pant. mixte Brest blanc PC | C159: 321 | D159: 197.6666667 | E159: VT Séché TF | F159: VT_ | G159: 63.451 | H159: 197.6666667 | L159: Milnor | M159: 43 | O159: 0 | Q159: Plat6 | R159: 59.42566326
A160: 8785 | B160: Serv Eponge Confort blc | C160: 127 | D160: 6414 | E160: serv éponge | F160: HSECPA_Eponge | G160: 814.578 | H160: 6414 | L160: Kannegiesser | M160: 53 | N160: 00:01:40 | O160: 5 | P160: 00:27:00 | Q160: Plat5 | R160: 128.3260024
A161: 8786 | B161: Drap bain Confort blc | C161: 360 | D161: 6604.666667 | E161: drap bain | F161: HSECPA_DB | G161: 2377.68 | H161: 6604.666667 | L161: Kannegiesser | M161: 53 | N161: 00:01:40 | O161: 5 | P161: 00:27:00 | Q161: Plat5 | R161: 128.3260024
A162: 8787 | B162: Tapis bain Confort blc | C162: 182 | D162: 7015.333333 | E162: tapis bain | F162: HSECPA_Eponge | G162: 1276.790667 | H162: 7015.333333 | L162: Kannegiesser | M162: 53 | N162: 00:01:40 | O162: 5 | P162: 00:27:00 | Q162: Plat5 | R162: 128.3260024
A163: 9212 | B163: Couette Tulipe 180x230 NF | C163: 1800 | D163: 253.6666667 | E163: couette/couv | F163: HSECPM_Couv | G163: 456.6 | H163: 249.6666667 | J163: 4 | K163: ST | L163: Laveuses | M163: 386 | N163: 01:00:00 | O163: 3 | P163: 00:28:00 | Q163: Plat6 | R163: 59.42566326
A164: 9441 | B164: Sac textile elis gris polyester | C164: 251 | D164: 6100.666667 | E164: sac | F164: HSECPM_Gant | G164: 1531.267333 | H164: 5904.666667 | J164: 196 | K164: ST | L164: Laveuses | M164: 335 | N164: 00:35:00 | O164: 0 | Q164: Plat6 | R164: 59.42566326
A165: 9442 | B165: Sac textile elis orange polyester | C165: 250 | D165: 6407.666667 | E165: sac | F165: HSECPM_Gant | G165: 1601.916667 | H165: 6407.666667 | L165: Laveuses | M165: 335 | N165: 00:35:00 | O165: 0 | Q165: Plat6 | R165: 59.42566326
A166: 9568 | B166: Serv Eponge noir | C166: 183 | D166: 339.6666667 | E166: serv éponge | F166: HSECPA_Eponge | G166: 62.159 | H166: 339.6666667 | L166: Kannegiesser | M166: 53 | N166: 00:01:40 | O166: 5 | P166: 00:27:00 | Q166: Plat5 | R166: 128.3260024
A167: 9824 | B167: Gant Toilette Clas rose | C167: 25 | D167: 3802.333333 | E167: carré/gant | F167: HSECPM_Gant | G167: 95.05833333 | H167: 3802.333333 | L167: Laveuses | M167: 1053 | N167: 01:30:00 | O167: 2 | P167: 00:28:00 | Q167: Plat6 | R167: 59.42566326
A168: 9998 | B168: Sac pour serv.K | C168: 0 | D168: 19.33333333 | E168: sac | F168: HSECPM_Gant | G168: 0 | H168: 19.33333333 | L168: Laveuses | M168: 335 | N168: 00:35:00 | O168: 0 | Q168: Plat6 | R168: 59.42566326
A169: 10021 | B169: Couverture polaire bleu 75x80 NF-2 | C169: 194 | D169: 10 | E169: couette/couv | F169: HSECPM_Couv | G169: 1.94 | H169: 10 | L169: Laveuses | M169: 386 | N169: 01:00:00 | O169: 3 | P169: 00:28:00 | Q169: Plat6 | R169: 59.42566326
A170: 10028 | B170: Couverture polaire jaune 75x80 NF-2 | C170: 194 | D170: 34.33333333 | E170: couette/couv | F170: HSECPM_Couv | G170: 6.660666667 | H170: 34.33333333 | L170: Laveuses | M170: 386 | N170: 01:00:00 | O170: 3 | P170: 00:28:00 | Q170: Plat6 | R170: 59.42566326
A171: 10043 | B171: Tablier bav.blc brodé Avenance 99CP | C171: 315 | D171: 0.3333333333 | E171: VT Séché TF | F171: VT_ | G171: 0.105 | H171: 0.3333333333 | L171: Milnor | M171: 43 | O171: 0 | Q171: Plat6 | R171: 59.42566326
A172: 10294 | B172: Nappe ODP ecru 15x15 BS | C172: 682 | D172: 3.666666667 | E172: nap 15 + 18 | F172: RCALGP_Grde_Nappe | G172: 2.500666667 | H172: 3.666666667 | L172: Laveuses | M172: 335 | N172: 01:04:00 | O172: 0 | Q172: Plat4 | R172: 122.756589
A173: 10693 | B173: Tablier boucher Intermarché 2000 | C173: 357 | D173: 19 | E173: tablier blanc | F173: RCALPP_inf_8 | G173: 6.783 | H173: 19 | L173: Kannegiesser | M173: 53 | N173: 00:01:40 | O173: 2 | P173: 00:12:00 | Q173: Plat2 | R173: 316.442024
A174: 10919 | B174: Serv Eponge Luxe blc | C174: 305 | D174: 204.6666667 | E174: serv éponge luxe | F174: HSECPA_Eponge | G174: 62.42333333 | H174: 204.6666667 | L174: Kannegiesser | M174: 53 | N174: 00:01:40 | O174: 5 | P174: 00:27:00 | Q174: Plat5 | R174: 128.3260024
A175: 10920 | B175: Drap bain Luxe blc | C175: 834 | D175: 509 | E175: drap bain luxe | F175: HSECPA_DB | G175: 424.506 | H175: 509 | L175: Kannegiesser | M175: 53 | N175: 00:01:40 | O175: 5 | P175: 00:27:00 | Q175: Plat5 | R175: 128.3260024
A176: 11012 | B176: Serv Tab BS car/cam 50x50 | C176: 57 | D176: 15344.66667 | E176: serv tab pte | F176: RCALPP_inf_8 | G176: 874.646 | H176: 15344.66667 | L176: Laveuses | M176: 335 | N176: 01:04:00 | O176: 0 | Q176: Plat2 | R176: 316.442024
A177: 11013 | B177: ChTab BS car/cam 45x100 | C177: 115 | D177: 199.6666667 | E177: ch tab | F177: RCALPP_sup_8 | G177: 22.96166667 | H177: 199.6666667 | L177: Laveuses | M177: 335 | N177: 01:20:00 | O177: 0 | Q177: Plat4 | R177: 122.756589
A178: 11143 | B178: Drap Clas blc 2l. noir 310 NF | C178: 1309 | D178: 118.3333333 | E178: Drap grand | F178: HCALGP_Drap | G178: 154.8983333 | H178: 118.3333333 | L178: Kannegiesser | M178: 53 | N178: 00:01:40 | O178: 0 | Q178: Plat3 | R178: 12.96848461
A179: 11452 | B179: Napperon Platine 9x9 brx | C179: 220 | D179: 17.33333333 | E179: npr | F179: RCALPP_sup_8 | G179: 3.813333333 | H179: 17.33333333 | L179: Laveuses | M179: 335 | N179: 01:04:00 | O179: 0 | Q179: Plat4 | R179: 122.756589
A180: 11841 | B180: Drap bain Super Luxe Gd | C180: 988 | D180: 117.3333333 | E180: drap bain luxe | F180: HSECPA_DB | G180: 115.9253333 | H180: 117.3333333 | L180: Kannegiesser | M180: 53 | N180: 00:01:40 | O180: 5 | P180: 00:27:00 | Q180: Plat5 | R180: 128.3260024
A181: 11842 | B181: Tapis bain Luxe blc | C181: 296 | D181: 106.3333333 | E181: tapis bain luxe | F181: HSECPA_Eponge | G181: 31.47466667 | H181: 106.3333333 | L181: Kannegiesser | M181: 53 | N181: 00:01:40 | O181: 0 | P181: 00:27:00 | Q181: Plat5 | R181: 128.3260024
A182: 12182 | B182: Couette Océan 180x230 NF | C182: 725 | D182: 216.6666667 | E182: couette/couv | F182: HSECPM_Couv | G182: 157.0833333 | H182: 216.6666667 | L182: Laveuses | M182: 386 | N182: 01:00:00 | O182: 3 | P182: 00:28:00 | Q182: Plat6 | R182: 59.42566326
A183: 12558 | B183: Pant. mixte Brest blc T00 | C183: 0 | D183: 11.33333333 | E183: VT Séché TF | F183: VT_ | G183: 0 | H183: 11.33333333 | L183: Milnor | M183: 43 | O183: 0 | Q183: Plat6 | R183: 59.42566326
A184: 12559 | B184: Pant. mixte Brest blc T01 | C184: 0 | D184: 46 | E184: VT Séché TF | F184: VT_ | G184: 0 | H184: 46 | L184: Milnor | M184: 43 | O184: 0 | Q184: Plat6 | R184: 59.42566326
A185: 12560 | B185: Pant. mixte Brest blc T02 | C185: 0 | D185: 38.33333333 | E185: VT Séché TF | F185: VT_ | G185: 0 | H185: 38.33333333 | L185: Milnor | M185: 43 | O185: 0 | Q185: Plat6 | R185: 59.42566326
A186: 12561 | B186: Pant. mixte Brest blc T03 | C186: 0 | D186: 18 | E186: VT Séché TF | F186: VT_ | G186: 0 | H186: 18 | L186: Milnor | M186: 43 | O186: 0 | Q186: Plat6 | R186: 59.42566326
A187: 12562 | B187: Pant. mixte Brest blc T04 | C187: 0 | D187: 7.666666667 | E187: VT Séché TF | F187: VT_ | G187: 0 | H187: 7.666666667 | L187: Milnor | M187: 43 | O187: 0 | Q187: Plat6 | R187: 59.42566326
A188: 12563 | B188: Pant. mixte Brest blc T05 | C188: 0 | D188: 3.333333333 | E188: VT Séché TF | F188: VT_ | G188: 0 | H188: 3.333333333 | L188: Milnor | M188: 43 | O188: 0 | Q188: Plat6 | R188: 59.42566326
A189: 13445 | B189: Couette ambu bleu blc 150x200 NF | C189: 1380 | D189: 45.66666667 | E189: couette/couv | F189: HSECPM_Couv | G189: 63.02 | H189: 45.66666667 | L189: Laveuses | M189: 386 | N189: 01:00:00 | O189: 3 | P189: 00:28:00 | Q189: Plat6 | R189: 59.42566326
A190: 13798 | B190: Couette Losanges 175x230 NF-2 | C190: 2500 | D190: 31.66666667 | E190: couette/couv | F190: HSECPM_Couv | G190: 79.16666667 | H190: 31.66666667 | L190: Laveuses | M190: 386 | N190: 01:00:00 | O190: 3 | P190: 00:28:00 | Q190: Plat6 | R190: 59.42566326
A191: 14119 | B191: Chemise Malade XXL ciel pressions | C191: 350 | D191: 3.333333333 | E191: chmal | F191: HSECPM_Chem_mal | G191: 1.166666667 | H191: 3.333333333 | L191: Milnor | M191: 43 | N191: 00:03:00 | O191: 2 | P191: 00:23:00 | Q191: Plat5 | R191: 128.3260024
A192: 14221 | B192: ChTab ODP ecru 40x100 BS | C192: 92 | D192: 66.33333333 | E192: ch tab | F192: RCALPP_sup_8 | G192: 6.102666667 | H192: 66.33333333 | L192: Laveuses | M192: 335 | N192: 01:20:00 | O192: 0 | Q192: Plat4 | R192: 122.756589
A193: 14361 | B193: Ch Tab SU blc 50x110 | C193: 126 | D193: 50.66666667 | E193: ch tab | F193: RCALPP_sup_8 | G193: 6.384 | H193: 50.66666667 | L193: Laveuses | M193: 335 | N193: 01:20:00 | O193: 0 | Q193: Plat4 | R193: 122.756589
A194: 17386 | B194: Couette Losanges 200/230 CatB | C194: 2000 | D194: 18.33333333 | E194: couette/couv | F194: HSECPM_Couv | G194: 36.66666667 | H194: 18.33333333 | L194: Laveuses | M194: 386 | N194: 01:00:00 | O194: 3 | P194: 00:28:00 | Q194: Plat6 | R194: 59.42566326
A195: 18415 | B195: Couette blc cassé 175x230 NF | C195: 1800 | D195: 146.6666667 | E195: couette/couv | F195: HSECPM_Couv | G195: 264 | H195: 146.6666667 | L195: Laveuses | M195: 386 | N195: 01:00:00 | O195: 3 | P195: 00:28:00 | Q195: Plat6 | R195: 59.42566326
A196: 23763 | B196: Tablier bav. SIENA poche noir PC | C196: 260 | D196: 3 | E196: tablier bleu | F196: RCALPP_inf_8 | G196: 0.78 | H196: 3 | L196: Kannegiesser | M196: 53 | N196: 00:01:40 | O196: 2 | P196: 00:12:00 | Q196: Plat2 | R196: 316.442024
A197: 24031 | B197: Couette Nouméa Beig Oran180x220NF | C197: 2100 | D197: 0.3333333333 | E197: couette/couv | F197: HSECPM_Couv | G197: 0.7 | H197: 0.3333333333 | L197: Laveuses | M197: 386 | N197: 01:00:00 | O197: 3 | P197: 00:28:00 | Q197: Plat6 | R197: 59.42566326
A198: 25221 | B198: ChTab BS ébène 45x110 | C198: 130 | D198: 9.666666667 | E198: ch tab | F198: RCALPP_sup_8 | G198: 1.256666667 | H198: 9.666666667 | L198: Laveuses | M198: 335 | N198: 01:20:00 | O198: 0 | Q198: Plat4 | R198: 122.756589
A199: 25374 | B199: Drap bain ORFEA blc | C199: 380 | D199: 95.66666667 | E199: drap bain | F199: HSECPA_DB | G199: 36.35333333 | H199: 95.66666667 | L199: Kannegiesser | M199: 53 | N199: 00:01:40 | O199: 5 | P199: 00:27:00 | Q199: Plat5 | R199: 128.3260024
A200: 25375 | B200: Tapis bain ORFEA blc | C200: 190 | D200: 94 | E200: tapis bain | F200: HSECPA_Eponge | G200: 17.86 | H200: 94 | L200: Kannegiesser | M200: 53 | N200: 00:01:40 | O200: 5 | P200: 00:27:00 | Q200: Plat5 | R200: 128.3260024
A201: 26148 | B201: Serv Tab BS Ebène 48x48 | C201: 80 | D201: 83.33333333 | E201: serv tab pte | F201: RCALPP_inf_8 | G201: 6.666666667 | H201: 83.33333333 | L201: Laveuses | M201: 335 | N201: 01:04:00 | O201: 0 | Q201: Plat2 | R201: 316.442024
A202: 26544 | B202: Sac textileElis lavande imperméable | C202: 250 | D202: 90 | E202: sac | F202: HSECPM_Gant | G202: 22.5 | H202: 90 | L202: Laveuses | M202: 335 | N202: 00:35:00 | O202: 0 | Q202: Plat6 | R202: 59.42566326
A203: 27107 | B203: Kit ORFEA Pt | C203: 0 | D203: 93 | E203: Poubelle | F203: HSECPM_Santé | G203: 0 | H203: 93 | L203: 0 | M203: 0 | O203: 2 | R203: 12.96848461
... 697 more rows

Sheet Feuille de calculs (hidden)
S2: Raisonnement Data2 | Z2: Raisonnement Data1
B3: Étiquettes de lignes | C3: Somme de Poids hebdo livré (yc variation charge) (kg) | O3: lavage | P3: (Tous) | Y3: Kannegeisser
C4: 0 | E4: Familles | F4: Poids livré en kg | G4: équipement de lavage | H4: TcycleL | I4: Séchoir | J4: TcycleS | K4: Calandre | L4: TcycleC | R4: Kannegeisser | Y4: Lavage | Z4: Étiquettes de lignes | AA4: Somme de Poids livré en kg | AB4: Cadencement réel | AC4: nombre de passes | AD4: cadencement nominal
B5: alése abs | C5: 1607.933333 | E5: alése abs | F5: =GETPIVOTDATA("Poids hebdo livré (yc variation charge) (kg)",$B$3,"Famille","alése abs") -> 1607.933333 | G5: =VLOOKUP(E5,'Qtité art'!$E$9:$Q$900,8,FALSE) -> 2 | H5: =VLOOKUP(E5,'Qtité art'!$E$9:$Q$900,9,FALSE) -> 00:03:00 | I5: =VLOOKUP(E5,'Qtité art'!$E$9:$Q$900,10,FALSE) -> 2 | J5: =VLOOKUP(E5,'Qtité art'!$E$9:$Q$900,11,FALSE) -> 00:22:38.495 | K5: =VLOOKUP(E5,'Qtité art'!$E$9:$Q$900,12,FALSE) -> Plat5 | L5: =VLOOKUP(E5,'Qtité art'!$E$9:$Q$900,13,FALSE) -> 02:24:37.087 | O5: Étiquettes de lignes | P5: Somme de Poids livré en kg | R5: Étiquettes de lignes | S5: Somme de Poids livré en kg | T5: Cadencement réel | U5: nombre de passes | V5: cadencement nominal | Y5: Kannegiesser | Z5: Plat2 | AA5: 14017.41733 | AB5: =AA5/$AA$10 -> 0.1034553654 | AC5: 0.5 | AD5: =AC5/$AC$10 -> 0.09090909091
B6: Bavoir | C6: 494.0833333 | E6: Bavoir | F6: =GETPIVOTDATA("Poids hebdo livré (yc variation charge) (kg)",$B$3,"Famille","Bavoir") -> 494.0833333 | G6: =VLOOKUP(E6,'Qtité art'!$E$9:$Q$900,8,FALSE) -> 2 | H6: =VLOOKUP(E6,'Qtité art'!$E$9:$Q$900,9,FALSE) -> 00:03:00 | I6: =VLOOKUP(E6,'Qtité art'!$E$9:$Q$900,10,FALSE) -> 2 | J6: =VLOOKUP(E6,'Qtité art'!$E$9:$Q$900,11,FALSE) -> 00:22:38.495 | K6: =VLOOKUP(E6,'Qtité art'!$E$9:$Q$900,12,FALSE) -> Plat5 | L6: =VLOOKUP(E6,'Qtité art'!$E$9:$Q$900,13,FALSE) -> 08:34:36.886 | O6: 0 | P6: 122.8116667 | R6: Plat2 | S6: 14017.41733 | T6: =S6/$S$36 -> 0.1034553654 | U6: =SUM(U7:U16) -> 0.5 | V6: =U6/$U$36 -> 0.09090909091 | Y6: Kannegiesser | Z6: Plat3 | AA6: 89835.189 | AB6: 0.6630274379 | AC6: 3.5 | AD6: 0.6363636364
B7: carré/gant | C7: 953.045 | E7: carré/gant | F7: =GETPIVOTDATA("Poids hebdo livré (yc variation charge) (kg)",$B$3,"Famille","carré/gant") -> 953.045 | G7: =VLOOKUP(E7,'Qtité art'!$E$9:$Q$900,8,FALSE) -> 4 | H7: =VLOOKUP(E7,'Qtité art'!$E$9:$Q$900,9,FALSE) -> 01:12:03.140 | I7: =VLOOKUP(E7,'Qtité art'!$E$9:$Q$900,10,FALSE) -> 2 | J7: =VLOOKUP(E7,'Qtité art'!$E$9:$Q$900,11,FALSE) -> 00:22:38.495 | K7: =VLOOKUP(E7,'Qtité art'!$E$9:$Q$900,12,FALSE) -> Plat6 | L7: =VLOOKUP(E7,'Qtité art'!$E$9:$Q$900,13,FALSE) -> 1.635249822 | O7: Plat2 | P7: 14087.46733 | R7: serv tab gde | S7: 17.18933333 | T7: =S7/$S$36 -> 0.0001268656499 | U7: 0 | V7: =U7/$U$36 -> 0 | Y7: Kannegiesser | Z7: Plat4 | AA7: 1423.939 | AB7: 0.01050936317 | AC7: 0 | AD7: 0
B8: ch tab | C8: 95.148 | E8: ch tab | F8: =GETPIVOTDATA("Poids hebdo livré (yc variation charge) (kg)",$B$3,"Famille","ch tab") -> 95.148 | G8: =VLOOKUP(E8,'Qtité art'!$E$9:$Q$900,8,FALSE) -> 5 | H8: =VLOOKUP(E8,'Qtité art'!$E$9:$Q$900,9,FALSE) -> 01:06:21.565 | I8: =VLOOKUP(E8,'Qtité art'!$E$9:$Q$900,10,FALSE) -> 0 | J8: =VLOOKUP(E8,'Qtité art'!$E$9:$Q$900,11,FALSE) -> 00:00:00 | K8: =VLOOKUP(E8,'Qtité art'!$E$9:$Q$900,12,FALSE) -> Plat4 | L8: =VLOOKUP(E8,'Qtité art'!$E$9:$Q$900,13,FALSE) -> 1.673357384 | O8: Plat3 | P8: 89835.189 | R8: serv tab gde prestige | S8: 1.12 | T8: 8.266145358e-06 | U8: 0 | V8: 0 | Y8: Kannegiesser | Z8: Plat5 | AA8: 21084.653 | AB8: 0.1556150058 | AC8: 1 | AD8: 0.1818181818
B9: chmal | C9: 1929.369 | E9: chmal | F9: =GETPIVOTDATA("Poids hebdo livré (yc variation charge) (kg)",$B$3,"Famille","chmal") -> 1929.369 | G9: =VLOOKUP(E9,'Qtité art'!$E$9:$Q$900,8,FALSE) -> 2 | H9: =VLOOKUP(E9,'Qtité art'!$E$9:$Q$900,9,FALSE) -> 00:03:00 | I9: =VLOOKUP(E9,'Qtité art'!$E$9:$Q$900,10,FALSE) -> 2 | J9: =VLOOKUP(E9,'Qtité art'!$E$9:$Q$900,11,FALSE) -> 00:22:38.495 | K9: =VLOOKUP(E9,'Qtité art'!$E$9:$Q$900,12,FALSE) -> Plat5 | L9: =VLOOKUP(E9,'Qtité art'!$E$9:$Q$900,13,FALSE) -> 14:25:24.301 | O9: Plat4 | P9: 9314.427667 | R9: serv tab pte | S9: 2263.335667 | T9: 0.0167045193 | U9: 0.1 | V9: 0.01818181818 | Y9: Kannegiesser | Z9: Plat6 | AA9: 9131.217 | AB9: 0.06739282769 | AC9: 0.5 | AD9: 0.09090909091
B10: chp grd | C10: 26.667 | E10: chp grd | F10: =GETPIVOTDATA("Poids hebdo livré (yc variation charge) (kg)",$B$3,"Famille","chp grd") -> 26.667 | G10: =VLOOKUP(E10,'Qtité art'!$E$9:$Q$900,8,FALSE) -> 2 | H10: =VLOOKUP(E10,'Qtité art'!$E$9:$Q$900,9,FALSE) -> 00:03:00 | I10: =VLOOKUP(E10,'Qtité art'!$E$9:$Q$900,10,FALSE) -> 0 | J10: =VLOOKUP(E10,'Qtité art'!$E$9:$Q$900,11,FALSE) -> 00:00:00 | K10: =VLOOKUP(E10,'Qtité art'!$E$9:$Q$900,12,FALSE) -> Plat4 | L10: =VLOOKUP(E10,'Qtité art'!$E$9:$Q$900,13,FALSE) -> 08:03:10.126 | O10: Plat5 | P10: 25166.482 | R10: tablier blanc | S10: 2136.474 | T10: 0.01576821843 | U10: 0.1 | V10: 0.01818181818 | Y10: Total | AA10: =SUM(AA5:AA9) -> 135492.4153 | AB10: 1 | AC10: =SUM(AC5:AC9) -> 5.5 | AD10: 1
B11: chp petit | C11: 50.196 | E11: chp petit | F11: =GETPIVOTDATA("Poids hebdo livré (yc variation charge) (kg)",$B$3,"Famille","chp petit") -> 50.196 | G11: =VLOOKUP(E11,'Qtité art'!$E$9:$Q$900,8,FALSE) -> 2 | H11: =VLOOKUP(E11,'Qtité art'!$E$9:$Q$900,9,FALSE) -> 00:03:00 | I11: =VLOOKUP(E11,'Qtité art'!$E$9:$Q$900,10,FALSE) -> 0 | J11: =VLOOKUP(E11,'Qtité art'!$E$9:$Q$900,11,FALSE) -> 00:00:00 | K11: =VLOOKUP(E11,'Qtité art'!$E$9:$Q$900,12,FALSE) -> Plat4 | L11: =VLOOKUP(E11,'Qtité art'!$E$9:$Q$900,13,FALSE) -> 13:24:38.342 | O11: Plat6 | P11: 922014.2443 | R11: tablier bleu | S11: 100.1083333 | T11: 0.0007388482454 | U11: 0 | V11: 0
B12: couche | C12: 28.435 | E12: couche | F12: =GETPIVOTDATA("Poids hebdo livré (yc variation charge) (kg)",$B$3,"Famille","couche") -> 28.435 | G12: =VLOOKUP(E12,'Qtité art'!$E$9:$Q$900,8,FALSE) -> 4 | H12: =VLOOKUP(E12,'Qtité art'!$E$9:$Q$900,9,FALSE) -> 01:12:03.140 | I12: =VLOOKUP(E12,'Qtité art'!$E$9:$Q$900,10,FALSE) -> 0 | J12: =VLOOKUP(E12,'Qtité art'!$E$9:$Q$900,11,FALSE) -> 00:00:00 | K12: =VLOOKUP(E12,'Qtité art'!$E$9:$Q$900,12,FALSE) -> Plat2 | L12: =VLOOKUP(E12,'Qtité art'!$E$9:$Q$900,13,FALSE) -> 1.537793575 | O12: Total général | P12: 1060540.622 | R12: tablier bret | S12: 518.8156667 | T12: 0.003829112245 | U12: 0 | V12: 0
B13: couette/couv | C13: 3873.536333 | E13: couette/couv | F13: =GETPIVOTDATA("Poids hebdo livré (yc variation charge) (kg)",$B$3,"Famille","couette/couv") -> 3873.536333 | G13: =VLOOKUP(E13,'Qtité art'!$E$9:$Q$900,8,FALSE) -> 4 | H13: =VLOOKUP(E13,'Qtité art'!$E$9:$Q$900,9,FALSE) -> 01:12:03.140 | I13: =VLOOKUP(E13,'Qtité art'!$E$9:$Q$900,10,FALSE) -> 3 | J13: =VLOOKUP(E13,'Qtité art'!$E$9:$Q$900,11,FALSE) -> 00:18:49.947 | K13: =VLOOKUP(E13,'Qtité art'!$E$9:$Q$900,12,FALSE) -> Plat6 | L13: =VLOOKUP(E13,'Qtité art'!$E$9:$Q$900,13,FALSE) -> 06:35:29.301 | R13: taie am | S13: 1981.812 | T13: 0.01462673756 | U13: 0 | V13: 0
B14: des lit | C14: 646.6526667 | E14: des lit | F14: =GETPIVOTDATA("Poids hebdo livré (yc variation charge) (kg)",$B$3,"Famille","des lit") -> 646.6526667 | G14: =VLOOKUP(E14,'Qtité art'!$E$9:$Q$900,8,FALSE) -> 4 | H14: =VLOOKUP(E14,'Qtité art'!$E$9:$Q$900,9,FALSE) -> 01:12:03.140 | I14: =VLOOKUP(E14,'Qtité art'!$E$9:$Q$900,10,FALSE) -> 0 | J14: =VLOOKUP(E14,'Qtité art'!$E$9:$Q$900,11,FALSE) -> 00:00:00 | K14: =VLOOKUP(E14,'Qtité art'!$E$9:$Q$900,12,FALSE) -> Plat4 | L14: =VLOOKUP(E14,'Qtité art'!$E$9:$Q$900,13,FALSE) -> 06:46:41.557 | R14: Taie Carrée | S14: 5100.921667 | T14: 0.03764728567 | U14: 0.2 | V14: 0.03636363636
B15: drap 1/2 | C15: 555.4266667 | E15: drap 1/2 | F15: =GETPIVOTDATA("Poids hebdo livré (yc variation charge) (kg)",$B$3,"Famille","drap 1/2") -> 555.4266667 | G15: =VLOOKUP(E15,'Qtité art'!$E$9:$Q$900,8,FALSE) -> 2 | H15: =VLOOKUP(E15,'Qtité art'!$E$9:$Q$900,9,FALSE) -> 00:03:00 | I15: =VLOOKUP(E15,'Qtité art'!$E$9:$Q$900,10,FALSE) -> 0 | J15: =VLOOKUP(E15,'Qtité art'!$E$9:$Q$900,11,FALSE) -> 00:00:00 | K15: =VLOOKUP(E15,'Qtité art'!$E$9:$Q$900,12,FALSE) -> Plat4 | L15: =VLOOKUP(E15,'Qtité art'!$E$9:$Q$900,13,FALSE) -> 05:28:48.286 | R15: taie luxe | S15: 411.3003333 | T15: 0.003035596733 | U15: 0 | V15: 0
B16: Drap ambulatoire | C16: 1018.621333 | E16: Drap ambulatoire | F16: =GETPIVOTDATA("Poids hebdo livré (yc variation charge) (kg)",$B$3,"Famille","Drap ambulatoire") -> 1018.621333 | G16: =VLOOKUP(E16,'Qtité art'!$E$9:$Q$900,8,FALSE) -> 2 | H16: =VLOOKUP(E16,'Qtité art'!$E$9:$Q$900,9,FALSE) -> 00:03:00 | I16: =VLOOKUP(E16,'Qtité art'!$E$9:$Q$900,10,FALSE) -> 0 | J16: =VLOOKUP(E16,'Qtité art'!$E$9:$Q$900,11,FALSE) -> 00:00:00 | K16: =VLOOKUP(E16,'Qtité art'!$E$9:$Q$900,12,FALSE) -> Plat4 | L16: =VLOOKUP(E16,'Qtité art'!$E$9:$Q$900,13,FALSE) -> 05:38:42.097 | R16: torchon | S16: 1486.340333 | T16: 0.0109699154 | U16: 0.1 | V16: 0.01818181818
B17: drap bain | C17: 9110.165667 | E17: drap bain | F17: =GETPIVOTDATA("Poids hebdo livré (yc variation charge) (kg)",$B$3,"Famille","drap bain") -> 9110.165667 | G17: =VLOOKUP(E17,'Qtité art'!$E$9:$Q$900,8,FALSE) -> 1 | H17: =VLOOKUP(E17,'Qtité art'!$E$9:$Q$900,9,FALSE) -> 00:01:35 | I17: =VLOOKUP(E17,'Qtité art'!$E$9:$Q$900,10,FALSE) -> 5 | J17: =VLOOKUP(E17,'Qtité art'!$E$9:$Q$900,11,FALSE) -> 00:27:00 | K17: =VLOOKUP(E17,'Qtité art'!$E$9:$Q$900,12,FALSE) -> Plat5 | L17: =VLOOKUP(E17,'Qtité art'!$E$9:$Q$900,13,FALSE) -> 111264.4679 | R17: Plat3 | S17: 89835.189 | T17: 0.6630274379 | U17: =SUM(U18:U25) -> 3.5 | V17: 0.6363636364
B18: drap bain luxe | C18: 1078.444667 | E18: drap bain luxe | F18: =GETPIVOTDATA("Poids hebdo livré (yc variation charge) (kg)",$B$3,"Famille","drap bain luxe") -> 1078.444667 | G18: =VLOOKUP(E18,'Qtité art'!$E$9:$Q$900,8,FALSE) -> 1 | H18: =VLOOKUP(E18,'Qtité art'!$E$9:$Q$900,9,FALSE) -> 00:01:35 | I18: =VLOOKUP(E18,'Qtité art'!$E$9:$Q$900,10,FALSE) -> 5 | J18: =VLOOKUP(E18,'Qtité art'!$E$9:$Q$900,11,FALSE) -> 00:27:00 | K18: =VLOOKUP(E18,'Qtité art'!$E$9:$Q$900,12,FALSE) -> Plat5 | L18: =VLOOKUP(E18,'Qtité art'!$E$9:$Q$900,13,FALSE) -> 49434.67035 | R18: drap grand | S18: 15308.12833 | T18: 0.112981441 | U18: 0.5 | V18: 0.09090909091
B19: drap bain spa | C19: 362.56 | E19: drap bain spa | F19: =GETPIVOTDATA("Poids hebdo livré (yc variation charge) (kg)",$B$3,"Famille","drap bain spa") -> 362.56 | G19: =VLOOKUP(E19,'Qtité art'!$E$9:$Q$900,8,FALSE) -> 1 | H19: =VLOOKUP(E19,'Qtité art'!$E$9:$Q$900,9,FALSE) -> 00:01:35 | I19: =VLOOKUP(E19,'Qtité art'!$E$9:$Q$900,10,FALSE) -> 5 | J19: =VLOOKUP(E19,'Qtité art'!$E$9:$Q$900,11,FALSE) -> 00:27:00 | K19: =VLOOKUP(E19,'Qtité art'!$E$9:$Q$900,12,FALSE) -> Plat5 | L19: =VLOOKUP(E19,'Qtité art'!$E$9:$Q$900,13,FALSE) -> 36741.19837 | R19: drap luxe | S19: 18.51666667 | T19: 0.0001366620163 | U19: 0 | V19: 0
B20: drap grand | C20: 15308.12833 | E20: drap grand | F20: =GETPIVOTDATA("Poids hebdo livré (yc variation charge) (kg)",$B$3,"Famille","drap grand") -> 15308.12833 | G20: =VLOOKUP(E20,'Qtité art'!$E$9:$Q$900,8,FALSE) -> 1 | H20: =VLOOKUP(E20,'Qtité art'!$E$9:$Q$900,9,FALSE) -> 00:01:35 | I20: =VLOOKUP(E20,'Qtité art'!$E$9:$Q$900,10,FALSE) -> 0 | J20: =VLOOKUP(E20,'Qtité art'!$E$9:$Q$900,11,FALSE) -> 00:00:00 | K20: =VLOOKUP(E20,'Qtité art'!$E$9:$Q$900,12,FALSE) -> Plat3 | L20: =VLOOKUP(E20,'Qtité art'!$E$9:$Q$900,13,FALSE) -> 33459.97372 | R20: drap petit | S20: 51798.10467 | T20: 0.3822952343 | U20: 2 | V20: 0.3636363636
B21: drap housse | C21: 9131.217 | E21: drap housse | F21: =GETPIVOTDATA("Poids hebdo livré (yc variation charge) (kg)",$B$3,"Famille","drap housse") -> 9131.217 | G21: =VLOOKUP(E21,'Qtité art'!$E$9:$Q$900,8,FALSE) -> 1 | H21: =VLOOKUP(E21,'Qtité art'!$E$9:$Q$900,9,FALSE) -> 00:01:35 | I21: =VLOOKUP(E21,'Qtité art'!$E$9:$Q$900,10,FALSE) -> 2 | J21: =VLOOKUP(E21,'Qtité art'!$E$9:$Q$900,11,FALSE) -> 00:22:38.495 | K21: =VLOOKUP(E21,'Qtité art'!$E$9:$Q$900,12,FALSE) -> Plat6 | L21: =VLOOKUP(E21,'Qtité art'!$E$9:$Q$900,13,FALSE) -> 43869.5083 | R21: housse couette | S21: 15856.30733 | T21: 0.117027269 | U21: 0.5 | V21: 0.09090909091
B22: drap luxe | C22: 18.51666667 | E22: drap luxe | F22: =GETPIVOTDATA("Poids hebdo livré (yc variation charge) (kg)",$B$3,"Famille","drap luxe") -> 18.51666667 | G22: =VLOOKUP(E22,'Qtité art'!$E$9:$Q$900,8,FALSE) -> 1 | H22: =VLOOKUP(E22,'Qtité art'!$E$9:$Q$900,9,FALSE) -> 00:01:35 | I22: =VLOOKUP(E22,'Qtité art'!$E$9:$Q$900,10,FALSE) -> 0 | J22: =VLOOKUP(E22,'Qtité art'!$E$9:$Q$900,11,FALSE) -> 00:00:00 | K22: =VLOOKUP(E22,'Qtité art'!$E$9:$Q$900,12,FALSE) -> Plat3 | L22: =VLOOKUP(E22,'Qtité art'!$E$9:$Q$900,13,FALSE) -> 23840.96091 | R22: petite housse | S22: 6854.132 | T22: 0.05058683162 | U22: 0.5 | V22: 0.09090909091
B23: drap petit | C23: 51798.10467 | E23: drap petit | F23: =GETPIVOTDATA("Poids hebdo livré (yc variation charge) (kg)",$B$3,"Famille","drap petit") -> 51798.10467 | G23: =VLOOKUP(E23,'Qtité art'!$E$9:$Q$900,8,FALSE) -> 1 | H23: =VLOOKUP(E23,'Qtité art'!$E$9:$Q$900,9,FALSE) -> 00:01:35 | I23: =VLOOKUP(E23,'Qtité art'!$E$9:$Q$900,10,FALSE) -> 0 | J23: =VLOOKUP(E23,'Qtité art'!$E$9:$Q$900,11,FALSE) -> 00:00:00 | K23: =VLOOKUP(E23,'Qtité art'!$E$9:$Q$900,12,FALSE) -> Plat3 | L23: =VLOOKUP(E23,'Qtité art'!$E$9:$Q$900,13,FALSE) -> 52018.02061 | R23: Plat4 | S23: 1423.939 | T23: =S23/$S$36 -> 0.01050936317 | U23: 0 | V23: =U23/$U$36 -> 0
B24: franges | C24: 3041.546 | E24: franges | F24: =GETPIVOTDATA("Poids hebdo livré (yc variation charge) (kg)",$B$3,"Famille","franges") -> 3041.546 | G24: =VLOOKUP(E24,'Qtité art'!$E$9:$Q$900,8,FALSE) -> 4 | H24: =VLOOKUP(E24,'Qtité art'!$E$9:$Q$900,9,FALSE) -> 01:12:03.140 | I24: =VLOOKUP(E24,'Qtité art'!$E$9:$Q$900,10,FALSE) -> 3 | J24: =VLOOKUP(E24,'Qtité art'!$E$9:$Q$900,11,FALSE) -> 00:18:49.947 | K24: =VLOOKUP(E24,'Qtité art'!$E$9:$Q$900,12,FALSE) -> Plat6 | L24: =VLOOKUP(E24,'Qtité art'!$E$9:$Q$900,13,FALSE) -> 11:28:39.303 | R24: grde al | S24: 413.018 | T24: 0.003048273949 | U24: 0 | V24: 0
B25: grde al | C25: 413.018 | E25: grde al | F25: =GETPIVOTDATA("Poids hebdo livré (yc variation charge) (kg)",$B$3,"Famille","grde al") -> 413.018 | G25: =VLOOKUP(E25,'Qtité art'!$E$9:$Q$900,8,FALSE) -> 1 | H25: =VLOOKUP(E25,'Qtité art'!$E$9:$Q$900,9,FALSE) -> 00:01:35 | I25: =VLOOKUP(E25,'Qtité art'!$E$9:$Q$900,10,FALSE) -> 0 | J25: =VLOOKUP(E25,'Qtité art'!$E$9:$Q$900,11,FALSE) -> 00:00:00 | K25: =VLOOKUP(E25,'Qtité art'!$E$9:$Q$900,12,FALSE) -> Plat4 | L25: =VLOOKUP(E25,'Qtité art'!$E$9:$Q$900,13,FALSE) -> 44170.68477 | R25: hous trav | S25: 1010.921 | T25: 0.007461089224 | U25: 0 | V25: 0
B26: hous trav | C26: 1010.921 | E26: hous trav | F26: =GETPIVOTDATA("Poids hebdo livré (yc variation charge) (kg)",$B$3,"Famille","hous trav") -> 1010.921 | G26: =VLOOKUP(E26,'Qtité art'!$E$9:$Q$900,8,FALSE) -> 1 | H26: =VLOOKUP(E26,'Qtité art'!$E$9:$Q$900,9,FALSE) -> 00:01:35 | I26: =VLOOKUP(E26,'Qtité art'!$E$9:$Q$900,10,FALSE) -> 0 | J26: =VLOOKUP(E26,'Qtité art'!$E$9:$Q$900,11,FALSE) -> 00:00:00 | K26: =VLOOKUP(E26,'Qtité art'!$E$9:$Q$900,12,FALSE) -> Plat4 | L26: =VLOOKUP(E26,'Qtité art'!$E$9:$Q$900,13,FALSE) -> 198591.3906 | R26: Plat5 | S26: 21084.653 | T26: 0.1556150058 | U26: =SUM(U27:U33) -> 1 | V26: 0.1818181818
B27: housse couette | C27: 15856.30733 | E27: housse couette | F27: =GETPIVOTDATA("Poids hebdo livré (yc variation charge) (kg)",$B$3,"Famille","housse couette") -> 15856.30733 | G27: =VLOOKUP(E27,'Qtité art'!$E$9:$Q$900,8,FALSE) -> 1 | H27: =VLOOKUP(E27,'Qtité art'!$E$9:$Q$900,9,FALSE) -> 00:01:35 | I27: =VLOOKUP(E27,'Qtité art'!$E$9:$Q$900,10,FALSE) -> 0 | J27: =VLOOKUP(E27,'Qtité art'!$E$9:$Q$900,11,FALSE) -> 00:00:00 | K27: =VLOOKUP(E27,'Qtité art'!$E$9:$Q$900,12,FALSE) -> Plat3 | L27: =VLOOKUP(E27,'Qtité art'!$E$9:$Q$900,13,FALSE) -> 11156.75167 | R27: drap bain | S27: 9110.165667 | T27: 0.0672374586 | U27: 0.5 | V27: 0.09090909091
B28: nap .30 | C28: 39.09966667 | E28: nap .30 | F28: =GETPIVOTDATA("Poids hebdo livré (yc variation charge) (kg)",$B$3,"Famille","nap .30") -> 39.09966667 | G28: =VLOOKUP(E28,'Qtité art'!$E$9:$Q$900,8,FALSE) -> 5 | H28: =VLOOKUP(E28,'Qtité art'!$E$9:$Q$900,9,FALSE) -> 01:06:21.565 | I28: =VLOOKUP(E28,'Qtité art'!$E$9:$Q$900,10,FALSE) -> 0 | J28: =VLOOKUP(E28,'Qtité art'!$E$9:$Q$900,11,FALSE) -> 00:00:00 | K28: =VLOOKUP(E28,'Qtité art'!$E$9:$Q$900,12,FALSE) -> Plat4 | L28: =VLOOKUP(E28,'Qtité art'!$E$9:$Q$900,13,FALSE) -> 09:03:27.848 | R28: drap bain luxe | S28: 1078.444667 | T28: 0.007959446763 | U28: 0 | V28: 0
B29: nap 12 | C29: 315.1183333 | E29: nap 12 | F29: =GETPIVOTDATA("Poids hebdo livré (yc variation charge) (kg)",$B$3,"Famille","nap 12") -> 315.1183333 | G29: =VLOOKUP(E29,'Qtité art'!$E$9:$Q$900,8,FALSE) -> 5 | H29: =VLOOKUP(E29,'Qtité art'!$E$9:$Q$900,9,FALSE) -> 01:06:21.565 | I29: =VLOOKUP(E29,'Qtité art'!$E$9:$Q$900,10,FALSE) -> 0 | J29: =VLOOKUP(E29,'Qtité art'!$E$9:$Q$900,11,FALSE) -> 00:00:00 | K29: =VLOOKUP(E29,'Qtité art'!$E$9:$Q$900,12,FALSE) -> Plat4 | L29: =VLOOKUP(E29,'Qtité art'!$E$9:$Q$900,13,FALSE) -> 10:54:44.552 | R29: drap bain spa | S29: 362.56 | T29: 0.00267586934 | U29: 0 | V29: 0
B30: nap 15 + 18 | C30: 1164.675667 | E30: nap 15 + 18 | F30: =GETPIVOTDATA("Poids hebdo livré (yc variation charge) (kg)",$B$3,"Famille","nap 15 + 18") -> 1164.675667 | G30: =VLOOKUP(E30,'Qtité art'!$E$9:$Q$900,8,FALSE) -> 5 | H30: =VLOOKUP(E30,'Qtité art'!$E$9:$Q$900,9,FALSE) -> 01:06:21.565 | I30: =VLOOKUP(E30,'Qtité art'!$E$9:$Q$900,10,FALSE) -> 0 | J30: =VLOOKUP(E30,'Qtité art'!$E$9:$Q$900,11,FALSE) -> 00:00:00 | K30: =VLOOKUP(E30,'Qtité art'!$E$9:$Q$900,12,FALSE) -> Plat4 | L30: =VLOOKUP(E30,'Qtité art'!$E$9:$Q$900,13,FALSE) -> 07:58:20.750 | R30: serv éponge | S30: 7880.537 | T30: 0.0581622003 | U30: 0.5 | V30: 0.09090909091
B31: nap 20 | C31: 441.9036667 | E31: nap 20 | F31: =GETPIVOTDATA("Poids hebdo livré (yc variation charge) (kg)",$B$3,"Famille","nap 20") -> 441.9036667 | G31: =VLOOKUP(E31,'Qtité art'!$E$9:$Q$900,8,FALSE) -> 5 | H31: =VLOOKUP(E31,'Qtité art'!$E$9:$Q$900,9,FALSE) -> 01:06:21.565 | I31: =VLOOKUP(E31,'Qtité art'!$E$9:$Q$900,10,FALSE) -> 0 | J31: =VLOOKUP(E31,'Qtité art'!$E$9:$Q$900,11,FALSE) -> 00:00:00 | K31: =VLOOKUP(E31,'Qtité art'!$E$9:$Q$900,12,FALSE) -> Plat4 | L31: =VLOOKUP(E31,'Qtité art'!$E$9:$Q$900,13,FALSE) -> 07:27:41.084 | R31: serv éponge luxe | S31: 157.335 | T31: 0.001161208911 | U31: 0 | V31: 0
B32: nap 24 | C32: 148.8666667 | E32: nap 24 | F32: =GETPIVOTDATA("Poids hebdo livré (yc variation charge) (kg)",$B$3,"Famille","nap 24") -> 148.8666667 | G32: =VLOOKUP(E32,'Qtité art'!$E$9:$Q$900,8,FALSE) -> 5 | H32: =VLOOKUP(E32,'Qtité art'!$E$9:$Q$900,9,FALSE) -> 01:06:21.565 | I32: =VLOOKUP(E32,'Qtité art'!$E$9:$Q$900,10,FALSE) -> 0 | J32: =VLOOKUP(E32,'Qtité art'!$E$9:$Q$900,11,FALSE) -> 00:00:00 | K32: =VLOOKUP(E32,'Qtité art'!$E$9:$Q$900,12,FALSE) -> Plat4 | L32: =VLOOKUP(E32,'Qtité art'!$E$9:$Q$900,13,FALSE) -> 05:17:38.178 | R32: tapis bain | S32: 2376.046 | T32: 0.01753637644 | U32: 0 | V32: 0
B33: npr | C33: 57.14266667 | E33: npr | F33: =GETPIVOTDATA("Poids hebdo livré (yc variation charge) (kg)",$B$3,"Famille","npr") -> 57.14266667 | G33: =VLOOKUP(E33,'Qtité art'!$E$9:$Q$900,8,FALSE) -> 5 | H33: =VLOOKUP(E33,'Qtité art'!$E$9:$Q$900,9,FALSE) -> 01:06:21.565 | I33: =VLOOKUP(E33,'Qtité art'!$E$9:$Q$900,10,FALSE) -> 0 | J33: =VLOOKUP(E33,'Qtité art'!$E$9:$Q$900,11,FALSE) -> 00:00:00 | K33: =VLOOKUP(E33,'Qtité art'!$E$9:$Q$900,12,FALSE) -> Plat4 | L33: =VLOOKUP(E33,'Qtité art'!$E$9:$Q$900,13,FALSE) -> 22:24:25.755 | R33: tapis bain luxe | S33: 119.5646667 | T33: 0.0008824454592 | U33: 0 | V33: 0
B34: npr 10 | C34: 47.75766667 | E34: npr 10 | F34: =GETPIVOTDATA("Poids hebdo livré (yc variation charge) (kg)",$B$3,"Famille","npr 10") -> 47.75766667 | G34: =VLOOKUP(E34,'Qtité art'!$E$9:$Q$900,8,FALSE) -> 5 | H34: =VLOOKUP(E34,'Qtité art'!$E$9:$Q$900,9,FALSE) -> 01:06:21.565 | I34: =VLOOKUP(E34,'Qtité art'!$E$9:$Q$900,10,FALSE) -> 0 | J34: =VLOOKUP(E34,'Qtité art'!$E$9:$Q$900,11,FALSE) -> 00:00:00 | K34: =VLOOKUP(E34,'Qtité art'!$E$9:$Q$900,12,FALSE) -> Plat4 | L34: =VLOOKUP(E34,'Qtité art'!$E$9:$Q$900,13,FALSE) -> 14:59:18.505 | R34: Plat6 | S34: 9131.217 | T34: 0.06739282769 | U34: 0.5 | V34: 0.09090909091
B35: peignoir/cas | C35: 465.887 | E35: peignoir/cas | F35: =GETPIVOTDATA("Poids hebdo livré (yc variation charge) (kg)",$B$3,"Famille","peignoir/cas") -> 465.887 | G35: =VLOOKUP(E35,'Qtité art'!$E$9:$Q$900,8,FALSE) -> 4 | H35: =VLOOKUP(E35,'Qtité art'!$E$9:$Q$900,9,FALSE) -> 01:12:03.140 | I35: =VLOOKUP(E35,'Qtité art'!$E$9:$Q$900,10,FALSE) -> 2 | J35: =VLOOKUP(E35,'Qtité art'!$E$9:$Q$900,11,FALSE) -> 00:22:38.495 | K35: =VLOOKUP(E35,'Qtité art'!$E$9:$Q$900,12,FALSE) -> Plat6 | L35: =VLOOKUP(E35,'Qtité art'!$E$9:$Q$900,13,FALSE) -> 08:06:24.398 | R35: drap housse | S35: 9131.217 | T35: 0.06739282769 | U35: 0.5 | V35: 0.09090909091
B36: petite housse | C36: 6854.132 | E36: petite housse | F36: =GETPIVOTDATA("Poids hebdo livré (yc variation charge) (kg)",$B$3,"Famille","petite housse") -> 6854.132 | G36: =VLOOKUP(E36,'Qtité art'!$E$9:$Q$900,8,FALSE) -> 1 | H36: =VLOOKUP(E36,'Qtité art'!$E$9:$Q$900,9,FALSE) -> 00:01:35 | I36: =VLOOKUP(E36,'Qtité art'!$E$9:$Q$900,10,FALSE) -> 0 | J36: =VLOOKUP(E36,'Qtité art'!$E$9:$Q$900,11,FALSE) -> 00:00:00 | K36: =VLOOKUP(E36,'Qtité art'!$E$9:$Q$900,12,FALSE) -> Plat3 | L36: =VLOOKUP(E36,'Qtité art'!$E$9:$Q$900,13,FALSE) -> 20439.3032 | R36: Total général | S36: 135492.4153 | T36: =S36/$S$36 -> 1 | U36: =SUM(U6,U17,U23,U26,U34) -> 5.5 | V36: 1
B37: Poubelle | C37: 122.8116667 | E37: Poubelle | F37: =GETPIVOTDATA("Poids hebdo livré (yc variation charge) (kg)",$B$3,"Famille","Poubelle") -> 122.8116667 | G37: =VLOOKUP(E37,'Qtité art'!$E$9:$Q$900,8,FALSE) -> 0 | H37: =VLOOKUP(E37,'Qtité art'!$E$9:$Q$900,9,FALSE) -> 00:00:00 | I37: =VLOOKUP(E37,'Qtité art'!$E$9:$Q$900,10,FALSE) -> 0 | J37: =VLOOKUP(E37,'Qtité art'!$E$9:$Q$900,11,FALSE) -> 00:00:00
B38: Protège matelas | C38: 14.94 | E38: Protège matelas | F38: =GETPIVOTDATA("Poids hebdo livré (yc variation charge) (kg)",$B$3,"Famille","Protège matelas") -> 14.94 | G38: =VLOOKUP(E38,'Qtité art'!$E$9:$Q$900,8,FALSE) -> 4 | H38: =VLOOKUP(E38,'Qtité art'!$E$9:$Q$900,9,FALSE) -> 01:12:03.140 | I38: =VLOOKUP(E38,'Qtité art'!$E$9:$Q$900,10,FALSE) -> 2 | J38: =VLOOKUP(E38,'Qtité art'!$E$9:$Q$900,11,FALSE) -> 00:22:38.495 | K38: =VLOOKUP(E38,'Qtité art'!$E$9:$Q$900,12,FALSE) -> Plat6 | L38: =VLOOKUP(E38,'Qtité art'!$E$9:$Q$900,13,FALSE) -> 07:02:15.628 | R38: Laveuses | Y38: Laveuses
B39: pte al | C39: 3283.212667 | E39: pte al | F39: =GETPIVOTDATA("Poids hebdo livré (yc variation charge) (kg)",$B$3,"Famille","pte al") -> 3283.212667 | G39: =VLOOKUP(E39,'Qtité art'!$E$9:$Q$900,8,FALSE) -> 2 | H39: =VLOOKUP(E39,'Qtité art'!$E$9:$Q$900,9,FALSE) -> 00:03:00 | I39: =VLOOKUP(E39,'Qtité art'!$E$9:$Q$900,10,FALSE) -> 0 | J39: =VLOOKUP(E39,'Qtité art'!$E$9:$Q$900,11,FALSE) -> 00:00:00 | K39: =VLOOKUP(E39,'Qtité art'!$E$9:$Q$900,12,FALSE) -> Plat4 | L39: =VLOOKUP(E39,'Qtité art'!$E$9:$Q$900,13,FALSE) -> 05:07:50.372 | R39: Étiquettes de lignes | S39: Somme de Poids livré en kg | T39: Cadencement réel | U39: nombre de passes | V39: cadencement nominal | Y39: Lavage | Z39: Étiquettes de lignes | AA39: Somme de Poids livré en kg | AB39: Cadencement réel | AC39: nombre de passes | AD39: cadencement nominal
B40: sac | C40: 4140.069333 | E40: sac | F40: =GETPIVOTDATA("Poids hebdo livré (yc variation charge) (kg)",$B$3,"Famille","sac") -> 4140.069333 | G40: =VLOOKUP(E40,'Qtité art'!$E$9:$Q$900,8,FALSE) -> 5 | H40: =VLOOKUP(E40,'Qtité art'!$E$9:$Q$900,9,FALSE) -> 01:06:21.565 | I40: =VLOOKUP(E40,'Qtité art'!$E$9:$Q$900,10,FALSE) -> 0 | J40: =VLOOKUP(E40,'Qtité art'!$E$9:$Q$900,11,FALSE) -> 00:00:00 | K40: =VLOOKUP(E40,'Qtité art'!$E$9:$Q$900,12,FALSE) -> Plat6 | L40: =VLOOKUP(E40,'Qtité art'!$E$9:$Q$900,13,FALSE) -> 05:04:34.623 | R40: 0 | S40: 122.8116667 | T40: =S40/$S$64 -> 0.0078280365 | U40: =SUM(U41:U41) -> 0 | V40: =U40/$U$64 -> 0 | Y40: Laveuses | Z40: Plat2 | AA40: 70.05 | AB40: =AA40/$AA$44 -> 0.004500226842 | AC40: 0 | AD40: =AC40/$AC$44 -> 0
B41: serv épges coiffeur | C41: 50.44333333 | E41: serv épges coiffeur | F41: =GETPIVOTDATA("Poids hebdo livré (yc variation charge) (kg)",$B$3,"Famille","serv épges coiffeur") -> 50.44333333 | G41: =VLOOKUP(E41,'Qtité art'!$E$9:$Q$900,8,FALSE) -> 4 | H41: =VLOOKUP(E41,'Qtité art'!$E$9:$Q$900,9,FALSE) -> 01:12:03.140 | I41: =VLOOKUP(E41,'Qtité art'!$E$9:$Q$900,10,FALSE) -> 3 | J41: =VLOOKUP(E41,'Qtité art'!$E$9:$Q$900,11,FALSE) -> 00:18:49.947 | K41: =VLOOKUP(E41,'Qtité art'!$E$9:$Q$900,12,FALSE) -> Plat5 | L41: =VLOOKUP(E41,'Qtité art'!$E$9:$Q$900,13,FALSE) -> 12:15:36.329 | R41: Poubelle | S41: 122.8116667 | T41: =S41/$S$64 -> 0.0078280365 | U41: 0 | V41: =U41/$U$64 -> 0 | Y41: Laveuses | Z41: Plat4 | AA41: 2956.365 | AB41: =AA41/$AA$44 -> 0.1899259547 | AC41: 0.5 | AD41: =AC41/$AC$44 -> 0.2
B42: serv éponge | C42: 7880.537 | E42: serv éponge | F42: =GETPIVOTDATA("Poids hebdo livré (yc variation charge) (kg)",$B$3,"Famille","serv éponge") -> 7880.537 | G42: =VLOOKUP(E42,'Qtité art'!$E$9:$Q$900,8,FALSE) -> 1 | H42: =VLOOKUP(E42,'Qtité art'!$E$9:$Q$900,9,FALSE) -> 00:01:35 | I42: =VLOOKUP(E42,'Qtité art'!$E$9:$Q$900,10,FALSE) -> 5 | J42: =VLOOKUP(E42,'Qtité art'!$E$9:$Q$900,11,FALSE) -> 00:27:00 | K42: =VLOOKUP(E42,'Qtité art'!$E$9:$Q$900,12,FALSE) -> Plat5 | L42: =VLOOKUP(E42,'Qtité art'!$E$9:$Q$900,13,FALSE) -> 275553.6379 | R42: Plat2 | S42: 70.05 | T42: 0.004464998902 | U42: =SUM(U42:U43) -> 0 | V42: 0.2857142857 | Y42: Laveuses | Z42: Plat5 | AA42: 50.44333333 | AB42: =AA42/$AA$44 -> 0.003240634442 | AC42: 0 | AD42: =AC42/$AC$44 -> 0
B43: serv éponge luxe | C43: 157.335 | E43: serv éponge luxe | F43: =GETPIVOTDATA("Poids hebdo livré (yc variation charge) (kg)",$B$3,"Famille","serv éponge luxe") -> 157.335 | G43: =VLOOKUP(E43,'Qtité art'!$E$9:$Q$900,8,FALSE) -> 1 | H43: =VLOOKUP(E43,'Qtité art'!$E$9:$Q$900,9,FALSE) -> 00:01:35 | I43: =VLOOKUP(E43,'Qtité art'!$E$9:$Q$900,10,FALSE) -> 5 | J43: =VLOOKUP(E43,'Qtité art'!$E$9:$Q$900,11,FALSE) -> 00:27:00 | K43: =VLOOKUP(E43,'Qtité art'!$E$9:$Q$900,12,FALSE) -> Plat5 | L43: =VLOOKUP(E43,'Qtité art'!$E$9:$Q$900,13,FALSE) -> 143753.7091 | R43: couche | S43: 28.435 | T43: 0.001812451731 | U43: 0 | V43: 0 | Y43: Laveuses | Z43: Plat6 | AA43: 12489.02367 | AB43: =AA43/$AA$44 -> 0.802333184 | AC43: 2 | AD43: =AC43/$AC$44 -> 0.8
B44: serv œil | C44: 41.615 | E44: serv œil | F44: =GETPIVOTDATA("Poids hebdo livré (yc variation charge) (kg)",$B$3,"Famille","serv œil") -> 41.615 | G44: =VLOOKUP(E44,'Qtité art'!$E$9:$Q$900,8,FALSE) -> 1 | H44: =VLOOKUP(E44,'Qtité art'!$E$9:$Q$900,9,FALSE) -> 00:01:35 | I44: =VLOOKUP(E44,'Qtité art'!$E$9:$Q$900,10,FALSE) -> 0 | J44: =VLOOKUP(E44,'Qtité art'!$E$9:$Q$900,11,FALSE) -> 00:00:00 | K44: =VLOOKUP(E44,'Qtité art'!$E$9:$Q$900,12,FALSE) -> Plat2 | L44: =VLOOKUP(E44,'Qtité art'!$E$9:$Q$900,13,FALSE) -> 621929.1823 | R44: serv œil | S44: 41.615 | T44: 0.002652547171 | U44: 0 | V44: 0 | Y44: Total | AA44: =SUM(AA40:AA43) -> 15565.882 | AB44: =AA44/$AA$44 -> 1 | AC44: =SUM(AC40:AC43) -> 2.5 | AD44: =AC44/$AC$44 -> 1
B45: serv tab gde | C45: 17.18933333 | E45: serv tab gde | F45: =GETPIVOTDATA("Poids hebdo livré (yc variation charge) (kg)",$B$3,"Famille","serv tab gde") -> 17.18933333 | G45: =VLOOKUP(E45,'Qtité art'!$E$9:$Q$900,8,FALSE) -> 5 | H45: =VLOOKUP(E45,'Qtité art'!$E$9:$Q$900,9,FALSE) -> 01:06:21.565 | I45: =VLOOKUP(E45,'Qtité art'!$E$9:$Q$900,10,FALSE) -> 0 | J45: =VLOOKUP(E45,'Qtité art'!$E$9:$Q$900,11,FALSE) -> 00:00:00 | K45: =VLOOKUP(E45,'Qtité art'!$E$9:$Q$900,12,FALSE) -> Plat2 | L45: =VLOOKUP(E45,'Qtité art'!$E$9:$Q$900,13,FALSE) -> 10:14:39.500 | R45: Plat4 | S45: 2956.365 | T45: 0.1884392074 | U45: =SUM(U46:U54) -> 0.5 | V45: 0.1428571429
B46: serv tab gde prestige | C46: 1.12 | E46: serv tab gde prestige | F46: =GETPIVOTDATA("Poids hebdo livré (yc variation charge) (kg)",$B$3,"Famille","serv tab gde prestige") -> 1.12 | G46: =VLOOKUP(E46,'Qtité art'!$E$9:$Q$900,8,FALSE) -> 5 | H46: =VLOOKUP(E46,'Qtité art'!$E$9:$Q$900,9,FALSE) -> 01:06:21.565 | I46: =VLOOKUP(E46,'Qtité art'!$E$9:$Q$900,10,FALSE) -> 0 | J46: =VLOOKUP(E46,'Qtité art'!$E$9:$Q$900,11,FALSE) -> 00:00:00 | K46: =VLOOKUP(E46,'Qtité art'!$E$9:$Q$900,12,FALSE) -> Plat2 | L46: =VLOOKUP(E46,'Qtité art'!$E$9:$Q$900,13,FALSE) -> 1.453833581 | R46: ch tab | S46: 95.148 | T46: 0.006064749687 | U46: 0 | V46: 0
B47: serv tab pte | C47: 2263.335667 | E47: serv tab pte | F47: =GETPIVOTDATA("Poids hebdo livré (yc variation charge) (kg)",$B$3,"Famille","serv tab pte") -> 2263.335667 | G47: =VLOOKUP(E47,'Qtité art'!$E$9:$Q$900,8,FALSE) -> 5 | H47: =VLOOKUP(E47,'Qtité art'!$E$9:$Q$900,9,FALSE) -> 01:06:21.565 | I47: =VLOOKUP(E47,'Qtité art'!$E$9:$Q$900,10,FALSE) -> 0 | J47: =VLOOKUP(E47,'Qtité art'!$E$9:$Q$900,11,FALSE) -> 00:00:00 | K47: =VLOOKUP(E47,'Qtité art'!$E$9:$Q$900,12,FALSE) -> Plat2 | L47: =VLOOKUP(E47,'Qtité art'!$E$9:$Q$900,13,FALSE) -> 18:22:14.361 | R47: des lit | S47: 646.6526667 | T47: 0.04121775085 | U47: 0.1 | V47: 0.02857142857
B48: tablier blanc | C48: 2136.474 | E48: tablier blanc | F48: =GETPIVOTDATA("Poids hebdo livré (yc variation charge) (kg)",$B$3,"Famille","tablier blanc") -> 2136.474 | G48: =VLOOKUP(E48,'Qtité art'!$E$9:$Q$900,8,FALSE) -> 1 | H48: =VLOOKUP(E48,'Qtité art'!$E$9:$Q$900,9,FALSE) -> 00:01:35 | I48: =VLOOKUP(E48,'Qtité art'!$E$9:$Q$900,10,FALSE) -> 2 | J48: =VLOOKUP(E48,'Qtité art'!$E$9:$Q$900,11,FALSE) -> 00:22:38.495 | K48: =VLOOKUP(E48,'Qtité art'!$E$9:$Q$900,12,FALSE) -> Plat2 | L48: =VLOOKUP(E48,'Qtité art'!$E$9:$Q$900,13,FALSE) -> 127931.7344 | R48: nap .30 | S48: 39.09966667 | T48: 0.002492219397 | U48: 0 | V48: 0
B49: tablier bleu | C49: 100.1083333 | E49: tablier bleu | F49: =GETPIVOTDATA("Poids hebdo livré (yc variation charge) (kg)",$B$3,"Famille","tablier bleu") -> 100.1083333 | G49: =VLOOKUP(E49,'Qtité art'!$E$9:$Q$900,8,FALSE) -> 1 | H49: =VLOOKUP(E49,'Qtité art'!$E$9:$Q$900,9,FALSE) -> 00:01:35 | I49: =VLOOKUP(E49,'Qtité art'!$E$9:$Q$900,10,FALSE) -> 2 | J49: =VLOOKUP(E49,'Qtité art'!$E$9:$Q$900,11,FALSE) -> 00:22:38.495 | K49: =VLOOKUP(E49,'Qtité art'!$E$9:$Q$900,12,FALSE) -> Plat2 | L49: =VLOOKUP(E49,'Qtité art'!$E$9:$Q$900,13,FALSE) -> 146303.2713 | R49: nap 12 | S49: 315.1183333 | T49: 0.02008569611 | U49: 0.1 | V49: 0.02857142857
B50: tablier bret | C50: 518.8156667 | E50: tablier bret | F50: =GETPIVOTDATA("Poids hebdo livré (yc variation charge) (kg)",$B$3,"Famille","tablier bret") -> 518.8156667 | G50: =VLOOKUP(E50,'Qtité art'!$E$9:$Q$900,8,FALSE) -> 1 | H50: =VLOOKUP(E50,'Qtité art'!$E$9:$Q$900,9,FALSE) -> 00:01:35 | I50: =VLOOKUP(E50,'Qtité art'!$E$9:$Q$900,10,FALSE) -> 2 | J50: =VLOOKUP(E50,'Qtité art'!$E$9:$Q$900,11,FALSE) -> 00:22:38.495 | K50: =VLOOKUP(E50,'Qtité art'!$E$9:$Q$900,12,FALSE) -> Plat2 | L50: =VLOOKUP(E50,'Qtité art'!$E$9:$Q$900,13,FALSE) -> 84151.14351 | R50: nap 15 + 18 | S50: 1164.675667 | T50: 0.07423662488 | U50: 0.2 | V50: 0.05714285714
B51: taie am | C51: 1981.812 | E51: taie am | F51: =GETPIVOTDATA("Poids hebdo livré (yc variation charge) (kg)",$B$3,"Famille","taie am") -> 1981.812 | G51: =VLOOKUP(E51,'Qtité art'!$E$9:$Q$900,8,FALSE) -> 1 | H51: =VLOOKUP(E51,'Qtité art'!$E$9:$Q$900,9,FALSE) -> 00:01:35 | I51: =VLOOKUP(E51,'Qtité art'!$E$9:$Q$900,10,FALSE) -> 1 | J51: =VLOOKUP(E51,'Qtité art'!$E$9:$Q$900,11,FALSE) -> 00:04:47.238 | K51: =VLOOKUP(E51,'Qtité art'!$E$9:$Q$900,12,FALSE) -> Plat2 | L51: =VLOOKUP(E51,'Qtité art'!$E$9:$Q$900,13,FALSE) -> 497516.8326 | R51: nap 20 | S51: 441.9036667 | T51: 0.0281670148 | U51: 0.1 | V51: 0.02857142857
B52: Taie Carrée | C52: 5100.921667 | E52: Taie Carrée | F52: =GETPIVOTDATA("Poids hebdo livré (yc variation charge) (kg)",$B$3,"Famille","Taie Carrée") -> 5100.921667 | G52: =VLOOKUP(E52,'Qtité art'!$E$9:$Q$900,8,FALSE) -> 1 | H52: =VLOOKUP(E52,'Qtité art'!$E$9:$Q$900,9,FALSE) -> 00:01:35 | I52: =VLOOKUP(E52,'Qtité art'!$E$9:$Q$900,10,FALSE) -> 1 | J52: =VLOOKUP(E52,'Qtité art'!$E$9:$Q$900,11,FALSE) -> 00:04:47.238 | K52: =VLOOKUP(E52,'Qtité art'!$E$9:$Q$900,12,FALSE) -> Plat2 | L52: =VLOOKUP(E52,'Qtité art'!$E$9:$Q$900,13,FALSE) -> 357762.4481 | R52: nap 24 | S52: 148.8666667 | T52: 0.009488786627 | U52: 0 | V52: 0
B53: taie luxe | C53: 411.3003333 | E53: taie luxe | F53: =GETPIVOTDATA("Poids hebdo livré (yc variation charge) (kg)",$B$3,"Famille","taie luxe") -> 411.3003333 | G53: =VLOOKUP(E53,'Qtité art'!$E$9:$Q$900,8,FALSE) -> 1 | H53: =VLOOKUP(E53,'Qtité art'!$E$9:$Q$900,9,FALSE) -> 00:01:35 | I53: =VLOOKUP(E53,'Qtité art'!$E$9:$Q$900,10,FALSE) -> 1 | J53: =VLOOKUP(E53,'Qtité art'!$E$9:$Q$900,11,FALSE) -> 00:04:47.238 | K53: =VLOOKUP(E53,'Qtité art'!$E$9:$Q$900,12,FALSE) -> Plat2 | L53: =VLOOKUP(E53,'Qtité art'!$E$9:$Q$900,13,FALSE) -> 325641.0072 | R53: npr | S53: 57.14266667 | T53: 0.003642283283 | U53: 0 | V53: 0
B54: tapis bain | C54: 2376.046 | E54: tapis bain | F54: =GETPIVOTDATA("Poids hebdo livré (yc variation charge) (kg)",$B$3,"Famille","tapis bain") -> 2376.046 | G54: =VLOOKUP(E54,'Qtité art'!$E$9:$Q$900,8,FALSE) -> 1 | H54: =VLOOKUP(E54,'Qtité art'!$E$9:$Q$900,9,FALSE) -> 00:01:35 | I54: =VLOOKUP(E54,'Qtité art'!$E$9:$Q$900,10,FALSE) -> 5 | J54: =VLOOKUP(E54,'Qtité art'!$E$9:$Q$900,11,FALSE) -> 00:27:00 | K54: =VLOOKUP(E54,'Qtité art'!$E$9:$Q$900,12,FALSE) -> Plat5 | L54: =VLOOKUP(E54,'Qtité art'!$E$9:$Q$900,13,FALSE) -> 246699.7115 | R54: npr 10 | S54: 47.75766667 | T54: 0.003044081788 | U54: 0 | V54: 0
B55: tapis bain luxe | C55: 119.5646667 | E55: tapis bain luxe | F55: =GETPIVOTDATA("Poids hebdo livré (yc variation charge) (kg)",$B$3,"Famille","tapis bain luxe") -> 119.5646667 | G55: =VLOOKUP(E55,'Qtité art'!$E$9:$Q$900,8,FALSE) -> 1 | H55: =VLOOKUP(E55,'Qtité art'!$E$9:$Q$900,9,FALSE) -> 00:01:35 | I55: =VLOOKUP(E55,'Qtité art'!$E$9:$Q$900,10,FALSE) -> 5 | J55: =VLOOKUP(E55,'Qtité art'!$E$9:$Q$900,11,FALSE) -> 00:27:00 | K55: =VLOOKUP(E55,'Qtité art'!$E$9:$Q$900,12,FALSE) -> Plat5 | L55: =VLOOKUP(E55,'Qtité art'!$E$9:$Q$900,13,FALSE) -> 153096.6917 | R55: Plat5 | S55: 50.44333333 | T55: 0.003215266638 | U55: =SUM(U55:U55) -> 0 | V55: 0
B56: torchon | C56: 1486.340333 | E56: torchon | F56: =GETPIVOTDATA("Poids hebdo livré (yc variation charge) (kg)",$B$3,"Famille","torchon") -> 1486.340333 | G56: =VLOOKUP(E56,'Qtité art'!$E$9:$Q$900,8,FALSE) -> 1 | H56: =VLOOKUP(E56,'Qtité art'!$E$9:$Q$900,9,FALSE) -> 00:01:35 | I56: =VLOOKUP(E56,'Qtité art'!$E$9:$Q$900,10,FALSE) -> 1 | J56: =VLOOKUP(E56,'Qtité art'!$E$9:$Q$900,11,FALSE) -> 00:04:47.238 | K56: =VLOOKUP(E56,'Qtité art'!$E$9:$Q$900,12,FALSE) -> Plat2 | L56: =VLOOKUP(E56,'Qtité art'!$E$9:$Q$900,13,FALSE) -> 1179513.317 | R56: serv épges coiffeur | S56: 50.44333333 | T56: 0.003215266638 | U56: 0 | V56: 0
B57: VT | C57: 900000 | E57: VT | F57: =GETPIVOTDATA("Poids hebdo livré (yc variation charge) (kg)",$B$3,"Famille","VT") -> 900000 | G57: =VLOOKUP(E57,'Qtité art'!$E$9:$Q$900,8,FALSE) -> 2 | H57: =VLOOKUP(E57,'Qtité art'!$E$9:$Q$900,9,FALSE) -> 00:03:00 | I57: =VLOOKUP(E57,'Qtité art'!$E$9:$Q$900,10,FALSE) -> 0 | J57: =VLOOKUP(E57,'Qtité art'!$E$9:$Q$900,11,FALSE) -> 00:00:00 | K57: =VLOOKUP(E57,'Qtité art'!$E$9:$Q$900,12,FALSE) -> Plat6 | L57: =VLOOKUP(E57,'Qtité art'!$E$9:$Q$900,13,FALSE) -> 00:00:00 | R57: Plat6 | S57: 12489.02367 | T57: 0.7960524905 | U57: =SUM(U58:U63) -> 2.5 | V57: =2.5/3.5 -> 0.7142857143
B58: VT Séché TF | C58: 394.0036667 | E58: VT Séché TF | F58: =GETPIVOTDATA("Poids hebdo livré (yc variation charge) (kg)",$B$3,"Famille","VT Séché TF") -> 394.0036667 | G58: =VLOOKUP(E58,'Qtité art'!$E$9:$Q$900,8,FALSE) -> 2 | H58: =VLOOKUP(E58,'Qtité art'!$E$9:$Q$900,9,FALSE) -> 00:03:00 | I58: =VLOOKUP(E58,'Qtité art'!$E$9:$Q$900,10,FALSE) -> 0 | J58: =VLOOKUP(E58,'Qtité art'!$E$9:$Q$900,11,FALSE) -> 00:00:00 | K58: =VLOOKUP(E58,'Qtité art'!$E$9:$Q$900,12,FALSE) -> Plat6 | L58: =VLOOKUP(E58,'Qtité art'!$E$9:$Q$900,13,FALSE) -> 00:00:00 | R58: carré/gant | S58: 953.045 | T58: 0.06074725023 | U58: 0 | V58: =U58/$U$64 -> 0
B59: Total général | C59: 1060540.622 | R59: couette/couv | S59: 3873.536333 | T59: 0.246899864 | U59: 1 | V59: =1/3.5 -> 0.2857142857
R60: franges | S60: 3041.546 | T60: 0.1938686588 | U60: 0.5 | V60: =0.5/3.5 -> 0.1428571429
R61: peignoir/cas | S61: 465.887 | T61: 0.02969571654 | U61: 0 | V61: =U61/$U$64 -> 0
R62: Protège matelas | S62: 14.94 | T62: 0.0009522781385 | U62: 0 | V62: =U62/$U$64 -> 0
R63: sac | S63: 4140.069333 | T63: 0.2638887228 | U63: 1 | V63: =1/3.5 -> 0.2857142857
R64: Total général | S64: 15688.69367 | T64: 1 | U64: =SUM(U40,U42,U45,U55,U57) -> 3.5 | V64: 1
R66: Milnor | Y66: Milnor
R67: Étiquettes de lignes | S67: Somme de Poids livré en kg | T67: Cadencement réel | U67: nombre de passes | V67: cadencement nominal | Y67: Lavage | Z67: Étiquettes de lignes | AA67: Somme de Poids livré en kg | AB67: Cadencement réel | AC67: nombre de passes | AD67: cadencement nominal
R68: Plat4 | S68: 4934.123667 | T68: =S68/$S$81 -> 0.005425932864 | U68: 0 | V68: =U68/$U$81 -> 0 | Y68: Milnor | Z68: Plat4 | AA68: 4934.123667 | AB68: =AA68/$AA$71 -> 0.005425932864 | AC68: 0 | AD68: =AC68/$AC$71 -> 0
R69: chp grd | S69: 26.667 | T69: =S69/$S$81 -> 2.93250355e-05 | U69: 0 | V69: =U69/$U$81 -> 0 | Y69: Milnor | Z69: Plat5 | AA69: 4031.385667 | AB69: =AA69/$AA$71 -> 0.004433214377 | AC69: 0 | AD69: 0
R70: chp petit | S70: 50.196 | T70: 5.519929058e-05 | U70: 0 | V70: 0 | Y70: Milnor | Z70: Plat6 | AA70: 900394.0037 | AB70: =AA70/$AA$71 -> 0.9901408528 | AC70: 1 | AD70: =AC70/$AC$71 -> 1
R71: drap 1/2 | S71: 555.4266667 | T71: 0.000610788867 | U71: 0 | V71: 0 | Y71: Total | AA71: =SUM(AA68:AA70) -> 909359.513 | AB71: =AA71/$AA$71 -> 1 | AC71: =SUM(AC68:AC70) -> 1 | AD71: =AC71/$AC$71 -> 1
R72: Drap ambulatoire | S72: 1018.621333 | T72: 0.001120152502 | U72: 0 | V72: 0
R73: pte al | S73: 3283.212667 | T73: 0.003610467169 | U73: 0 | V73: 0
R74: Plat5 | S74: 4031.385667 | T74: 0.004433214377 | U74: 0 | V74: 0
R75: alése abs | S75: 1607.933333 | T75: 0.001768204225 | U75: 0 | V75: 0
R76: Bavoir | S76: 494.0833333 | T76: 0.0005433311317 | U76: 0 | V76: 0
R77: chmal | S77: 1929.369 | T77: 0.00212167902 | U77: 0 | V77: 0
R78: Plat6 | S78: 900394.0037 | T78: 0.9901408528 | U78: 1 | V78: 1
R79: VT | S79: 900000 | T79: 0.9897075767 | U79: 1 | V79: 1
R80: VT Séché TF | S80: 394.0036667 | T80: 0.0004332760157 | U80: 0 | V80: 0
R81: Total général | S81: 909359.513 | T81: 1 | U81: =SUM(U78,U74,U68) -> 1 | V81: 1

Sheet Data1 (hidden)
A1: Familles | B1: Poids livré en kg | C1: lavage | D1: Unité de lavage (Kg) | E1: TcycleL | F1: Séchoir | G1: TcycleS | H1: Calandre | I1: TcycleC | K1: lavage | L1: Calandre | M1: Poids livrés | N1: Cadencement réel | O1: Nombres de passes | P1: Cadencement Nominal | R1: Cadencement
A2: alése abs | B2: =VLOOKUP(A2,'Feuille de calculs'!$E$4:$M$58,2,FALSE) -> 1607.933333 | C2: =VLOOKUP(A2,'Qtité art'!$E$9:$Q$900,8,FALSE) -> 2 | D2: =VLOOKUP(A2,'Qtité art'!$E$9:$Q$900,9,FALSE) -> 0.002083333333 | E2: =VLOOKUP(A2,'Qtité art'!$E$9:$Q$900,10,FALSE) -> 2 | F2: =VLOOKUP(A2,'Qtité art'!$E$9:$Q$900,11,FALSE) -> 0.0157233251 | G2: =VLOOKUP(A2,'Qtité art'!$E$9:$Q$900,12,FALSE) -> Plat5 | H2: =VLOOKUP(A2,'Qtité art'!$E$9:$Q$900,13,FALSE) -> 0.1004292477 | I2: =VLOOKUP(A2,'Qtité art'!$E$9:$Q$900,14,FALSE) ->  | K2: Kannegiesser | L2: Plat2 | M2: 14017.41733 | N2: =VLOOKUP(M2,'Feuille de calculs'!$AA$4:$AD$71,2,FALSE) -> 0.1034553654 | O2: =0.5*2 -> 1 | P2: =VLOOKUP(M2,'Feuille de calculs'!$AA$4:$AD$71,4,FALSE) -> 0.09090909091 | R2: Plat2
A3: Bavoir | B3: =VLOOKUP(A3,'Feuille de calculs'!$E$4:$M$58,2,FALSE) -> 494.0833333 | C3: =VLOOKUP(A3,'Qtité art'!$E$9:$Q$900,8,FALSE) -> 2 | D3: =VLOOKUP(A3,'Qtité art'!$E$9:$Q$900,9,FALSE) -> 0.002083333333 | E3: =VLOOKUP(A3,'Qtité art'!$E$9:$Q$900,10,FALSE) -> 2 | F3: =VLOOKUP(A3,'Qtité art'!$E$9:$Q$900,11,FALSE) -> 0.0157233251 | G3: =VLOOKUP(A3,'Qtité art'!$E$9:$Q$900,12,FALSE) -> Plat5 | H3: =VLOOKUP(A3,'Qtité art'!$E$9:$Q$900,13,FALSE) -> 0.3573713619 | I3: =VLOOKUP(A3,'Qtité art'!$E$9:$Q$900,14,FALSE) ->  | K3: Kannegiesser | L3: Plat3 | M3: 89835.189 | N3: =VLOOKUP(M3,'Feuille de calculs'!$AA$4:$AD$71,2,FALSE) -> 0.6630274379 | O3: 7 | P3: =VLOOKUP(M3,'Feuille de calculs'!$AA$4:$AD$71,4,FALSE) -> 0.6363636364 | R3: Plat3
A4: carré/gant | B4: =VLOOKUP(A4,'Feuille de calculs'!$E$4:$M$58,2,FALSE) -> 953.045 | C4: =VLOOKUP(A4,'Qtité art'!$E$9:$Q$900,8,FALSE) -> 4 | D4: =VLOOKUP(A4,'Qtité art'!$E$9:$Q$900,9,FALSE) -> 0.05003634031 | E4: =VLOOKUP(A4,'Qtité art'!$E$9:$Q$900,10,FALSE) -> 2 | F4: =VLOOKUP(A4,'Qtité art'!$E$9:$Q$900,11,FALSE) -> 0.0157233251 | G4: =VLOOKUP(A4,'Qtité art'!$E$9:$Q$900,12,FALSE) -> Plat6 | H4: =VLOOKUP(A4,'Qtité art'!$E$9:$Q$900,13,FALSE) -> 1.635249822 | I4: =VLOOKUP(A4,'Qtité art'!$E$9:$Q$900,14,FALSE) ->  | K4: Kannegiesser | L4: Plat4 | M4: 1423.939 | N4: =VLOOKUP(M4,'Feuille de calculs'!$AA$4:$AD$71,2,FALSE) -> 0.01050936317 | O4: 0 | P4: =VLOOKUP(M4,'Feuille de calculs'!$AA$4:$AD$71,4,FALSE) -> 0 | R4: Plat3
A5: ch tab | B5: =VLOOKUP(A5,'Feuille de calculs'!$E$4:$M$58,2,FALSE) -> 95.148 | C5: =VLOOKUP(A5,'Qtité art'!$E$9:$Q$900,8,FALSE) -> 5 | D5: =VLOOKUP(A5,'Qtité art'!$E$9:$Q$900,9,FALSE) -> 0.04608292821 | E5: =VLOOKUP(A5,'Qtité art'!$E$9:$Q$900,10,FALSE) -> 00:00:00 | F5: =VLOOKUP(A5,'Qtité art'!$E$9:$Q$900,11,FALSE) -> 0 | G5: =VLOOKUP(A5,'Qtité art'!$E$9:$Q$900,12,FALSE) -> Plat4 | H5: =VLOOKUP(A5,'Qtité art'!$E$9:$Q$900,13,FALSE) -> 1.673357384 | I5: =VLOOKUP(A5,'Qtité art'!$E$9:$Q$900,14,FALSE) ->  | K5: Kannegiesser | L5: Plat5 | M5: 21084.653 | N5: =VLOOKUP(M5,'Feuille de calculs'!$AA$4:$AD$71,2,FALSE) -> 0.1556150058 | O5: 2 | P5: =VLOOKUP(M5,'Feuille de calculs'!$AA$4:$AD$71,4,FALSE) -> 0.1818181818 | R5: Plat3
A6: chmal | B6: =VLOOKUP(A6,'Feuille de calculs'!$E$4:$M$58,2,FALSE) -> 1929.369 | C6: =VLOOKUP(A6,'Qtité art'!$E$9:$Q$900,8,FALSE) -> 2 | D6: =VLOOKUP(A6,'Qtité art'!$E$9:$Q$900,9,FALSE) -> 0.002083333333 | E6: =VLOOKUP(A6,'Qtité art'!$E$9:$Q$900,10,FALSE) -> 2 | F6: =VLOOKUP(A6,'Qtité art'!$E$9:$Q$900,11,FALSE) -> 0.0157233251 | G6: =VLOOKUP(A6,'Qtité art'!$E$9:$Q$900,12,FALSE) -> Plat5 | H6: =VLOOKUP(A6,'Qtité art'!$E$9:$Q$900,13,FALSE) -> 0.6009757033 | I6: =VLOOKUP(A6,'Qtité art'!$E$9:$Q$900,14,FALSE) ->  | K6: Kannegiesser | L6: Plat6 | M6: 9131.217 | N6: =VLOOKUP(M6,'Feuille de calculs'!$AA$4:$AD$71,2,FALSE) -> 0.06739282769 | O6: 1 | P6: =VLOOKUP(M6,'Feuille de calculs'!$AA$4:$AD$71,4,FALSE) -> 0.09090909091 | R6: Plat3
A7: chp grd | B7: =VLOOKUP(A7,'Feuille de calculs'!$E$4:$M$58,2,FALSE) -> 26.667 | C7: =VLOOKUP(A7,'Qtité art'!$E$9:$Q$900,8,FALSE) -> 2 | D7: =VLOOKUP(A7,'Qtité art'!$E$9:$Q$900,9,FALSE) -> 0.002083333333 | E7: =VLOOKUP(A7,'Qtité art'!$E$9:$Q$900,10,FALSE) -> 00:00:00 | F7: =VLOOKUP(A7,'Qtité art'!$E$9:$Q$900,11,FALSE) -> 0 | G7: =VLOOKUP(A7,'Qtité art'!$E$9:$Q$900,12,FALSE) -> Plat4 | H7: =VLOOKUP(A7,'Qtité art'!$E$9:$Q$900,13,FALSE) -> 0.3355338623 | I7: =VLOOKUP(A7,'Qtité art'!$E$9:$Q$900,14,FALSE) ->  | K7: Laveuses | L7: Plat2 | M7: 70.05 | N7: =VLOOKUP(M7,'Feuille de calculs'!$AA$4:$AD$71,2,FALSE) -> 0.004500226842 | O7: 0 | P7: =VLOOKUP(M7,'Feuille de calculs'!$AA$4:$AD$71,4,FALSE) -> 0 | R7: Plat 5
A8: chp petit | B8: =VLOOKUP(A8,'Feuille de calculs'!$E$4:$M$58,2,FALSE) -> 50.196 | C8: =VLOOKUP(A8,'Qtité art'!$E$9:$Q$900,8,FALSE) -> 2 | D8: =VLOOKUP(A8,'Qtité art'!$E$9:$Q$900,9,FALSE) -> 0.002083333333 | E8: =VLOOKUP(A8,'Qtité art'!$E$9:$Q$900,10,FALSE) -> 00:00:00 | F8: =VLOOKUP(A8,'Qtité art'!$E$9:$Q$900,11,FALSE) -> 0 | G8: =VLOOKUP(A8,'Qtité art'!$E$9:$Q$900,12,FALSE) -> Plat4 | H8: =VLOOKUP(A8,'Qtité art'!$E$9:$Q$900,13,FALSE) -> 0.5587771018 | I8: =VLOOKUP(A8,'Qtité art'!$E$9:$Q$900,14,FALSE) ->  | K8: Laveuses | L8: Plat4 | M8: 2956.365 | N8: =VLOOKUP(M8,'Feuille de calculs'!$AA$4:$AD$71,2,FALSE) -> 0.1899259547 | O8: 0.5 | P8: =VLOOKUP(M8,'Feuille de calculs'!$AA$4:$AD$71,4,FALSE) -> 0.2 | R8: Plat 5
A9: couche | B9: =VLOOKUP(A9,'Feuille de calculs'!$E$4:$M$58,2,FALSE) -> 28.435 | C9: =VLOOKUP(A9,'Qtité art'!$E$9:$Q$900,8,FALSE) -> 4 | D9: =VLOOKUP(A9,'Qtité art'!$E$9:$Q$900,9,FALSE) -> 0.05003634031 | E9: =VLOOKUP(A9,'Qtité art'!$E$9:$Q$900,10,FALSE) -> 00:00:00 | F9: =VLOOKUP(A9,'Qtité art'!$E$9:$Q$900,11,FALSE) -> 0 | G9: =VLOOKUP(A9,'Qtité art'!$E$9:$Q$900,12,FALSE) -> Plat2 | H9: =VLOOKUP(A9,'Qtité art'!$E$9:$Q$900,13,FALSE) -> 1.537793575 | I9: =VLOOKUP(A9,'Qtité art'!$E$9:$Q$900,14,FALSE) ->  | K9: Laveuses | L9: Plat5 | M9: 50.44333333 | N9: =VLOOKUP(M9,'Feuille de calculs'!$AA$4:$AD$71,2,FALSE) -> 0.003240634442 | O9: 0 | P9: =VLOOKUP(M9,'Feuille de calculs'!$AA$4:$AD$71,4,FALSE) -> 0 | R9: Plat6
A10: couette/couv | B10: =VLOOKUP(A10,'Feuille de calculs'!$E$4:$M$58,2,FALSE) -> 3873.536333 | C10: =VLOOKUP(A10,'Qtité art'!$E$9:$Q$900,8,FALSE) -> 4 | D10: =VLOOKUP(A10,'Qtité art'!$E$9:$Q$900,9,FALSE) -> 0.05003634031 | E10: =VLOOKUP(A10,'Qtité art'!$E$9:$Q$900,10,FALSE) -> 3 | F10: =VLOOKUP(A10,'Qtité art'!$E$9:$Q$900,11,FALSE) -> 0.01307808965 | G10: =VLOOKUP(A10,'Qtité art'!$E$9:$Q$900,12,FALSE) -> Plat6 | H10: =VLOOKUP(A10,'Qtité art'!$E$9:$Q$900,13,FALSE) -> 0.2746446818 | I10: =VLOOKUP(A10,'Qtité art'!$E$9:$Q$900,14,FALSE) ->  | K10: Laveuses | L10: Plat6 | M10: 12489.02367 | N10: =VLOOKUP(M10,'Feuille de calculs'!$AA$4:$AD$71,2,FALSE) -> 0.802333184 | O10: 2 | P10: =VLOOKUP(M10,'Feuille de calculs'!$AA$4:$AD$71,4,FALSE) -> 0.8 | R10: Plat3
A11: des lit | B11: =VLOOKUP(A11,'Feuille de calculs'!$E$4:$M$58,2,FALSE) -> 646.6526667 | C11: =VLOOKUP(A11,'Qtité art'!$E$9:$Q$900,8,FALSE) -> 4 | D11: =VLOOKUP(A11,'Qtité art'!$E$9:$Q$900,9,FALSE) -> 0.05003634031 | E11: =VLOOKUP(A11,'Qtité art'!$E$9:$Q$900,10,FALSE) -> 00:00:00 | F11: =VLOOKUP(A11,'Qtité art'!$E$9:$Q$900,11,FALSE) -> 0 | G11: =VLOOKUP(A11,'Qtité art'!$E$9:$Q$900,12,FALSE) -> Plat4 | H11: =VLOOKUP(A11,'Qtité art'!$E$9:$Q$900,13,FALSE) -> 0.2824254281 | I11: =VLOOKUP(A11,'Qtité art'!$E$9:$Q$900,14,FALSE) ->  | K11: Milnor | L11: Plat4 | M11: 4934.123667 | N11: =VLOOKUP(M11,'Feuille de calculs'!$AA$4:$AD$71,2,FALSE) -> 0.005425932864 | O11: 0.005425932864 | P11: =VLOOKUP(M11,'Feuille de calculs'!$AA$4:$AD$71,4,FALSE) -> 0 | R11: Plat3
A12: drap 1/2 | B12: =VLOOKUP(A12,'Feuille de calculs'!$E$4:$M$58,2,FALSE) -> 555.4266667 | C12: =VLOOKUP(A12,'Qtité art'!$E$9:$Q$900,8,FALSE) -> 2 | D12: =VLOOKUP(A12,'Qtité art'!$E$9:$Q$900,9,FALSE) -> 0.002083333333 | E12: =VLOOKUP(A12,'Qtité art'!$E$9:$Q$900,10,FALSE) -> 00:00:00 | F12: =VLOOKUP(A12,'Qtité art'!$E$9:$Q$900,11,FALSE) -> 0 | G12: =VLOOKUP(A12,'Qtité art'!$E$9:$Q$900,12,FALSE) -> Plat4 | H12: =VLOOKUP(A12,'Qtité art'!$E$9:$Q$900,13,FALSE) -> 0.2283366492 | I12: =VLOOKUP(A12,'Qtité art'!$E$9:$Q$900,14,FALSE) ->  | K12: Milnor | L12: Plat5 | M12: 4031.385667 | N12: =VLOOKUP(M12,'Feuille de calculs'!$AA$4:$AD$71,2,FALSE) -> 0.004433214377 | O12: 0.004433214377 | P12: =VLOOKUP(M12,'Feuille de calculs'!$AA$4:$AD$71,4,FALSE) -> 0 | R12: Plat3
A13: Drap ambulatoire | B13: =VLOOKUP(A13,'Feuille de calculs'!$E$4:$M$58,2,FALSE) -> 1018.621333 | C13: =VLOOKUP(A13,'Qtité art'!$E$9:$Q$900,8,FALSE) -> 2 | D13: =VLOOKUP(A13,'Qtité art'!$E$9:$Q$900,9,FALSE) -> 0.002083333333 | E13: =VLOOKUP(A13,'Qtité art'!$E$9:$Q$900,10,FALSE) -> 00:00:00 | F13: =VLOOKUP(A13,'Qtité art'!$E$9:$Q$900,11,FALSE) -> 0 | G13: =VLOOKUP(A13,'Qtité art'!$E$9:$Q$900,12,FALSE) -> Plat4 | H13: =VLOOKUP(A13,'Qtité art'!$E$9:$Q$900,13,FALSE) -> 0.2352094609 | I13: =VLOOKUP(A13,'Qtité art'!$E$9:$Q$900,14,FALSE) ->  | K13: Milnor | L13: Plat6 | M13: 900394.0037 | N13: =VLOOKUP(M13,'Feuille de calculs'!$AA$4:$AD$71,2,FALSE) -> 0.9901408528 | O13: 0.9901408528 | P13: =VLOOKUP(M13,'Feuille de calculs'!$AA$4:$AD$71,4,FALSE) -> 1
A14: drap bain | B14: =VLOOKUP(A14,'Feuille de calculs'!$E$4:$M$58,2,FALSE) -> 9110.165667 | C14: =VLOOKUP(A14,'Qtité art'!$E$9:$Q$900,8,FALSE) -> 1 | D14: =VLOOKUP(A14,'Qtité art'!$E$9:$Q$900,9,FALSE) -> 0.001099537037 | E14: =VLOOKUP(A14,'Qtité art'!$E$9:$Q$900,10,FALSE) -> 5 | F14: =VLOOKUP(A14,'Qtité art'!$E$9:$Q$900,11,FALSE) -> 0.01875 | G14: =VLOOKUP(A14,'Qtité art'!$E$9:$Q$900,12,FALSE) -> Plat5 | H14: =VLOOKUP(A14,'Qtité art'!$E$9:$Q$900,13,FALSE) -> 111264.4679 | I14: =VLOOKUP(A14,'Qtité art'!$E$9:$Q$900,14,FALSE) -> 
A15: drap bain luxe | B15: =VLOOKUP(A15,'Feuille de calculs'!$E$4:$M$58,2,FALSE) -> 1078.444667 | C15: =VLOOKUP(A15,'Qtité art'!$E$9:$Q$900,8,FALSE) -> 1 | D15: =VLOOKUP(A15,'Qtité art'!$E$9:$Q$900,9,FALSE) -> 0.001099537037 | E15: =VLOOKUP(A15,'Qtité art'!$E$9:$Q$900,10,FALSE) -> 5 | F15: =VLOOKUP(A15,'Qtité art'!$E$9:$Q$900,11,FALSE) -> 0.01875 | G15: =VLOOKUP(A15,'Qtité art'!$E$9:$Q$900,12,FALSE) -> Plat5 | H15: =VLOOKUP(A15,'Qtité art'!$E$9:$Q$900,13,FALSE) -> 49434.67035 | I15: =VLOOKUP(A15,'Qtité art'!$E$9:$Q$900,14,FALSE) -> 
A16: drap bain spa | B16: =VLOOKUP(A16,'Feuille de calculs'!$E$4:$M$58,2,FALSE) -> 362.56 | C16: =VLOOKUP(A16,'Qtité art'!$E$9:$Q$900,8,FALSE) -> 1 | D16: =VLOOKUP(A16,'Qtité art'!$E$9:$Q$900,9,FALSE) -> 0.001099537037 | E16: =VLOOKUP(A16,'Qtité art'!$E$9:$Q$900,10,FALSE) -> 5 | F16: =VLOOKUP(A16,'Qtité art'!$E$9:$Q$900,11,FALSE) -> 0.01875 | G16: =VLOOKUP(A16,'Qtité art'!$E$9:$Q$900,12,FALSE) -> Plat5 | H16: =VLOOKUP(A16,'Qtité art'!$E$9:$Q$900,13,FALSE) -> 36741.19837 | I16: =VLOOKUP(A16,'Qtité art'!$E$9:$Q$900,14,FALSE) -> 
A17: drap grand | B17: =VLOOKUP(A17,'Feuille de calculs'!$E$4:$M$58,2,FALSE) -> 15308.12833 | C17: =VLOOKUP(A17,'Qtité art'!$E$9:$Q$900,8,FALSE) -> 1 | D17: =VLOOKUP(A17,'Qtité art'!$E$9:$Q$900,9,FALSE) -> 0.001099537037 | E17: =VLOOKUP(A17,'Qtité art'!$E$9:$Q$900,10,FALSE) -> 00:00:00 | F17: =VLOOKUP(A17,'Qtité art'!$E$9:$Q$900,11,FALSE) -> 0 | G17: =VLOOKUP(A17,'Qtité art'!$E$9:$Q$900,12,FALSE) -> Plat3 | H17: =VLOOKUP(A17,'Qtité art'!$E$9:$Q$900,13,FALSE) -> 33459.97372 | I17: =VLOOKUP(A17,'Qtité art'!$E$9:$Q$900,14,FALSE) -> 
A18: drap housse | B18: =VLOOKUP(A18,'Feuille de calculs'!$E$4:$M$58,2,FALSE) -> 9131.217 | C18: =VLOOKUP(A18,'Qtité art'!$E$9:$Q$900,8,FALSE) -> 1 | D18: =VLOOKUP(A18,'Qtité art'!$E$9:$Q$900,9,FALSE) -> 0.001099537037 | E18: =VLOOKUP(A18,'Qtité art'!$E$9:$Q$900,10,FALSE) -> 2 | F18: =VLOOKUP(A18,'Qtité art'!$E$9:$Q$900,11,FALSE) -> 0.0157233251 | G18: =VLOOKUP(A18,'Qtité art'!$E$9:$Q$900,12,FALSE) -> Plat6 | H18: =VLOOKUP(A18,'Qtité art'!$E$9:$Q$900,13,FALSE) -> 43869.5083 | I18: =VLOOKUP(A18,'Qtité art'!$E$9:$Q$900,14,FALSE) -> 
A19: drap luxe | B19: =VLOOKUP(A19,'Feuille de calculs'!$E$4:$M$58,2,FALSE) -> 18.51666667 | C19: =VLOOKUP(A19,'Qtité art'!$E$9:$Q$900,8,FALSE) -> 1 | D19: =VLOOKUP(A19,'Qtité art'!$E$9:$Q$900,9,FALSE) -> 0.001099537037 | E19: =VLOOKUP(A19,'Qtité art'!$E$9:$Q$900,10,FALSE) -> 00:00:00 | F19: =VLOOKUP(A19,'Qtité art'!$E$9:$Q$900,11,FALSE) -> 0 | G19: =VLOOKUP(A19,'Qtité art'!$E$9:$Q$900,12,FALSE) -> Plat3 | H19: =VLOOKUP(A19,'Qtité art'!$E$9:$Q$900,13,FALSE) -> 23840.96091 | I19: =VLOOKUP(A19,'Qtité art'!$E$9:$Q$900,14,FALSE) -> 
A20: drap petit | B20: =VLOOKUP(A20,'Feuille de calculs'!$E$4:$M$58,2,FALSE) -> 51798.10467 | C20: =VLOOKUP(A20,'Qtité art'!$E$9:$Q$900,8,FALSE) -> 1 | D20: =VLOOKUP(A20,'Qtité art'!$E$9:$Q$900,9,FALSE) -> 0.001099537037 | E20: =VLOOKUP(A20,'Qtité art'!$E$9:$Q$900,10,FALSE) -> 00:00:00 | F20: =VLOOKUP(A20,'Qtité art'!$E$9:$Q$900,11,FALSE) -> 0 | G20: =VLOOKUP(A20,'Qtité art'!$E$9:$Q$900,12,FALSE) -> Plat3 | H20: =VLOOKUP(A20,'Qtité art'!$E$9:$Q$900,13,FALSE) -> 52018.02061 | I20: =VLOOKUP(A20,'Qtité art'!$E$9:$Q$900,14,FALSE) -> 
A21: franges | B21: =VLOOKUP(A21,'Feuille de calculs'!$E$4:$M$58,2,FALSE) -> 3041.546 | C21: =VLOOKUP(A21,'Qtité art'!$E$9:$Q$900,8,FALSE) -> 4 | D21: =VLOOKUP(A21,'Qtité art'!$E$9:$Q$900,9,FALSE) -> 0.05003634031 | E21: =VLOOKUP(A21,'Qtité art'!$E$9:$Q$900,10,FALSE) -> 3 | F21: =VLOOKUP(A21,'Qtité art'!$E$9:$Q$900,11,FALSE) -> 0.01307808965 | G21: =VLOOKUP(A21,'Qtité art'!$E$9:$Q$900,12,FALSE) -> Plat6 | H21: =VLOOKUP(A21,'Qtité art'!$E$9:$Q$900,13,FALSE) -> 0.4782326707 | I21: =VLOOKUP(A21,'Qtité art'!$E$9:$Q$900,14,FALSE) -> 
A22: grde al | B22: =VLOOKUP(A22,'Feuille de calculs'!$E$4:$M$58,2,FALSE) -> 413.018 | C22: =VLOOKUP(A22,'Qtité art'!$E$9:$Q$900,8,FALSE) -> 1 | D22: =VLOOKUP(A22,'Qtité art'!$E$9:$Q$900,9,FALSE) -> 0.001099537037 | E22: =VLOOKUP(A22,'Qtité art'!$E$9:$Q$900,10,FALSE) -> 00:00:00 | F22: =VLOOKUP(A22,'Qtité art'!$E$9:$Q$900,11,FALSE) -> 0 | G22: =VLOOKUP(A22,'Qtité art'!$E$9:$Q$900,12,FALSE) -> Plat4 | H22: =VLOOKUP(A22,'Qtité art'!$E$9:$Q$900,13,FALSE) -> 44170.68477 | I22: =VLOOKUP(A22,'Qtité art'!$E$9:$Q$900,14,FALSE) -> 
A23: hous trav | B23: =VLOOKUP(A23,'Feuille de calculs'!$E$4:$M$58,2,FALSE) -> 1010.921 | C23: =VLOOKUP(A23,'Qtité art'!$E$9:$Q$900,8,FALSE) -> 1 | D23: =VLOOKUP(A23,'Qtité art'!$E$9:$Q$900,9,FALSE) -> 0.001099537037 | E23: =VLOOKUP(A23,'Qtité art'!$E$9:$Q$900,10,FALSE) -> 00:00:00 | F23: =VLOOKUP(A23,'Qtité art'!$E$9:$Q$900,11,FALSE) -> 0 | G23: =VLOOKUP(A23,'Qtité art'!$E$9:$Q$900,12,FALSE) -> Plat4 | H23: =VLOOKUP(A23,'Qtité art'!$E$9:$Q$900,13,FALSE) -> 198591.3906 | I23: =VLOOKUP(A23,'Qtité art'!$E$9:$Q$900,14,FALSE) -> 
A24: housse couette | B24: =VLOOKUP(A24,'Feuille de calculs'!$E$4:$M$58,2,FALSE) -> 15856.30733 | C24: =VLOOKUP(A24,'Qtité art'!$E$9:$Q$900,8,FALSE) -> 1 | D24: =VLOOKUP(A24,'Qtité art'!$E$9:$Q$900,9,FALSE) -> 0.001099537037 | E24: =VLOOKUP(A24,'Qtité art'!$E$9:$Q$900,10,FALSE) -> 00:00:00 | F24: =VLOOKUP(A24,'Qtité art'!$E$9:$Q$900,11,FALSE) -> 0 | G24: =VLOOKUP(A24,'Qtité art'!$E$9:$Q$900,12,FALSE) -> Plat3 | H24: =VLOOKUP(A24,'Qtité art'!$E$9:$Q$900,13,FALSE) -> 11156.75167 | I24: =VLOOKUP(A24,'Qtité art'!$E$9:$Q$900,14,FALSE) -> 
A25: nap .30 | B25: =VLOOKUP(A25,'Feuille de calculs'!$E$4:$M$58,2,FALSE) -> 39.09966667 | C25: =VLOOKUP(A25,'Qtité art'!$E$9:$Q$900,8,FALSE) -> 5 | D25: =VLOOKUP(A25,'Qtité art'!$E$9:$Q$900,9,FALSE) -> 0.04608292821 | E25: =VLOOKUP(A25,'Qtité art'!$E$9:$Q$900,10,FALSE) -> 00:00:00 | F25: =VLOOKUP(A25,'Qtité art'!$E$9:$Q$900,11,FALSE) -> 0 | G25: =VLOOKUP(A25,'Qtité art'!$E$9:$Q$900,12,FALSE) -> Plat4 | H25: =VLOOKUP(A25,'Qtité art'!$E$9:$Q$900,13,FALSE) -> 0.3774056538 | I25: =VLOOKUP(A25,'Qtité art'!$E$9:$Q$900,14,FALSE) -> 
A26: nap 12 | B26: =VLOOKUP(A26,'Feuille de calculs'!$E$4:$M$58,2,FALSE) -> 315.1183333 | C26: =VLOOKUP(A26,'Qtité art'!$E$9:$Q$900,8,FALSE) -> 5 | D26: =VLOOKUP(A26,'Qtité art'!$E$9:$Q$900,9,FALSE) -> 0.04608292821 | E26: =VLOOKUP(A26,'Qtité art'!$E$9:$Q$900,10,FALSE) -> 00:00:00 | F26: =VLOOKUP(A26,'Qtité art'!$E$9:$Q$900,11,FALSE) -> 0 | G26: =VLOOKUP(A26,'Qtité art'!$E$9:$Q$900,12,FALSE) -> Plat4 | H26: =VLOOKUP(A26,'Qtité art'!$E$9:$Q$900,13,FALSE) -> 0.4546823099 | I26: =VLOOKUP(A26,'Qtité art'!$E$9:$Q$900,14,FALSE) -> 
A27: nap 15 + 18 | B27: =VLOOKUP(A27,'Feuille de calculs'!$E$4:$M$58,2,FALSE) -> 1164.675667 | C27: =VLOOKUP(A27,'Qtité art'!$E$9:$Q$900,8,FALSE) -> 5 | D27: =VLOOKUP(A27,'Qtité art'!$E$9:$Q$900,9,FALSE) -> 0.04608292821 | E27: =VLOOKUP(A27,'Qtité art'!$E$9:$Q$900,10,FALSE) -> 00:00:00 | F27: =VLOOKUP(A27,'Qtité art'!$E$9:$Q$900,11,FALSE) -> 0 | G27: =VLOOKUP(A27,'Qtité art'!$E$9:$Q$900,12,FALSE) -> Plat4 | H27: =VLOOKUP(A27,'Qtité art'!$E$9:$Q$900,13,FALSE) -> 0.3321846029 | I27: =VLOOKUP(A27,'Qtité art'!$E$9:$Q$900,14,FALSE) -> 
A28: nap 20 | B28: =VLOOKUP(A28,'Feuille de calculs'!$E$4:$M$58,2,FALSE) -> 441.9036667 | C28: =VLOOKUP(A28,'Qtité art'!$E$9:$Q$900,8,FALSE) -> 5 | D28: =VLOOKUP(A28,'Qtité art'!$E$9:$Q$900,9,FALSE) -> 0.04608292821 | E28: =VLOOKUP(A28,'Qtité art'!$E$9:$Q$900,10,FALSE) -> 00:00:00 | F28: =VLOOKUP(A28,'Qtité art'!$E$9:$Q$900,11,FALSE) -> 0 | G28: =VLOOKUP(A28,'Qtité art'!$E$9:$Q$900,12,FALSE) -> Plat4 | H28: =VLOOKUP(A28,'Qtité art'!$E$9:$Q$900,13,FALSE) -> 0.3108921799 | I28: =VLOOKUP(A28,'Qtité art'!$E$9:$Q$900,14,FALSE) -> 
A29: nap 24 | B29: =VLOOKUP(A29,'Feuille de calculs'!$E$4:$M$58,2,FALSE) -> 148.8666667 | C29: =VLOOKUP(A29,'Qtité art'!$E$9:$Q$900,8,FALSE) -> 5 | D29: =VLOOKUP(A29,'Qtité art'!$E$9:$Q$900,9,FALSE) -> 0.04608292821 | E29: =VLOOKUP(A29,'Qtité art'!$E$9:$Q$900,10,FALSE) -> 00:00:00 | F29: =VLOOKUP(A29,'Qtité art'!$E$9:$Q$900,11,FALSE) -> 0 | G29: =VLOOKUP(A29,'Qtité art'!$E$9:$Q$900,12,FALSE) -> Plat4 | H29: =VLOOKUP(A29,'Qtité art'!$E$9:$Q$900,13,FALSE) -> 0.2205807597 | I29: =VLOOKUP(A29,'Qtité art'!$E$9:$Q$900,14,FALSE) -> 
A30: npr | B30: =VLOOKUP(A30,'Feuille de calculs'!$E$4:$M$58,2,FALSE) -> 57.14266667 | C30: =VLOOKUP(A30,'Qtité art'!$E$9:$Q$900,8,FALSE) -> 5 | D30: =VLOOKUP(A30,'Qtité art'!$E$9:$Q$900,9,FALSE) -> 0.04608292821 | E30: =VLOOKUP(A30,'Qtité art'!$E$9:$Q$900,10,FALSE) -> 00:00:00 | F30: =VLOOKUP(A30,'Qtité art'!$E$9:$Q$900,11,FALSE) -> 0 | G30: =VLOOKUP(A30,'Qtité art'!$E$9:$Q$900,12,FALSE) -> Plat4 | H30: =VLOOKUP(A30,'Qtité art'!$E$9:$Q$900,13,FALSE) -> 0.93363142 | I30: =VLOOKUP(A30,'Qtité art'!$E$9:$Q$900,14,FALSE) -> 
A31: npr 10 | B31: =VLOOKUP(A31,'Feuille de calculs'!$E$4:$M$58,2,FALSE) -> 47.75766667 | C31: =VLOOKUP(A31,'Qtité art'!$E$9:$Q$900,8,FALSE) -> 5 | D31: =VLOOKUP(A31,'Qtité art'!$E$9:$Q$900,9,FALSE) -> 0.04608292821 | E31: =VLOOKUP(A31,'Qtité art'!$E$9:$Q$900,10,FALSE) -> 00:00:00 | F31: =VLOOKUP(A31,'Qtité art'!$E$9:$Q$900,11,FALSE) -> 0 | G31: =VLOOKUP(A31,'Qtité art'!$E$9:$Q$900,12,FALSE) -> Plat4 | H31: =VLOOKUP(A31,'Qtité art'!$E$9:$Q$900,13,FALSE) -> 0.6245197286 | I31: =VLOOKUP(A31,'Qtité art'!$E$9:$Q$900,14,FALSE) -> 
A32: peignoir/cas | B32: =VLOOKUP(A32,'Feuille de calculs'!$E$4:$M$58,2,FALSE) -> 465.887 | C32: =VLOOKUP(A32,'Qtité art'!$E$9:$Q$900,8,FALSE) -> 4 | D32: =VLOOKUP(A32,'Qtité art'!$E$9:$Q$900,9,FALSE) -> 0.05003634031 | E32: =VLOOKUP(A32,'Qtité art'!$E$9:$Q$900,10,FALSE) -> 2 | F32: =VLOOKUP(A32,'Qtité art'!$E$9:$Q$900,11,FALSE) -> 0.0157233251 | G32: =VLOOKUP(A32,'Qtité art'!$E$9:$Q$900,12,FALSE) -> Plat6 | H32: =VLOOKUP(A32,'Qtité art'!$E$9:$Q$900,13,FALSE) -> 0.337782383 | I32: =VLOOKUP(A32,'Qtité art'!$E$9:$Q$900,14,FALSE) -> 
A33: petite housse | B33: =VLOOKUP(A33,'Feuille de calculs'!$E$4:$M$58,2,FALSE) -> 6854.132 | C33: =VLOOKUP(A33,'Qtité art'!$E$9:$Q$900,8,FALSE) -> 1 | D33: =VLOOKUP(A33,'Qtité art'!$E$9:$Q$900,9,FALSE) -> 0.001099537037 | E33: =VLOOKUP(A33,'Qtité art'!$E$9:$Q$900,10,FALSE) -> 00:00:00 | F33: =VLOOKUP(A33,'Qtité art'!$E$9:$Q$900,11,FALSE) -> 0 | G33: =VLOOKUP(A33,'Qtité art'!$E$9:$Q$900,12,FALSE) -> Plat3 | H33: =VLOOKUP(A33,'Qtité art'!$E$9:$Q$900,13,FALSE) -> 20439.3032 | I33: =VLOOKUP(A33,'Qtité art'!$E$9:$Q$900,14,FALSE) -> 
A34: Poubelle | B34: =VLOOKUP(A34,'Feuille de calculs'!$E$4:$M$58,2,FALSE) -> 122.8116667 | C34: =VLOOKUP(A34,'Qtité art'!$E$9:$Q$900,8,FALSE) -> 0 | D34: =VLOOKUP(A34,'Qtité art'!$E$9:$Q$900,9,FALSE) -> 0 | E34: =VLOOKUP(A34,'Qtité art'!$E$9:$Q$900,10,FALSE) -> 00:00:00 | F34: =VLOOKUP(A34,'Qtité art'!$E$9:$Q$900,11,FALSE) -> 0 | G34: =VLOOKUP(A34,'Qtité art'!$E$9:$Q$900,12,FALSE) -> 00:00:00 | H34: =VLOOKUP(A34,'Qtité art'!$E$9:$Q$900,13,FALSE) -> 0 | I34: =VLOOKUP(A34,'Qtité art'!$E$9:$Q$900,14,FALSE) -> 
A35: Protège matelas | B35: =VLOOKUP(A35,'Feuille de calculs'!$E$4:$M$58,2,FALSE) -> 14.94 | C35: =VLOOKUP(A35,'Qtité art'!$E$9:$Q$900,8,FALSE) -> 4 | D35: =VLOOKUP(A35,'Qtité art'!$E$9:$Q$900,9,FALSE) -> 0.05003634031 | E35: =VLOOKUP(A35,'Qtité art'!$E$9:$Q$900,10,FALSE) -> 2 | F35: =VLOOKUP(A35,'Qtité art'!$E$9:$Q$900,11,FALSE) -> 0.0157233251 | G35: =VLOOKUP(A35,'Qtité art'!$E$9:$Q$900,12,FALSE) -> Plat6 | H35: =VLOOKUP(A35,'Qtité art'!$E$9:$Q$900,13,FALSE) -> 0.2932364378 | I35: =VLOOKUP(A35,'Qtité art'!$E$9:$Q$900,14,FALSE) -> 
A36: pte al | B36: =VLOOKUP(A36,'Feuille de calculs'!$E$4:$M$58,2,FALSE) -> 3283.212667 | C36: =VLOOKUP(A36,'Qtité art'!$E$9:$Q$900,8,FALSE) -> 2 | D36: =VLOOKUP(A36,'Qtité art'!$E$9:$Q$900,9,FALSE) -> 0.002083333333 | E36: =VLOOKUP(A36,'Qtité art'!$E$9:$Q$900,10,FALSE) -> 00:00:00 | F36: =VLOOKUP(A36,'Qtité art'!$E$9:$Q$900,11,FALSE) -> 0 | G36: =VLOOKUP(A36,'Qtité art'!$E$9:$Q$900,12,FALSE) -> Plat4 | H36: =VLOOKUP(A36,'Qtité art'!$E$9:$Q$900,13,FALSE) -> 0.2137774575 | I36: =VLOOKUP(A36,'Qtité art'!$E$9:$Q$900,14,FALSE) -> 
A37: sac | B37: =VLOOKUP(A37,'Feuille de calculs'!$E$4:$M$58,2,FALSE) -> 4140.069333 | C37: =VLOOKUP(A37,'Qtité art'!$E$9:$Q$900,8,FALSE) -> 5 | D37: =VLOOKUP(A37,'Qtité art'!$E$9:$Q$900,9,FALSE) -> 0.04608292821 | E37: =VLOOKUP(A37,'Qtité art'!$E$9:$Q$900,10,FALSE) -> 00:00:00 | F37: =VLOOKUP(A37,'Qtité art'!$E$9:$Q$900,11,FALSE) -> 0 | G37: =VLOOKUP(A37,'Qtité art'!$E$9:$Q$900,12,FALSE) -> Plat6 | H37: =VLOOKUP(A37,'Qtité art'!$E$9:$Q$900,13,FALSE) -> 0.2115118434 | I37: =VLOOKUP(A37,'Qtité art'!$E$9:$Q$900,14,FALSE) -> 
A38: serv épges coiffeur | B38: =VLOOKUP(A38,'Feuille de calculs'!$E$4:$M$58,2,FALSE) -> 50.44333333 | C38: =VLOOKUP(A38,'Qtité art'!$E$9:$Q$900,8,FALSE) -> 4 | D38: =VLOOKUP(A38,'Qtité art'!$E$9:$Q$900,9,FALSE) -> 0.05003634031 | E38: =VLOOKUP(A38,'Qtité art'!$E$9:$Q$900,10,FALSE) -> 3 | F38: =VLOOKUP(A38,'Qtité art'!$E$9:$Q$900,11,FALSE) -> 0.01307808965 | G38: =VLOOKUP(A38,'Qtité art'!$E$9:$Q$900,12,FALSE) -> Plat5 | H38: =VLOOKUP(A38,'Qtité art'!$E$9:$Q$900,13,FALSE) -> 0.5108371419 | I38: =VLOOKUP(A38,'Qtité art'!$E$9:$Q$900,14,FALSE) -> 
A39: serv éponge | B39: =VLOOKUP(A39,'Feuille de calculs'!$E$4:$M$58,2,FALSE) -> 7880.537 | C39: =VLOOKUP(A39,'Qtité art'!$E$9:$Q$900,8,FALSE) -> 1 | D39: =VLOOKUP(A39,'Qtité art'!$E$9:$Q$900,9,FALSE) -> 0.001099537037 | E39: =VLOOKUP(A39,'Qtité art'!$E$9:$Q$900,10,FALSE) -> 5 | F39: =VLOOKUP(A39,'Qtité art'!$E$9:$Q$900,11,FALSE) -> 0.01875 | G39: =VLOOKUP(A39,'Qtité art'!$E$9:$Q$900,12,FALSE) -> Plat5 | H39: =VLOOKUP(A39,'Qtité art'!$E$9:$Q$900,13,FALSE) -> 275553.6379 | I39: =VLOOKUP(A39,'Qtité art'!$E$9:$Q$900,14,FALSE) -> 
A40: serv éponge luxe | B40: =VLOOKUP(A40,'Feuille de calculs'!$E$4:$M$58,2,FALSE) -> 157.335 | C40: =VLOOKUP(A40,'Qtité art'!$E$9:$Q$900,8,FALSE) -> 1 | D40: =VLOOKUP(A40,'Qtité art'!$E$9:$Q$900,9,FALSE) -> 0.001099537037 | E40: =VLOOKUP(A40,'Qtité art'!$E$9:$Q$900,10,FALSE) -> 5 | F40: =VLOOKUP(A40,'Qtité art'!$E$9:$Q$900,11,FALSE) -> 0.01875 | G40: =VLOOKUP(A40,'Qtité art'!$E$9:$Q$900,12,FALSE) -> Plat5 | H40: =VLOOKUP(A40,'Qtité art'!$E$9:$Q$900,13,FALSE) -> 143753.7091 | I40: =VLOOKUP(A40,'Qtité art'!$E$9:$Q$900,14,FALSE) -> 
A41: serv œil | B41: =VLOOKUP(A41,'Feuille de calculs'!$E$4:$M$58,2,FALSE) -> 41.615 | C41: =VLOOKUP(A41,'Qtité art'!$E$9:$Q$900,8,FALSE) -> 1 | D41: =VLOOKUP(A41,'Qtité art'!$E$9:$Q$900,9,FALSE) -> 0.001099537037 | E41: =VLOOKUP(A41,'Qtité art'!$E$9:$Q$900,10,FALSE) -> 00:00:00 | F41: =VLOOKUP(A41,'Qtité art'!$E$9:$Q$900,11,FALSE) -> 0 | G41: =VLOOKUP(A41,'Qtité art'!$E$9:$Q$900,12,FALSE) -> Plat2 | H41: =VLOOKUP(A41,'Qtité art'!$E$9:$Q$900,13,FALSE) -> 621929.1823 | I41: =VLOOKUP(A41,'Qtité art'!$E$9:$Q$900,14,FALSE) -> 
A42: serv tab gde | B42: =VLOOKUP(A42,'Feuille de calculs'!$E$4:$M$58,2,FALSE) -> 17.18933333 | C42: =VLOOKUP(A42,'Qtité art'!$E$9:$Q$900,8,FALSE) -> 5 | D42: =VLOOKUP(A42,'Qtité art'!$E$9:$Q$900,9,FALSE) -> 0.04608292821 | E42: =VLOOKUP(A42,'Qtité art'!$E$9:$Q$900,10,FALSE) -> 00:00:00 | F42: =VLOOKUP(A42,'Qtité art'!$E$9:$Q$900,11,FALSE) -> 0 | G42: =VLOOKUP(A42,'Qtité art'!$E$9:$Q$900,12,FALSE) -> Plat2 | H42: =VLOOKUP(A42,'Qtité art'!$E$9:$Q$900,13,FALSE) -> 0.4268460682 | I42: =VLOOKUP(A42,'Qtité art'!$E$9:$Q$900,14,FALSE) -> 
A43: serv tab gde prestige | B43: =VLOOKUP(A43,'Feuille de calculs'!$E$4:$M$58,2,FALSE) -> 1.12 | C43: =VLOOKUP(A43,'Qtité art'!$E$9:$Q$900,8,FALSE) -> 5 | D43: =VLOOKUP(A43,'Qtité art'!$E$9:$Q$900,9,FALSE) -> 0.04608292821 | E43: =VLOOKUP(A43,'Qtité art'!$E$9:$Q$900,10,FALSE) -> 00:00:00 | F43: =VLOOKUP(A43,'Qtité art'!$E$9:$Q$900,11,FALSE) -> 0 | G43: =VLOOKUP(A43,'Qtité art'!$E$9:$Q$900,12,FALSE) -> Plat2 | H43: =VLOOKUP(A43,'Qtité art'!$E$9:$Q$900,13,FALSE) -> 1.453833581 | I43: =VLOOKUP(A43,'Qtité art'!$E$9:$Q$900,14,FALSE) -> 
A44: serv tab pte | B44: =VLOOKUP(A44,'Feuille de calculs'!$E$4:$M$58,2,FALSE) -> 2263.335667 | C44: =VLOOKUP(A44,'Qtité art'!$E$9:$Q$900,8,FALSE) -> 5 | D44: =VLOOKUP(A44,'Qtité art'!$E$9:$Q$900,9,FALSE) -> 0.04608292821 | E44: =VLOOKUP(A44,'Qtité art'!$E$9:$Q$900,10,FALSE) -> 00:00:00 | F44: =VLOOKUP(A44,'Qtité art'!$E$9:$Q$900,11,FALSE) -> 0 | G44: =VLOOKUP(A44,'Qtité art'!$E$9:$Q$900,12,FALSE) -> Plat2 | H44: =VLOOKUP(A44,'Qtité art'!$E$9:$Q$900,13,FALSE) -> 0.765443991 | I44: =VLOOKUP(A44,'Qtité art'!$E$9:$Q$900,14,FALSE) -> 
A45: tablier blanc | B45: =VLOOKUP(A45,'Feuille de calculs'!$E$4:$M$58,2,FALSE) -> 2136.474 | C45: =VLOOKUP(A45,'Qtité art'!$E$9:$Q$900,8,FALSE) -> 1 | D45: =VLOOKUP(A45,'Qtité art'!$E$9:$Q$900,9,FALSE) -> 0.001099537037 | E45: =VLOOKUP(A45,'Qtité art'!$E$9:$Q$900,10,FALSE) -> 2 | F45: =VLOOKUP(A45,'Qtité art'!$E$9:$Q$900,11,FALSE) -> 0.0157233251 | G45: =VLOOKUP(A45,'Qtité art'!$E$9:$Q$900,12,FALSE) -> Plat2 | H45: =VLOOKUP(A45,'Qtité art'!$E$9:$Q$900,13,FALSE) -> 127931.7344 | I45: =VLOOKUP(A45,'Qtité art'!$E$9:$Q$900,14,FALSE) -> 
A46: tablier bleu | B46: =VLOOKUP(A46,'Feuille de calculs'!$E$4:$M$58,2,FALSE) -> 100.1083333 | C46: =VLOOKUP(A46,'Qtité art'!$E$9:$Q$900,8,FALSE) -> 1 | D46: =VLOOKUP(A46,'Qtité art'!$E$9:$Q$900,9,FALSE) -> 0.001099537037 | E46: =VLOOKUP(A46,'Qtité art'!$E$9:$Q$900,10,FALSE) -> 2 | F46: =VLOOKUP(A46,'Qtité art'!$E$9:$Q$900,11,FALSE) -> 0.0157233251 | G46: =VLOOKUP(A46,'Qtité art'!$E$9:$Q$900,12,FALSE) -> Plat2 | H46: =VLOOKUP(A46,'Qtité art'!$E$9:$Q$900,13,FALSE) -> 146303.2713 | I46: =VLOOKUP(A46,'Qtité art'!$E$9:$Q$900,14,FALSE) -> 
A47: tablier bret | B47: =VLOOKUP(A47,'Feuille de calculs'!$E$4:$M$58,2,FALSE) -> 518.8156667 | C47: =VLOOKUP(A47,'Qtité art'!$E$9:$Q$900,8,FALSE) -> 1 | D47: =VLOOKUP(A47,'Qtité art'!$E$9:$Q$900,9,FALSE) -> 0.001099537037 | E47: =VLOOKUP(A47,'Qtité art'!$E$9:$Q$900,10,FALSE) -> 2 | F47: =VLOOKUP(A47,'Qtité art'!$E$9:$Q$900,11,FALSE) -> 0.0157233251 | G47: =VLOOKUP(A47,'Qtité art'!$E$9:$Q$900,12,FALSE) -> Plat2 | H47: =VLOOKUP(A47,'Qtité art'!$E$9:$Q$900,13,FALSE) -> 84151.14351 | I47: =VLOOKUP(A47,'Qtité art'!$E$9:$Q$900,14,FALSE) -> 
A48: taie am | B48: =VLOOKUP(A48,'Feuille de calculs'!$E$4:$M$58,2,FALSE) -> 1981.812 | C48: =VLOOKUP(A48,'Qtité art'!$E$9:$Q$900,8,FALSE) -> 1 | D48: =VLOOKUP(A48,'Qtité art'!$E$9:$Q$900,9,FALSE) -> 0.001099537037 | E48: =VLOOKUP(A48,'Qtité art'!$E$9:$Q$900,10,FALSE) -> 1 | F48: =VLOOKUP(A48,'Qtité art'!$E$9:$Q$900,11,FALSE) -> 0.003324518807 | G48: =VLOOKUP(A48,'Qtité art'!$E$9:$Q$900,12,FALSE) -> Plat2 | H48: =VLOOKUP(A48,'Qtité art'!$E$9:$Q$900,13,FALSE) -> 497516.8326 | I48: =VLOOKUP(A48,'Qtité art'!$E$9:$Q$900,14,FALSE) -> 
A49: Taie Carrée | B49: =VLOOKUP(A49,'Feuille de calculs'!$E$4:$M$58,2,FALSE) -> 5100.921667 | C49: =VLOOKUP(A49,'Qtité art'!$E$9:$Q$900,8,FALSE) -> 1 | D49: =VLOOKUP(A49,'Qtité art'!$E$9:$Q$900,9,FALSE) -> 0.001099537037 | E49: =VLOOKUP(A49,'Qtité art'!$E$9:$Q$900,10,FALSE) -> 1 | F49: =VLOOKUP(A49,'Qtité art'!$E$9:$Q$900,11,FALSE) -> 0.003324518807 | G49: =VLOOKUP(A49,'Qtité art'!$E$9:$Q$900,12,FALSE) -> Plat2 | H49: =VLOOKUP(A49,'Qtité art'!$E$9:$Q$900,13,FALSE) -> 357762.4481 | I49: =VLOOKUP(A49,'Qtité art'!$E$9:$Q$900,14,FALSE) -> 
A50: taie luxe | B50: =VLOOKUP(A50,'Feuille de calculs'!$E$4:$M$58,2,FALSE) -> 411.3003333 | C50: =VLOOKUP(A50,'Qtité art'!$E$9:$Q$900,8,FALSE) -> 1 | D50: =VLOOKUP(A50,'Qtité art'!$E$9:$Q$900,9,FALSE) -> 0.001099537037 | E50: =VLOOKUP(A50,'Qtité art'!$E$9:$Q$900,10,FALSE) -> 1 | F50: =VLOOKUP(A50,'Qtité art'!$E$9:$Q$900,11,FALSE) -> 0.003324518807 | G50: =VLOOKUP(A50,'Qtité art'!$E$9:$Q$900,12,FALSE) -> Plat2 | H50: =VLOOKUP(A50,'Qtité art'!$E$9:$Q$900,13,FALSE) -> 325641.0072 | I50: =VLOOKUP(A50,'Qtité art'!$E$9:$Q$900,14,FALSE) -> 
A51: tapis bain | B51: =VLOOKUP(A51,'Feuille de calculs'!$E$4:$M$58,2,FALSE) -> 2376.046 | C51: =VLOOKUP(A51,'Qtité art'!$E$9:$Q$900,8,FALSE) -> 1 | D51: =VLOOKUP(A51,'Qtité art'!$E$9:$Q$900,9,FALSE) -> 0.001099537037 | E51: =VLOOKUP(A51,'Qtité art'!$E$9:$Q$900,10,FALSE) -> 5 | F51: =VLOOKUP(A51,'Qtité art'!$E$9:$Q$900,11,FALSE) -> 0.01875 | G51: =VLOOKUP(A51,'Qtité art'!$E$9:$Q$900,12,FALSE) -> Plat5 | H51: =VLOOKUP(A51,'Qtité art'!$E$9:$Q$900,13,FALSE) -> 246699.7115 | I51: =VLOOKUP(A51,'Qtité art'!$E$9:$Q$900,14,FALSE) -> 
A52: tapis bain luxe | B52: =VLOOKUP(A52,'Feuille de calculs'!$E$4:$M$58,2,FALSE) -> 119.5646667 | C52: =VLOOKUP(A52,'Qtité art'!$E$9:$Q$900,8,FALSE) -> 1 | D52: =VLOOKUP(A52,'Qtité art'!$E$9:$Q$900,9,FALSE) -> 0.001099537037 | E52: =VLOOKUP(A52,'Qtité art'!$E$9:$Q$900,10,FALSE) -> 5 | F52: =VLOOKUP(A52,'Qtité art'!$E$9:$Q$900,11,FALSE) -> 0.01875 | G52: =VLOOKUP(A52,'Qtité art'!$E$9:$Q$900,12,FALSE) -> Plat5 | H52: =VLOOKUP(A52,'Qtité art'!$E$9:$Q$900,13,FALSE) -> 153096.6917 | I52: =VLOOKUP(A52,'Qtité art'!$E$9:$Q$900,14,FALSE) -> 
A53: torchon | B53: =VLOOKUP(A53,'Feuille de calculs'!$E$4:$M$58,2,FALSE) -> 1486.340333 | C53: =VLOOKUP(A53,'Qtité art'!$E$9:$Q$900,8,FALSE) -> 1 | D53: =VLOOKUP(A53,'Qtité art'!$E$9:$Q$900,9,FALSE) -> 0.001099537037 | E53: =VLOOKUP(A53,'Qtité art'!$E$9:$Q$900,10,FALSE) -> 1 | F53: =VLOOKUP(A53,'Qtité art'!$E$9:$Q$900,11,FALSE) -> 0.003324518807 | G53: =VLOOKUP(A53,'Qtité art'!$E$9:$Q$900,12,FALSE) -> Plat2 | H53: =VLOOKUP(A53,'Qtité art'!$E$9:$Q$900,13,FALSE) -> 1179513.317 | I53: =VLOOKUP(A53,'Qtité art'!$E$9:$Q$900,14,FALSE) -> 
A54: VT | B54: =VLOOKUP(A54,'Feuille de calculs'!$E$4:$M$58,2,FALSE) -> 900000 | C54: =VLOOKUP(A54,'Qtité art'!$E$9:$Q$900,8,FALSE) -> 2 | D54: =VLOOKUP(A54,'Qtité art'!$E$9:$Q$900,9,FALSE) -> 0.002083333333 | E54: =VLOOKUP(A54,'Qtité art'!$E$9:$Q$900,10,FALSE) -> 00:00:00 | F54: =VLOOKUP(A54,'Qtité art'!$E$9:$Q$900,11,FALSE) -> 0 | G54: =VLOOKUP(A54,'Qtité art'!$E$9:$Q$900,12,FALSE) -> Plat6 | H54: =VLOOKUP(A54,'Qtité art'!$E$9:$Q$900,13,FALSE) -> 0 | I54: =VLOOKUP(A54,'Qtité art'!$E$9:$Q$900,14,FALSE) -> 
A55: VT Séché TF | B55: =VLOOKUP(A55,'Feuille de calculs'!$E$4:$M$58,2,FALSE) -> 394.0036667 | C55: =VLOOKUP(A55,'Qtité art'!$E$9:$Q$900,8,FALSE) -> 2 | D55: =VLOOKUP(A55,'Qtité art'!$E$9:$Q$900,9,FALSE) -> 0.002083333333 | E55: =VLOOKUP(A55,'Qtité art'!$E$9:$Q$900,10,FALSE) -> 00:00:00 | F55: =VLOOKUP(A55,'Qtité art'!$E$9:$Q$900,11,FALSE) -> 0 | G55: =VLOOKUP(A55,'Qtité art'!$E$9:$Q$900,12,FALSE) -> Plat6 | H55: =VLOOKUP(A55,'Qtité art'!$E$9:$Q$900,13,FALSE) -> 0 | I55: =VLOOKUP(A55,'Qtité art'!$E$9:$Q$900,14,FALSE) -> 

Sheet Data2 (hidden)
A1: Familles | B1: Poids livré en kg | C1: Cadencement réel | D1: Nombres de passes | E1: Cadencement Nominal | F1: lavage | G1: Unité de lavage (Kg) | H1: TcycleL | I1: Séchoir | J1: TcycleS | K1: Calandre | L1: TcycleC
A2: alése abs | B2: =VLOOKUP(A2,'Feuille de calculs'!$E$4:$M$58,2,FALSE) -> 1607.933333 | C2: =VLOOKUP(A2,'Feuille de calculs'!$R$4:$V$81,3,FALSE) -> 0.001768204225 | D2: =VLOOKUP(A2,'Feuille de calculs'!$R$4:$V$81,4,FALSE) -> 0 | E2: =VLOOKUP(A2,'Feuille de calculs'!$R$4:$V$81,5,FALSE) -> 0 | F2: =VLOOKUP(A2,'Qtité art'!$E$9:$Q$900,8,FALSE) -> 2 | G2: =VLOOKUP(A2,'Qtité art'!$E$9:$Q$900,9,FALSE) -> 0.002083333333 | H2: =VLOOKUP(A2,'Qtité art'!$E$9:$Q$900,10,FALSE) -> 2 | I2: =VLOOKUP(A2,'Qtité art'!$E$9:$Q$900,11,FALSE) -> 0.0157233251 | J2: =VLOOKUP(A2,'Qtité art'!$E$9:$Q$900,12,FALSE) -> Plat5 | K2: =VLOOKUP(A2,'Qtité art'!$E$9:$Q$900,13,FALSE) -> 0.1004292477 | L2: =VLOOKUP(A2,'Qtité art'!$E$9:$Q$900,14,FALSE) -> 
A3: Bavoir | B3: =VLOOKUP(A3,'Feuille de calculs'!$E$4:$M$58,2,FALSE) -> 494.0833333 | C3: =VLOOKUP(A3,'Feuille de calculs'!$R$4:$V$81,3,FALSE) -> 0.0005433311317 | D3: =VLOOKUP(A3,'Feuille de calculs'!$R$4:$V$81,4,FALSE) -> 0 | E3: =VLOOKUP(A3,'Feuille de calculs'!$R$4:$V$81,5,FALSE) -> 0 | F3: =VLOOKUP(A3,'Qtité art'!$E$9:$Q$900,8,FALSE) -> 2 | G3: =VLOOKUP(A3,'Qtité art'!$E$9:$Q$900,9,FALSE) -> 0.002083333333 | H3: =VLOOKUP(A3,'Qtité art'!$E$9:$Q$900,10,FALSE) -> 2 | I3: =VLOOKUP(A3,'Qtité art'!$E$9:$Q$900,11,FALSE) -> 0.0157233251 | J3: =VLOOKUP(A3,'Qtité art'!$E$9:$Q$900,12,FALSE) -> Plat5 | K3: =VLOOKUP(A3,'Qtité art'!$E$9:$Q$900,13,FALSE) -> 0.3573713619 | L3: =VLOOKUP(A3,'Qtité art'!$E$9:$Q$900,14,FALSE) -> 
A4: carré/gant | B4: =VLOOKUP(A4,'Feuille de calculs'!$E$4:$M$58,2,FALSE) -> 953.045 | C4: =VLOOKUP(A4,'Feuille de calculs'!$R$4:$V$81,3,FALSE) -> 0.06074725023 | D4: =VLOOKUP(A4,'Feuille de calculs'!$R$4:$V$81,4,FALSE) -> 0 | E4: =VLOOKUP(A4,'Feuille de calculs'!$R$4:$V$81,5,FALSE) -> 0 | F4: =VLOOKUP(A4,'Qtité art'!$E$9:$Q$900,8,FALSE) -> 4 | G4: =VLOOKUP(A4,'Qtité art'!$E$9:$Q$900,9,FALSE) -> 0.05003634031 | H4: =VLOOKUP(A4,'Qtité art'!$E$9:$Q$900,10,FALSE) -> 2 | I4: =VLOOKUP(A4,'Qtité art'!$E$9:$Q$900,11,FALSE) -> 0.0157233251 | J4: =VLOOKUP(A4,'Qtité art'!$E$9:$Q$900,12,FALSE) -> Plat6 | K4: =VLOOKUP(A4,'Qtité art'!$E$9:$Q$900,13,FALSE) -> 1.635249822 | L4: =VLOOKUP(A4,'Qtité art'!$E$9:$Q$900,14,FALSE) -> 
A5: ch tab | B5: =VLOOKUP(A5,'Feuille de calculs'!$E$4:$M$58,2,FALSE) -> 95.148 | C5: =VLOOKUP(A5,'Feuille de calculs'!$R$4:$V$81,3,FALSE) -> 0.006064749687 | D5: =VLOOKUP(A5,'Feuille de calculs'!$R$4:$V$81,4,FALSE) -> 0 | E5: =VLOOKUP(A5,'Feuille de calculs'!$R$4:$V$81,5,FALSE) -> 0 | F5: =VLOOKUP(A5,'Qtité art'!$E$9:$Q$900,8,FALSE) -> 5 | G5: =VLOOKUP(A5,'Qtité art'!$E$9:$Q$900,9,FALSE) -> 0.04608292821 | H5: =VLOOKUP(A5,'Qtité art'!$E$9:$Q$900,10,FALSE) -> 00:00:00 | I5: =VLOOKUP(A5,'Qtité art'!$E$9:$Q$900,11,FALSE) -> 0 | J5: =VLOOKUP(A5,'Qtité art'!$E$9:$Q$900,12,FALSE) -> Plat4 | K5: =VLOOKUP(A5,'Qtité art'!$E$9:$Q$900,13,FALSE) -> 1.673357384 | L5: =VLOOKUP(A5,'Qtité art'!$E$9:$Q$900,14,FALSE) -> 
A6: chmal | B6: =VLOOKUP(A6,'Feuille de calculs'!$E$4:$M$58,2,FALSE) -> 1929.369 | C6: =VLOOKUP(A6,'Feuille de calculs'!$R$4:$V$81,3,FALSE) -> 0.00212167902 | D6: =VLOOKUP(A6,'Feuille de calculs'!$R$4:$V$81,4,FALSE) -> 0 | E6: =VLOOKUP(A6,'Feuille de calculs'!$R$4:$V$81,5,FALSE) -> 0 | F6: =VLOOKUP(A6,'Qtité art'!$E$9:$Q$900,8,FALSE) -> 2 | G6: =VLOOKUP(A6,'Qtité art'!$E$9:$Q$900,9,FALSE) -> 0.002083333333 | H6: =VLOOKUP(A6,'Qtité art'!$E$9:$Q$900,10,FALSE) -> 2 | I6: =VLOOKUP(A6,'Qtité art'!$E$9:$Q$900,11,FALSE) -> 0.0157233251 | J6: =VLOOKUP(A6,'Qtité art'!$E$9:$Q$900,12,FALSE) -> Plat5 | K6: =VLOOKUP(A6,'Qtité art'!$E$9:$Q$900,13,FALSE) -> 0.6009757033 | L6: =VLOOKUP(A6,'Qtité art'!$E$9:$Q$900,14,FALSE) -> 
A7: chp grd | B7: =VLOOKUP(A7,'Feuille de calculs'!$E$4:$M$58,2,FALSE) -> 26.667 | C7: =VLOOKUP(A7,'Feuille de calculs'!$R$4:$V$81,3,FALSE) -> 2.93250355e-05 | D7: =VLOOKUP(A7,'Feuille de calculs'!$R$4:$V$81,4,FALSE) -> 0 | E7: =VLOOKUP(A7,'Feuille de calculs'!$R$4:$V$81,5,FALSE) -> 0 | F7: =VLOOKUP(A7,'Qtité art'!$E$9:$Q$900,8,FALSE) -> 2 | G7: =VLOOKUP(A7,'Qtité art'!$E$9:$Q$900,9,FALSE) -> 0.002083333333 | H7: =VLOOKUP(A7,'Qtité art'!$E$9:$Q$900,10,FALSE) -> 00:00:00 | I7: =VLOOKUP(A7,'Qtité art'!$E$9:$Q$900,11,FALSE) -> 0 | J7: =VLOOKUP(A7,'Qtité art'!$E$9:$Q$900,12,FALSE) -> Plat4 | K7: =VLOOKUP(A7,'Qtité art'!$E$9:$Q$900,13,FALSE) -> 0.3355338623 | L7: =VLOOKUP(A7,'Qtité art'!$E$9:$Q$900,14,FALSE) -> 
A8: chp petit | B8: =VLOOKUP(A8,'Feuille de calculs'!$E$4:$M$58,2,FALSE) -> 50.196 | C8: =VLOOKUP(A8,'Feuille de calculs'!$R$4:$V$81,3,FALSE) -> 5.519929058e-05 | D8: =VLOOKUP(A8,'Feuille de calculs'!$R$4:$V$81,4,FALSE) -> 0 | E8: =VLOOKUP(A8,'Feuille de calculs'!$R$4:$V$81,5,FALSE) -> 0 | F8: =VLOOKUP(A8,'Qtité art'!$E$9:$Q$900,8,FALSE) -> 2 | G8: =VLOOKUP(A8,'Qtité art'!$E$9:$Q$900,9,FALSE) -> 0.002083333333 | H8: =VLOOKUP(A8,'Qtité art'!$E$9:$Q$900,10,FALSE) -> 00:00:00 | I8: =VLOOKUP(A8,'Qtité art'!$E$9:$Q$900,11,FALSE) -> 0 | J8: =VLOOKUP(A8,'Qtité art'!$E$9:$Q$900,12,FALSE) -> Plat4 | K8: =VLOOKUP(A8,'Qtité art'!$E$9:$Q$900,13,FALSE) -> 0.5587771018 | L8: =VLOOKUP(A8,'Qtité art'!$E$9:$Q$900,14,FALSE) -> 
A9: couche | B9: =VLOOKUP(A9,'Feuille de calculs'!$E$4:$M$58,2,FALSE) -> 28.435 | C9: =VLOOKUP(A9,'Feuille de calculs'!$R$4:$V$81,3,FALSE) -> 0.001812451731 | D9: =VLOOKUP(A9,'Feuille de calculs'!$R$4:$V$81,4,FALSE) -> 0 | E9: =VLOOKUP(A9,'Feuille de calculs'!$R$4:$V$81,5,FALSE) -> 0 | F9: =VLOOKUP(A9,'Qtité art'!$E$9:$Q$900,8,FALSE) -> 4 | G9: =VLOOKUP(A9,'Qtité art'!$E$9:$Q$900,9,FALSE) -> 0.05003634031 | H9: =VLOOKUP(A9,'Qtité art'!$E$9:$Q$900,10,FALSE) -> 00:00:00 | I9: =VLOOKUP(A9,'Qtité art'!$E$9:$Q$900,11,FALSE) -> 0 | J9: =VLOOKUP(A9,'Qtité art'!$E$9:$Q$900,12,FALSE) -> Plat2 | K9: =VLOOKUP(A9,'Qtité art'!$E$9:$Q$900,13,FALSE) -> 1.537793575 | L9: =VLOOKUP(A9,'Qtité art'!$E$9:$Q$900,14,FALSE) -> 
A10: couette/couv | B10: =VLOOKUP(A10,'Feuille de calculs'!$E$4:$M$58,2,FALSE) -> 3873.536333 | C10: =VLOOKUP(A10,'Feuille de calculs'!$R$4:$V$81,3,FALSE) -> 0.246899864 | D10: =VLOOKUP(A10,'Feuille de calculs'!$R$4:$V$81,4,FALSE) -> 1 | E10: =VLOOKUP(A10,'Feuille de calculs'!$R$4:$V$81,5,FALSE) -> 0.2857142857 | F10: =VLOOKUP(A10,'Qtité art'!$E$9:$Q$900,8,FALSE) -> 4 | G10: =VLOOKUP(A10,'Qtité art'!$E$9:$Q$900,9,FALSE) -> 0.05003634031 | H10: =VLOOKUP(A10,'Qtité art'!$E$9:$Q$900,10,FALSE) -> 3 | I10: =VLOOKUP(A10,'Qtité art'!$E$9:$Q$900,11,FALSE) -> 0.01307808965 | J10: =VLOOKUP(A10,'Qtité art'!$E$9:$Q$900,12,FALSE) -> Plat6 | K10: =VLOOKUP(A10,'Qtité art'!$E$9:$Q$900,13,FALSE) -> 0.2746446818 | L10: =VLOOKUP(A10,'Qtité art'!$E$9:$Q$900,14,FALSE) -> 
A11: des lit | B11: =VLOOKUP(A11,'Feuille de calculs'!$E$4:$M$58,2,FALSE) -> 646.6526667 | C11: =VLOOKUP(A11,'Feuille de calculs'!$R$4:$V$81,3,FALSE) -> 0.04121775085 | D11: =VLOOKUP(A11,'Feuille de calculs'!$R$4:$V$81,4,FALSE) -> 0.1 | E11: =VLOOKUP(A11,'Feuille de calculs'!$R$4:$V$81,5,FALSE) -> 0 | F11: =VLOOKUP(A11,'Qtité art'!$E$9:$Q$900,8,FALSE) -> 4 | G11: =VLOOKUP(A11,'Qtité art'!$E$9:$Q$900,9,FALSE) -> 0.05003634031 | H11: =VLOOKUP(A11,'Qtité art'!$E$9:$Q$900,10,FALSE) -> 00:00:00 | I11: =VLOOKUP(A11,'Qtité art'!$E$9:$Q$900,11,FALSE) -> 0 | J11: =VLOOKUP(A11,'Qtité art'!$E$9:$Q$900,12,FALSE) -> Plat4 | K11: =VLOOKUP(A11,'Qtité art'!$E$9:$Q$900,13,FALSE) -> 0.2824254281 | L11: =VLOOKUP(A11,'Qtité art'!$E$9:$Q$900,14,FALSE) -> 
A12: drap 1/2 | B12: =VLOOKUP(A12,'Feuille de calculs'!$E$4:$M$58,2,FALSE) -> 555.4266667 | C12: =VLOOKUP(A12,'Feuille de calculs'!$R$4:$V$81,3,FALSE) -> 0.000610788867 | D12: =VLOOKUP(A12,'Feuille de calculs'!$R$4:$V$81,4,FALSE) -> 0 | E12: =VLOOKUP(A12,'Feuille de calculs'!$R$4:$V$81,5,FALSE) -> 0 | F12: =VLOOKUP(A12,'Qtité art'!$E$9:$Q$900,8,FALSE) -> 2 | G12: =VLOOKUP(A12,'Qtité art'!$E$9:$Q$900,9,FALSE) -> 0.002083333333 | H12: =VLOOKUP(A12,'Qtité art'!$E$9:$Q$900,10,FALSE) -> 00:00:00 | I12: =VLOOKUP(A12,'Qtité art'!$E$9:$Q$900,11,FALSE) -> 0 | J12: =VLOOKUP(A12,'Qtité art'!$E$9:$Q$900,12,FALSE) -> Plat4 | K12: =VLOOKUP(A12,'Qtité art'!$E$9:$Q$900,13,FALSE) -> 0.2283366492 | L12: =VLOOKUP(A12,'Qtité art'!$E$9:$Q$900,14,FALSE) -> 
A13: Drap ambulatoire | B13: =VLOOKUP(A13,'Feuille de calculs'!$E$4:$M$58,2,FALSE) -> 1018.621333 | C13: =VLOOKUP(A13,'Feuille de calculs'!$R$4:$V$81,3,FALSE) -> 0.001120152502 | D13: =VLOOKUP(A13,'Feuille de calculs'!$R$4:$V$81,4,FALSE) -> 0 | E13: =VLOOKUP(A13,'Feuille de calculs'!$R$4:$V$81,5,FALSE) -> 0 | F13: =VLOOKUP(A13,'Qtité art'!$E$9:$Q$900,8,FALSE) -> 2 | G13: =VLOOKUP(A13,'Qtité art'!$E$9:$Q$900,9,FALSE) -> 0.002083333333 | H13: =VLOOKUP(A13,'Qtité art'!$E$9:$Q$900,10,FALSE) -> 00:00:00 | I13: =VLOOKUP(A13,'Qtité art'!$E$9:$Q$900,11,FALSE) -> 0 | J13: =VLOOKUP(A13,'Qtité art'!$E$9:$Q$900,12,FALSE) -> Plat4 | K13: =VLOOKUP(A13,'Qtité art'!$E$9:$Q$900,13,FALSE) -> 0.2352094609 | L13: =VLOOKUP(A13,'Qtité art'!$E$9:$Q$900,14,FALSE) -> 
A14: drap bain | B14: =VLOOKUP(A14,'Feuille de calculs'!$E$4:$M$58,2,FALSE) -> 9110.165667 | C14: =VLOOKUP(A14,'Feuille de calculs'!$R$4:$V$81,3,FALSE) -> 0.0672374586 | D14: =VLOOKUP(A14,'Feuille de calculs'!$R$4:$V$81,4,FALSE) -> 0.5 | E14: =VLOOKUP(A14,'Feuille de calculs'!$R$4:$V$81,5,FALSE) -> 0.09090909091 | F14: =VLOOKUP(A14,'Qtité art'!$E$9:$Q$900,8,FALSE) -> 1 | G14: =VLOOKUP(A14,'Qtité art'!$E$9:$Q$900,9,FALSE) -> 0.001099537037 | H14: =VLOOKUP(A14,'Qtité art'!$E$9:$Q$900,10,FALSE) -> 5 | I14: =VLOOKUP(A14,'Qtité art'!$E$9:$Q$900,11,FALSE) -> 0.01875 | J14: =VLOOKUP(A14,'Qtité art'!$E$9:$Q$900,12,FALSE) -> Plat5 | K14: =VLOOKUP(A14,'Qtité art'!$E$9:$Q$900,13,FALSE) -> 111264.4679 | L14: =VLOOKUP(A14,'Qtité art'!$E$9:$Q$900,14,FALSE) -> 
A15: drap bain luxe | B15: =VLOOKUP(A15,'Feuille de calculs'!$E$4:$M$58,2,FALSE) -> 1078.444667 | C15: =VLOOKUP(A15,'Feuille de calculs'!$R$4:$V$81,3,FALSE) -> 0.007959446763 | D15: =VLOOKUP(A15,'Feuille de calculs'!$R$4:$V$81,4,FALSE) -> 0 | E15: =VLOOKUP(A15,'Feuille de calculs'!$R$4:$V$81,5,FALSE) -> 0 | F15: =VLOOKUP(A15,'Qtité art'!$E$9:$Q$900,8,FALSE) -> 1 | G15: =VLOOKUP(A15,'Qtité art'!$E$9:$Q$900,9,FALSE) -> 0.001099537037 | H15: =VLOOKUP(A15,'Qtité art'!$E$9:$Q$900,10,FALSE) -> 5 | I15: =VLOOKUP(A15,'Qtité art'!$E$9:$Q$900,11,FALSE) -> 0.01875 | J15: =VLOOKUP(A15,'Qtité art'!$E$9:$Q$900,12,FALSE) -> Plat5 | K15: =VLOOKUP(A15,'Qtité art'!$E$9:$Q$900,13,FALSE) -> 49434.67035 | L15: =VLOOKUP(A15,'Qtité art'!$E$9:$Q$900,14,FALSE) -> 
A16: drap bain spa | B16: =VLOOKUP(A16,'Feuille de calculs'!$E$4:$M$58,2,FALSE) -> 362.56 | C16: =VLOOKUP(A16,'Feuille de calculs'!$R$4:$V$81,3,FALSE) -> 0.00267586934 | D16: =VLOOKUP(A16,'Feuille de calculs'!$R$4:$V$81,4,FALSE) -> 0 | E16: =VLOOKUP(A16,'Feuille de calculs'!$R$4:$V$81,5,FALSE) -> 0 | F16: =VLOOKUP(A16,'Qtité art'!$E$9:$Q$900,8,FALSE) -> 1 | G16: =VLOOKUP(A16,'Qtité art'!$E$9:$Q$900,9,FALSE) -> 0.001099537037 | H16: =VLOOKUP(A16,'Qtité art'!$E$9:$Q$900,10,FALSE) -> 5 | I16: =VLOOKUP(A16,'Qtité art'!$E$9:$Q$900,11,FALSE) -> 0.01875 | J16: =VLOOKUP(A16,'Qtité art'!$E$9:$Q$900,12,FALSE) -> Plat5 | K16: =VLOOKUP(A16,'Qtité art'!$E$9:$Q$900,13,FALSE) -> 36741.19837 | L16: =VLOOKUP(A16,'Qtité art'!$E$9:$Q$900,14,FALSE) -> 
A17: drap grand | B17: =VLOOKUP(A17,'Feuille de calculs'!$E$4:$M$58,2,FALSE) -> 15308.12833 | C17: =VLOOKUP(A17,'Feuille de calculs'!$R$4:$V$81,3,FALSE) -> 0.112981441 | D17: =VLOOKUP(A17,'Feuille de calculs'!$R$4:$V$81,4,FALSE) -> 0.5 | E17: =VLOOKUP(A17,'Feuille de calculs'!$R$4:$V$81,5,FALSE) -> 0.09090909091 | F17: =VLOOKUP(A17,'Qtité art'!$E$9:$Q$900,8,FALSE) -> 1 | G17: =VLOOKUP(A17,'Qtité art'!$E$9:$Q$900,9,FALSE) -> 0.001099537037 | H17: =VLOOKUP(A17,'Qtité art'!$E$9:$Q$900,10,FALSE) -> 00:00:00 | I17: =VLOOKUP(A17,'Qtité art'!$E$9:$Q$900,11,FALSE) -> 0 | J17: =VLOOKUP(A17,'Qtité art'!$E$9:$Q$900,12,FALSE) -> Plat3 | K17: =VLOOKUP(A17,'Qtité art'!$E$9:$Q$900,13,FALSE) -> 33459.97372 | L17: =VLOOKUP(A17,'Qtité art'!$E$9:$Q$900,14,FALSE) -> 
A18: drap housse | B18: =VLOOKUP(A18,'Feuille de calculs'!$E$4:$M$58,2,FALSE) -> 9131.217 | C18: =VLOOKUP(A18,'Feuille de calculs'!$R$4:$V$81,3,FALSE) -> 0.06739282769 | D18: =VLOOKUP(A18,'Feuille de calculs'!$R$4:$V$81,4,FALSE) -> 0.5 | E18: =VLOOKUP(A18,'Feuille de calculs'!$R$4:$V$81,5,FALSE) -> 0.09090909091 | F18: =VLOOKUP(A18,'Qtité art'!$E$9:$Q$900,8,FALSE) -> 1 | G18: =VLOOKUP(A18,'Qtité art'!$E$9:$Q$900,9,FALSE) -> 0.001099537037 | H18: =VLOOKUP(A18,'Qtité art'!$E$9:$Q$900,10,FALSE) -> 2 | I18: =VLOOKUP(A18,'Qtité art'!$E$9:$Q$900,11,FALSE) -> 0.0157233251 | J18: =VLOOKUP(A18,'Qtité art'!$E$9:$Q$900,12,FALSE) -> Plat6 | K18: =VLOOKUP(A18,'Qtité art'!$E$9:$Q$900,13,FALSE) -> 43869.5083 | L18: =VLOOKUP(A18,'Qtité art'!$E$9:$Q$900,14,FALSE) -> 
A19: drap luxe | B19: =VLOOKUP(A19,'Feuille de calculs'!$E$4:$M$58,2,FALSE) -> 18.51666667 | C19: =VLOOKUP(A19,'Feuille de calculs'!$R$4:$V$81,3,FALSE) -> 0.0001366620163 | D19: =VLOOKUP(A19,'Feuille de calculs'!$R$4:$V$81,4,FALSE) -> 0 | E19: =VLOOKUP(A19,'Feuille de calculs'!$R$4:$V$81,5,FALSE) -> 0 | F19: =VLOOKUP(A19,'Qtité art'!$E$9:$Q$900,8,FALSE) -> 1 | G19: =VLOOKUP(A19,'Qtité art'!$E$9:$Q$900,9,FALSE) -> 0.001099537037 | H19: =VLOOKUP(A19,'Qtité art'!$E$9:$Q$900,10,FALSE) -> 00:00:00 | I19: =VLOOKUP(A19,'Qtité art'!$E$9:$Q$900,11,FALSE) -> 0 | J19: =VLOOKUP(A19,'Qtité art'!$E$9:$Q$900,12,FALSE) -> Plat3 | K19: =VLOOKUP(A19,'Qtité art'!$E$9:$Q$900,13,FALSE) -> 23840.96091 | L19: =VLOOKUP(A19,'Qtité art'!$E$9:$Q$900,14,FALSE) -> 
A20: drap petit | B20: =VLOOKUP(A20,'Feuille de calculs'!$E$4:$M$58,2,FALSE) -> 51798.10467 | C20: =VLOOKUP(A20,'Feuille de calculs'!$R$4:$V$81,3,FALSE) -> 0.3822952343 | D20: =VLOOKUP(A20,'Feuille de calculs'!$R$4:$V$81,4,FALSE) -> 2 | E20: =VLOOKUP(A20,'Feuille de calculs'!$R$4:$V$81,5,FALSE) -> 0.3636363636 | F20: =VLOOKUP(A20,'Qtité art'!$E$9:$Q$900,8,FALSE) -> 1 | G20: =VLOOKUP(A20,'Qtité art'!$E$9:$Q$900,9,FALSE) -> 0.001099537037 | H20: =VLOOKUP(A20,'Qtité art'!$E$9:$Q$900,10,FALSE) -> 00:00:00 | I20: =VLOOKUP(A20,'Qtité art'!$E$9:$Q$900,11,FALSE) -> 0 | J20: =VLOOKUP(A20,'Qtité art'!$E$9:$Q$900,12,FALSE) -> Plat3 | K20: =VLOOKUP(A20,'Qtité art'!$E$9:$Q$900,13,FALSE) -> 52018.02061 | L20: =VLOOKUP(A20,'Qtité art'!$E$9:$Q$900,14,FALSE) -> 
A21: franges | B21: =VLOOKUP(A21,'Feuille de calculs'!$E$4:$M$58,2,FALSE) -> 3041.546 | C21: =VLOOKUP(A21,'Feuille de calculs'!$R$4:$V$81,3,FALSE) -> 0.1938686588 | D21: =VLOOKUP(A21,'Feuille de calculs'!$R$4:$V$81,4,FALSE) -> 0.5 | E21: =VLOOKUP(A21,'Feuille de calculs'!$R$4:$V$81,5,FALSE) -> 0.1428571429 | F21: =VLOOKUP(A21,'Qtité art'!$E$9:$Q$900,8,FALSE) -> 4 | G21: =VLOOKUP(A21,'Qtité art'!$E$9:$Q$900,9,FALSE) -> 0.05003634031 | H21: =VLOOKUP(A21,'Qtité art'!$E$9:$Q$900,10,FALSE) -> 3 | I21: =VLOOKUP(A21,'Qtité art'!$E$9:$Q$900,11,FALSE) -> 0.01307808965 | J21: =VLOOKUP(A21,'Qtité art'!$E$9:$Q$900,12,FALSE) -> Plat6 | K21: =VLOOKUP(A21,'Qtité art'!$E$9:$Q$900,13,FALSE) -> 0.4782326707 | L21: =VLOOKUP(A21,'Qtité art'!$E$9:$Q$900,14,FALSE) -> 
A22: grde al | B22: =VLOOKUP(A22,'Feuille de calculs'!$E$4:$M$58,2,FALSE) -> 413.018 | C22: =VLOOKUP(A22,'Feuille de calculs'!$R$4:$V$81,3,FALSE) -> 0.003048273949 | D22: =VLOOKUP(A22,'Feuille de calculs'!$R$4:$V$81,4,FALSE) -> 0 | E22: =VLOOKUP(A22,'Feuille de calculs'!$R$4:$V$81,5,FALSE) -> 0 | F22: =VLOOKUP(A22,'Qtité art'!$E$9:$Q$900,8,FALSE) -> 1 | G22: =VLOOKUP(A22,'Qtité art'!$E$9:$Q$900,9,FALSE) -> 0.001099537037 | H22: =VLOOKUP(A22,'Qtité art'!$E$9:$Q$900,10,FALSE) -> 00:00:00 | I22: =VLOOKUP(A22,'Qtité art'!$E$9:$Q$900,11,FALSE) -> 0 | J22: =VLOOKUP(A22,'Qtité art'!$E$9:$Q$900,12,FALSE) -> Plat4 | K22: =VLOOKUP(A22,'Qtité art'!$E$9:$Q$900,13,FALSE) -> 44170.68477 | L22: =VLOOKUP(A22,'Qtité art'!$E$9:$Q$900,14,FALSE) -> 
A23: hous trav | B23: =VLOOKUP(A23,'Feuille de calculs'!$E$4:$M$58,2,FALSE) -> 1010.921 | C23: =VLOOKUP(A23,'Feuille de calculs'!$R$4:$V$81,3,FALSE) -> 0.007461089224 | D23: =VLOOKUP(A23,'Feuille de calculs'!$R$4:$V$81,4,FALSE) -> 0 | E23: =VLOOKUP(A23,'Feuille de calculs'!$R$4:$V$81,5,FALSE) -> 0 | F23: =VLOOKUP(A23,'Qtité art'!$E$9:$Q$900,8,FALSE) -> 1 | G23: =VLOOKUP(A23,'Qtité art'!$E$9:$Q$900,9,FALSE) -> 0.001099537037 | H23: =VLOOKUP(A23,'Qtité art'!$E$9:$Q$900,10,FALSE) -> 00:00:00 | I23: =VLOOKUP(A23,'Qtité art'!$E$9:$Q$900,11,FALSE) -> 0 | J23: =VLOOKUP(A23,'Qtité art'!$E$9:$Q$900,12,FALSE) -> Plat4 | K23: =VLOOKUP(A23,'Qtité art'!$E$9:$Q$900,13,FALSE) -> 198591.3906 | L23: =VLOOKUP(A23,'Qtité art'!$E$9:$Q$900,14,FALSE) -> 
A24: housse couette | B24: =VLOOKUP(A24,'Feuille de calculs'!$E$4:$M$58,2,FALSE) -> 15856.30733 | C24: =VLOOKUP(A24,'Feuille de calculs'!$R$4:$V$81,3,FALSE) -> 0.117027269 | D24: =VLOOKUP(A24,'Feuille de calculs'!$R$4:$V$81,4,FALSE) -> 0.5 | E24: =VLOOKUP(A24,'Feuille de calculs'!$R$4:$V$81,5,FALSE) -> 0.09090909091 | F24: =VLOOKUP(A24,'Qtité art'!$E$9:$Q$900,8,FALSE) -> 1 | G24: =VLOOKUP(A24,'Qtité art'!$E$9:$Q$900,9,FALSE) -> 0.001099537037 | H24: =VLOOKUP(A24,'Qtité art'!$E$9:$Q$900,10,FALSE) -> 00:00:00 | I24: =VLOOKUP(A24,'Qtité art'!$E$9:$Q$900,11,FALSE) -> 0 | J24: =VLOOKUP(A24,'Qtité art'!$E$9:$Q$900,12,FALSE) -> Plat3 | K24: =VLOOKUP(A24,'Qtité art'!$E$9:$Q$900,13,FALSE) -> 11156.75167 | L24: =VLOOKUP(A24,'Qtité art'!$E$9:$Q$900,14,FALSE) -> 
A25: nap .30 | B25: =VLOOKUP(A25,'Feuille de calculs'!$E$4:$M$58,2,FALSE) -> 39.09966667 | C25: =VLOOKUP(A25,'Feuille de calculs'!$R$4:$V$81,3,FALSE) -> 0.002492219397 | D25: =VLOOKUP(A25,'Feuille de calculs'!$R$4:$V$81,4,FALSE) -> 0 | E25: =VLOOKUP(A25,'Feuille de calculs'!$R$4:$V$81,5,FALSE) -> 0 | F25: =VLOOKUP(A25,'Qtité art'!$E$9:$Q$900,8,FALSE) -> 5 | G25: =VLOOKUP(A25,'Qtité art'!$E$9:$Q$900,9,FALSE) -> 0.04608292821 | H25: =VLOOKUP(A25,'Qtité art'!$E$9:$Q$900,10,FALSE) -> 00:00:00 | I25: =VLOOKUP(A25,'Qtité art'!$E$9:$Q$900,11,FALSE) -> 0 | J25: =VLOOKUP(A25,'Qtité art'!$E$9:$Q$900,12,FALSE) -> Plat4 | K25: =VLOOKUP(A25,'Qtité art'!$E$9:$Q$900,13,FALSE) -> 0.3774056538 | L25: =VLOOKUP(A25,'Qtité art'!$E$9:$Q$900,14,FALSE) -> 
A26: nap 12 | B26: =VLOOKUP(A26,'Feuille de calculs'!$E$4:$M$58,2,FALSE) -> 315.1183333 | C26: =VLOOKUP(A26,'Feuille de calculs'!$R$4:$V$81,3,FALSE) -> 0.02008569611 | D26: =VLOOKUP(A26,'Feuille de calculs'!$R$4:$V$81,4,FALSE) -> 0.1 | E26: =VLOOKUP(A26,'Feuille de calculs'!$R$4:$V$81,5,FALSE) -> 0 | F26: =VLOOKUP(A26,'Qtité art'!$E$9:$Q$900,8,FALSE) -> 5 | G26: =VLOOKUP(A26,'Qtité art'!$E$9:$Q$900,9,FALSE) -> 0.04608292821 | H26: =VLOOKUP(A26,'Qtité art'!$E$9:$Q$900,10,FALSE) -> 00:00:00 | I26: =VLOOKUP(A26,'Qtité art'!$E$9:$Q$900,11,FALSE) -> 0 | J26: =VLOOKUP(A26,'Qtité art'!$E$9:$Q$900,12,FALSE) -> Plat4 | K26: =VLOOKUP(A26,'Qtité art'!$E$9:$Q$900,13,FALSE) -> 0.4546823099 | L26: =VLOOKUP(A26,'Qtité art'!$E$9:$Q$900,14,FALSE) -> 
A27: nap 15 + 18 | B27: =VLOOKUP(A27,'Feuille de calculs'!$E$4:$M$58,2,FALSE) -> 1164.675667 | C27: =VLOOKUP(A27,'Feuille de calculs'!$R$4:$V$81,3,FALSE) -> 0.07423662488 | D27: =VLOOKUP(A27,'Feuille de calculs'!$R$4:$V$81,4,FALSE) -> 0.2 | E27: =VLOOKUP(A27,'Feuille de calculs'!$R$4:$V$81,5,FALSE) -> 0 | F27: =VLOOKUP(A27,'Qtité art'!$E$9:$Q$900,8,FALSE) -> 5 | G27: =VLOOKUP(A27,'Qtité art'!$E$9:$Q$900,9,FALSE) -> 0.04608292821 | H27: =VLOOKUP(A27,'Qtité art'!$E$9:$Q$900,10,FALSE) -> 00:00:00 | I27: =VLOOKUP(A27,'Qtité art'!$E$9:$Q$900,11,FALSE) -> 0 | J27: =VLOOKUP(A27,'Qtité art'!$E$9:$Q$900,12,FALSE) -> Plat4 | K27: =VLOOKUP(A27,'Qtité art'!$E$9:$Q$900,13,FALSE) -> 0.3321846029 | L27: =VLOOKUP(A27,'Qtité art'!$E$9:$Q$900,14,FALSE) -> 
A28: nap 20 | B28: =VLOOKUP(A28,'Feuille de calculs'!$E$4:$M$58,2,FALSE) -> 441.9036667 | C28: =VLOOKUP(A28,'Feuille de calculs'!$R$4:$V$81,3,FALSE) -> 0.0281670148 | D28: =VLOOKUP(A28,'Feuille de calculs'!$R$4:$V$81,4,FALSE) -> 0.1 | E28: =VLOOKUP(A28,'Feuille de calculs'!$R$4:$V$81,5,FALSE) -> 0 | F28: =VLOOKUP(A28,'Qtité art'!$E$9:$Q$900,8,FALSE) -> 5 | G28: =VLOOKUP(A28,'Qtité art'!$E$9:$Q$900,9,FALSE) -> 0.04608292821 | H28: =VLOOKUP(A28,'Qtité art'!$E$9:$Q$900,10,FALSE) -> 00:00:00 | I28: =VLOOKUP(A28,'Qtité art'!$E$9:$Q$900,11,FALSE) -> 0 | J28: =VLOOKUP(A28,'Qtité art'!$E$9:$Q$900,12,FALSE) -> Plat4 | K28: =VLOOKUP(A28,'Qtité art'!$E$9:$Q$900,13,FALSE) -> 0.3108921799 | L28: =VLOOKUP(A28,'Qtité art'!$E$9:$Q$900,14,FALSE) -> 
A29: nap 24 | B29: =VLOOKUP(A29,'Feuille de calculs'!$E$4:$M$58,2,FALSE) -> 148.8666667 | C29: =VLOOKUP(A29,'Feuille de calculs'!$R$4:$V$81,3,FALSE) -> 0.009488786627 | D29: =VLOOKUP(A29,'Feuille de calculs'!$R$4:$V$81,4,FALSE) -> 0 | E29: =VLOOKUP(A29,'Feuille de calculs'!$R$4:$V$81,5,FALSE) -> 0 | F29: =VLOOKUP(A29,'Qtité art'!$E$9:$Q$900,8,FALSE) -> 5 | G29: =VLOOKUP(A29,'Qtité art'!$E$9:$Q$900,9,FALSE) -> 0.04608292821 | H29: =VLOOKUP(A29,'Qtité art'!$E$9:$Q$900,10,FALSE) -> 00:00:00 | I29: =VLOOKUP(A29,'Qtité art'!$E$9:$Q$900,11,FALSE) -> 0 | J29: =VLOOKUP(A29,'Qtité art'!$E$9:$Q$900,12,FALSE) -> Plat4 | K29: =VLOOKUP(A29,'Qtité art'!$E$9:$Q$900,13,FALSE) -> 0.2205807597 | L29: =VLOOKUP(A29,'Qtité art'!$E$9:$Q$900,14,FALSE) -> 
